{"text_format":"1","workbook":"xlsx","n_sheets":8,"sheets":["Title I, Part C","Transferability","GEPA","Consortium Incentive Grants","General Assurances","Program Specific Assurances","Prefills","Sheet1"],"not_rendered":{"charts":0,"images":2,"macros":1,"external_links":3,"defined_names":248,"comments":3,"pivot_tables":0},"unopened":[],"bounds":{"document_bytes":16777216,"sheet_cells":100000,"rows_first":2000,"rows_last":500,"rows_between":2000,"halvings":0,"cell_chars":16384,"cell_head_chars":4096},"cells_cut":0,"cells_raw":0,"read":"whole","date_system":"1900"}

{"sheet":"Title I, Part C","index":0,"n_rows":518,"n_cols":16384,"rows_kept":518,"cut":false,"hidden":false,"merged":[[376,16288,376,16303],[376,16304,376,16319],[376,16320,376,16335],[376,16336,376,16351],[376,16352,376,16367],[376,16368,376,16383],[376,16144,376,16159],[376,16160,376,16175],[376,16176,376,16191],[376,16192,376,16207],[376,16208,376,16223],[376,16224,376,16239],[376,16240,376,16255],[376,16256,376,16271],[376,16272,376,16287],[376,16000,376,16015],[376,16016,376,16031],[376,16032,376,16047],[376,16048,376,16063],[376,16064,376,16079],[376,16080,376,16095],[376,16096,376,16111],[376,16112,376,16127],[376,16128,376,16143],[376,15920,376,15935],[376,15936,376,15951],[376,15952,376,15967],[376,15968,376,15983],[376,15984,376,15999],[376,15712,376,15727],[376,15728,376,15743],[376,15744,376,15759],[376,15760,376,15775],[376,15776,376,15791],[376,15792,376,15807],[376,15808,376,15823],[376,15824,376,15839],[376,15840,376,15855],[376,15568,376,15583],[376,15584,376,15599],[376,15600,376,15615],[376,15616,376,15631],[376,15632,376,15647],[376,15648,376,15663],[376,15664,376,15679],[376,15680,376,15695],[376,15696,376,15711],[376,15856,376,15871],[376,15872,376,15887],[376,15888,376,15903],[376,15904,376,15919],[376,15424,376,15439],[376,15440,376,15455],[376,15456,376,15471],[376,15472,376,15487],[376,15488,376,15503],[376,15504,376,15519],[376,15520,376,15535],[376,15536,376,15551],[376,15552,376,15567],[376,15280,376,15295],[376,15296,376,15311],[376,15312,376,15327],[376,15328,376,15343],[376,15344,376,15359],[376,15360,376,15375],[376,15376,376,15391],[376,15392,376,15407],[376,15408,376,15423],[376,15136,376,15151],[376,15152,376,15167],[376,15168,376,15183],[376,15184,376,15199],[376,15200,376,15215],[376,15216,376,15231],[376,15232,376,15247],[376,15248,376,15263],[376,15264,376,15279],[376,14992,376,15007],[376,15008,376,15023],[376,15024,376,15039],[376,15040,376,15055],[376,15056,376,15071],[376,15072,376,15087],[376,15088,376,15103],[376,15104,376,15119],[376,15120,376,15135],[376,14848,376,14863],[376,14864,376,14879],[376,14880,376,14895],[376,14896,376,14911],[376,14912,376,14927],[376,14928,376,14943],[376,14944,376,14959],[376,14960,376,14975],[376,14976,376,14991],[376,14704,376,14719],[376,14720,376,14735],[376,14736,376,14751],[376,14752,376,14767],[376,14768,376,14783],[376,14784,376,14799],[376,14800,376,14815],[376,14816,376,14831],[376,14832,376,14847],[376,14560,376,14575],[376,14576,376,14591],[376,14592,376,14607],[376,14608,376,14623],[376,14624,376,14639],[376,14640,376,14655],[376,14656,376,14671],[376,14672,376,14687],[376,14688,376,14703],[376,14416,376,14431],[376,14432,376,14447],[376,14448,376,14463],[376,14464,376,14479],[376,14480,376,14495],[376,14496,376,14511],[376,14512,376,14527],[376,14528,376,14543],[376,14544,376,14559],[376,14272,376,14287],[376,14288,376,14303],[376,14304,376,14319],[376,14320,376,14335],[376,14336,376,14351],[376,14352,376,14367],[376,14368,376,14383],[376,14384,376,14399],[376,14400,376,14415],[376,14128,376,14143],[376,14144,376,14159],[376,14160,376,14175],[376,14176,376,14191],[376,14192,376,14207],[376,14208,376,14223],[376,14224,376,14239],[376,14240,376,14255],[376,14256,376,14271],[376,13984,376,13999],[376,14000,376,14015],[376,14016,376,14031],[376,14032,376,14047],[376,14048,376,14063],[376,14064,376,14079],[376,14080,376,14095],[376,14096,376,14111],[376,14112,376,14127],[376,13840,376,13855],[376,13856,376,13871],[376,13872,376,13887],[376,13888,376,13903],[376,13904,376,13919],[376,13920,376,13935],[376,13936,376,13951],[376,13952,376,13967],[376,13968,376,13983],[376,13696,376,13711],[376,13712,376,13727],[376,13728,376,13743],[376,13744,376,13759],[376,13760,376,13775],[376,13776,376,13791],[376,13792,376,13807],[376,13808,376,13823],[376,13824,376,13839],[376,13552,376,13567],[376,13568,376,13583],[376,13584,376,13599],[376,13600,376,13615],[376,13616,376,13631],[376,13632,376,13647],[376,13648,376,13663],[376,13664,376,13679],[376,13680,376,13695],[376,13408,376,13423],[376,13424,376,13439],[376,13440,376,13455],[376,13456,376,13471],[376,13472,376,13487],[376,13488,376,13503],[376,13504,376,13519],[376,13520,376,13535],[376,13536,376,13551],[376,13264,376,13279],[376,13280,376,13295],[376,13296,376,13311],[376,13312,376,13327],[376,13328,376,13343],[376,13344,376,13359],[376,13360,376,13375],[376,13376,376,13391],[376,13392,376,13407],[376,13120,376,13135],[376,13136,376,13151],[376,13152,376,13167],[376,13168,376,13183],[376,13184,376,13199],[376,13200,376,13215],[376,13216,376,13231],[376,13232,376,13247],[376,13248,376,13263],[376,12976,376,12991],[376,12992,376,13007],[376,13008,376,13023],[376,13024,376,13039],[376,13040,376,13055],[376,13056,376,13071],[376,13072,376,13087],[376,13088,376,13103],[376,13104,376,13119],[376,12832,376,12847],[376,12848,376,12863],[376,12864,376,12879],[376,12880,376,12895],[376,12896,376,12911],[376,12912,376,12927],[376,12928,376,12943],[376,12944,376,12959],[376,12960,376,12975],[376,12688,376,12703],[376,12704,376,12719],[376,12720,376,12735],[376,12736,376,12751],[376,12752,376,12767],[376,12768,376,12783],[376,12784,376,12799],[376,12800,376,12815],[376,12816,376,12831],[376,12544,376,12559],[376,12560,376,12575],[376,12576,376,12591],[376,12592,376,12607],[376,12608,376,12623],[376,12624,376,12639],[376,12640,376,12655],[376,12656,376,12671],[376,12672,376,12687],[376,12400,376,12415],[376,12416,376,12431],[376,12432,376,12447],[376,12448,376,12463],[376,12464,376,12479],[376,12480,376,12495],[376,12496,376,12511],[376,12512,376,12527],[376,12528,376,12543],[376,12256,376,12271],[376,12272,376,12287],[376,12288,376,12303],[376,12304,376,12319],[376,12320,376,12335],[376,12336,376,12351],[376,12352,376,12367],[376,12368,376,12383],[376,12384,376,12399],[376,12112,376,12127],[376,12128,376,12143],[376,12144,376,12159],[376,12160,376,12175],[376,12176,376,12191],[376,12192,376,12207],[376,12208,376,12223],[376,12224,376,12239],[376,12240,376,12255],[376,11968,376,11983],[376,11984,376,11999],[376,12000,376,12015],[376,12016,376,12031],[376,12032,376,12047],[376,12048,376,12063],[376,12064,376,12079],[376,12080,376,12095],[376,12096,376,12111],[376,11824,376,11839],[376,11840,376,11855],[376,11856,376,11871],[376,11872,376,11887],[376,11888,376,11903],[376,11904,376,11919],[376,11920,376,11935],[376,11936,376,11951],[376,11952,376,11967],[376,11680,376,11695],[376,11696,376,11711],[376,11712,376,11727],[376,11728,376,11743],[376,11744,376,11759],[376,11760,376,11775],[376,11776,376,11791],[376,11792,376,11807],[376,11808,376,11823],[376,11536,376,11551],[376,11552,376,11567],[376,11568,376,11583],[376,11584,376,11599],[376,11600,376,11615],[376,11616,376,11631],[376,11632,376,11647],[376,11648,376,11663],[376,11664,376,11679],[376,11392,376,11407],[376,11408,376,11423],[376,11424,376,11439],[376,11440,376,11455],[376,11456,376,11471],[376,11472,376,11487],[376,11488,376,11503],[376,11504,376,11519],[376,11520,376,11535],[376,11248,376,11263],[376,11264,376,11279],[376,11280,376,11295],[376,11296,376,11311],[376,11312,376,11327],[376,11328,376,11343],[376,11344,376,11359],[376,11360,376,11375],[376,11376,376,11391],[376,11104,376,11119],[376,11120,376,11135],[376,11136,376,11151],[376,11152,376,11167],[376,11168,376,11183],[376,11184,376,11199],[376,11200,376,11215],[376,11216,376,11231],[376,11232,376,11247],[376,10960,376,10975],[376,10976,376,10991],[376,10992,376,11007],[376,11008,376,11023],[376,11024,376,11039],[376,11040,376,11055],[376,11056,376,11071],[376,11072,376,11087],[376,11088,376,11103],[376,10816,376,10831],[376,10832,376,10847],[376,10848,376,10863],[376,10864,376,10879],[376,10880,376,10895],[376,10896,376,10911],[376,10912,376,10927],[376,10928,376,10943],[376,10944,376,10959],[376,10672,376,10687],[376,10688,376,10703],[376,10704,376,10719],[376,10720,376,10735],[376,10736,376,10751],[376,10752,376,10767],[376,10768,376,10783],[376,10784,376,10799],[376,10800,376,10815],[376,10528,376,10543],[376,10544,376,10559],[376,10560,376,10575],[376,10576,376,10591],[376,10592,376,10607],[376,10608,376,10623],[376,10624,376,10639],[376,10640,376,10655],[376,10656,376,10671],[376,10384,376,10399],[376,10400,376,10415],[376,10416,376,10431],[376,10432,376,10447],[376,10448,376,10463],[376,10464,376,10479],[376,10480,376,10495],[376,10496,376,10511],[376,10512,376,10527],[376,10240,376,10255],[376,10256,376,10271],[376,10272,376,10287],[376,10288,376,10303],[376,10304,376,10319],[376,10320,376,10335],[376,10336,376,10351],[376,10352,376,10367],[376,10368,376,10383],[376,10096,376,10111],[376,10112,376,10127],[376,10128,376,10143],[376,10144,376,10159],[376,10160,376,10175],[376,10176,376,10191],[376,10192,376,10207],[376,10208,376,10223],[376,10224,376,10239],[376,9952,376,9967],[376,9968,376,9983],[376,9984,376,9999],[376,10000,376,10015],[376,10016,376,10031],[376,10032,376,10047],[376,10048,376,10063],[376,10064,376,10079],[376,10080,376,10095],[376,9808,376,9823],[376,9824,376,9839],[376,9840,376,9855],[376,9856,376,9871],[376,9872,376,9887],[376,9888,376,9903],[376,9904,376,9919],[376,9920,376,9935],[376,9936,376,9951],[376,9664,376,9679],[376,9680,376,9695],[376,9696,376,9711],[376,9712,376,9727],[376,9728,376,9743],[376,9744,376,9759],[376,9760,376,9775],[376,9776,376,9791],[376,9792,376,9807],[376,9520,376,9535],[376,9536,376,9551],[376,9552,376,9567],[376,9568,376,9583],[376,9584,376,9599],[376,9600,376,9615],[376,9616,376,9631],[376,9632,376,9647],[376,9648,376,9663],[376,9376,376,9391],[376,9392,376,9407],[376,9408,376,9423],[376,9424,376,9439],[376,9440,376,9455],[376,9456,376,9471],[376,9472,376,9487],[376,9488,376,9503],[376,9504,376,9519],[376,9232,376,9247],[376,9248,376,9263],[376,9264,376,9279],[376,9280,376,9295],[376,9296,376,9311],[376,9312,376,9327],[376,9328,376,9343],[376,9344,376,9359],[376,9360,376,9375],[376,9088,376,9103],[376,9104,376,9119],[376,9120,376,9135],[376,9136,376,9151],[376,9152,376,9167],[376,9168,376,9183],[376,9184,376,9199],[376,9200,376,9215],[376,9216,376,9231],[376,8944,376,8959],[376,8960,376,8975],[376,8976,376,8991],[376,8992,376,9007],[376,9008,376,9023],[376,9024,376,9039],[376,9040,376,9055],[376,9056,376,9071],[376,9072,376,9087],[376,8800,376,8815],[376,8816,376,8831],[376,8832,376,8847],[376,8848,376,8863],[376,8864,376,8879],[376,8880,376,8895],[376,8896,376,8911],[376,8912,376,8927],[376,8928,376,8943],[376,8656,376,8671],[376,8672,376,8687],[376,8688,376,8703],[376,8704,376,8719],[376,8720,376,8735],[376,8736,376,8751],[376,8752,376,8767],[376,8768,376,8783],[376,8784,376,8799],[376,8512,376,8527],[376,8528,376,8543],[376,8544,376,8559],[376,8560,376,8575],[376,8576,376,8591],[376,8592,376,8607],[376,8608,376,8623],[376,8624,376,8639],[376,8640,376,8655],[376,8368,376,8383],[376,8384,376,8399],[376,8400,376,8415],[376,8416,376,8431],[376,8432,376,8447],[376,8448,376,8463],[376,8464,376,8479],[376,8480,376,8495],[376,8496,376,8511],[376,8224,376,8239],[376,8240,376,8255],[376,8256,376,8271],[376,8272,376,8287],[376,8288,376,8303],[376,8304,376,8319],[376,8320,376,8335],[376,8336,376,8351],[376,8352,376,8367],[376,8080,376,8095],[376,8096,376,8111],[376,8112,376,8127],[376,8128,376,8143],[376,8144,376,8159],[376,8160,376,8175],[376,8176,376,8191],[376,8192,376,8207],[376,8208,376,8223],[376,7936,376,7951],[376,7952,376,7967],[376,7968,376,7983],[376,7984,376,7999],[376,8000,376,8015],[376,8016,376,8031],[376,8032,376,8047],[376,8048,376,8063],[376,8064,376,8079],[376,7792,376,7807],[376,7808,376,7823],[376,7824,376,7839],[376,7840,376,7855],[376,7856,376,7871],[376,7872,376,7887],[376,7888,376,7903],[376,7904,376,7919],[376,7920,376,7935],[376,7648,376,7663],[376,7664,376,7679],[376,7680,376,7695],[376,7696,376,7711],[376,7712,376,7727],[376,7728,376,7743],[376,7744,376,7759],[376,7760,376,7775],[376,7776,376,7791],[376,7504,376,7519],[376,7520,376,7535],[376,7536,376,7551],[376,7552,376,7567],[376,7568,376,7583],[376,7584,376,7599],[376,7600,376,7615],[376,7616,376,7631],[376,7632,376,7647],[376,7360,376,7375],[376,7376,376,7391],[376,7392,376,7407],[376,7408,376,7423],[376,7424,376,7439],[376,7440,376,7455],[376,7456,376,7471],[376,7472,376,7487],[376,7488,376,7503],[376,7216,376,7231],[376,7232,376,7247],[376,7248,376,7263],[376,7264,376,7279],[376,7280,376,7295],[376,7296,376,7311],[376,7312,376,7327],[376,7328,376,7343],[376,7344,376,7359],[376,7072,376,7087],[376,7088,376,7103],[376,7104,376,7119],[376,7120,376,7135],[376,7136,376,7151],[376,7152,376,7167],[376,7168,376,7183],[376,7184,376,7199],[376,7200,376,7215],[376,6928,376,6943],[376,6944,376,6959],[376,6960,376,6975],[376,6976,376,6991],[376,6992,376,7007],[376,7008,376,7023],[376,7024,376,7039],[376,7040,376,7055],[376,7056,376,7071],[376,6784,376,6799],[376,6800,376,6815],[376,6816,376,6831],[376,6832,376,6847],[376,6848,376,6863],[376,6864,376,6879],[376,6880,376,6895],[376,6896,376,6911],[376,6912,376,6927],[376,6640,376,6655],[376,6656,376,6671],[376,6672,376,6687],[376,6688,376,6703],[376,6704,376,6719],[376,6720,376,6735],[376,6736,376,6751],[376,6752,376,6767],[376,6768,376,6783],[376,6496,376,6511],[376,6512,376,6527],[376,6528,376,6543],[376,6544,376,6559],[376,6560,376,6575],[376,6576,376,6591],[376,6592,376,6607],[376,6608,376,6623],[376,6624,376,6639],[376,6352,376,6367],[376,6368,376,6383],[376,6384,376,6399],[376,6400,376,6415],[376,6416,376,6431],[376,6432,376,6447],[376,6448,376,6463],[376,6464,376,6479],[376,6480,376,6495],[376,6208,376,6223],[376,6224,376,6239],[376,6240,376,6255],[376,6256,376,6271],[376,6272,376,6287],[376,6288,376,6303],[376,6304,376,6319],[376,6320,376,6335],[376,6336,376,6351],[376,6064,376,6079],[376,6080,376,6095],[376,6096,376,6111],[376,6112,376,6127],[376,6128,376,6143],[376,6144,376,6159],[376,6160,376,6175],[376,6176,376,6191],[376,6192,376,6207],[376,5920,376,5935],[376,5936,376,5951],[376,5952,376,5967],[376,5968,376,5983],[376,5984,376,5999],[376,6000,376,6015],[376,6016,376,6031],[376,6032,376,6047],[376,6048,376,6063],[376,5776,376,5791],[376,5792,376,5807],[376,5808,376,5823],[376,5824,376,5839],[376,5840,376,5855],[376,5856,376,5871],[376,5872,376,5887],[376,5888,376,5903],[376,5904,376,5919],[376,5632,376,5647],[376,5648,376,5663],[376,5664,376,5679],[376,5680,376,5695],[376,5696,376,5711],[376,5712,376,5727],[376,5728,376,5743],[376,5744,376,5759],[376,5760,376,5775],[376,5488,376,5503],[376,5504,376,5519],[376,5520,376,5535],[376,5536,376,5551],[376,5552,376,5567],[376,5568,376,5583],[376,5584,376,5599],[376,5600,376,5615],[376,5616,376,5631],[376,5344,376,5359],[376,5360,376,5375],[376,5376,376,5391],[376,5392,376,5407],[376,5408,376,5423],[376,5424,376,5439],[376,5440,376,5455],[376,5456,376,5471],[376,5472,376,5487],[376,5200,376,5215],[376,5216,376,5231],[376,5232,376,5247],[376,5248,376,5263],[376,5264,376,5279],[376,5280,376,5295],[376,5296,376,5311],[376,5312,376,5327],[376,5328,376,5343],[376,5056,376,5071],[376,5072,376,5087],[376,5088,376,5103],[376,5104,376,5119],[376,5120,376,5135],[376,5136,376,5151],[376,5152,376,5167],[376,5168,376,5183],[376,5184,376,5199],[376,4912,376,4927],[376,4928,376,4943],[376,4944,376,4959],[376,4960,376,4975],[376,4976,376,4991],[376,4992,376,5007],[376,5008,376,5023],[376,5024,376,5039],[376,5040,376,5055],[376,4768,376,4783],[376,4784,376,4799],[376,4800,376,4815],[376,4816,376,4831],[376,4832,376,4847],[376,4848,376,4863],[376,4864,376,4879],[376,4880,376,4895],[376,4896,376,4911],[376,4624,376,4639],[376,4640,376,4655],[376,4656,376,4671],[376,4672,376,4687],[376,4688,376,4703],[376,4704,376,4719],[376,4720,376,4735],[376,4736,376,4751],[376,4752,376,4767],[376,4480,376,4495],[376,4496,376,4511],[376,4512,376,4527],[376,4528,376,4543],[376,4544,376,4559],[376,4560,376,4575],[376,4576,376,4591],[376,4592,376,4607],[376,4608,376,4623],[376,4336,376,4351],[376,4352,376,4367],[376,4368,376,4383],[376,4384,376,4399],[376,4400,376,4415],[376,4416,376,4431],[376,4432,376,4447],[376,4448,376,4463],[376,4464,376,4479],[376,4192,376,4207],[376,4208,376,4223],[376,4224,376,4239],[376,4240,376,4255],[376,4256,376,4271],[376,4272,376,4287],[376,4288,376,4303],[376,4304,376,4319],[376,4320,376,4335],[376,4048,376,4063],[376,4064,376,4079],[376,4080,376,4095],[376,4096,376,4111],[376,4112,376,4127],[376,4128,376,4143],[376,4144,376,4159],[376,4160,376,4175],[376,4176,376,4191],[376,3904,376,3919],[376,3920,376,3935],[376,3936,376,3951],[376,3952,376,3967],[376,3968,376,3983],[376,3984,376,3999],[376,4000,376,4015],[376,4016,376,4031],[376,4032,376,4047],[376,3760,376,3775],[376,3776,376,3791],[376,3792,376,3807],[376,3808,376,3823],[376,3824,376,3839],[376,3840,376,3855],[376,3856,376,3871],[376,3872,376,3887],[376,3888,376,3903],[376,3616,376,3631],[376,3632,376,3647],[376,3648,376,3663],[376,3664,376,3679],[376,3680,376,3695],[376,3696,376,3711],[376,3712,376,3727],[376,3728,376,3743],[376,3744,376,3759],[376,3472,376,3487],[376,3488,376,3503],[376,3504,376,3519],[376,3520,376,3535],[376,3536,376,3551],[376,3552,376,3567],[376,3568,376,3583],[376,3584,376,3599],[376,3600,376,3615],[376,3328,376,3343],[376,3344,376,3359],[376,3360,376,3375],[376,3376,376,3391],[376,3392,376,3407],[376,3408,376,3423],[376,3424,376,3439],[376,3440,376,3455],[376,3456,376,3471],[376,3184,376,3199],[376,3200,376,3215],[376,3216,376,3231],[376,3232,376,3247],[376,3248,376,3263],[376,3264,376,3279],[376,3280,376,3295],[376,3296,376,3311],[376,3312,376,3327],[376,3040,376,3055],[376,3056,376,3071],[376,3072,376,3087],[376,3088,376,3103],[376,3104,376,3119],[376,3120,376,3135],[376,3136,376,3151],[376,3152,376,3167],[376,3168,376,3183],[376,2896,376,2911],[376,2912,376,2927],[376,2928,376,2943],[376,2944,376,2959],[376,2960,376,2975],[376,2976,376,2991],[376,2992,376,3007],[376,3008,376,3023],[376,3024,376,3039],[376,2752,376,2767],[376,2768,376,2783],[376,2784,376,2799],[376,2800,376,2815],[376,2816,376,2831],[376,2832,376,2847],[376,2848,376,2863],[376,2864,376,2879],[376,2880,376,2895],[376,2608,376,2623],[376,2624,376,2639],[376,2640,376,2655],[376,2656,376,2671],[376,2672,376,2687],[376,2688,376,2703],[376,2704,376,2719],[376,2720,376,2735],[376,2736,376,2751],[376,2480,376,2495],[376,2496,376,2511],[376,2512,376,2527],[376,2528,376,2543],[376,2544,376,2559],[376,2560,376,2575],[376,2576,376,2591],[376,2592,376,2607],[376,2320,376,2335],[376,2336,376,2351],[376,2352,376,2367],[376,2368,376,2383],[376,2384,376,2399],[376,2400,376,2415],[376,2416,376,2431],[376,2432,376,2447],[376,2448,376,2463],[376,2208,376,2223],[376,2224,376,2239],[376,2240,376,2255],[376,2256,376,2271],[376,2272,376,2287],[376,2288,376,2303],[376,2304,376,2319],[376,2032,376,2047],[376,2048,376,2063],[376,2064,376,2079],[376,2080,376,2095],[376,2096,376,2111],[376,2112,376,2127],[376,2128,376,2143],[376,2144,376,2159],[376,2160,376,2175],[376,2464,376,2479],[376,1936,376,1951],[376,1952,376,1967],[376,1968,376,1983],[376,1984,376,1999],[376,2000,376,2015],[376,2016,376,2031],[376,1744,376,1759],[376,1760,376,1775],[376,1776,376,1791],[376,1792,376,1807],[376,1808,376,1823],[376,1824,376,1839],[376,1840,376,1855],[376,1856,376,1871],[376,1872,376,1887],[376,2176,376,2191],[376,2192,376,2207],[376,1664,376,1679],[376,1680,376,1695],[376,1696,376,1711],[376,1712,376,1727],[376,1728,376,1743],[376,1456,376,1471],[376,1472,376,1487],[376,1488,376,1503],[376,1504,376,1519],[376,1520,376,1535],[376,1536,376,1551],[376,1552,376,1567],[376,1568,376,1583],[376,1584,376,1599],[376,1888,376,1903],[376,1904,376,1919],[376,1920,376,1935],[376,1392,376,1407],[376,1408,376,1423],[376,1424,376,1439],[376,1440,376,1455],[376,1168,376,1183],[376,1184,376,1199],[376,1200,376,1215],[376,1216,376,1231],[376,1232,376,1247],[376,1248,376,1263],[376,1264,376,1279],[376,1280,376,1295],[376,1296,376,1311],[376,1600,376,1615],[376,1616,376,1631],[376,1632,376,1647],[376,1648,376,1663],[376,1120,376,1135],[376,1136,376,1151],[376,1152,376,1167],[376,880,376,895],[376,896,376,911],[376,912,376,927],[376,928,376,943],[376,944,376,959],[376,960,376,975],[376,976,376,991],[376,992,376,1007],[376,1008,376,1023],[376,1312,376,1327],[376,1328,376,1343],[376,1344,376,1359],[376,1360,376,1375],[376,1376,376,1391],[376,848,376,863],[376,864,376,879],[376,592,376,607],[376,608,376,623],[376,624,376,639],[376,640,376,655],[376,656,376,671],[376,672,376,687],[376,688,376,703],[376,704,376,719],[376,720,376,735],[376,1024,376,1039],[376,1040,376,1055],[376,1056,376,1071],[376,1072,376,1087],[376,1088,376,1103],[376,1104,376,1119],[376,160,376,175],[376,176,376,191],[376,192,376,207],[376,208,376,223],[376,224,376,239],[376,240,376,255],[376,256,376,271],[376,272,376,287],[376,288,376,303],[376,16,376,31],[376,736,376,751],[376,752,376,767],[376,768,376,783],[376,784,376,799],[376,800,376,815],[376,816,376,831],[376,832,376,847],[376,448,376,463],[376,464,376,479],[376,480,376,495]],"merged_total":1777,"flags":["merged_cut"]}
[null,null,null,null,null,null,null,null,null,null,null,null,"Place an \"X\" by the applicable response."]
[null,null,"Virginia Department of Education",null,null,null,null,null,null,null,null,null,"X"," Original "]
[null,null,"Office of ESEA Programs"]
[null,null,"P. O. Box 2120",null,null,null,null,null,null,null,null,null,null,"Revision:   "]
[null,null,"Richmond, Virginia 23218-2120",null,null,null,null,null,null,null,null,null,null,"Revision #"]
[null,null,null,null,null,null,null,null,null,null,null,null,null,"Date:"]
[null,null,"A.  COVER PAGE",null,null,null,null,null,null,null,null,null,null,"Explain"]
[null,null,"   Title I, Part C, Education of Migratory Children",null,null,null,null,null,null,null,null,null,null,"Amendment:"]
[null,null,null,null,null,null,null,null,null,null,null,null,null,"Amendment # "]
[null,null,"  2020-2021  Individual Program Application ",null,null,null,null,null,null,null,null,null,null,"Date:       "]
[null,null,"Due by July 1, 2020",null,null,null,null,null,null,null,null,null,null,"Explain"]
["                                              Under the No Child Left Behind Act of 2001, Public Law 107-110",null,"Elementary and Secondary Education Act of 1965 (ESEA), as amended by"]
[null,null,"the Every Student Succeeds Act of 2015 (ESSA), Public Law 114-95 "]
[]
["To be Completed by School Division"]
["Applicant  (Legal Name of Agency):",null,null,null,null,null,null,"Division Number:",null,"Title I, Part C, Coordinator:"]
["ALBEMARLE COUNTY PUBLIC SCHOOLS",null,null,null,null,null,null,{"$f":"IF(ISBLANK(A17),\" \",VLOOKUP(A17,Prefills!A2:B147,2))","v":2},null,"Sharon Root"]
["Mailing Address (Street, City or Town, Zip Code):",null,null,null,null,null,null,"Phone:",null,"434-296-3872",null,null,"Ext:"]
["401 McIntire Road\nCharlottesville, VA  22902",null,null,null,null,null,null,"Email:"]
[null,null,null,null,null,null,null,"sroot@k12albemarle.org"]
[]
[]
["LOCAL EDUCATIONAL AGENCY CERTIFICATION"]
["Use of Funds:  The applicant designated above applies for an allocation of federal assistance as appropriated under ESEA.  Funds are available to support local education reform efforts that are consistent with statewide education reform efforts to: 1) provide funding to implement promising education reform programs and school improvement programs based on evidence-based research;  2) provide a continuing source of innovative and educational improvement;  3) meet the educational needs of all students; and 4) develop and implement education programs to improve student achievement and teacher performance. \n\nSpecific uses of funds for this application are found in the \"Guidelines, Instructions, and Assurances\" document. "]
[]
["Assurances:  The local educational agency assures that the Title I, Part C, program will be administered and implemented in compliance with all applicable statutes, regulations, policies, program plans, and applications.  Additionally, the local educational agency agrees by signing below to implement the general and program specific assurances located in the application.  The assurances and signed cover page are to be retained at the division level.  "]
[]
["Certification:  We hereby certify that, to the best of our knowledge, the information contained in this application is correct.  The agency named above has authorized us as its representatives to file this application, and such action is recorded in the minutes of the School Board meeting held "]
["on","2020-05-28",null,null,"."]
[]
["     "]
["Superintendent’s Signature",null,null,null,null,null,null,"Board Chairperson’s Signature"]
["Matthew S. Haas",null,null,null,null,null,null,"Mr. Jonno Alcaro"]
["Superintendent’s Name",null,null,null,null,null,null,"Board Chairperson’s Name"]
["2020-06-11",null,null,null,null,null,null,"2020-06-11"]
["Date",null,null,null,null,null,null,"Date"]
[]
["Application Submission, Approval, and LEA Expenditure of Funds: Applications for Federal Funds are due by July 1, 2020.  Revisions and Amendments should be submitted in a timely manner. In order for the funds to be expendable by July 1, 2020, the electronic application must be received at the Virginia Department of Education by July 1, 2020, through the file submission process of the Online Management of Education Grant Awards (OMEGA) system.  "]
[]
[]
["Page 1"]
[null,null,null,null,"School Division:",null,{"$f":"$A$17","v":"ALBEMARLE COUNTY PUBLIC SCHOOLS"},null,null,null,null,null,"Division Number:",null,null,{"$f":"$H$17","v":2}]
["APPLICATION INFORMATION"]
[]
["2019- 2020 \nAllocation ",null,"2019-2020\nConsolidated\nYes or No",null,"PROGRAM",null,null,null,null,null,null,null,null,"2020-2021\nAllocation"]
[{"$f":"IF(ISBLANK($A$17),\" \",VLOOKUP($H$17,Prefills!$AD$3:$AG$142,4))","v":123987.39},null,"No",null,"Title I, Part C, Education of Migratory Children",null,null,null,null,null,null,null,null,{"$f":"SUM(L47:M48)","v":123987},null,null,null,null,"Yes","No"]
[null,null,null,null,"a. Division Allocation",null,null,null,null,"Subtotal ",null,123987]
[null,null,null,null,"b.  Regional Program - Total of allocations  for all divisions in the regional program",null,null,null,null,"Subtotal ",null,0]
[]
[]
[]
[]
["TRANSFERABILITY"]
[]
["Section 5103(b)(2) of the Every Student Succeeds Act allows LEAs to transfer funds between certain qualifying federal programs. If funds are transferred into or out of the Title II, Part A, program, PRIOR APPROVAL IS REQUIRED, and a separate Transferability approval form must be submitted. The transfer request form is available at "]
["Transfer Request Form"]
[]
["Program from which funds will be transferred",null,null,null,null,null,"Program TO which funds will be transferred:",null,null,null,null,null,null,"Amount"]
["Title II, Part A",null,null,null,null,"TO","Title I, Part C, Education of Migratory Children"]
[]
["Program from which funds will be transferred",null,null,null,null,null,"Program TO which funds will be transferred:",null,null,null,null,null,null,"Amount"]
["Title IV, Part A",null,null,null,null,"TO","Title I, Part C, Education of Migratory Children"]
[]
["Page 2"]
[null,null,null,null,"School Division:",null,{"$f":"$A$17","v":"ALBEMARLE COUNTY PUBLIC SCHOOLS"},null,null,null,null,null,"Division Number:",null,null,{"$f":"$H$17","v":2}]
["REVISIONS AND AMENDMENTS"]
[]
["Place an \"X\" in the first box indicating whether it is a revision or amendment. Enter the date of the revision or amendment.  Indicate the tab(s) that have been changed. Provide a concise description of changes (for example, \"Programmatic Changes--purchase of additional reading materials, object code 6000; Budget Changes--decreased travel budget in object code 5000 and increased materials to purchase additional reading materials in object code 6000\"). When completing an amendment, changes to the program overview may be reflected as additions at the end of the narrative.\n\nNOTE: Any changes to the program budget should first be reflected in an amended application, followed by a budget transfer within 7 business days of approval of the amended application. Budget transfers will not be accepted without an approved amended application reflecting budget changes."]
["1.","Revision",null,null,null,"Date:"]
[null,"Amendment",null,null,null,"Date:"]
[]
["2.","Revision",null,null,null,"Date:"]
[null,"Amendment",null,null,null,"Date:"]
[]
["3.","Revision",null,null,null,"Date:"]
[null,"Amendment",null,null,null,"Date:"]
[]
["4.","Revision",null,null,null,"Date:"]
[null,"Amendment",null,null,null,"Date:"]
[]
["5.","Revision",null,null,null,"Date:"]
[null,"Amendment",null,null,null,"Date:"]
[]
["6.","Revision",null,null,null,"Date:"]
[null,"Amendment",null,null,null,"Date:"]
[]
["7.","Revision",null,null,null,"Date:"]
[null,"Amendment",null,null,null,"Date:"]
[]
["8.","Revision",null,null,null,"Date:"]
[null,"Amendment",null,null,null,"Date:"]
[]
["9.","Revision",null,null,null,"Date:"]
[null,"Amendment",null,null,null,"Date:"]
[]
["Page 3"]
[null,null,null,null,"School Division:",null,{"$f":"$A$17","v":"ALBEMARLE COUNTY PUBLIC SCHOOLS"},null,null,null,null,null,"Division Number:",null,null,{"$f":"$H$17","v":2}]
["B.  PROGRAM OVERVIEW (2 PAGES)"]
["In narrative format:"]
["1.","Describe how the Migrant Education Program (MEP) identifies new and existing migrant students including birth to age 3, ages 3-5, grades K-12, and out-of-school youth.  Include the most common qualifying activities and peak seasons for identification and recruitment. "]
["2.","Describe the instructional programs or program services to be developed with the requested federal funds based on the results of the division/regional comprehensive needs assessment.  Include the process used by the MEP to identify migrant students with the greatest need as priority for services.  Include the targeted population(s). (Examples are: ESEA subgroups of students, homeless and migrant students, instructional and administrative staff, paraprofessionals, parents, etc.)"]
["3."," Discuss how the division/regional MEP will contribute to the attainment of the ESEA goals below. "]
[null,null,"• Supporting student mastery of K-12 college-and-career  ready reading and mathematics standards, and attainment of proficiency or better on corresponding assessments;"]
[null,null,"• For high schools with a graduating class, supporting student completion of graduation requirements in a timely fashion; and"]
[null,null,"• Ensuring that students are taught by effective teachers meeting Virginia licensing and professional teaching requirements and providing meaningful professional development and support to promote effective instruction to increase student achievement."]
["4.","Provide a description of the needs assessment that was conducted to support the proposed activities."]
[" \nThe Albemarle County Regional Migrant Program includes the counties of Albemarle, Augusta, Chesterfield, Culpeper, Cumberland, Fairfax, Fluvanna, Goochland, Greene, Hanover, Louisa, Lunenburg, Madison, Nelson, Nottoway, Orange, Southampton, and Stafford, as well as the cities of Charlottesville, Staunton and Waynesboro.  This regional program features an adaptable system, designed to locate all eligible Migrant students residing in the region and to evaluate their educational needs, offering services to meet these needs.  All students are enrolled in school, or if they are of legal age to drop out, they are offered alternative educational services; our program is designed to fulfill the individual educational needs of each student.  The Migrant population fluctuates throughout the year, with the highest number present from June through October, during the fruit harvest seasons.  Apple and peach pruning, picking and packing, are the traditional activities, but there are workers arriving to work in grape orchards and vineyards, as well as nurseries, as those industries expand in the region.\n Migrant students in the area are 99% Hispanic and 99% Limited English Speakers.  The majority of the students or their parents have come from Mexico.  A Comprehensive Needs Assessment is updated each year to reflect current test scores and changing needs. "]
["\nEnglish Languages (EL) instruction is the primary educational need for all of the students.  Goals for our program are: 1) Help each Migrant student meet the Virginia Standards of Learning 2) Accelerate Learning 3) Motivate each Migrant student to increase her/his language, reading and math skills 4) Increase each student's ability to benefit from the education services by meeting health, clothing and nutritional needs that are identified 5) Involve the students in educational, cultural, social and bilingual experiences and activities which will motivate learning and reinforce self image; 6) Enable parents to become effective supporters of their children's educational success through Parent Involvement, Family Literacy, and Training; and 7) Provide on-site English Language and Family Literacy classes at night for students who work during the day.  \n  Methods used to achieve these goals include:\n1. During the regular school year, providing the student individual or small group tutorial services and instruction in basic skills, EL, and study skills, both in and out of the school setting in coordination with his/her regular classroom teacher.\n2. During the summer, providing summer school opportunities including home/camp-based instruction, Migrant Literacy Net instruction, night EL classes, inclusion in the Parks & Recreation Program, art camp, computer classes, library reading programs, SAT preparation, internships, and school  "]
["system-sponsored enrichment programs, and summer school.  \n3. After-school activities held in camps or homes including tutoring, Migrant Literacy Net instruction, basic skill and EL instruction, SOL preparation, enrichment, nutrition, study skills, and pre-school. \n4. Night classes are held in the camps providing EL instruction.\n5. Parent Involvement activities include bilingual Family Literacy, PAC meetings, learning celebrations, interpretation at school activities, and Parent Training. \n6. Counseling and mentors are provided.\n7. Enrollment is encouraged in existing community programs such as Head Start, Bright Stars, private pre-schools, After-School Enrichment, and adult EL classes. \n8. Intensive coordination with, and utilization of, all available community resources takes place.  \n9. Outside funding is secured, e.g., Adult Education Integrated English Language Civics Education (IELCE), Family Literacy, and private foundation grants to improve the quality of services, establish new programs, and pilot new methodologies."]
[]
["Page 4"]
[null,null,null,null,"School Division:",null,{"$f":"$A$17","v":"ALBEMARLE COUNTY PUBLIC SCHOOLS"},null,null,null,null,null,"Division Number:",null,null,{"$f":"$H$17","v":2}]
["B.  PROGRAM OVERVIEW (CONTINUED)"]
["10. Intensive coordination with the local Title I, Title III, K-12 ESOL, Homeless, and Adult Education Programs takes place.  A Student Service Plan is developed for each Migrant student.  Factors include level of English Language Proficiency, age appropriate grade placement, repeating a grade level, general performance level, Virginia Standards of Learning, attendance, number of schools attended, recent moves, parent evaluation and recommendation, parent educational needs, and classroom teacher evaluation and recommendation.  The student's portfolio is evaluated and a plan developed in coordination with the parent, student, and classroom teacher. Types of services and support are assessed and adapted each semester to reflect changes in evaluation factors.\nThe particular assessments vary among school divisions.  Tools include Qualitative Reading Inventory, Curriculum-Based Measurement, Developmental Spelling Analysis, Running Record, PALS, Wilson, Woodcock Munoz, RIGBY, MAP SNAP, ACAMP, SRA, WAPT WIDA Model, WIDA Access, Best Literacy, CASAS Life Skills, and SPL leveling. The goal is to work as a team member with the classroom teacher to develop a coordinated plan to assure meeting VA Performance Standards.  "]
["Updated spreadsheets are used by the Migrant staff as a team to continuously evaluate the level of services provided, assure full coverage, target needs and make changes as needed.  Data utilized includes SOL scores, classroom performance level, English Language Proficiency, frequency and type of direct service, Migrant status, and high school and verified credits. Need factors weighed in determining the extent of service and number of hours of extended learning time include current danger of not meeting the VA Standards of Learning.  \n\nPriority 1 students are served the most intensively, Priority 2 second, and COS last.  Determination to serve a COS is documented.\nMigrant students are offered some level of service through use of a large volunteer system and extensive collaboration with other programs.  Identification and recruitment of eligible Migrant students are priorities and integral ongoing components with the Albemarle Migrant Education Program. Five objectives have been developed and fully implemented.  The \"Albemarle  Regional ID&R Notebook\" is regularly utilized to document the procedures used to meet the objectives and formulate an ongoing workable process with additional goals and specific objectives each year. "]
["This ID&R Plan builds upon itself and grows each year to develop better techniques to meet the needs of each school system within the Albemarle region.  It has proven to be an adaptable, valuable tool.  Specific efforts and content information are documented including dates and names within separate sections of the notebook for each school system.\nThe ID&R Plan is discussed at each staff meeting with up-to-date numbers for the current year.  Meetings are held annually with the Virginia Employment Commission (VEC) Farm Placement Specialist to share information and identify new locations\nfor recruitment.  We stay in regular contact and visit some sites together. We attend meetings to promote collaboration with others who share our clientele, e.g. Nelson area Hispanic Summit and Head Start.   The previous VA State Migrant Recruiter, Elaine Cecelski, supplements recruiting efforts.  A prior recruiter, Vanessa Hale, works with Rural Health for Blue Ridge Medical Center and visits Migrant camps with current recruiters.  She contacts us if she identifies eligible Migrant students in her role as a Spanish-speaking Outreach Worker.  "]
[]
[]
["Page 5"]
[null,null,null,null,"School Division:",null,{"$f":"$A$17","v":"ALBEMARLE COUNTY PUBLIC SCHOOLS"},null,null,null,null,null,"Division Number:",null,null,{"$f":"$H$17","v":2}]
["C.  COORDINATION OF SERVICES (2 PAGES)"]
["Describe the program services/activities that will be coordinated between the MEP and other federal, state, and local programs.  Describe the collaboration of MEP staff, parents, and the community to provide services and activities that will contribute to the attainment of the measurable objectives in the application.\n\nIn your response, include pertinent information from any of the following that may be applicable:\n"]
["1.",null,"Plans for assisting preschool children in the transition from early childhood programs, such as Title I preschool programs, Head Start, or state-funded preschool programs;\n"]
["2.",null,"Coordination and integration of federal, state, and local services and programs, including programs supported under ESEA, violence prevention programs, nutrition programs, housing programs, Head Start, adult education, career and technical education, and job training;\n"]
["3.",null,"Plans for coordinating and integrating federal program funds in the application used in conjunction with other federal, state, and local funds to support services to students, especially students in the targeted subgroups, in order to increase program effectiveness, eliminate duplication, and reduce fragmentation of the instructional program; and\n"]
["4.",null,"Provisions for the arranged transition of students classified as limited English proficient, disabled students, disadvantaged (educationally and economically), migratory students, homeless children and youth, neglected or delinquent youth, and youth who are at-risk of dropping out of school."]
["Albemarle County Adult Education - English classes, parent training, brochures, website for Spanish-speaking parents of ACPS students, Family Literacy for LEP parents.\nAlbemarle County Bright Stars PreK Program - Referrals and enrollment, pre-school and K-5th grade services.\nAlbemarle County Schools - Professional development, instructional support, office space, computers, technology support, bookkeeping and staff.\nAlbemarle County Title I - Staff, materials, collaboration with techniques and resources.\nAlbemarle County DSS Child Protective Services - Child safety, referrals\nAlbemarle County Health Department - Outreach materials, visit classes, make appointments, offer TB tests, collaboration on community emergencies, provide information in Spanish on special subjects as needed, such as flu epidemic prevention, flood/hurricane information, preparedness.\nAlbemarle Co. Homeless Education - Tutoring, school supplies, food, clothes, enrollment assistance, transportation, school placement.\n"]
["Albemarle County Schools Food & Nutrition - Automatic free lunch program.\nAlbemarle County Parks & Recreation - Scholarships for enrichment programs.\nAlbemarle High School Spanish Honor Society - Holiday food baskets, hygiene kits, caps, gloves, etc.\nAlbemarle K-12 ESOL, Title III - Identification & recruitment, materials, training, collaboration on children's ESOL homework help room and student learning plans and shared evaluation, data, extended learning time/tutoring, ESOL Summer program, summer school. \nAlbemarle County Dept. of Transportation - Transportation\nAlbemarle County Dept. of Social Services - Books and tuition if specific training is needed, before school and after school tuition, in-school Family Workers, and food stamps.\nAnonymous Donors - Money to purchase books and dictionaries for students to keep, and computers."]
["Augusta County Food & Nutrition - Automatic free lunch arrangements.\nBasic United Methodist Church - Tutoring, school supplies/backpacks, food, clothes.\nBatesville Ruritan Club - Monetary donations: dictionaries, linens, warm blankets, backpacks/school supplies distributed to students.\nBe Well Adjusted Chiropractic - Holiday books and toy donations.\nBlue Ridge Medical Center - Migrant Health Program including mobile health unit, financial assistance, interpretation, public health education, referrals and appointments, arrange transportation, assistance with Medicaid and FAMIS applications, collaborate on camp visits, ID&R referrals, Nelson Hispanic Community Day.     Boys and Girls Club - Student tutoring, leadership, enrichment programs.\nCharlottesville Children's Dental Clinic - Dental care.          Charlottesville City Schools Food & Nutrition - Automatic free lunch.\nCharlottesville Pregnancy Center - Consultations, clothing, cribs, baby supplies."]
[]
["Page 6"]
[null,null,null,null,"School Division:",null,{"$f":"$A$17","v":"ALBEMARLE COUNTY PUBLIC SCHOOLS"},null,null,null,null,null,"Division Number:",null,null,{"$f":"$H$17","v":2}]
["C.  COORDINATION OF SERVICES (CONTINUED)"]
["Child Health Partnership (CHIP) - Transportation, interpretation, doctor appointments, case management, and ID&R.\nChurch of the Incarnation - Baby items, donations, GED in Spanish classes.\nComputers for Kids - Mentorship computer program for students.\nCove Presbyterian Church - Preschool, school supplies, backpacks, hygiene kits, blankets/sheets, money donations.\nCreciendo Juntos (Growing Together) - Education WorkGroup collaboration, Si Se Puede College application program. pre-school learning packets, Cultiva Mental Health Work Group, provider presentations and forums, identification and recruitment. \n Crossroads Family Medicine - Recruitment and outreach to Migrant population.\nCulpeper Health Department - Recruitment and social services.       Culpeper Schools Food & Nutrition - Automatic free lunch.\nGanelle Cook Scholarship Committee - Collaboration [Community Foundation of the Central Blue Ridge sponsors Ganelle Cook college scholarship for Hispanic students, sponsor of 30 college scholarships]\n"]
["Greater Augusta Volunteer Center (United Way) - Volunteers.\n4-H - Scholarships and summer programs for students including leadership training.\nHabitat for Humanity - Information and referrals regarding opportunities shared with settled-out families.\nInsurance for Child Project - Insurance for children. \nInternational Rescue Committee - Refugee Dialogue Meeting collaboration on community services.\nLegal Aid Justice Center - Just Children and Immigrant Youth Project referrals for legal assistance with immigration.\nLenscrafters - Vouchers for free eye glasses for uninsured students.\nLiteracy Volunteers - Individual EDL tutoring.\nLoaves & Fishes - Emergency food."]
["MACAA Head Start - Preschool, identification and recruitment, referrals.\nMas Labor - H2A Labor specialist and service provider.\nNelson County Food & Nutrition - Automatic free lunch arrangements.        Nelson County Health Department - School physicals, referrals.\nNelson Lion's Club - Financial assistance with eye glasses.\nPiedmont Regional Dental Clinic - Reduced/free dental care for children.\nPiedmont Virginia Community College - College preparedness workshops, enrollment counseling, summer programs.\nReady Kids - Pre-school enrichment groups, referrals for counseling and student support groups.\nRegion 10 - Educational support services in school, in home, out-patient counseling and emergency services.\nRegional Pre-School Initiative - Referrals, collaboration on student needs and progress.\nRockfish Valley Community Center Treasure Chest - Clothes closet."]
["Salvation Army: - Rentals/utilities deposits, household goods, emergency shelter.\nSchool Divisions - Referrals, collaboration on student homework help.   \nSin Barreras - Advocacy group for community information sessions, volunteer tutors, help with student immigration paperwork.\nSoccer Organization of C'ville/Albemarle (SOCA) - Scholarships, transportation, outreach.\nSt. John's Catholic Church (Waynesboro) - Tutoring, interpretation, financial assistance.\nSt. Mary's Catholic Church - Hygiene kits, backpacks.\nSt. Thomas Aquinas Church - School supplies, backpacks, blankets\nStaunton/Augusta Free Clinic - Interpretation, medical assistance.  Teens Give - Teen intervention, service opportunities.\nTelemon - EL classes, workforce development and training. Thomas Jefferson Health Dept. - Medical services (immunizations, CHIP)"]
["UVA Chi Alpha Fellowship - hygiene kits, school supplies, backpacks\nUVA: Intern Program, Health Systems, Teen Health Center, Law Clinic all provide related services.\nUVA Madison House - Volunteer tutoring, family literacy, and holiday assistance programs\nVA Farmworker Legal Assistance; VA Workforce Center; VA Employment Commission - all provide assistance.\nWaynesboro: Adult Learning Center, City Schools EL, Dept. of Social Services, City Schools Food & Nutrition, Health Dept., and Phoenix Program all provide related services.\nWomen's Initiative - Support groups, individual counseling.    \nYoung Lives - New mother support groups/mentoring/baby supplies."]
[]
[]
["Page 7"]
[null,null,null,null,"School Division:",null,{"$f":"$A$17","v":"ALBEMARLE COUNTY PUBLIC SCHOOLS"},null,null,null,null,null,"Division Number:",null,null,{"$f":"$H$17","v":2}]
["D.     MEASURABLE OBJECTIVES "]
[]
["1.","Please address how the Measurable Objectives below will guide the development of the Migrant Education Program. "]
["2.","Describe the evidence-based research services and activities (programs, models, instructional methods and techniques) that will be implemented to achieve each objective and that will be supported by the requested funds. \n"]
["Measurable Objective 1:",null,null,"By the end of the 2020-2021 school year and each year thereafter, proficiency in phonemic awareness skills in reading will increase by an average of 4 percent for migrant students targeted as below proficient in beginning reading skills as measured by state assessment results, teacher ratings and/or other assessments of student performance. "]
[]
[]
["Evidence-based research services and activities that will be implemented and supported by the requested funds to achieve the objective:"]
["Albemarle MEP staff will address individual student needs in the area of phonemic awareness through the following practices:\nCollaborate with school divisions to ensure that targeted phonemic awareness instruction is provided for migrant students and extended learning time (e.g., small groups, individual, home, or school based tutoring provided by staff and volunteers) is made available when needed.\nDevelop a volunteer program that involves training and supervision of volunteers providing individualized phonemic awareness instruction.\nInclude phonemic awareness tutorials from Migrant Literacy Net in student learning plans when applicable. Provide training to MEP staff on Migrant Literacy Net tutorials, including those pertaining to parent engagement. \nMaintain communication with school divisions regarding tutoring and summer school services and facilitate student access to these programs.\nFamiliarize MEP staff with WIDA standards and appropriate level of instruction in collaboration with classroom and ESOL teachers.\nCollaborate with other title programs (Title I, A; Title III, A) to increase collaboration and professional development opportunities. Provide information to MEP staff about professional development opportunities.\n"]
[]
["Measurable Objective 2:",null,null,"By the end of the 2020-2021 school year and each year thereafter, proficiency in writing will increase by an average of 4 percent for all migrant students as measured by state assessment results, teacher ratings and/or other assessments of student performance. "]
[]
[]
["Evidence-based research services and activities that will be implemented and supported by the requested funds to achieve the objective:"]
["Albemarle MEP staff will address individual student needs in the area of writing through the following methods:\nCollaborate with school divisions to ensure that targeted writing instruction is provided for migrant students and extended learning time (e.g., small groups, individual, home, or school based tutoring provided by staff and volunteers) is made available when needed.\nDevelop a volunteer program that involves training and supervision of volunteers providing individualized writing instruction.\nMaintain communication with school divisions regarding tutoring and summer school services and facilitate student access to these programs.\nFamiliarize MEP staff with WIDA standards and appropriate level of instruction in collaboration with classroom and ESOL teachers.\nCollaborate with other title programs (Title I, A; Title III, A) to increase collaboration and professional development opportunities. Provide information to MEP staff about professional development opportunities"]
[]
["Page 8"]
[null,null,null,null,"School Division:",null,{"$f":"$A$17","v":"ALBEMARLE COUNTY PUBLIC SCHOOLS"},null,null,null,null,null,"Division Number:",null,null,{"$f":"$H$17","v":2}]
["D.  MEASURABLE OBJECTIVES (CONTINUED)"]
["Measurable Objective 3:",null,null,"By the end of the 2020-2021 school year and each year thereafter, proficiency in reading vocabulary skills will increase by an average of 4 percent for migrant students targeted for reading instruction as measured by state assessment results, teacher ratings and/or other assessments of student performance. "]
["\n\n\n\n\n\n\n\nAlbemarle MEP staff will address individual student needs in the area of reading vocabulary through the following methods:"]
[]
["Evidence-based research services and activities that will be implemented and supported by the requested funds to achieve the objective:"]
["Collaborate with school divisions to ensure that targeted vocabulary instruction is provided for migrant students and extended learning time (e.g., small groups, individual, home, or school based tutoring provided by staff and volunteers) is made available when needed.\nDevelop a volunteer program that involves training and supervision of volunteers providing individualized vocabulary instruction.\nInclude reading tutorials from Migrant Literacy Net in student learning plans when applicable. Provide training to MEP staff on Migrant Literacy Net tutorials, including those pertaining to parent engagement.\nMaintain communication with school divisions regarding tutoring and summer school services and facilitate student access to these programs.\nFamiliarize MEP staff with WIDA standards and appropriate level of instruction in collaboration with classroom and ESOL teachers.\nCollaborate with other title programs (Title I, A; Title III, A) to increase collaboration and professional development opportunities. Provide information to MEP staff about professional development opportunities. Avail MEP staff of resources from Albemarle County Schools ESOL Department, VA DOE, and others, for accommodations allowed to migrant students on the Standards of Learning Reading Assessments."]
[]
["Measurable Objective 4:",null,null,"By the end of the 2020-2021 school year and each year thereafter, proficiency in algebra readiness skills (patterns, functions, and algebra) will increase by an average of 3 percent for migrant students targeted for mathematics instruction as measured by state assessment results, teacher ratings and/or other assessments of student performance. "]
["\n\n\n\n\n\n\n\nAlbemarle MEP staff will address individual student needs in the area of algebra readiness through the following methods:"]
[]
["Evidence-based research services and activities that will be implemented and supported by the requested funds to achieve the objective:"]
["Collaborate with school divisions to ensure that targeted algebra readiness instruction is provided for migrant students and extended learning time (e.g., small groups, individual, home, or school based tutoring provided by staff and volunteers) is made available when needed.\nDevelop a volunteer program that involves training and supervision of volunteers providing individualized pre-algebra skills  instruction.\nInclude math tutorials from Migrant Literacy Net in student learning plans when applicable. Provide training to MEP staff on Migrant Literacy Net tutorials, including those pertaining to parent engagement.\nMaintain communication with school divisions regarding tutoring and summer school services and facilitate student access to these programs.\nUtilize WIDA standards to inform the appropriate scaffolding of math pre-algebra instruction in collaboration with classroom and ESOL teachers.\nCollaborate with other title programs (Title I, A; Title III, A) to increase collaboration and professional development opportunities. Provide information to MEP staff about professional development opportunities. Avail MEP staff of resources from Albemarle County Schools ESOL Department, VA DOE, and others, for accommodations allowed to migrant students on the Standards of Learning Math Assessments."]
[]
["Page 9"]
[null,null,null,null,"School Division:",null,{"$f":"$A$17","v":"ALBEMARLE COUNTY PUBLIC SCHOOLS"},null,null,null,null,null,"Division Number:",null,null,{"$f":"$H$17","v":2}]
["D.  MEASURABLE OBJECTIVES (CONTINUED)"]
["Measurable Objective 5:",null,null,"By the end of the 2020-2021 school year and each year thereafter, proficiency in number sense and computation will increase by an average of 3 percent for migrant students targeted for mathematics instruction as measured by state assessment results, teacher ratings and/or other assessments of student performance. "]
["\n\n\n\n\n\n\n\nAlbemarle MEP staff will address individual student needs in the areas of number sense and basic math operations through the following methods:"]
[]
["Evidence-based research services and activities that will be implemented and supported by the requested funds to achieve the objective:"]
["Collaborate with school divisions to ensure that targeted number sense and math operations instruction is provided for migrant students and extended learning time (e.g., small groups, individual, home, or school based tutoring provided by staff and volunteers) is made available when needed.\nDevelop a volunteer program that involves training and supervision of volunteers providing individualized math skills instruction.\nInclude math tutorials from Migrant Literacy Net in student learning plans when applicable. Provide training to MEP staff on Migrant Literacy Net tutorials, including those pertaining to parent engagement.\nMaintain communication with school divisions regarding tutoring and summer school services and facilitate student access to these programs.\nUtilize WIDA standards to inform the appropriate scaffolding of math number sense and operations instruction in collaboration with classroom and ESOL teachers.\nCollaborate with other title programs (Title I, A; Title III, A) to increase collaboration and professional development opportunities. Provide information to MEP staff about professional development opportunities.\n"]
[]
["Measurable Objective 6:",null,null,"By the end of the 2020-2021 school year and each year thereafter, proficiency in the Virginia SOL process goals and standards (problem solving, communication, reasoning, connections, and representations) will increase by an average of 3 percent for migrant students targeted for mathematics instruction as measured by state assessment results or teacher ratings and/or other assessments of student performance. "]
[" \n\n\n\n\n\n\n\nAlbemarle MEP staff will address individual student needs in the areas of mathematical representation and reasoning through the following methods:"]
[]
["Evidence-based research services and activities that will be implemented and supported by the requested funds to achieve the objective:"]
["Collaborate with school divisions to ensure that targeted problem solving, communication, reasoning, connections, and representations in math instruction is provided for migrant students and extended learning time (e.g., small groups, individual, home, or school based tutoring provided by staff and volunteers) is made available when needed.\nDevelop a volunteer program that involves training and supervision of volunteers providing individualized math representation and reasoning skills instruction.\nInclude math tutorials from Migrant Literacy Net in student learning plans when applicable. Provide training to MEP staff on Migrant Literacy Net tutorials, including those pertaining to parent engagement.\nMaintain communication with school divisions regarding tutoring and summer school services and facilitate student access to these programs.\nUtilize WIDA standards to inform the appropriate scaffolding of math representation and reasoning instruction in collaboration with classroom and ESOL teachers."]
[]
["Page 10"]
[null,null,null,null,"School Division:",null,{"$f":"$A$17","v":"ALBEMARLE COUNTY PUBLIC SCHOOLS"},null,null,null,null,null,"Division Number:",null,null,{"$f":"$H$17","v":2}]
["D.  MEASURABLE OBJECTIVES (CONTINUED)"]
["Measurable Objective 7:",null,null,"By the end of the 2020-2021 school year and each year thereafter, proficiency in reading comprehension skills will increase by an average of 5 percent for secondary migrant students identified as less than proficient in reading as measured by state assessment results, teacher ratings and/or other assessments of student performance. "]
[" \n\n\n\n\n\n\n\nAlbemarle MEP staff will address individual student needs in the area of reading comprehension through the following methods:\n"]
[]
["Evidence-based research services and activities that will be implemented and supported by the requested funds to achieve the objective:"]
["Collaborate with school divisions to ensure that targeted reading comprehension instruction is provided for migrant students and extended learning time (e.g., small groups, individual, home, or school based tutoring provided by staff and volunteers) is made available when needed.\nDevelop a volunteer program that involves training and supervision of volunteers providing individualized reading comprehension instruction.\nInclude reading tutorials from Migrant Literacy Net in student learning plans when applicable. Provide training to MEP staff on Migrant Literacy Net tutorials, including those pertaining to parent engagement.\nMaintain communication with school divisions regarding tutoring and summer school services and facilitate student access to these programs.\nUtilize WIDA standards to inform the appropriate scaffolding of reading instruction in collaboration with classroom and ESOL teachers.\nCollaborate with other title programs (Title I, A; Title III, A) to increase collaboration and professional development opportunities. Provide information to MEP staff about professional development opportunities. Avail MEP staff of resources from Albemarle County Schools ESOL Department, VA DOE, and others, for accommodations allowed to migrant students on the Standards of Learning Reading Assessments."]
[]
["Measurable Objective 8:",null,null,"By the end of the 2020-2021 school year and each year thereafter, 75 percent of secondary migrant students and parents who participate in MEP sponsored family engagement activities targeting the importance of graduation will report increased understanding of the importance of school completion as measured by student and parent surveys."]
[" \n\n\n\nEvidence-based research services and activities that will be implemented and supported by the requested funds to achieve the objective:\n\nMigrant staff will work closely with all parents of middle and high school students to ensure they are included, have input, and understand the coursework and verified credit plan in place for their child to succeed in school and graduate on time.  Particular emphasis will be placed on career options, higher education, and vocational training opportunities. Assistance with the FAFSA form will be provided as needed. Transportation, child care, and interpretation will be provided when needed to encourage parents to participate in their child's school parent workshops and meetings. "]
[]
["Evidence-based research services and activities that will be implemented and supported by the requested funds to achieve the objective:"]
["MEP staff will provide interpretation and translation when needed for school/home two way communication, school events, meetings, and parent conferences. When possible, MEP staff will utilize existing interpreter/translation services within school divisions and assist parents to access services and information. \nMEP staff will draw upon parent engagement practices from Migrant Literacy Net and other resources in student learning plans. Staff training in Migrant Literacy Net will be provided by the MEP. MEP will collaborate closely with school guidance counselors, teachers,administrators, and community agencies to strengthen the partnership with parents in support of their student’s graduation goals.\n MEP staff will conduct home visits, school meetings, and Migrant Parent Advisory Council (PAC) meetings with a parent evaluation component including parent and student surveys. Parents and students will be an integral part of the annual review with Migrant staff about the student's on-time graduation plans, current class completions, grades, goals, and interests."]
[]
["Page 11"]
[null,null,null,null,"School Division:",null,{"$f":"$A$17","v":"ALBEMARLE COUNTY PUBLIC SCHOOLS"},null,null,null,null,null,"Division Number:",null,null,{"$f":"$H$17","v":2}]
["D.  MEASURABLE OBJECTIVES (CONTINUED)"]
["Measurable Objective 9:",null,null,"By the end of the 2020-2021 school year and each year thereafter, 75 percent of staff who participate in trainings provided by the MEP program on how to assist migrant students with credit accrual and records transfer will report an increased ability to effectively assist students overcome these barriers to graduation as measured by staff surveys."]
[]
[]
["Evidence-based research services and activities that will be implemented and supported by the requested funds to achieve the objective:"]
["MEP staff will participate in ongoing professional development to become proficient in the database systems of Migrant Student Data Collection (MSDC) and Migrant Student Information Exchange (MSIX) to ensure student information is recorded and relayed between school divisions in a timely manner.\nMigrant staff will collaborate closely with students, particularly secondary students, their parents, school counselors and registrars to assure credit accrual and credit transfers. MEP staff will ensure that transcript analysis, when applicable, is granted to students entering the division for the first time. Through professional development, MEP staff will become versed in McKinney-Vento policies and students rights’ in order to collaborate with school division Homeless Programs and assure timely school enrollment and maximized credits.\nTo address the unique needs of migrant students and credit accrual, MEP staff will engage in professional development for best practices in dropout prevention, appropriate academic support, credit accrual, Standards of Learning assessments and alternatives, WIDA assessments and related scaffolded instruction, parent involvement, community resources, mental health, tutoring, and mentorship. \n  "]
["Measurable Objective 10:",null,null,"By the end of the 2020-2021 school year and each year thereafter, 100 percent of dropout students will receive information about educational services specific to their situation as measured by agendas and communication logs."]
[]
[]
["Evidence-based research services and activities that will be implemented and supported by the requested funds to achieve the objective:"]
["For all high school dropout students, MEP staff will provide counseling and information regarding educational opportunities including GED, ESL classes, job and vocational training, and community colleges. MEP staff will draw upon the Migrant Literacy Net resources for Out-of-School Youth when applicable.. \nMEP will track the provision of information and resources such as ESL instructional materials and classes with varied methods including student logs, individualized learning plans, and the Albemarle Migrant Student Services data sheet. Data will be reviewed quarterly to address any service gaps, ensuring that 100 percent of dropout students receive information and support."]
[]
["Page 12"]
[null,null,null,null,"School Division:",null,{"$f":"$A$17","v":"ALBEMARLE COUNTY PUBLIC SCHOOLS"},null,null,null,null,null,"Division Number:",null,null,{"$f":"$H$17","v":2}]
["E.  BUDGET SUMMARY"]
["TITLE I, Part C"]
["\n "]
["OBJECT CODE ","EXPENDITURE",null,null,null,null,"AMOUNT BUDGETED",null,null,null,null,"Does the Budget Summary Match the Detailed Budget? "]
["1000 -\n Personal Services","Non Set-Aside",null,null,null,null,87896]
[null,"Set-Aside"]
[null,"Private School Set-Aside"]
[null,"Total Personal Services",null,null,null,null,{"$f":"SUM(G224:K226)","v":87896},null,null,null,null,{"$f":"IF(SUM(G227)=SUM(N278),\"Yes\",\"No - please review your entries.\")","v":"Yes"}]
["2000 -\nEmployee Benefits","Non Set-Aside",null,null,null,null,31965]
[null,"Set-Aside"]
[null,"Private School Set-Aside"]
[null,"Total Employee Benefits",null,null,null,null,{"$f":"SUM(G228:K230)","v":31965},null,null,null,null,{"$f":"IF(SUM(G231)=SUM(N295),\"Yes\",\"No - please review your entries.\")","v":"Yes"}]
["3000 - \nPurchased/\nContracted Services","Non Set-Aside",null,null,null,null,250]
[null,"Set-Aside"]
[null,"Private School Set-Aside"]
[null,"Total Purchased/Contracted Services",null,null,null,null,{"$f":"SUM(G232:K234)","v":250},null,null,null,null,{"$f":"IF(SUM(G235)=SUM(N319),\"Yes\",\"No - please review your entries.\")","v":"Yes"}]
["4000 - \nInternal Services","Non Set-Aside"]
[null,"Set-Aside"]
[null,"Private School Set-Aside"]
[null,"Total Internal Services",null,null,null,null,{"$f":"SUM(G236:K238)","v":0},null,null,null,null,{"$f":"IF(SUM(G239)=SUM(N336),\"Yes\",\"No - please review your entries.\")","v":"Yes"}]
["5000 - \nOther  \nCharges","Non Set-Aside",null,null,null,null,3100]
[null,"Set-Aside"]
[null,"Private School Set-Aside"]
[null,"Total Other Charges",null,null,null,null,{"$f":"SUM(G240:K242)","v":3100},null,null,null,null,{"$f":"IF(SUM(G243)=SUM(N375),\"Yes\",\"No - please review your entries.\")","v":"Yes"}]
["6000 - \nMaterials\nand Supplies","Non Set-Aside",null,null,null,null,776]
[null,"Set-Aside"]
[null,"Private School Set-Aside"]
[null,"Total Materials and Supplies",null,null,null,null,{"$f":"SUM(G244:K246)","v":776},null,null,null,null,{"$f":"IF(SUM(G247)=SUM(N414),\"Yes\",\"No - please review your entries.\")","v":"Yes"}]
["8000 - \nCapital\nOutlay","Non Set-Aside"]
[null,"Set-Aside"]
[null,"Private School Set-Aside"]
[null,"Total Capital Outlay",null,null,null,null,{"$f":"SUM(G248:K250)","v":0},null,null,null,null,{"$f":"IF(SUM(G251)=SUM(N443),\"Yes\",\"No - please review your entries.\")","v":"Yes"}]
[null,"TOTAL BUDGET",null,null,null,null,{"$f":"SUM(G251,G247,G243,G239,G235,G231,G227)","v":123987}]
[null,"Does the Total Budget Match the Total Allocation? ",null,null,null,null,{"$f":"IF(SUM(G252)=SUM(N46),\"Yes\",\"No - please review your entries.\")","v":"Yes"}]
[]
["Note:","Object codes 7000 and 9000 are not used in application budgets or in requests for reimbursements for this federal grant."]
["Note:","Expenses for parental involvement programs are to be incorporated into the appropriate object code(s) based on the category of the related charges."]
[]
["Page 13"]
[null,null,null,null,"School Division:",null,{"$f":"$A$17","v":"ALBEMARLE COUNTY PUBLIC SCHOOLS"},null,null,null,null,null,"Division Number:",null,null,{"$f":"$H$17","v":2}]
["DETAILED BUDGET BREAKDOWN"]
["Include a detailed breakdown of the budget categories for Object Codes 1000-6000 and 8000, as shown on page 13."]
[]
["DETAILED BUDGET DESCRIPTION OF OBJECT CODE 1000"]
["Provide a description of the positions supported with funds from this program. Indicate if any positions are newly funded under this program.  Explain the supplementary nature of any new positions. Required if staff positions are to be funded by federal funds."]
["The Coordinator directs the program and assures that all rules and regulations are followed. She is a family worker for some of the families and supervises the staff, volunteers, and interns.  She writes outside grants, collaborates with other programs and agencies to enhance the services provided, and monitors the budget.  The Management Analyst submits the grants and monitors the reimbursement and amendment process through OMEGA. She manages the enrollment and withdrawal process, verifies the data for inclusion in the State's SSWS system, monitors MSIX for student issues, and prepares reports as requested. The Migrant Specialist recruits new Migrant students; coordinates services for the families; supervises volunteers,"]
["interns and part-time staff; and expedites collaboration among the school, the family, and tutors.  Tutors teach the students, collaborate with classroom teachers and other agencies, supervise volunteers, recruit students, and provide support services as family workers. The recruiters visit the Migrant camps, nurseries, homes and other ID&R sites.  They complete the COE's and make referrals."]
["Item Description",null,null,null,null,null,null,null,null,null,null,"FTEs",null,"Total Cost"]
["Coordinator ",null,null,null,null,null,null,null,null,null,null,0.2,null,19672]
["Management Analyst",null,null,null,null,null,null,null,null,null,null,0.1,null,4839]
["Migrant Specialist",null,null,null,null,null,null,null,null,null,null,0.9,null,59385]
["Part-Time Tutors",null,null,null,null,null,null,null,null,null,null,"NA",null,3000]
["Part-Time Recruiters",null,null,null,null,null,null,null,null,null,null,"NA",null,1000]
[]
[]
[]
[]
[]
[null,null,null,null,"      ",null,null,null,"Total for Object Code:",null,null,{"$f":"SUM(L268:M277)","v":1.2000000000000002},null,{"$f":"SUM(N268:P277)","v":87896}]
[]
["DETAILED BUDGET DESCRIPTION OF OBJECT CODE 2000"]
["Indicate the fixed charge categories (such as FICA, health, etc.) and specify the amount of each."]
["Fringe benefits are paid to the employees cited above. Only FICA is paid on the part-time tutors and recruiters.  FICA, VSRS, Group Life, Health, and Dental insurance are paid on the FTE positions. "]
[]
["Item Description",null,null,null,null,null,null,null,null,null,null,null,null,"Total Cost"]
["FICA   ",null,null,null,null,null,null,null,null,null,null,null,null,6723]
["VSRS",null,null,null,null,null,null,null,null,null,null,null,null,14959]
["Group Life Insurance",null,null,null,null,null,null,null,null,null,null,null,null,1123]
["Health Insurance",null,null,null,null,null,null,null,null,null,null,null,null,8818]
["Dental Insurance",null,null,null,null,null,null,null,null,null,null,null,null,342]
[]
[]
[]
[]
[]
[null,null,null,null,"      ",null,null,null,null,null,"Total for Object Code:",null,null,{"$f":"SUM(N285:P294)","v":31965}]
[]
["Page 14"]
[null,null,null,null,"School Division:",null,{"$f":"$A$17","v":"ALBEMARLE COUNTY PUBLIC SCHOOLS"},null,null,null,null,null,"Division Number:",null,null,{"$f":"$H$17","v":2}]
["DETAILED BUDGET DESCRIPTION OF OBJECT CODE 3000 "]
["Please indicate how these funds will support any services and activities that are described in the application.  Services acquired from outside sources (i.e., private vendors, public authorities, or other governmental entities).  "]
["Temporary tutors and recruiters not on the Albemarle County payroll will be paid through contracted services."]
[]
["Item Description",null,null,null,null,null,null,null,null,null,null,null,null,"Total Cost"]
["Temporary Tutors",null,null,null,null,null,null,null,null,null,null,null,null,250]
[]
[]
[]
[]
[]
[]
[]
[]
[]
[]
[]
[]
[]
[]
[null,null,null,null,"      ",null,null,null,null,null,"Total for Object Code:",null,null,{"$f":"SUM(N304:P318)","v":250}]
[]
["DETAILED BUDGET DESCRIPTION OF OBJECT CODE 4000"]
["Provide a description of charges from an Internal Service Fund to other functions/activities/elements of the local government for the use of intergovernmental services.  "]
[]
[]
["Item Description",null,null,null,null,null,null,null,null,null,null,null,null,"Total Cost"]
[]
[]
[]
[]
[]
[]
[]
[]
[]
[]
[null,null,null,null,"      ",null,null,null,null,null,"Total for Object Code:",null,null,{"$f":"SUM(N326:P335)","v":0}]
["Page 15"]
[null,null,null,null,"School Division:",null,{"$f":"$A$17","v":"ALBEMARLE COUNTY PUBLIC SCHOOLS"},null,null,null,null,null,"Division Number:",null,null,{"$f":"$H$17","v":2}]
[]
["DETAILED BUDGET DESCRIPTION FOR OBJECT CODE 5000"]
["Includes expenditures that support the program, including utilities (maintenance and operation of plant), staff/administrative/consultant travel, office phone charges, training, leases/rental, indirect cost, and other."]
["Mileage reimbursement for staff is included for travel, for: recruitment activities, homework help, extended learning time, parent involvement requiring many home and school visits, Migrant professional development programs in central locations.  The region served now covers 21 school divisions, including Albemarle. \nPostage is paid on Migrant-related correspondence.\n"]
[]
["Item Description",null,null,null,null,null,null,null,null,null,null,null,null,"Total Cost"]
["Mileage",null,null,null,null,null,null,null,null,null,null,null,null,2000]
["Copier Lease",null,null,null,null,null,null,null,null,null,null,null,null,1000]
["Postage",null,null,null,null,null,null,null,null,null,null,null,null,100]
[]
[]
[]
[]
[]
[]
[]
[]
[]
[]
[]
[]
[]
[]
[]
[]
[]
[]
[]
[]
[]
[]
[]
[]
[]
[]
[]
[null,null,null,null,"      ",null,null,null,null,null,"Total for Object Code:",null,null,{"$f":"SUM(N345:P374)","v":3100}]
[]
["Page 16",null,null,null,null,null,null,null,null,null,null,null,null,null,null,null,null,null,null,null,null,null,null,null,null,null,null,null,null,null,null,null,"Page 20",null,null,null,null,null,null,null,null,null,null,null,null,null,null,null,"Page 20",null,null,null,null,null,null,null,null,null,null,null,null,null,null,null,"Page 20",null,null,null,null,null,null,null,null,null,null,null,null,null,null,null,"Page 20",null,null,null,null,null,null,null,null,null,null,null,null,null,null,null,"Page 20",null,null,null,null,null,null,null,null,null,null,null,null,null,null,null,"Page 20",null,null,null,null,null,null,null,null,null,null,null,null,null,null,null,"Page 20",null,null,null,null,null,null,null,null,null,null,null,null,null,null,null,"Page 20",null,null,null,null,null,null,null,null,null,null,null,null,null,null,null,"Page 20",null,null,null,null,null,null,null,null,null,null,null,null,null,null,null,"Page 20",null,null,null,null,null,null,null,null,null,null,null,null,null,null,null,"Page 20",null,null,null,null,null,null,null,null,null,null,null,null,null,null,null,"Page 20",null,null,null,null,null,null,null,null,null,null,null,null,null,null,null,"Page 20",null,null,null,null,null,null,null,null,null,null,null,null,null,null,null,"Page 20",null,null,null,null,null,null,null,null,null,null,null,null,null,null,null,"Page 20",null,null,null,null,null,null,null,null,null,null,null,null,null,null,null,"Page 20",null,null,null,null,null,null,null,null,null,null,null,null,null,null,null,"Page 20",null,null,null,null,null,null,null,null,null,null,null,null,null,null,null,"Page 20",null,null,null,null,null,null,null,null,null,null,null,null,null,null,null,"Page 20",null,null,null,null,null,null,null,null,null,null,null,null,null,null,null,"Page 20",null,null,null,null,null,null,null,null,null,null,null,null,null,null,null,"Page 20",null,null,null,null,null,null,null,null,null,null,null,null,null,null,null,"Page 20",null,null,null,null,null,null,null,null,null,null,null,null,null,null,null,"Page 20",null,null,null,null,null,null,null,null,null,null,null,null,null,null,null,"Page 20",null,null,null,null,null,null,null,null,null,null,null,null,null,null,null,"Page 20",null,null,null,null,null,null,null,null,null,null,null,null,null,null,null,"Page 20",null,null,null,null,null,null,null,null,null,null,null,null,null,null,null,"Page 20",null,null,null,null,null,null,null,null,null,null,null,null,null,null,null,"Page 20",null,null,null,null,null,null,null,null,null,null,null,null,null,null,null,"Page 20",null,null,null,null,null,null,null,null,null,null,null,null,null,null,null,"Page 20",null,null,null,null,null,null,null,null,null,null,null,null,null,null,null,"Page 20",null,null,null,null,null,null,null,null,null,null,null,null,null,null,null,"Page 20",null,null,null,null,null,null,null,null,null,null,null,null,null,null,null,"Page 20",null,null,null,null,null,null,null,null,null,null,null,null,null,null,null,"Page 20",null,null,null,null,null,null,null,null,null,null,null,null,null,null,null,"Page 20",null,null,null,null,null,null,null,null,null,null,null,null,null,null,null,"Page 20",null,null,null,null,null,null,null,null,null,null,null,null,null,null,null,"Page 20",null,null,null,null,null,null,null,null,null,null,null,null,null,null,null,"Page 20",null,null,null,null,null,null,null,null,null,null,null,null,null,null,null,"Page 20",null,null,null,null,null,null,null,null,null,null,null,null,null,null,null,"Page 20",null,null,null,null,null,null,null,null,null,null,null,null,null,null,null,"Page 20",null,null,null,null,null,null,null,null,null,null,null,null,null,null,null,"Page 20",null,null,null,null,null,null,null,null,null,null,null,null,null,null,null,"Page 20",null,null,null,null,null,null,null,null,null,null,null,null,null,null,null,"Page 20",null,null,null,null,null,null,null,null,null,null,null,null,null,null,null,"Page 20",null,null,null,null,null,null,null,null,null,null,null,null,null,null,null,"Page 20",null,null,null,null,null,null,null,null,null,null,null,null,null,null,null,"Page 20",null,null,null,null,null,null,null,null,null,null,null,null,null,null,null,"Page 20",null,null,null,null,null,null,null,null,null,null,null,null,null,null,null,"Page 20",null,null,null,null,null,null,null,null,null,null,null,null,null,null,null,"Page 20",null,null,null,null,null,null,null,null,null,null,null,null,null,null,null,"Page 20",null,null,null,null,null,null,null,null,null,null,null,null,null,null,null,"Page 20",null,null,null,null,null,null,null,null,null,null,null,null,null,null,null,"Page 20",null,null,null,null,null,null,null,null,null,null,null,null,null,null,null,"Page 20",null,null,null,null,null,null,null,null,null,null,null,null,null,null,null,"Page 20",null,null,null,null,null,null,null,null,null,null,null,null,null,null,null,"Page 20",null,null,null,null,null,null,null,null,null,null,null,null,null,null,null,"Page 20",null,null,null,null,null,null,null,null,null,null,null,null,null,null,null,"Page 20",null,null,null,null,null,null,null,null,null,null,null,null,null,null,null,"Page 20",null,null,null,null,null,null,null,null,null,null,null,null,null,null,null,"Page 20",null,null,null,null,null,null,null,null,null,null,null,null,null,null,null,"Page 20",null,null,null,null,null,null,null,null,null,null,null,null,null,null,null,"Page 20",null,null,null,null,null,null,null,null,null,null,null,null,null,null,null,"Page 20",null,null,null,null,null,null,null,null,null,null,null,null,null,null,null,"Page 20",null,null,null,null,null,null,null,null,null,null,null,null,null,null,null,"Page 20",null,null,null,null,null,null,null,null,null,null,null,null,null,null,null,"Page 20",null,null,null,null,null,null,null,null,null,null,null,null,null,null,null,"Page 20",null,null,null,null,null,null,null,null,null,null,null,null,null,null,null,"Page 20",null,null,null,null,null,null,null,null,null,null,null,null,null,null,null,"Page 20",null,null,null,null,null,null,null,null,null,null,null,null,null,null,null,"Page 20",null,null,null,null,null,null,null,null,null,null,null,null,null,null,null,"Page 20",null,null,null,null,null,null,null,null,null,null,null,null,null,null,null,"Page 20",null,null,null,null,null,null,null,null,null,null,null,null,null,null,null,"Page 20",null,null,null,null,null,null,null,null,null,null,null,null,null,null,null,"Page 20",null,null,null,null,null,null,null,null,null,null,null,null,null,null,null,"Page 20",null,null,null,null,null,null,null,null,null,null,null,null,null,null,null,"Page 20",null,null,null,null,null,null,null,null,null,null,null,null,null,null,null,"Page 20",null,null,null,null,null,null,null,null,null,null,null,null,null,null,null,"Page 20",null,null,null,null,null,null,null,null,null,null,null,null,null,null,null,"Page 20",null,null,null,null,null,null,null,null,null,null,null,null,null,null,null,"Page 20",null,null,null,null,null,null,null,null,null,null,null,null,null,null,null,"Page 20",null,null,null,null,null,null,null,null,null,null,null,null,null,null,null,"Page 20",null,null,null,null,null,null,null,null,null,null,null,null,null,null,null,"Page 20",null,null,null,null,null,null,null,null,null,null,null,null,null,null,null,"Page 20",null,null,null,null,null,null,null,null,null,null,null,null,null,null,null,"Page 20",null,null,null,null,null,null,null,null,null,null,null,null,null,null,null,"Page 20",null,null,null,null,null,null,null,null,null,null,null,null,null,null,null,"Page 20",null,null,null,null,null,null,null,null,null,null,null,null,null,null,null,"Page 20",null,null,null,null,null,null,null,null,null,null,null,null,null,null,null,"Page 20",null,null,null,null,null,null,null,null,null,null,null,null,null,null,null,"Page 20",null,null,null,null,null,null,null,null,null,null,null,null,null,null,null,"Page 20",null,null,null,null,null,null,null,null,null,null,null,null,null,null,null,"Page 20",null,null,null,null,null,null,null,null,null,null,null,null,null,null,null,"Page 20",null,null,null,null,null,null,null,null,null,null,null,null,null,null,null,"Page 20",null,null,null,null,null,null,null,null,null,null,null,null,null,null,null,"Page 20",null,null,null,null,null,null,null,null,null,null,null,null,null,null,null,"Page 20",null,null,null,null,null,null,null,null,null,null,null,null,null,null,null,"Page 20",null,null,null,null,null,null,null,null,null,null,null,null,null,null,null,"Page 20",null,null,null,null,null,null,null,null,null,null,null,null,null,null,null,"Page 20",null,null,null,null,null,null,null,null,null,null,null,null,null,null,null,"Page 20",null,null,null,null,null,null,null,null,null,null,null,null,null,null,null,"Page 20",null,null,null,null,null,null,null,null,null,null,null,null,null,null,null,"Page 20",null,null,null,null,null,null,null,null,null,null,null,null,null,null,null,"Page 20",null,null,null,null,null,null,null,null,null,null,null,null,null,null,null,"Page 20",null,null,null,null,null,null,null,null,null,null,null,null,null,null,null,"Page 20",null,null,null,null,null,null,null,null,null,null,null,null,null,null,null,"Page 20",null,null,null,null,null,null,null,null,null,null,null,null,null,null,null,"Page 20",null,null,null,null,null,null,null,null,null,null,null,null,null,null,null,"Page 20",null,null,null,null,null,null,null,null,null,null,null,null,null,null,null,"Page 20",null,null,null,null,null,null,null,null,null,null,null,null,null,null,null,"Page 20",null,null,null,null,null,null,null,null,null,null,null,null,null,null,null,"Page 20",null,null,null,null,null,null,null,null,null,null,null,null,null,null,null,"Page 20",null,null,null,null,null,null,null,null,null,null,null,null,null,null,null,"Page 20",null,null,null,null,null,null,null,null,null,null,null,null,null,null,null,"Page 20",null,null,null,null,null,null,null,null,null,null,null,null,null,null,null,"Page 20",null,null,null,null,null,null,null,null,null,null,null,null,null,null,null,"Page 20",null,null,null,null,null,null,null,null,null,null,null,null,null,null,null,"Page 20",null,null,null,null,null,null,null,null,null,null,null,null,null,null,null,"Page 20",null,null,null,null,null,null,null,null,null,null,null,null,null,null,null,"Page 20",null,null,null,null,null,null,null,null,null,null,null,null,null,null,null,"Page 20",null,null,null,null,null,null,null,null,null,null,null,null,null,null,null,"Page 20",null,null,null,null,null,null,null,null,null,null,null,null,null,null,null,"Page 20",null,null,null,null,null,null,null,null,null,null,null,null,null,null,null,"Page 20",null,null,null,null,null,null,null,null,null,null,null,null,null,null,null,"Page 20",null,null,null,null,null,null,null,null,null,null,null,null,null,null,null,"Page 20",null,null,null,null,null,null,null,null,null,null,null,null,null,null,null,"Page 20",null,null,null,null,null,null,null,null,null,null,null,null,null,null,null,"Page 20",null,null,null,null,null,null,null,null,null,null,null,null,null,null,null,"Page 20",null,null,null,null,null,null,null,null,null,null,null,null,null,null,null,"Page 20",null,null,null,null,null,null,null,null,null,null,null,null,null,null,null,"Page 20",null,null,null,null,null,null,null,null,null,null,null,null,null,null,null,"Page 20",null,null,null,null,null,null,null,null,null,null,null,null,null,null,null,"Page 20",null,null,null,null,null,null,null,null,null,null,null,null,null,null,null,"Page 20",null,null,null,null,null,null,null,null,null,null,null,null,null,null,null,"Page 20",null,null,null,null,null,null,null,null,null,null,null,null,null,null,null,"Page 20",null,null,null,null,null,null,null,null,null,null,null,null,null,null,null,"Page 20",null,null,null,null,null,null,null,null,null,null,null,null,null,null,null,"Page 20",null,null,null,null,null,null,null,null,null,null,null,null,null,null,null,"Page 20",null,null,null,null,null,null,null,null,null,null,null,null,null,null,null,"Page 20",null,null,null,null,null,null,null,null,null,null,null,null,null,null,null,"Page 20",null,null,null,null,null,null,null,null,null,null,null,null,null,null,null,"Page 20",null,null,null,null,null,null,null,null,null,null,null,null,null,null,null,"Page 20",null,null,null,null,null,null,null,null,null,null,null,null,null,null,null,"Page 20",null,null,null,null,null,null,null,null,null,null,null,null,null,null,null,"Page 20",null,null,null,null,null,null,null,null,null,null,null,null,null,null,null,"Page 20",null,null,null,null,null,null,null,null,null,null,null,null,null,null,null,"Page 20",null,null,null,null,null,null,null,null,null,null,null,null,null,null,null,"Page 20",null,null,null,null,null,null,null,null,null,null,null,null,null,null,null,"Page 20",null,null,null,null,null,null,null,null,null,null,null,null,null,null,null,"Page 20",null,null,null,null,null,null,null,null,null,null,null,null,null,null,null,"Page 20",null,null,null,null,null,null,null,null,null,null,null,null,null,null,null,"Page 20",null,null,null,null,null,null,null,null,null,null,null,null,null,null,null,"Page 20",null,null,null,null,null,null,null,null,null,null,null,null,null,null,null,"Page 20",null,null,null,null,null,null,null,null,null,null,null,null,null,null,null,"Page 20",null,null,null,null,null,null,null,null,null,null,null,null,null,null,null,"Page 20",null,null,null,null,null,null,null,null,null,null,null,null,null,null,null,"Page 20",null,null,null,null,null,null,null,null,null,null,null,null,null,null,null,"Page 20",null,null,null,null,null,null,null,null,null,null,null,null,null,null,null,"Page 20",null,null,null,null,null,null,null,null,null,null,null,null,null,null,null,"Page 20",null,null,null,null,null,null,null,null,null,null,null,null,null,null,null,"Page 20",null,null,null,null,null,null,null,null,null,null,null,null,null,null,null,"Page 20",null,null,null,null,null,null,null,null,null,null,null,null,null,null,null,"Page 20",null,null,null,null,null,null,null,null,null,null,null,null,null,null,null,"Page 20",null,null,null,null,null,null,null,null,null,null,null,null,null,null,null,"Page 20",null,null,null,null,null,null,null,null,null,null,null,null,null,null,null,"Page 20",null,null,null,null,null,null,null,null,null,null,null,null,null,null,null,"Page 20",null,null,null,null,null,null,null,null,null,null,null,null,null,null,null,"Page 20",null,null,null,null,null,null,null,null,null,null,null,null,null,null,null,"Page 20",null,null,null,null,null,null,null,null,null,null,null,null,null,null,null,"Page 20",null,null,null,null,null,null,null,null,null,null,null,null,null,null,null,"Page 20",null,null,null,null,null,null,null,null,null,null,null,null,null,null,null,"Page 20",null,null,null,null,null,null,null,null,null,null,null,null,null,null,null,"Page 20",null,null,null,null,null,null,null,null,null,null,null,null,null,null,null,"Page 20",null,null,null,null,null,null,null,null,null,null,null,null,null,null,null,"Page 20",null,null,null,null,null,null,null,null,null,null,null,null,null,null,null,"Page 20",null,null,null,null,null,null,null,null,null,null,null,null,null,null,null,"Page 20",null,null,null,null,null,null,null,null,null,null,null,null,null,null,null,"Page 20",null,null,null,null,null,null,null,null,null,null,null,null,null,null,null,"Page 20",null,null,null,null,null,null,null,null,null,null,null,null,null,null,null,"Page 20",null,null,null,null,null,null,null,null,null,null,null,null,null,null,null,"Page 20",null,null,null,null,null,null,null,null,null,null,null,null,null,null,null,"Page 20",null,null,null,null,null,null,null,null,null,null,null,null,null,null,null,"Page 20",null,null,null,null,null,null,null,null,null,null,null,null,null,null,null,"Page 20",null,null,null,null,null,null,null,null,null,null,null,null,null,null,null,"Page 20",null,null,null,null,null,null,null,null,null,null,null,null,null,null,null,"Page 20",null,null,null,null,null,null,null,null,null,null,null,null,null,null,null,"Page 20",null,null,null,null,null,null,null,null,null,null,null,null,null,null,null,"Page 20",null,null,null,null,null,null,null,null,null,null,null,null,null,null,null,"Page 20",null,null,null,null,null,null,null,null,null,null,null,null,null,null,null,"Page 20",null,null,null,null,null,null,null,null,null,null,null,null,null,null,null,"Page 20",null,null,null,null,null,null,null,null,null,null,null,null,null,null,null,"Page 20",null,null,null,null,null,null,null,null,null,null,null,null,null,null,null,"Page 20",null,null,null,null,null,null,null,null,null,null,null,null,null,null,null,"Page 20",null,null,null,null,null,null,null,null,null,null,null,null,null,null,null,"Page 20",null,null,null,null,null,null,null,null,null,null,null,null,null,null,null,"Page 20",null,null,null,null,null,null,null,null,null,null,null,null,null,null,null,"Page 20",null,null,null,null,null,null,null,null,null,null,null,null,null,null,null,"Page 20",null,null,null,null,null,null,null,null,null,null,null,null,null,null,null,"Page 20",null,null,null,null,null,null,null,null,null,null,null,null,null,null,null,"Page 20",null,null,null,null,null,null,null,null,null,null,null,null,null,null,null,"Page 20",null,null,null,null,null,null,null,null,null,null,null,null,null,null,null,"Page 20",null,null,null,null,null,null,null,null,null,null,null,null,null,null,null,"Page 20",null,null,null,null,null,null,null,null,null,null,null,null,null,null,null,"Page 20",null,null,null,null,null,null,null,null,null,null,null,null,null,null,null,"Page 20",null,null,null,null,null,null,null,null,null,null,null,null,null,null,null,"Page 20",null,null,null,null,null,null,null,null,null,null,null,null,null,null,null,"Page 20",null,null,null,null,null,null,null,null,null,null,null,null,null,null,null,"Page 20",null,null,null,null,null,null,null,null,null,null,null,null,null,null,null,"Page 20",null,null,null,null,null,null,null,null,null,null,null,null,null,null,null,"Page 20",null,null,null,null,null,null,null,null,null,null,null,null,null,null,null,"Page 20",null,null,null,null,null,null,null,null,null,null,null,null,null,null,null,"Page 20",null,null,null,null,null,null,null,null,null,null,null,null,null,null,null,"Page 20",null,null,null,null,null,null,null,null,null,null,null,null,null,null,null,"Page 20",null,null,null,null,null,null,null,null,null,null,null,null,null,null,null,"Page 20",null,null,null,null,null,null,null,null,null,null,null,null,null,null,null,"Page 20",null,null,null,null,null,null,null,null,null,null,null,null,null,null,null,"Page 20",null,null,null,null,null,null,null,null,null,null,null,null,null,null,null,"Page 20",null,null,null,null,null,null,null,null,null,null,null,null,null,null,null,"Page 20",null,null,null,null,null,null,null,null,null,null,null,null,null,null,null,"Page 20",null,null,null,null,null,null,null,null,null,null,null,null,null,null,null,"Page 20",null,null,null,null,null,null,null,null,null,null,null,null,null,null,null,"Page 20",null,null,null,null,null,null,null,null,null,null,null,null,null,null,null,"Page 20",null,null,null,null,null,null,null,null,null,null,null,null,null,null,null,"Page 20",null,null,null,null,null,null,null,null,null,null,null,null,null,null,null,"Page 20",null,null,null,null,null,null,null,null,null,null,null,null,null,null,null,"Page 20",null,null,null,null,null,null,null,null,null,null,null,null,null,null,null,"Page 20",null,null,null,null,null,null,null,null,null,null,null,null,null,null,null,"Page 20",null,null,null,null,null,null,null,null,null,null,null,null,null,null,null,"Page 20",null,null,null,null,null,null,null,null,null,null,null,null,null,null,null,"Page 20",null,null,null,null,null,null,null,null,null,null,null,null,null,null,null,"Page 20",null,null,null,null,null,null,null,null,null,null,null,null,null,null,null,"Page 20",null,null,null,null,null,null,null,null,null,null,null,null,null,null,null,"Page 20",null,null,null,null,null,null,null,null,null,null,null,null,null,null,null,"Page 20",null,null,null,null,null,null,null,null,null,null,null,null,null,null,null,"Page 20",null,null,null,null,null,null,null,null,null,null,null,null,null,null,null,"Page 20",null,null,null,null,null,null,null,null,null,null,null,null,null,null,null,"Page 20",null,null,null,null,null,null,null,null,null,null,null,null,null,null,null,"Page 20",null,null,null,null,null,null,null,null,null,null,null,null,null,null,null,"Page 20",null,null,null,null,null,null,null,null,null,null,null,null,null,null,null,"Page 20",null,null,null,null,null,null,null,null,null,null,null,null,null,null,null,"Page 20",null,null,null,null,null,null,null,null,null,null,null,null,null,null,null,"Page 20",null,null,null,null,null,null,null,null,null,null,null,null,null,null,null,"Page 20",null,null,null,null,null,null,null,null,null,null,null,null,null,null,null,"Page 20",null,null,null,null,null,null,null,null,null,null,null,null,null,null,null,"Page 20",null,null,null,null,null,null,null,null,null,null,null,null,null,null,null,"Page 20",null,null,null,null,null,null,null,null,null,null,null,null,null,null,null,"Page 20",null,null,null,null,null,null,null,null,null,null,null,null,null,null,null,"Page 20",null,null,null,null,null,null,null,null,null,null,null,null,null,null,null,"Page 20",null,null,null,null,null,null,null,null,null,null,null,null,null,null,null,"Page 20",null,null,null,null,null,null,null,null,null,null,null,null,null,null,null,"Page 20",null,null,null,null,null,null,null,null,null,null,null,null,null,null,null,"Page 20",null,null,null,null,null,null,null,null,null,null,null,null,null,null,null,"Page 20",null,null,null,null,null,null,null,null,null,null,null,null,null,null,null,"Page 20",null,null,null,null,null,null,null,null,null,null,null,null,null,null,null,"Page 20",null,null,null,null,null,null,null,null,null,null,null,null,null,null,null,"Page 20",null,null,null,null,null,null,null,null,null,null,null,null,null,null,null,"Page 20",null,null,null,null,null,null,null,null,null,null,null,null,null,null,null,"Page 20",null,null,null,null,null,null,null,null,null,null,null,null,null,null,null,"Page 20",null,null,null,null,null,null,null,null,null,null,null,null,null,null,null,"Page 20",null,null,null,null,null,null,null,null,null,null,null,null,null,null,null,"Page 20",null,null,null,null,null,null,null,null,null,null,null,null,null,null,null,"Page 20",null,null,null,null,null,null,null,null,null,null,null,null,null,null,null,"Page 20",null,null,null,null,null,null,null,null,null,null,null,null,null,null,null,"Page 20",null,null,null,null,null,null,null,null,null,null,null,null,null,null,null,"Page 20",null,null,null,null,null,null,null,null,null,null,null,null,null,null,null,"Page 20",null,null,null,null,null,null,null,null,null,null,null,null,null,null,null,"Page 20",null,null,null,null,null,null,null,null,null,null,null,null,null,null,null,"Page 20",null,null,null,null,null,null,null,null,null,null,null,null,null,null,null,"Page 20",null,null,null,null,null,null,null,null,null,null,null,null,null,null,null,"Page 20",null,null,null,null,null,null,null,null,null,null,null,null,null,null,null,"Page 20",null,null,null,null,null,null,null,null,null,null,null,null,null,null,null,"Page 20",null,null,null,null,null,null,null,null,null,null,null,null,null,null,null,"Page 20",null,null,null,null,null,null,null,null,null,null,null,null,null,null,null,"Page 20",null,null,null,null,null,null,null,null,null,null,null,null,null,null,null,"Page 20",null,null,null,null,null,null,null,null,null,null,null,null,null,null,null,"Page 20",null,null,null,null,null,null,null,null,null,null,null,null,null,null,null,"Page 20",null,null,null,null,null,null,null,null,null,null,null,null,null,null,null,"Page 20",null,null,null,null,null,null,null,null,null,null,null,null,null,null,null,"Page 20",null,null,null,null,null,null,null,null,null,null,null,null,null,null,null,"Page 20",null,null,null,null,null,null,null,null,null,null,null,null,null,null,null,"Page 20",null,null,null,null,null,null,null,null,null,null,null,null,null,null,null,"Page 20",null,null,null,null,null,null,null,null,null,null,null,null,null,null,null,"Page 20",null,null,null,null,null,null,null,null,null,null,null,null,null,null,null,"Page 20",null,null,null,null,null,null,null,null,null,null,null,null,null,null,null,"Page 20",null,null,null,null,null,null,null,null,null,null,null,null,null,null,null,"Page 20",null,null,null,null,null,null,null,null,null,null,null,null,null,null,null,"Page 20",null,null,null,null,null,null,null,null,null,null,null,null,null,null,null,"Page 20",null,null,null,null,null,null,null,null,null,null,null,null,null,null,null,"Page 20",null,null,null,null,null,null,null,null,null,null,null,null,null,null,null,"Page 20",null,null,null,null,null,null,null,null,null,null,null,null,null,null,null,"Page 20",null,null,null,null,null,null,null,null,null,null,null,null,null,null,null,"Page 20",null,null,null,null,null,null,null,null,null,null,null,null,null,null,null,"Page 20",null,null,null,null,null,null,null,null,null,null,null,null,null,null,null,"Page 20",null,null,null,null,null,null,null,null,null,null,null,null,null,null,null,"Page 20",null,null,null,null,null,null,null,null,null,null,null,null,null,null,null,"Page 20",null,null,null,null,null,null,null,null,null,null,null,null,null,null,null,"Page 20",null,null,null,null,null,null,null,null,null,null,null,null,null,null,null,"Page 20",null,null,null,null,null,null,null,null,null,null,null,null,null,null,null,"Page 20",null,null,null,null,null,null,null,null,null,null,null,null,null,null,null,"Page 20",null,null,null,null,null,null,null,null,null,null,null,null,null,null,null,"Page 20",null,null,null,null,null,null,null,null,null,null,null,null,null,null,null,"Page 20",null,null,null,null,null,null,null,null,null,null,null,null,null,null,null,"Page 20",null,null,null,null,null,null,null,null,null,null,null,null,null,null,null,"Page 20",null,null,null,null,null,null,null,null,null,null,null,null,null,null,null,"Page 20",null,null,null,null,null,null,null,null,null,null,null,null,null,null,null,"Page 20",null,null,null,null,null,null,null,null,null,null,null,null,null,null,null,"Page 20",null,null,null,null,null,null,null,null,null,null,null,null,null,null,null,"Page 20",null,null,null,null,null,null,null,null,null,null,null,null,null,null,null,"Page 20",null,null,null,null,null,null,null,null,null,null,null,null,null,null,null,"Page 20",null,null,null,null,null,null,null,null,null,null,null,null,null,null,null,"Page 20",null,null,null,null,null,null,null,null,null,null,null,null,null,null,null,"Page 20",null,null,null,null,null,null,null,null,null,null,null,null,null,null,null,"Page 20",null,null,null,null,null,null,null,null,null,null,null,null,null,null,null,"Page 20",null,null,null,null,null,null,null,null,null,null,null,null,null,null,null,"Page 20",null,null,null,null,null,null,null,null,null,null,null,null,null,null,null,"Page 20",null,null,null,null,null,null,null,null,null,null,null,null,null,null,null,"Page 20",null,null,null,null,null,null,null,null,null,null,null,null,null,null,null,"Page 20",null,null,null,null,null,null,null,null,null,null,null,null,null,null,null,"Page 20",null,null,null,null,null,null,null,null,null,null,null,null,null,null,null,"Page 20",null,null,null,null,null,null,null,null,null,null,null,null,null,null,null,"Page 20",null,null,null,null,null,null,null,null,null,null,null,null,null,null,null,"Page 20",null,null,null,null,null,null,null,null,null,null,null,null,null,null,null,"Page 20",null,null,null,null,null,null,null,null,null,null,null,null,null,null,null,"Page 20",null,null,null,null,null,null,null,null,null,null,null,null,null,null,null,"Page 20",null,null,null,null,null,null,null,null,null,null,null,null,null,null,null,"Page 20",null,null,null,null,null,null,null,null,null,null,null,null,null,null,null,"Page 20",null,null,null,null,null,null,null,null,null,null,null,null,null,null,null,"Page 20",null,null,null,null,null,null,null,null,null,null,null,null,null,null,null,"Page 20",null,null,null,null,null,null,null,null,null,null,null,null,null,null,null,"Page 20",null,null,null,null,null,null,null,null,null,null,null,null,null,null,null,"Page 20",null,null,null,null,null,null,null,null,null,null,null,null,null,null,null,"Page 20",null,null,null,null,null,null,null,null,null,null,null,null,null,null,null,"Page 20",null,null,null,null,null,null,null,null,null,null,null,null,null,null,null,"Page 20",null,null,null,null,null,null,null,null,null,null,null,null,null,null,null,"Page 20",null,null,null,null,null,null,null,null,null,null,null,null,null,null,null,"Page 20",null,null,null,null,null,null,null,null,null,null,null,null,null,null,null,"Page 20",null,null,null,null,null,null,null,null,null,null,null,null,null,null,null,"Page 20",null,null,null,null,null,null,null,null,null,null,null,null,null,null,null,"Page 20",null,null,null,null,null,null,null,null,null,null,null,null,null,null,null,"Page 20",null,null,null,null,null,null,null,null,null,null,null,null,null,null,null,"Page 20",null,null,null,null,null,null,null,null,null,null,null,null,null,null,null,"Page 20",null,null,null,null,null,null,null,null,null,null,null,null,null,null,null,"Page 20",null,null,null,null,null,null,null,null,null,null,null,null,null,null,null,"Page 20",null,null,null,null,null,null,null,null,null,null,null,null,null,null,null,"Page 20",null,null,null,null,null,null,null,null,null,null,null,null,null,null,null,"Page 20",null,null,null,null,null,null,null,null,null,null,null,null,null,null,null,"Page 20",null,null,null,null,null,null,null,null,null,null,null,null,null,null,null,"Page 20",null,null,null,null,null,null,null,null,null,null,null,null,null,null,null,"Page 20",null,null,null,null,null,null,null,null,null,null,null,null,null,null,null,"Page 20",null,null,null,null,null,null,null,null,null,null,null,null,null,null,null,"Page 20",null,null,null,null,null,null,null,null,null,null,null,null,null,null,null,"Page 20",null,null,null,null,null,null,null,null,null,null,null,null,null,null,null,"Page 20",null,null,null,null,null,null,null,null,null,null,null,null,null,null,null,"Page 20",null,null,null,null,null,null,null,null,null,null,null,null,null,null,null,"Page 20",null,null,null,null,null,null,null,null,null,null,null,null,null,null,null,"Page 20",null,null,null,null,null,null,null,null,null,null,null,null,null,null,null,"Page 20",null,null,null,null,null,null,null,null,null,null,null,null,null,null,null,"Page 20",null,null,null,null,null,null,null,null,null,null,null,null,null,null,null,"Page 20",null,null,null,null,null,null,null,null,null,null,null,null,null,null,null,"Page 20",null,null,null,null,null,null,null,null,null,null,null,null,null,null,null,"Page 20",null,null,null,null,null,null,null,null,null,null,null,null,null,null,null,"Page 20",null,null,null,null,null,null,null,null,null,null,null,null,null,null,null,"Page 20",null,null,null,null,null,null,null,null,null,null,null,null,null,null,null,"Page 20",null,null,null,null,null,null,null,null,null,null,null,null,null,null,null,"Page 20",null,null,null,null,null,null,null,null,null,null,null,null,null,null,null,"Page 20",null,null,null,null,null,null,null,null,null,null,null,null,null,null,null,"Page 20",null,null,null,null,null,null,null,null,null,null,null,null,null,null,null,"Page 20",null,null,null,null,null,null,null,null,null,null,null,null,null,null,null,"Page 20",null,null,null,null,null,null,null,null,null,null,null,null,null,null,null,"Page 20",null,null,null,null,null,null,null,null,null,null,null,null,null,null,null,"Page 20",null,null,null,null,null,null,null,null,null,null,null,null,null,null,null,"Page 20",null,null,null,null,null,null,null,null,null,null,null,null,null,null,null,"Page 20",null,null,null,null,null,null,null,null,null,null,null,null,null,null,null,"Page 20",null,null,null,null,null,null,null,null,null,null,null,null,null,null,null,"Page 20",null,null,null,null,null,null,null,null,null,null,null,null,null,null,null,"Page 20",null,null,null,null,null,null,null,null,null,null,null,null,null,null,null,"Page 20",null,null,null,null,null,null,null,null,null,null,null,null,null,null,null,"Page 20",null,null,null,null,null,null,null,null,null,null,null,null,null,null,null,"Page 20",null,null,null,null,null,null,null,null,null,null,null,null,null,null,null,"Page 20",null,null,null,null,null,null,null,null,null,null,null,null,null,null,null,"Page 20",null,null,null,null,null,null,null,null,null,null,null,null,null,null,null,"Page 20",null,null,null,null,null,null,null,null,null,null,null,null,null,null,null,"Page 20",null,null,null,null,null,null,null,null,null,null,null,null,null,null,null,"Page 20",null,null,null,null,null,null,null,null,null,null,null,null,null,null,null,"Page 20",null,null,null,null,null,null,null,null,null,null,null,null,null,null,null,"Page 20",null,null,null,null,null,null,null,null,null,null,null,null,null,null,null,"Page 20",null,null,null,null,null,null,null,null,null,null,null,null,null,null,null,"Page 20",null,null,null,null,null,null,null,null,null,null,null,null,null,null,null,"Page 20",null,null,null,null,null,null,null,null,null,null,null,null,null,null,null,"Page 20",null,null,null,null,null,null,null,null,null,null,null,null,null,null,null,"Page 20",null,null,null,null,null,null,null,null,null,null,null,null,null,null,null,"Page 20",null,null,null,null,null,null,null,null,null,null,null,null,null,null,null,"Page 20",null,null,null,null,null,null,null,null,null,null,null,null,null,null,null,"Page 20",null,null,null,null,null,null,null,null,null,null,null,null,null,null,null,"Page 20",null,null,null,null,null,null,null,null,null,null,null,null,null,null,null,"Page 20",null,null,null,null,null,null,null,null,null,null,null,null,null,null,null,"Page 20",null,null,null,null,null,null,null,null,null,null,null,null,null,null,null,"Page 20",null,null,null,null,null,null,null,null,null,null,null,null,null,null,null,"Page 20",null,null,null,null,null,null,null,null,null,null,null,null,null,null,null,"Page 20",null,null,null,null,null,null,null,null,null,null,null,null,null,null,null,"Page 20",null,null,null,null,null,null,null,null,null,null,null,null,null,null,null,"Page 20",null,null,null,null,null,null,null,null,null,null,null,null,null,null,null,"Page 20",null,null,null,null,null,null,null,null,null,null,null,null,null,null,null,"Page 20",null,null,null,null,null,null,null,null,null,null,null,null,null,null,null,"Page 20",null,null,null,null,null,null,null,null,null,null,null,null,null,null,null,"Page 20",null,null,null,null,null,null,null,null,null,null,null,null,null,null,null,"Page 20",null,null,null,null,null,null,null,null,null,null,null,null,null,null,null,"Page 20",null,null,null,null,null,null,null,null,null,null,null,null,null,null,null,"Page 20",null,null,null,null,null,null,null,null,null,null,null,null,null,null,null,"Page 20",null,null,null,null,null,null,null,null,null,null,null,null,null,null,null,"Page 20",null,null,null,null,null,null,null,null,null,null,null,null,null,null,null,"Page 20",null,null,null,null,null,null,null,null,null,null,null,null,null,null,null,"Page 20",null,null,null,null,null,null,null,null,null,null,null,null,null,null,null,"Page 20",null,null,null,null,null,null,null,null,null,null,null,null,null,null,null,"Page 20",null,null,null,null,null,null,null,null,null,null,null,null,null,null,null,"Page 20",null,null,null,null,null,null,null,null,null,null,null,null,null,null,null,"Page 20",null,null,null,null,null,null,null,null,null,null,null,null,null,null,null,"Page 20",null,null,null,null,null,null,null,null,null,null,null,null,null,null,null,"Page 20",null,null,null,null,null,null,null,null,null,null,null,null,null,null,null,"Page 20",null,null,null,null,null,null,null,null,null,null,null,null,null,null,null,"Page 20",null,null,null,null,null,null,null,null,null,null,null,null,null,null,null,"Page 20",null,null,null,null,null,null,null,null,null,null,null,null,null,null,null,"Page 20",null,null,null,null,null,null,null,null,null,null,null,null,null,null,null,"Page 20",null,null,null,null,null,null,null,null,null,null,null,null,null,null,null,"Page 20",null,null,null,null,null,null,null,null,null,null,null,null,null,null,null,"Page 20",null,null,null,null,null,null,null,null,null,null,null,null,null,null,null,"Page 20",null,null,null,null,null,null,null,null,null,null,null,null,null,null,null,"Page 20",null,null,null,null,null,null,null,null,null,null,null,null,null,null,null,"Page 20",null,null,null,null,null,null,null,null,null,null,null,null,null,null,null,"Page 20",null,null,null,null,null,null,null,null,null,null,null,null,null,null,null,"Page 20",null,null,null,null,null,null,null,null,null,null,null,null,null,null,null,"Page 20",null,null,null,null,null,null,null,null,null,null,null,null,null,null,null,"Page 20",null,null,null,null,null,null,null,null,null,null,null,null,null,null,null,"Page 20",null,null,null,null,null,null,null,null,null,null,null,null,null,null,null,"Page 20",null,null,null,null,null,null,null,null,null,null,null,null,null,null,null,"Page 20",null,null,null,null,null,null,null,null,null,null,null,null,null,null,null,"Page 20",null,null,null,null,null,null,null,null,null,null,null,null,null,null,null,"Page 20",null,null,null,null,null,null,null,null,null,null,null,null,null,null,null,"Page 20",null,null,null,null,null,null,null,null,null,null,null,null,null,null,null,"Page 20",null,null,null,null,null,null,null,null,null,null,null,null,null,null,null,"Page 20",null,null,null,null,null,null,null,null,null,null,null,null,null,null,null,"Page 20",null,null,null,null,null,null,null,null,null,null,null,null,null,null,null,"Page 20",null,null,null,null,null,null,null,null,null,null,null,null,null,null,null,"Page 20",null,null,null,null,null,null,null,null,null,null,null,null,null,null,null,"Page 20",null,null,null,null,null,null,null,null,null,null,null,null,null,null,null,"Page 20",null,null,null,null,null,null,null,null,null,null,null,null,null,null,null,"Page 20",null,null,null,null,null,null,null,null,null,null,null,null,null,null,null,"Page 20",null,null,null,null,null,null,null,null,null,null,null,null,null,null,null,"Page 20",null,null,null,null,null,null,null,null,null,null,null,null,null,null,null,"Page 20",null,null,null,null,null,null,null,null,null,null,null,null,null,null,null,"Page 20",null,null,null,null,null,null,null,null,null,null,null,null,null,null,null,"Page 20",null,null,null,null,null,null,null,null,null,null,null,null,null,null,null,"Page 20",null,null,null,null,null,null,null,null,null,null,null,null,null,null,null,"Page 20",null,null,null,null,null,null,null,null,null,null,null,null,null,null,null,"Page 20",null,null,null,null,null,null,null,null,null,null,null,null,null,null,null,"Page 20",null,null,null,null,null,null,null,null,null,null,null,null,null,null,null,"Page 20",null,null,null,null,null,null,null,null,null,null,null,null,null,null,null,"Page 20",null,null,null,null,null,null,null,null,null,null,null,null,null,null,null,"Page 20",null,null,null,null,null,null,null,null,null,null,null,null,null,null,null,"Page 20",null,null,null,null,null,null,null,null,null,null,null,null,null,null,null,"Page 20",null,null,null,null,null,null,null,null,null,null,null,null,null,null,null,"Page 20",null,null,null,null,null,null,null,null,null,null,null,null,null,null,null,"Page 20",null,null,null,null,null,null,null,null,null,null,null,null,null,null,null,"Page 20",null,null,null,null,null,null,null,null,null,null,null,null,null,null,null,"Page 20",null,null,null,null,null,null,null,null,null,null,null,null,null,null,null,"Page 20",null,null,null,null,null,null,null,null,null,null,null,null,null,null,null,"Page 20",null,null,null,null,null,null,null,null,null,null,null,null,null,null,null,"Page 20",null,null,null,null,null,null,null,null,null,null,null,null,null,null,null,"Page 20",null,null,null,null,null,null,null,null,null,null,null,null,null,null,null,"Page 20",null,null,null,null,null,null,null,null,null,null,null,null,null,null,null,"Page 20",null,null,null,null,null,null,null,null,null,null,null,null,null,null,null,"Page 20",null,null,null,null,null,null,null,null,null,null,null,null,null,null,null,"Page 20",null,null,null,null,null,null,null,null,null,null,null,null,null,null,null,"Page 20",null,null,null,null,null,null,null,null,null,null,null,null,null,null,null,"Page 20",null,null,null,null,null,null,null,null,null,null,null,null,null,null,null,"Page 20",null,null,null,null,null,null,null,null,null,null,null,null,null,null,null,"Page 20",null,null,null,null,null,null,null,null,null,null,null,null,null,null,null,"Page 20",null,null,null,null,null,null,null,null,null,null,null,null,null,null,null,"Page 20",null,null,null,null,null,null,null,null,null,null,null,null,null,null,null,"Page 20",null,null,null,null,null,null,null,null,null,null,null,null,null,null,null,"Page 20",null,null,null,null,null,null,null,null,null,null,null,null,null,null,null,"Page 20",null,null,null,null,null,null,null,null,null,null,null,null,null,null,null,"Page 20",null,null,null,null,null,null,null,null,null,null,null,null,null,null,null,"Page 20",null,null,null,null,null,null,null,null,null,null,null,null,null,null,null,"Page 20",null,null,null,null,null,null,null,null,null,null,null,null,null,null,null,"Page 20",null,null,null,null,null,null,null,null,null,null,null,null,null,null,null,"Page 20",null,null,null,null,null,null,null,null,null,null,null,null,null,null,null,"Page 20",null,null,null,null,null,null,null,null,null,null,null,null,null,null,null,"Page 20",null,null,null,null,null,null,null,null,null,null,null,null,null,null,null,"Page 20",null,null,null,null,null,null,null,null,null,null,null,null,null,null,null,"Page 20",null,null,null,null,null,null,null,null,null,null,null,null,null,null,null,"Page 20",null,null,null,null,null,null,null,null,null,null,null,null,null,null,null,"Page 20",null,null,null,null,null,null,null,null,null,null,null,null,null,null,null,"Page 20",null,null,null,null,null,null,null,null,null,null,null,null,null,null,null,"Page 20",null,null,null,null,null,null,null,null,null,null,null,null,null,null,null,"Page 20",null,null,null,null,null,null,null,null,null,null,null,null,null,null,null,"Page 20",null,null,null,null,null,null,null,null,null,null,null,null,null,null,null,"Page 20",null,null,null,null,null,null,null,null,null,null,null,null,null,null,null,"Page 20",null,null,null,null,null,null,null,null,null,null,null,null,null,null,null,"Page 20",null,null,null,null,null,null,null,null,null,null,null,null,null,null,null,"Page 20",null,null,null,null,null,null,null,null,null,null,null,null,null,null,null,"Page 20",null,null,null,null,null,null,null,null,null,null,null,null,null,null,null,"Page 20",null,null,null,null,null,null,null,null,null,null,null,null,null,null,null,"Page 20",null,null,null,null,null,null,null,null,null,null,null,null,null,null,null,"Page 20",null,null,null,null,null,null,null,null,null,null,null,null,null,null,null,"Page 20",null,null,null,null,null,null,null,null,null,null,null,null,null,null,null,"Page 20",null,null,null,null,null,null,null,null,null,null,null,null,null,null,null,"Page 20",null,null,null,null,null,null,null,null,null,null,null,null,null,null,null,"Page 20",null,null,null,null,null,null,null,null,null,null,null,null,null,null,null,"Page 20",null,null,null,null,null,null,null,null,null,null,null,null,null,null,null,"Page 20",null,null,null,null,null,null,null,null,null,null,null,null,null,null,null,"Page 20",null,null,null,null,null,null,null,null,null,null,null,null,null,null,null,"Page 20",null,null,null,null,null,null,null,null,null,null,null,null,null,null,null,"Page 20",null,null,null,null,null,null,null,null,null,null,null,null,null,null,null,"Page 20",null,null,null,null,null,null,null,null,null,null,null,null,null,null,null,"Page 20",null,null,null,null,null,null,null,null,null,null,null,null,null,null,null,"Page 20",null,null,null,null,null,null,null,null,null,null,null,null,null,null,null,"Page 20",null,null,null,null,null,null,null,null,null,null,null,null,null,null,null,"Page 20",null,null,null,null,null,null,null,null,null,null,null,null,null,null,null,"Page 20",null,null,null,null,null,null,null,null,null,null,null,null,null,null,null,"Page 20",null,null,null,null,null,null,null,null,null,null,null,null,null,null,null,"Page 20",null,null,null,null,null,null,null,null,null,null,null,null,null,null,null,"Page 20",null,null,null,null,null,null,null,null,null,null,null,null,null,null,null,"Page 20",null,null,null,null,null,null,null,null,null,null,null,null,null,null,null,"Page 20",null,null,null,null,null,null,null,null,null,null,null,null,null,null,null,"Page 20",null,null,null,null,null,null,null,null,null,null,null,null,null,null,null,"Page 20",null,null,null,null,null,null,null,null,null,null,null,null,null,null,null,"Page 20",null,null,null,null,null,null,null,null,null,null,null,null,null,null,null,"Page 20",null,null,null,null,null,null,null,null,null,null,null,null,null,null,null,"Page 20",null,null,null,null,null,null,null,null,null,null,null,null,null,null,null,"Page 20",null,null,null,null,null,null,null,null,null,null,null,null,null,null,null,"Page 20",null,null,null,null,null,null,null,null,null,null,null,null,null,null,null,"Page 20",null,null,null,null,null,null,null,null,null,null,null,null,null,null,null,"Page 20",null,null,null,null,null,null,null,null,null,null,null,null,null,null,null,"Page 20",null,null,null,null,null,null,null,null,null,null,null,null,null,null,null,"Page 20",null,null,null,null,null,null,null,null,null,null,null,null,null,null,null,"Page 20",null,null,null,null,null,null,null,null,null,null,null,null,null,null,null,"Page 20",null,null,null,null,null,null,null,null,null,null,null,null,null,null,null,"Page 20",null,null,null,null,null,null,null,null,null,null,null,null,null,null,null,"Page 20",null,null,null,null,null,null,null,null,null,null,null,null,null,null,null,"Page 20",null,null,null,null,null,null,null,null,null,null,null,null,null,null,null,"Page 20",null,null,null,null,null,null,null,null,null,null,null,null,null,null,null,"Page 20",null,null,null,null,null,null,null,null,null,null,null,null,null,null,null,"Page 20",null,null,null,null,null,null,null,null,null,null,null,null,null,null,null,"Page 20",null,null,null,null,null,null,null,null,null,null,null,null,null,null,null,"Page 20",null,null,null,null,null,null,null,null,null,null,null,null,null,null,null,"Page 20",null,null,null,null,null,null,null,null,null,null,null,null,null,null,null,"Page 20",null,null,null,null,null,null,null,null,null,null,null,null,null,null,null,"Page 20",null,null,null,null,null,null,null,null,null,null,null,null,null,null,null,"Page 20",null,null,null,null,null,null,null,null,null,null,null,null,null,null,null,"Page 20",null,null,null,null,null,null,null,null,null,null,null,null,null,null,null,"Page 20",null,null,null,null,null,null,null,null,null,null,null,null,null,null,null,"Page 20",null,null,null,null,null,null,null,null,null,null,null,null,null,null,null,"Page 20",null,null,null,null,null,null,null,null,null,null,null,null,null,null,null,"Page 20",null,null,null,null,null,null,null,null,null,null,null,null,null,null,null,"Page 20",null,null,null,null,null,null,null,null,null,null,null,null,null,null,null,"Page 20",null,null,null,null,null,null,null,null,null,null,null,null,null,null,null,"Page 20",null,null,null,null,null,null,null,null,null,null,null,null,null,null,null,"Page 20",null,null,null,null,null,null,null,null,null,null,null,null,null,null,null,"Page 20",null,null,null,null,null,null,null,null,null,null,null,null,null,null,null,"Page 20",null,null,null,null,null,null,null,null,null,null,null,null,null,null,null,"Page 20",null,null,null,null,null,null,null,null,null,null,null,null,null,null,null,"Page 20",null,null,null,null,null,null,null,null,null,null,null,null,null,null,null,"Page 20",null,null,null,null,null,null,null,null,null,null,null,null,null,null,null,"Page 20",null,null,null,null,null,null,null,null,null,null,null,null,null,null,null,"Page 20",null,null,null,null,null,null,null,null,null,null,null,null,null,null,null,"Page 20",null,null,null,null,null,null,null,null,null,null,null,null,null,null,null,"Page 20",null,null,null,null,null,null,null,null,null,null,null,null,null,null,null,"Page 20",null,null,null,null,null,null,null,null,null,null,null,null,null,null,null,"Page 20",null,null,null,null,null,null,null,null,null,null,null,null,null,null,null,"Page 20",null,null,null,null,null,null,null,null,null,null,null,null,null,null,null,"Page 20",null,null,null,null,null,null,null,null,null,null,null,null,null,null,null,"Page 20",null,null,null,null,null,null,null,null,null,null,null,null,null,null,null,"Page 20",null,null,null,null,null,null,null,null,null,null,null,null,null,null,null,"Page 20",null,null,null,null,null,null,null,null,null,null,null,null,null,null,null,"Page 20",null,null,null,null,null,null,null,null,null,null,null,null,null,null,null,"Page 20",null,null,null,null,null,null,null,null,null,null,null,null,null,null,null,"Page 20",null,null,null,null,null,null,null,null,null,null,null,null,null,null,null,"Page 20",null,null,null,null,null,null,null,null,null,null,null,null,null,null,null,"Page 20",null,null,null,null,null,null,null,null,null,null,null,null,null,null,null,"Page 20",null,null,null,null,null,null,null,null,null,null,null,null,null,null,null,"Page 20",null,null,null,null,null,null,null,null,null,null,null,null,null,null,null,"Page 20",null,null,null,null,null,null,null,null,null,null,null,null,null,null,null,"Page 20",null,null,null,null,null,null,null,null,null,null,null,null,null,null,null,"Page 20",null,null,null,null,null,null,null,null,null,null,null,null,null,null,null,"Page 20",null,null,null,null,null,null,null,null,null,null,null,null,null,null,null,"Page 20",null,null,null,null,null,null,null,null,null,null,null,null,null,null,null,"Page 20",null,null,null,null,null,null,null,null,null,null,null,null,null,null,null,"Page 20",null,null,null,null,null,null,null,null,null,null,null,null,null,null,null,"Page 20",null,null,null,null,null,null,null,null,null,null,null,null,null,null,null,"Page 20",null,null,null,null,null,null,null,null,null,null,null,null,null,null,null,"Page 20",null,null,null,null,null,null,null,null,null,null,null,null,null,null,null,"Page 20",null,null,null,null,null,null,null,null,null,null,null,null,null,null,null,"Page 20",null,null,null,null,null,null,null,null,null,null,null,null,null,null,null,"Page 20",null,null,null,null,null,null,null,null,null,null,null,null,null,null,null,"Page 20",null,null,null,null,null,null,null,null,null,null,null,null,null,null,null,"Page 20",null,null,null,null,null,null,null,null,null,null,null,null,null,null,null,"Page 20",null,null,null,null,null,null,null,null,null,null,null,null,null,null,null,"Page 20",null,null,null,null,null,null,null,null,null,null,null,null,null,null,null,"Page 20",null,null,null,null,null,null,null,null,null,null,null,null,null,null,null,"Page 20",null,null,null,null,null,null,null,null,null,null,null,null,null,null,null,"Page 20",null,null,null,null,null,null,null,null,null,null,null,null,null,null,null,"Page 20",null,null,null,null,null,null,null,null,null,null,null,null,null,null,null,"Page 20",null,null,null,null,null,null,null,null,null,null,null,null,null,null,null,"Page 20",null,null,null,null,null,null,null,null,null,null,null,null,null,null,null,"Page 20",null,null,null,null,null,null,null,null,null,null,null,null,null,null,null,"Page 20",null,null,null,null,null,null,null,null,null,null,null,null,null,null,null,"Page 20",null,null,null,null,null,null,null,null,null,null,null,null,null,null,null,"Page 20",null,null,null,null,null,null,null,null,null,null,null,null,null,null,null,"Page 20",null,null,null,null,null,null,null,null,null,null,null,null,null,null,null,"Page 20",null,null,null,null,null,null,null,null,null,null,null,null,null,null,null,"Page 20",null,null,null,null,null,null,null,null,null,null,null,null,null,null,null,"Page 20",null,null,null,null,null,null,null,null,null,null,null,null,null,null,null,"Page 20",null,null,null,null,null,null,null,null,null,null,null,null,null,null,null,"Page 20",null,null,null,null,null,null,null,null,null,null,null,null,null,null,null,"Page 20",null,null,null,null,null,null,null,null,null,null,null,null,null,null,null,"Page 20",null,null,null,null,null,null,null,null,null,null,null,null,null,null,null,"Page 20",null,null,null,null,null,null,null,null,null,null,null,null,null,null,null,"Page 20",null,null,null,null,null,null,null,null,null,null,null,null,null,null,null,"Page 20",null,null,null,null,null,null,null,null,null,null,null,null,null,null,null,"Page 20",null,null,null,null,null,null,null,null,null,null,null,null,null,null,null,"Page 20",null,null,null,null,null,null,null,null,null,null,null,null,null,null,null,"Page 20",null,null,null,null,null,null,null,null,null,null,null,null,null,null,null,"Page 20",null,null,null,null,null,null,null,null,null,null,null,null,null,null,null,"Page 20",null,null,null,null,null,null,null,null,null,null,null,null,null,null,null,"Page 20",null,null,null,null,null,null,null,null,null,null,null,null,null,null,null,"Page 20",null,null,null,null,null,null,null,null,null,null,null,null,null,null,null,"Page 20",null,null,null,null,null,null,null,null,null,null,null,null,null,null,null,"Page 20",null,null,null,null,null,null,null,null,null,null,null,null,null,null,null,"Page 20",null,null,null,null,null,null,null,null,null,null,null,null,null,null,null,"Page 20",null,null,null,null,null,null,null,null,null,null,null,null,null,null,null,"Page 20",null,null,null,null,null,null,null,null,null,null,null,null,null,null,null,"Page 20",null,null,null,null,null,null,null,null,null,null,null,null,null,null,null,"Page 20",null,null,null,null,null,null,null,null,null,null,null,null,null,null,null,"Page 20",null,null,null,null,null,null,null,null,null,null,null,null,null,null,null,"Page 20",null,null,null,null,null,null,null,null,null,null,null,null,null,null,null,"Page 20",null,null,null,null,null,null,null,null,null,null,null,null,null,null,null,"Page 20",null,null,null,null,null,null,null,null,null,null,null,null,null,null,null,"Page 20",null,null,null,null,null,null,null,null,null,null,null,null,null,null,null,"Page 20",null,null,null,null,null,null,null,null,null,null,null,null,null,null,null,"Page 20",null,null,null,null,null,null,null,null,null,null,null,null,null,null,null,"Page 20",null,null,null,null,null,null,null,null,null,null,null,null,null,null,null,"Page 20",null,null,null,null,null,null,null,null,null,null,null,null,null,null,null,"Page 20",null,null,null,null,null,null,null,null,null,null,null,null,null,null,null,"Page 20",null,null,null,null,null,null,null,null,null,null,null,null,null,null,null,"Page 20",null,null,null,null,null,null,null,null,null,null,null,null,null,null,null,"Page 20",null,null,null,null,null,null,null,null,null,null,null,null,null,null,null,"Page 20",null,null,null,null,null,null,null,null,null,null,null,null,null,null,null,"Page 20",null,null,null,null,null,null,null,null,null,null,null,null,null,null,null,"Page 20",null,null,null,null,null,null,null,null,null,null,null,null,null,null,null,"Page 20",null,null,null,null,null,null,null,null,null,null,null,null,null,null,null,"Page 20",null,null,null,null,null,null,null,null,null,null,null,null,null,null,null,"Page 20",null,null,null,null,null,null,null,null,null,null,null,null,null,null,null,"Page 20",null,null,null,null,null,null,null,null,null,null,null,null,null,null,null,"Page 20",null,null,null,null,null,null,null,null,null,null,null,null,null,null,null,"Page 20",null,null,null,null,null,null,null,null,null,null,null,null,null,null,null,"Page 20",null,null,null,null,null,null,null,null,null,null,null,null,null,null,null,"Page 20",null,null,null,null,null,null,null,null,null,null,null,null,null,null,null,"Page 20",null,null,null,null,null,null,null,null,null,null,null,null,null,null,null,"Page 20",null,null,null,null,null,null,null,null,null,null,null,null,null,null,null,"Page 20",null,null,null,null,null,null,null,null,null,null,null,null,null,null,null,"Page 20",null,null,null,null,null,null,null,null,null,null,null,null,null,null,null,"Page 20",null,null,null,null,null,null,null,null,null,null,null,null,null,null,null,"Page 20",null,null,null,null,null,null,null,null,null,null,null,null,null,null,null,"Page 20",null,null,null,null,null,null,null,null,null,null,null,null,null,null,null,"Page 20",null,null,null,null,null,null,null,null,null,null,null,null,null,null,null,"Page 20",null,null,null,null,null,null,null,null,null,null,null,null,null,null,null,"Page 20",null,null,null,null,null,null,null,null,null,null,null,null,null,null,null,"Page 20",null,null,null,null,null,null,null,null,null,null,null,null,null,null,null,"Page 20",null,null,null,null,null,null,null,null,null,null,null,null,null,null,null,"Page 20",null,null,null,null,null,null,null,null,null,null,null,null,null,null,null,"Page 20",null,null,null,null,null,null,null,null,null,null,null,null,null,null,null,"Page 20",null,null,null,null,null,null,null,null,null,null,null,null,null,null,null,"Page 20",null,null,null,null,null,null,null,null,null,null,null,null,null,null,null,"Page 20",null,null,null,null,null,null,null,null,null,null,null,null,null,null,null,"Page 20",null,null,null,null,null,null,null,null,null,null,null,null,null,null,null,"Page 20",null,null,null,null,null,null,null,null,null,null,null,null,null,null,null,"Page 20",null,null,null,null,null,null,null,null,null,null,null,null,null,null,null,"Page 20",null,null,null,null,null,null,null,null,null,null,null,null,null,null,null,"Page 20",null,null,null,null,null,null,null,null,null,null,null,null,null,null,null,"Page 20",null,null,null,null,null,null,null,null,null,null,null,null,null,null,null,"Page 20",null,null,null,null,null,null,null,null,null,null,null,null,null,null,null,"Page 20",null,null,null,null,null,null,null,null,null,null,null,null,null,null,null,"Page 20",null,null,null,null,null,null,null,null,null,null,null,null,null,null,null,"Page 20",null,null,null,null,null,null,null,null,null,null,null,null,null,null,null,"Page 20",null,null,null,null,null,null,null,null,null,null,null,null,null,null,null,"Page 20",null,null,null,null,null,null,null,null,null,null,null,null,null,null,null,"Page 20",null,null,null,null,null,null,null,null,null,null,null,null,null,null,null,"Page 20",null,null,null,null,null,null,null,null,null,null,null,null,null,null,null,"Page 20",null,null,null,null,null,null,null,null,null,null,null,null,null,null,null,"Page 20",null,null,null,null,null,null,null,null,null,null,null,null,null,null,null,"Page 20",null,null,null,null,null,null,null,null,null,null,null,null,null,null,null,"Page 20",null,null,null,null,null,null,null,null,null,null,null,null,null,null,null,"Page 20",null,null,null,null,null,null,null,null,null,null,null,null,null,null,null,"Page 20",null,null,null,null,null,null,null,null,null,null,null,null,null,null,null,"Page 20",null,null,null,null,null,null,null,null,null,null,null,null,null,null,null,"Page 20",null,null,null,null,null,null,null,null,null,null,null,null,null,null,null,"Page 20",null,null,null,null,null,null,null,null,null,null,null,null,null,null,null,"Page 20",null,null,null,null,null,null,null,null,null,null,null,null,null,null,null,"Page 20",null,null,null,null,null,null,null,null,null,null,null,null,null,null,null,"Page 20",null,null,null,null,null,null,null,null,null,null,null,null,null,null,null,"Page 20",null,null,null,null,null,null,null,null,null,null,null,null,null,null,null,"Page 20",null,null,null,null,null,null,null,null,null,null,null,null,null,null,null,"Page 20",null,null,null,null,null,null,null,null,null,null,null,null,null,null,null,"Page 20",null,null,null,null,null,null,null,null,null,null,null,null,null,null,null,"Page 20",null,null,null,null,null,null,null,null,null,null,null,null,null,null,null,"Page 20",null,null,null,null,null,null,null,null,null,null,null,null,null,null,null,"Page 20",null,null,null,null,null,null,null,null,null,null,null,null,null,null,null,"Page 20",null,null,null,null,null,null,null,null,null,null,null,null,null,null,null,"Page 20",null,null,null,null,null,null,null,null,null,null,null,null,null,null,null,"Page 20",null,null,null,null,null,null,null,null,null,null,null,null,null,null,null,"Page 20",null,null,null,null,null,null,null,null,null,null,null,null,null,null,null,"Page 20",null,null,null,null,null,null,null,null,null,null,null,null,null,null,null,"Page 20",null,null,null,null,null,null,null,null,null,null,null,null,null,null,null,"Page 20",null,null,null,null,null,null,null,null,null,null,null,null,null,null,null,"Page 20",null,null,null,null,null,null,null,null,null,null,null,null,null,null,null,"Page 20",null,null,null,null,null,null,null,null,null,null,null,null,null,null,null,"Page 20",null,null,null,null,null,null,null,null,null,null,null,null,null,null,null,"Page 20",null,null,null,null,null,null,null,null,null,null,null,null,null,null,null,"Page 20",null,null,null,null,null,null,null,null,null,null,null,null,null,null,null,"Page 20",null,null,null,null,null,null,null,null,null,null,null,null,null,null,null,"Page 20",null,null,null,null,null,null,null,null,null,null,null,null,null,null,null,"Page 20",null,null,null,null,null,null,null,null,null,null,null,null,null,null,null,"Page 20",null,null,null,null,null,null,null,null,null,null,null,null,null,null,null,"Page 20",null,null,null,null,null,null,null,null,null,null,null,null,null,null,null,"Page 20",null,null,null,null,null,null,null,null,null,null,null,null,null,null,null,"Page 20",null,null,null,null,null,null,null,null,null,null,null,null,null,null,null,"Page 20",null,null,null,null,null,null,null,null,null,null,null,null,null,null,null,"Page 20",null,null,null,null,null,null,null,null,null,null,null,null,null,null,null,"Page 20",null,null,null,null,null,null,null,null,null,null,null,null,null,null,null,"Page 20",null,null,null,null,null,null,null,null,null,null,null,null,null,null,null,"Page 20",null,null,null,null,null,null,null,null,null,null,null,null,null,null,null,"Page 20",null,null,null,null,null,null,null,null,null,null,null,null,null,null,null,"Page 20",null,null,null,null,null,null,null,null,null,null,null,null,null,null,null,"Page 20",null,null,null,null,null,null,null,null,null,null,null,null,null,null,null,"Page 20",null,null,null,null,null,null,null,null,null,null,null,null,null,null,null,"Page 20",null,null,null,null,null,null,null,null,null,null,null,null,null,null,null,"Page 20",null,null,null,null,null,null,null,null,null,null,null,null,null,null,null,"Page 20",null,null,null,null,null,null,null,null,null,null,null,null,null,null,null,"Page 20",null,null,null,null,null,null,null,null,null,null,null,null,null,null,null,"Page 20",null,null,null,null,null,null,null,null,null,null,null,null,null,null,null,"Page 20",null,null,null,null,null,null,null,null,null,null,null,null,null,null,null,"Page 20",null,null,null,null,null,null,null,null,null,null,null,null,null,null,null,"Page 20",null,null,null,null,null,null,null,null,null,null,null,null,null,null,null,"Page 20",null,null,null,null,null,null,null,null,null,null,null,null,null,null,null,"Page 20",null,null,null,null,null,null,null,null,null,null,null,null,null,null,null,"Page 20",null,null,null,null,null,null,null,null,null,null,null,null,null,null,null,"Page 20",null,null,null,null,null,null,null,null,null,null,null,null,null,null,null,"Page 20",null,null,null,null,null,null,null,null,null,null,null,null,null,null,null,"Page 20",null,null,null,null,null,null,null,null,null,null,null,null,null,null,null,"Page 20",null,null,null,null,null,null,null,null,null,null,null,null,null,null,null,"Page 20",null,null,null,null,null,null,null,null,null,null,null,null,null,null,null,"Page 20",null,null,null,null,null,null,null,null,null,null,null,null,null,null,null,"Page 20",null,null,null,null,null,null,null,null,null,null,null,null,null,null,null,"Page 20",null,null,null,null,null,null,null,null,null,null,null,null,null,null,null,"Page 20",null,null,null,null,null,null,null,null,null,null,null,null,null,null,null,"Page 20",null,null,null,null,null,null,null,null,null,null,null,null,null,null,null,"Page 20",null,null,null,null,null,null,null,null,null,null,null,null,null,null,null,"Page 20",null,null,null,null,null,null,null,null,null,null,null,null,null,null,null,"Page 20",null,null,null,null,null,null,null,null,null,null,null,null,null,null,null,"Page 20",null,null,null,null,null,null,null,null,null,null,null,null,null,null,null,"Page 20",null,null,null,null,null,null,null,null,null,null,null,null,null,null,null,"Page 20",null,null,null,null,null,null,null,null,null,null,null,null,null,null,null,"Page 20",null,null,null,null,null,null,null,null,null,null,null,null,null,null,null,"Page 20",null,null,null,null,null,null,null,null,null,null,null,null,null,null,null,"Page 20",null,null,null,null,null,null,null,null,null,null,null,null,null,null,null,"Page 20",null,null,null,null,null,null,null,null,null,null,null,null,null,null,null,"Page 20",null,null,null,null,null,null,null,null,null,null,null,null,null,null,null,"Page 20",null,null,null,null,null,null,null,null,null,null,null,null,null,null,null,"Page 20",null,null,null,null,null,null,null,null,null,null,null,null,null,null,null,"Page 20",null,null,null,null,null,null,null,null,null,null,null,null,null,null,null,"Page 20",null,null,null,null,null,null,null,null,null,null,null,null,null,null,null,"Page 20",null,null,null,null,null,null,null,null,null,null,null,null,null,null,null,"Page 20",null,null,null,null,null,null,null,null,null,null,null,null,null,null,null,"Page 20",null,null,null,null,null,null,null,null,null,null,null,null,null,null,null,"Page 20",null,null,null,null,null,null,null,null,null,null,null,null,null,null,null,"Page 20",null,null,null,null,null,null,null,null,null,null,null,null,null,null,null,"Page 20",null,null,null,null,null,null,null,null,null,null,null,null,null,null,null,"Page 20",null,null,null,null,null,null,null,null,null,null,null,null,null,null,null,"Page 20",null,null,null,null,null,null,null,null,null,null,null,null,null,null,null,"Page 20",null,null,null,null,null,null,null,null,null,null,null,null,null,null,null,"Page 20",null,null,null,null,null,null,null,null,null,null,null,null,null,null,null,"Page 20",null,null,null,null,null,null,null,null,null,null,null,null,null,null,null,"Page 20",null,null,null,null,null,null,null,null,null,null,null,null,null,null,null,"Page 20",null,null,null,null,null,null,null,null,null,null,null,null,null,null,null,"Page 20",null,null,null,null,null,null,null,null,null,null,null,null,null,null,null,"Page 20",null,null,null,null,null,null,null,null,null,null,null,null,null,null,null,"Page 20",null,null,null,null,null,null,null,null,null,null,null,null,null,null,null,"Page 20",null,null,null,null,null,null,null,null,null,null,null,null,null,null,null,"Page 20",null,null,null,null,null,null,null,null,null,null,null,null,null,null,null,"Page 20",null,null,null,null,null,null,null,null,null,null,null,null,null,null,null,"Page 20",null,null,null,null,null,null,null,null,null,null,null,null,null,null,null,"Page 20",null,null,null,null,null,null,null,null,null,null,null,null,null,null,null,"Page 20",null,null,null,null,null,null,null,null,null,null,null,null,null,null,null,"Page 20",null,null,null,null,null,null,null,null,null,null,null,null,null,null,null,"Page 20",null,null,null,null,null,null,null,null,null,null,null,null,null,null,null,"Page 20",null,null,null,null,null,null,null,null,null,null,null,null,null,null,null,"Page 20",null,null,null,null,null,null,null,null,null,null,null,null,null,null,null,"Page 20",null,null,null,null,null,null,null,null,null,null,null,null,null,null,null,"Page 20",null,null,null,null,null,null,null,null,null,null,null,null,null,null,null,"Page 20",null,null,null,null,null,null,null,null,null,null,null,null,null,null,null,"Page 20",null,null,null,null,null,null,null,null,null,null,null,null,null,null,null,"Page 20",null,null,null,null,null,null,null,null,null,null,null,null,null,null,null,"Page 20",null,null,null,null,null,null,null,null,null,null,null,null,null,null,null,"Page 20",null,null,null,null,null,null,null,null,null,null,null,null,null,null,null,"Page 20",null,null,null,null,null,null,null,null,null,null,null,null,null,null,null,"Page 20",null,null,null,null,null,null,null,null,null,null,null,null,null,null,null,"Page 20",null,null,null,null,null,null,null,null,null,null,null,null,null,null,null,"Page 20",null,null,null,null,null,null,null,null,null,null,null,null,null,null,null,"Page 20",null,null,null,null,null,null,null,null,null,null,null,null,null,null,null,"Page 20",null,null,null,null,null,null,null,null,null,null,null,null,null,null,null,"Page 20",null,null,null,null,null,null,null,null,null,null,null,null,null,null,null,"Page 20",null,null,null,null,null,null,null,null,null,null,null,null,null,null,null,"Page 20",null,null,null,null,null,null,null,null,null,null,null,null,null,null,null,"Page 20",null,null,null,null,null,null,null,null,null,null,null,null,null,null,null,"Page 20",null,null,null,null,null,null,null,null,null,null,null,null,null,null,null,"Page 20",null,null,null,null,null,null,null,null,null,null,null,null,null,null,null,"Page 20",null,null,null,null,null,null,null,null,null,null,null,null,null,null,null,"Page 20",null,null,null,null,null,null,null,null,null,null,null,null,null,null,null,"Page 20",null,null,null,null,null,null,null,null,null,null,null,null,null,null,null,"Page 20",null,null,null,null,null,null,null,null,null,null,null,null,null,null,null,"Page 20",null,null,null,null,null,null,null,null,null,null,null,null,null,null,null,"Page 20",null,null,null,null,null,null,null,null,null,null,null,null,null,null,null,"Page 20",null,null,null,null,null,null,null,null,null,null,null,null,null,null,null,"Page 20",null,null,null,null,null,null,null,null,null,null,null,null,null,null,null,"Page 20",null,null,null,null,null,null,null,null,null,null,null,null,null,null,null,"Page 20",null,null,null,null,null,null,null,null,null,null,null,null,null,null,null,"Page 20",null,null,null,null,null,null,null,null,null,null,null,null,null,null,null,"Page 20",null,null,null,null,null,null,null,null,null,null,null,null,null,null,null,"Page 20",null,null,null,null,null,null,null,null,null,null,null,null,null,null,null,"Page 20",null,null,null,null,null,null,null,null,null,null,null,null,null,null,null,"Page 20",null,null,null,null,null,null,null,null,null,null,null,null,null,null,null,"Page 20",null,null,null,null,null,null,null,null,null,null,null,null,null,null,null,"Page 20",null,null,null,null,null,null,null,null,null,null,null,null,null,null,null,"Page 20",null,null,null,null,null,null,null,null,null,null,null,null,null,null,null,"Page 20",null,null,null,null,null,null,null,null,null,null,null,null,null,null,null,"Page 20",null,null,null,null,null,null,null,null,null,null,null,null,null,null,null,"Page 20",null,null,null,null,null,null,null,null,null,null,null,null,null,null,null,"Page 20",null,null,null,null,null,null,null,null,null,null,null,null,null,null,null,"Page 20",null,null,null,null,null,null,null,null,null,null,null,null,null,null,null,"Page 20",null,null,null,null,null,null,null,null,null,null,null,null,null,null,null,"Page 20",null,null,null,null,null,null,null,null,null,null,null,null,null,null,null,"Page 20",null,null,null,null,null,null,null,null,null,null,null,null,null,null,null,"Page 20",null,null,null,null,null,null,null,null,null,null,null,null,null,null,null,"Page 20",null,null,null,null,null,null,null,null,null,null,null,null,null,null,null,"Page 20",null,null,null,null,null,null,null,null,null,null,null,null,null,null,null,"Page 20",null,null,null,null,null,null,null,null,null,null,null,null,null,null,null,"Page 20",null,null,null,null,null,null,null,null,null,null,null,null,null,null,null,"Page 20",null,null,null,null,null,null,null,null,null,null,null,null,null,null,null,"Page 20",null,null,null,null,null,null,null,null,null,null,null,null,null,null,null,"Page 20",null,null,null,null,null,null,null,null,null,null,null,null,null,null,null,"Page 20",null,null,null,null,null,null,null,null,null,null,null,null,null,null,null,"Page 20",null,null,null,null,null,null,null,null,null,null,null,null,null,null,null,"Page 20",null,null,null,null,null,null,null,null,null,null,null,null,null,null,null,"Page 20",null,null,null,null,null,null,null,null,null,null,null,null,null,null,null,"Page 20",null,null,null,null,null,null,null,null,null,null,null,null,null,null,null,"Page 20",null,null,null,null,null,null,null,null,null,null,null,null,null,null,null,"Page 20",null,null,null,null,null,null,null,null,null,null,null,null,null,null,null,"Page 20",null,null,null,null,null,null,null,null,null,null,null,null,null,null,null,"Page 20",null,null,null,null,null,null,null,null,null,null,null,null,null,null,null,"Page 20",null,null,null,null,null,null,null,null,null,null,null,null,null,null,null,"Page 20",null,null,null,null,null,null,null,null,null,null,null,null,null,null,null,"Page 20",null,null,null,null,null,null,null,null,null,null,null,null,null,null,null,"Page 20",null,null,null,null,null,null,null,null,null,null,null,null,null,null,null,"Page 20",null,null,null,null,null,null,null,null,null,null,null,null,null,null,null,"Page 20",null,null,null,null,null,null,null,null,null,null,null,null,null,null,null,"Page 20",null,null,null,null,null,null,null,null,null,null,null,null,null,null,null,"Page 20",null,null,null,null,null,null,null,null,null,null,null,null,null,null,null,"Page 20",null,null,null,null,null,null,null,null,null,null,null,null,null,null,null,"Page 20",null,null,null,null,null,null,null,null,null,null,null,null,null,null,null,"Page 20",null,null,null,null,null,null,null,null,null,null,null,null,null,null,null,"Page 20",null,null,null,null,null,null,null,null,null,null,null,null,null,null,null,"Page 20",null,null,null,null,null,null,null,null,null,null,null,null,null,null,null,"Page 20",null,null,null,null,null,null,null,null,null,null,null,null,null,null,null,"Page 20",null,null,null,null,null,null,null,null,null,null,null,null,null,null,null,"Page 20",null,null,null,null,null,null,null,null,null,null,null,null,null,null,null,"Page 20",null,null,null,null,null,null,null,null,null,null,null,null,null,null,null,"Page 20",null,null,null,null,null,null,null,null,null,null,null,null,null,null,null,"Page 20",null,null,null,null,null,null,null,null,null,null,null,null,null,null,null,"Page 20",null,null,null,null,null,null,null,null,null,null,null,null,null,null,null,"Page 20",null,null,null,null,null,null,null,null,null,null,null,null,null,null,null,"Page 20",null,null,null,null,null,null,null,null,null,null,null,null,null,null,null,"Page 20",null,null,null,null,null,null,null,null,null,null,null,null,null,null,null,"Page 20",null,null,null,null,null,null,null,null,null,null,null,null,null,null,null,"Page 20",null,null,null,null,null,null,null,null,null,null,null,null,null,null,null,"Page 20",null,null,null,null,null,null,null,null,null,null,null,null,null,null,null,"Page 20",null,null,null,null,null,null,null,null,null,null,null,null,null,null,null,"Page 20",null,null,null,null,null,null,null,null,null,null,null,null,null,null,null,"Page 20",null,null,null,null,null,null,null,null,null,null,null,null,null,null,null,"Page 20",null,null,null,null,null,null,null,null,null,null,null,null,null,null,null,"Page 20",null,null,null,null,null,null,null,null,null,null,null,null,null,null,null,"Page 20",null,null,null,null,null,null,null,null,null,null,null,null,null,null,null,"Page 20",null,null,null,null,null,null,null,null,null,null,null,null,null,null,null,"Page 20",null,null,null,null,null,null,null,null,null,null,null,null,null,null,null,"Page 20",null,null,null,null,null,null,null,null,null,null,null,null,null,null,null,"Page 20",null,null,null,null,null,null,null,null,null,null,null,null,null,null,null,"Page 20",null,null,null,null,null,null,null,null,null,null,null,null,null,null,null,"Page 20",null,null,null,null,null,null,null,null,null,null,null,null,null,null,null,"Page 20",null,null,null,null,null,null,null,null,null,null,null,null,null,null,null,"Page 20",null,null,null,null,null,null,null,null,null,null,null,null,null,null,null,"Page 20",null,null,null,null,null,null,null,null,null,null,null,null,null,null,null,"Page 20",null,null,null,null,null,null,null,null,null,null,null,null,null,null,null,"Page 20",null,null,null,null,null,null,null,null,null,null,null,null,null,null,null,"Page 20",null,null,null,null,null,null,null,null,null,null,null,null,null,null,null,"Page 20",null,null,null,null,null,null,null,null,null,null,null,null,null,null,null,"Page 20",null,null,null,null,null,null,null,null,null,null,null,null,null,null,null,"Page 20",null,null,null,null,null,null,null,null,null,null,null,null,null,null,null,"Page 20",null,null,null,null,null,null,null,null,null,null,null,null,null,null,null,"Page 20",null,null,null,null,null,null,null,null,null,null,null,null,null,null,null,"Page 20",null,null,null,null,null,null,null,null,null,null,null,null,null,null,null,"Page 20",null,null,null,null,null,null,null,null,null,null,null,null,null,null,null,"Page 20",null,null,null,null,null,null,null,null,null,null,null,null,null,null,null,"Page 20",null,null,null,null,null,null,null,null,null,null,null,null,null,null,null,"Page 20",null,null,null,null,null,null,null,null,null,null,null,null,null,null,null,"Page 20",null,null,null,null,null,null,null,null,null,null,null,null,null,null,null,"Page 20",null,null,null,null,null,null,null,null,null,null,null,null,null,null,null,"Page 20",null,null,null,null,null,null,null,null,null,null,null,null,null,null,null,"Page 20",null,null,null,null,null,null,null,null,null,null,null,null,null,null,null,"Page 20",null,null,null,null,null,null,null,null,null,null,null,null,null,null,null,"Page 20",null,null,null,null,null,null,null,null,null,null,null,null,null,null,null,"Page 20",null,null,null,null,null,null,null,null,null,null,null,null,null,null,null,"Page 20",null,null,null,null,null,null,null,null,null,null,null,null,null,null,null,"Page 20",null,null,null,null,null,null,null,null,null,null,null,null,null,null,null,"Page 20",null,null,null,null,null,null,null,null,null,null,null,null,null,null,null,"Page 20",null,null,null,null,null,null,null,null,null,null,null,null,null,null,null,"Page 20",null,null,null,null,null,null,null,null,null,null,null,null,null,null,null,"Page 20",null,null,null,null,null,null,null,null,null,null,null,null,null,null,null,"Page 20",null,null,null,null,null,null,null,null,null,null,null,null,null,null,null,"Page 20",null,null,null,null,null,null,null,null,null,null,null,null,null,null,null,"Page 20",null,null,null,null,null,null,null,null,null,null,null,null,null,null,null,"Page 20",null,null,null,null,null,null,null,null,null,null,null,null,null,null,null,"Page 20",null,null,null,null,null,null,null,null,null,null,null,null,null,null,null,"Page 20",null,null,null,null,null,null,null,null,null,null,null,null,null,null,null,"Page 20",null,null,null,null,null,null,null,null,null,null,null,null,null,null,null,"Page 20",null,null,null,null,null,null,null,null,null,null,null,null,null,null,null,"Page 20",null,null,null,null,null,null,null,null,null,null,null,null,null,null,null,"Page 20",null,null,null,null,null,null,null,null,null,null,null,null,null,null,null,"Page 20",null,null,null,null,null,null,null,null,null,null,null,null,null,null,null,"Page 20",null,null,null,null,null,null,null,null,null,null,null,null,null,null,null,"Page 20",null,null,null,null,null,null,null,null,null,null,null,null,null,null,null,"Page 20",null,null,null,null,null,null,null,null,null,null,null,null,null,null,null,"Page 20",null,null,null,null,null,null,null,null,null,null,null,null,null,null,null,"Page 20",null,null,null,null,null,null,null,null,null,null,null,null,null,null,null,"Page 20",null,null,null,null,null,null,null,null,null,null,null,null,null,null,null,"Page 20",null,null,null,null,null,null,null,null,null,null,null,null,null,null,null,"Page 20",null,null,null,null,null,null,null,null,null,null,null,null,null,null,null,"Page 20",null,null,null,null,null,null,null,null,null,null,null,null,null,null,null,"Page 20",null,null,null,null,null,null,null,null,null,null,null,null,null,null,null,"Page 20",null,null,null,null,null,null,null,null,null,null,null,null,null,null,null,"Page 20",null,null,null,null,null,null,null,null,null,null,null,null,null,null,null,"Page 20",null,null,null,null,null,null,null,null,null,null,null,null,null,null,null,"Page 20",null,null,null,null,null,null,null,null,null,null,null,null,null,null,null,"Page 20",null,null,null,null,null,null,null,null,null,null,null,null,null,null,null,"Page 20",null,null,null,null,null,null,null,null,null,null,null,null,null,null,null,"Page 20",null,null,null,null,null,null,null,null,null,null,null,null,null,null,null,"Page 20",null,null,null,null,null,null,null,null,null,null,null,null,null,null,null,"Page 20",null,null,null,null,null,null,null,null,null,null,null,null,null,null,null,"Page 20",null,null,null,null,null,null,null,null,null,null,null,null,null,null,null,"Page 20",null,null,null,null,null,null,null,null,null,null,null,null,null,null,null,"Page 20",null,null,null,null,null,null,null,null,null,null,null,null,null,null,null,"Page 20",null,null,null,null,null,null,null,null,null,null,null,null,null,null,null,"Page 20",null,null,null,null,null,null,null,null,null,null,null,null,null,null,null,"Page 20",null,null,null,null,null,null,null,null,null,null,null,null,null,null,null,"Page 20",null,null,null,null,null,null,null,null,null,null,null,null,null,null,null,"Page 20",null,null,null,null,null,null,null,null,null,null,null,null,null,null,null,"Page 20",null,null,null,null,null,null,null,null,null,null,null,null,null,null,null,"Page 20",null,null,null,null,null,null,null,null,null,null,null,null,null,null,null,"Page 20",null,null,null,null,null,null,null,null,null,null,null,null,null,null,null,"Page 20",null,null,null,null,null,null,null,null,null,null,null,null,null,null,null,"Page 20",null,null,null,null,null,null,null,null,null,null,null,null,null,null,null,"Page 20",null,null,null,null,null,null,null,null,null,null,null,null,null,null,null,"Page 20",null,null,null,null,null,null,null,null,null,null,null,null,null,null,null,"Page 20",null,null,null,null,null,null,null,null,null,null,null,null,null,null,null,"Page 20",null,null,null,null,null,null,null,null,null,null,null,null,null,null,null,"Page 20",null,null,null,null,null,null,null,null,null,null,null,null,null,null,null,"Page 20",null,null,null,null,null,null,null,null,null,null,null,null,null,null,null,"Page 20",null,null,null,null,null,null,null,null,null,null,null,null,null,null,null,"Page 20",null,null,null,null,null,null,null,null,null,null,null,null,null,null,null,"Page 20",null,null,null,null,null,null,null,null,null,null,null,null,null,null,null,"Page 20",null,null,null,null,null,null,null,null,null,null,null,null,null,null,null,"Page 20",null,null,null,null,null,null,null,null,null,null,null,null,null,null,null,"Page 20",null,null,null,null,null,null,null,null,null,null,null,null,null,null,null,"Page 20",null,null,null,null,null,null,null,null,null,null,null,null,null,null,null,"Page 20",null,null,null,null,null,null,null,null,null,null,null,null,null,null,null,"Page 20",null,null,null,null,null,null,null,null,null,null,null,null,null,null,null,"Page 20",null,null,null,null,null,null,null,null,null,null,null,null,null,null,null,"Page 20",null,null,null,null,null,null,null,null,null,null,null,null,null,null,null,"Page 20",null,null,null,null,null,null,null,null,null,null,null,null,null,null,null,"Page 20",null,null,null,null,null,null,null,null,null,null,null,null,null,null,null,"Page 20",null,null,null,null,null,null,null,null,null,null,null,null,null,null,null,"Page 20",null,null,null,null,null,null,null,null,null,null,null,null,null,null,null,"Page 20",null,null,null,null,null,null,null,null,null,null,null,null,null,null,null,"Page 20",null,null,null,null,null,null,null,null,null,null,null,null,null,null,null,"Page 20",null,null,null,null,null,null,null,null,null,null,null,null,null,null,null,"Page 20",null,null,null,null,null,null,null,null,null,null,null,null,null,null,null,"Page 20",null,null,null,null,null,null,null,null,null,null,null,null,null,null,null,"Page 20",null,null,null,null,null,null,null,null,null,null,null,null,null,null,null,"Page 20",null,null,null,null,null,null,null,null,null,null,null,null,null,null,null,"Page 20",null,null,null,null,null,null,null,null,null,null,null,null,null,null,null,"Page 20",null,null,null,null,null,null,null,null,null,null,null,null,null,null,null,"Page 20",null,null,null,null,null,null,null,null,null,null,null,null,null,null,null,"Page 20",null,null,null,null,null,null,null,null,null,null,null,null,null,null,null,"Page 20",null,null,null,null,null,null,null,null,null,null,null,null,null,null,null,"Page 20",null,null,null,null,null,null,null,null,null,null,null,null,null,null,null,"Page 20",null,null,null,null,null,null,null,null,null,null,null,null,null,null,null,"Page 20",null,null,null,null,null,null,null,null,null,null,null,null,null,null,null,"Page 20",null,null,null,null,null,null,null,null,null,null,null,null,null,null,null,"Page 20",null,null,null,null,null,null,null,null,null,null,null,null,null,null,null,"Page 20",null,null,null,null,null,null,null,null,null,null,null,null,null,null,null,"Page 20",null,null,null,null,null,null,null,null,null,null,null,null,null,null,null,"Page 20",null,null,null,null,null,null,null,null,null,null,null,null,null,null,null,"Page 20",null,null,null,null,null,null,null,null,null,null,null,null,null,null,null,"Page 20",null,null,null,null,null,null,null,null,null,null,null,null,null,null,null,"Page 20",null,null,null,null,null,null,null,null,null,null,null,null,null,null,null,"Page 20",null,null,null,null,null,null,null,null,null,null,null,null,null,null,null,"Page 20",null,null,null,null,null,null,null,null,null,null,null,null,null,null,null,"Page 20",null,null,null,null,null,null,null,null,null,null,null,null,null,null,null,"Page 20",null,null,null,null,null,null,null,null,null,null,null,null,null,null,null,"Page 20",null,null,null,null,null,null,null,null,null,null,null,null,null,null,null,"Page 20",null,null,null,null,null,null,null,null,null,null,null,null,null,null,null,"Page 20",null,null,null,null,null,null,null,null,null,null,null,null,null,null,null,"Page 20",null,null,null,null,null,null,null,null,null,null,null,null,null,null,null,"Page 20"]
[null,null,null,null,"School Division:",null,{"$f":"$A$17","v":"ALBEMARLE COUNTY PUBLIC SCHOOLS"},null,null,null,null,null,"Division Number:",null,null,{"$f":"$H$17","v":2},null,null,null,null,null,null,null,null,null,null,null,null,null,null,null,null,null,null,null,null,"School Division:",null,{"$f":"$A$17","v":"ALBEMARLE COUNTY PUBLIC SCHOOLS"},null,null,null,null,null,"Division Number:",null,null,{"$f":"$H$17","v":2},null,null,null,null,"School Division:",null,{"$f":"$A$17","v":"ALBEMARLE COUNTY PUBLIC SCHOOLS"},null,null,null,null,null,"Division Number:",null,null,{"$f":"$H$17","v":2},null,null,null,null,"School Division:",null,{"$f":"$A$17","v":"ALBEMARLE COUNTY PUBLIC SCHOOLS"},null,null,null,null,null,"Division Number:",null,null,{"$f":"$H$17","v":2},null,null,null,null,"School Division:",null,{"$f":"$A$17","v":"ALBEMARLE COUNTY PUBLIC SCHOOLS"},null,null,null,null,null,"Division Number:",null,null,{"$f":"$H$17","v":2},null,null,null,null,"School Division:",null,{"$f":"$A$17","v":"ALBEMARLE COUNTY PUBLIC SCHOOLS"},null,null,null,null,null,"Division Number:",null,null,{"$f":"$H$17","v":2},null,null,null,null,"School Division:",null,{"$f":"$A$17","v":"ALBEMARLE COUNTY PUBLIC SCHOOLS"},null,null,null,null,null,"Division Number:",null,null,{"$f":"$H$17","v":2},null,null,null,null,"School Division:",null,{"$f":"$A$17","v":"ALBEMARLE COUNTY PUBLIC SCHOOLS"},null,null,null,null,null,"Division Number:",null,null,{"$f":"$H$17","v":2},null,null,null,null,"School Division:",null,{"$f":"$A$17","v":"ALBEMARLE COUNTY PUBLIC SCHOOLS"},null,null,null,null,null,"Division Number:",null,null,{"$f":"$H$17","v":2},null,null,null,null,"School Division:",null,{"$f":"$A$17","v":"ALBEMARLE COUNTY PUBLIC SCHOOLS"},null,null,null,null,null,"Division Number:",null,null,{"$f":"$H$17","v":2},null,null,null,null,"School Division:",null,{"$f":"$A$17","v":"ALBEMARLE COUNTY PUBLIC SCHOOLS"},null,null,null,null,null,"Division Number:",null,null,{"$f":"$H$17","v":2},null,null,null,null,"School Division:",null,{"$f":"$A$17","v":"ALBEMARLE COUNTY PUBLIC SCHOOLS"},null,null,null,null,null,"Division Number:",null,null,{"$f":"$H$17","v":2},null,null,null,null,"School Division:",null,{"$f":"$A$17","v":"ALBEMARLE COUNTY PUBLIC SCHOOLS"},null,null,null,null,null,"Division Number:",null,null,{"$f":"$H$17","v":2},null,null,null,null,"School Division:",null,{"$f":"$A$17","v":"ALBEMARLE COUNTY PUBLIC SCHOOLS"},null,null,null,null,null,"Division Number:",null,null,{"$f":"$H$17","v":2},null,null,null,null,"School Division:",null,{"$f":"$A$17","v":"ALBEMARLE COUNTY PUBLIC SCHOOLS"},null,null,null,null,null,"Division Number:",null,null,{"$f":"$H$17","v":2},null,null,null,null,"School Division:",null,{"$f":"$A$17","v":"ALBEMARLE COUNTY PUBLIC SCHOOLS"},null,null,null,null,null,"Division Number:",null,null,{"$f":"$H$17","v":2},null,null,null,null,"School Division:",null,{"$f":"$A$17","v":"ALBEMARLE COUNTY PUBLIC SCHOOLS"},null,null,null,null,null,"Division Number:",null,null,{"$f":"$H$17","v":2},null,null,null,null,"School Division:",null,{"$f":"$A$17","v":"ALBEMARLE COUNTY PUBLIC SCHOOLS"},null,null,null,null,null,"Division Number:",null,null,{"$f":"$H$17","v":2},null,null,null,null,"School Division:",null,{"$f":"$A$17","v":"ALBEMARLE COUNTY PUBLIC SCHOOLS"},null,null,null,null,null,"Division Number:",null,null,{"$f":"$H$17","v":2},null,null,null,null,"School Division:",null,{"$f":"$A$17","v":"ALBEMARLE COUNTY PUBLIC SCHOOLS"},null,null,null,null,null,"Division Number:",null,null,{"$f":"$H$17","v":2},null,null,null,null,"School Division:",null,{"$f":"$A$17","v":"ALBEMARLE COUNTY PUBLIC SCHOOLS"},null,null,null,null,null,"Division Number:",null,null,{"$f":"$H$17","v":2},null,null,null,null,"School Division:",null,{"$f":"$A$17","v":"ALBEMARLE COUNTY PUBLIC SCHOOLS"},null,null,null,null,null,"Division Number:",null,null,{"$f":"$H$17","v":2},null,null,null,null,"School Division:",null,{"$f":"$A$17","v":"ALBEMARLE COUNTY PUBLIC SCHOOLS"},null,null,null,null,null,"Division Number:",null,null,{"$f":"$H$17","v":2},null,null,null,null,"School Division:",null,{"$f":"$A$17","v":"ALBEMARLE COUNTY PUBLIC SCHOOLS"},null,null,null,null,null,"Division Number:",null,null,{"$f":"$H$17","v":2},null,null,null,null,"School Division:",null,{"$f":"$A$17","v":"ALBEMARLE COUNTY PUBLIC SCHOOLS"},null,null,null,null,null,"Division Number:",null,null,{"$f":"$H$17","v":2},null,null,null,null,"School Division:",null,{"$f":"$A$17","v":"ALBEMARLE COUNTY PUBLIC SCHOOLS"},null,null,null,null,null,"Division Number:",null,null,{"$f":"$H$17","v":2},null,null,null,null,"School Division:",null,{"$f":"$A$17","v":"ALBEMARLE COUNTY PUBLIC SCHOOLS"},null,null,null,null,null,"Division Number:",null,null,{"$f":"$H$17","v":2},null,null,null,null,"School Division:",null,{"$f":"$A$17","v":"ALBEMARLE COUNTY PUBLIC SCHOOLS"},null,null,null,null,null,"Division Number:",null,null,{"$f":"$H$17","v":2},null,null,null,null,"School Division:",null,{"$f":"$A$17","v":"ALBEMARLE COUNTY PUBLIC SCHOOLS"},null,null,null,null,null,"Division Number:",null,null,{"$f":"$H$17","v":2},null,null,null,null,"School Division:",null,{"$f":"$A$17","v":"ALBEMARLE COUNTY PUBLIC SCHOOLS"},null,null,null,null,null,"Division Number:",null,null,{"$f":"$H$17","v":2},null,null,null,null,"School Division:",null,{"$f":"$A$17","v":"ALBEMARLE COUNTY PUBLIC SCHOOLS"},null,null,null,null,null,"Division Number:",null,null,{"$f":"$H$17","v":2},null,null,null,null,"School Division:",null,{"$f":"$A$17","v":"ALBEMARLE COUNTY PUBLIC SCHOOLS"},null,null,null,null,null,"Division Number:",null,null,{"$f":"$H$17","v":2},null,null,null,null,"School Division:",null,{"$f":"$A$17","v":"ALBEMARLE COUNTY PUBLIC SCHOOLS"},null,null,null,null,null,"Division Number:",null,null,{"$f":"$H$17","v":2},null,null,null,null,"School Division:",null,{"$f":"$A$17","v":"ALBEMARLE COUNTY PUBLIC SCHOOLS"},null,null,null,null,null,"Division Number:",null,null,{"$f":"$H$17","v":2},null,null,null,null,"School Division:",null,{"$f":"$A$17","v":"ALBEMARLE COUNTY PUBLIC SCHOOLS"},null,null,null,null,null,"Division Number:",null,null,{"$f":"$H$17","v":2},null,null,null,null,"School Division:",null,{"$f":"$A$17","v":"ALBEMARLE COUNTY PUBLIC SCHOOLS"},null,null,null,null,null,"Division Number:",null,null,{"$f":"$H$17","v":2},null,null,null,null,"School Division:",null,{"$f":"$A$17","v":"ALBEMARLE COUNTY PUBLIC SCHOOLS"},null,null,null,null,null,"Division Number:",null,null,{"$f":"$H$17","v":2},null,null,null,null,"School Division:",null,{"$f":"$A$17","v":"ALBEMARLE COUNTY PUBLIC SCHOOLS"},null,null,null,null,null,"Division Number:",null,null,{"$f":"$H$17","v":2},null,null,null,null,"School Division:",null,{"$f":"$A$17","v":"ALBEMARLE COUNTY PUBLIC SCHOOLS"},null,null,null,null,null,"Division Number:",null,null,{"$f":"$H$17","v":2},null,null,null,null,"School Division:",null,{"$f":"$A$17","v":"ALBEMARLE COUNTY PUBLIC SCHOOLS"},null,null,null,null,null,"Division Number:",null,null,{"$f":"$H$17","v":2},null,null,null,null,"School Division:",null,{"$f":"$A$17","v":"ALBEMARLE COUNTY PUBLIC SCHOOLS"},null,null,null,null,null,"Division Number:",null,null,{"$f":"$H$17","v":2},null,null,null,null,"School Division:",null,{"$f":"$A$17","v":"ALBEMARLE COUNTY PUBLIC SCHOOLS"},null,null,null,null,null,"Division Number:",null,null,{"$f":"$H$17","v":2},null,null,null,null,"School Division:",null,{"$f":"$A$17","v":"ALBEMARLE COUNTY PUBLIC SCHOOLS"},null,null,null,null,null,"Division Number:",null,null,{"$f":"$H$17","v":2},null,null,null,null,"School Division:",null,{"$f":"$A$17","v":"ALBEMARLE COUNTY PUBLIC SCHOOLS"},null,null,null,null,null,"Division Number:",null,null,{"$f":"$H$17","v":2},null,null,null,null,"School Division:",null,{"$f":"$A$17","v":"ALBEMARLE COUNTY PUBLIC SCHOOLS"},null,null,null,null,null,"Division Number:",null,null,{"$f":"$H$17","v":2},null,null,null,null,"School Division:",null,{"$f":"$A$17","v":"ALBEMARLE COUNTY PUBLIC SCHOOLS"},null,null,null,null,null,"Division Number:",null,null,{"$f":"$H$17","v":2},null,null,null,null,"School Division:",null,{"$f":"$A$17","v":"ALBEMARLE COUNTY PUBLIC SCHOOLS"},null,null,null,null,null,"Division Number:",null,null,{"$f":"$H$17","v":2},null,null,null,null,"School Division:",null,{"$f":"$A$17","v":"ALBEMARLE COUNTY PUBLIC SCHOOLS"},null,null,null,null,null,"Division Number:",null,null,{"$f":"$H$17","v":2},null,null,null,null,"School Division:",null,{"$f":"$A$17","v":"ALBEMARLE COUNTY PUBLIC SCHOOLS"},null,null,null,null,null,"Division Number:",null,null,{"$f":"$H$17","v":2},null,null,null,null,"School Division:",null,{"$f":"$A$17","v":"ALBEMARLE COUNTY PUBLIC SCHOOLS"},null,null,null,null,null,"Division Number:",null,null,{"$f":"$H$17","v":2},null,null,null,null,"School Division:",null,{"$f":"$A$17","v":"ALBEMARLE COUNTY PUBLIC SCHOOLS"},null,null,null,null,null,"Division Number:",null,null,{"$f":"$H$17","v":2},null,null,null,null,"School Division:",null,{"$f":"$A$17","v":"ALBEMARLE COUNTY PUBLIC SCHOOLS"},null,null,null,null,null,"Division Number:",null,null,{"$f":"$H$17","v":2},null,null,null,null,"School Division:",null,{"$f":"$A$17","v":"ALBEMARLE COUNTY PUBLIC SCHOOLS"},null,null,null,null,null,"Division Number:",null,null,{"$f":"$H$17","v":2},null,null,null,null,"School Division:",null,{"$f":"$A$17","v":"ALBEMARLE COUNTY PUBLIC SCHOOLS"},null,null,null,null,null,"Division Number:",null,null,{"$f":"$H$17","v":2},null,null,null,null,"School Division:",null,{"$f":"$A$17","v":"ALBEMARLE COUNTY PUBLIC SCHOOLS"},null,null,null,null,null,"Division Number:",null,null,{"$f":"$H$17","v":2},null,null,null,null,"School Division:",null,{"$f":"$A$17","v":"ALBEMARLE COUNTY PUBLIC SCHOOLS"},null,null,null,null,null,"Division Number:",null,null,{"$f":"$H$17","v":2},null,null,null,null,"School Division:",null,{"$f":"$A$17","v":"ALBEMARLE COUNTY PUBLIC SCHOOLS"},null,null,null,null,null,"Division Number:",null,null,{"$f":"$H$17","v":2},null,null,null,null,"School Division:",null,{"$f":"$A$17","v":"ALBEMARLE COUNTY PUBLIC SCHOOLS"},null,null,null,null,null,"Division Number:",null,null,{"$f":"$H$17","v":2},null,null,null,null,"School Division:",null,{"$f":"$A$17","v":"ALBEMARLE COUNTY PUBLIC SCHOOLS"},null,null,null,null,null,"Division Number:",null,null,{"$f":"$H$17","v":2},null,null,null,null,"School Division:",null,{"$f":"$A$17","v":"ALBEMARLE COUNTY PUBLIC SCHOOLS"},null,null,null,null,null,"Division Number:",null,null,{"$f":"$H$17","v":2},null,null,null,null,"School Division:",null,{"$f":"$A$17","v":"ALBEMARLE COUNTY PUBLIC SCHOOLS"},null,null,null,null,null,"Division Number:",null,null,{"$f":"$H$17","v":2},null,null,null,null,"School Division:",null,{"$f":"$A$17","v":"ALBEMARLE COUNTY PUBLIC SCHOOLS"},null,null,null,null,null,"Division Number:",null,null,{"$f":"$H$17","v":2},null,null,null,null,"School Division:",null,{"$f":"$A$17","v":"ALBEMARLE COUNTY PUBLIC SCHOOLS"},null,null,null,null,null,"Division Number:",null,null,{"$f":"$H$17","v":2},null,null,null,null,"School Division:",null,{"$f":"$A$17","v":"ALBEMARLE COUNTY PUBLIC SCHOOLS"},null,null,null,null,null,"Division Number:",null,null,{"$f":"$H$17","v":2},null,null,null,null,"School Division:",null,{"$f":"$A$17","v":"ALBEMARLE COUNTY PUBLIC SCHOOLS"},null,null,null,null,null,"Division Number:",null,null,{"$f":"$H$17","v":2},null,null,null,null,"School Division:",null,{"$f":"$A$17","v":"ALBEMARLE COUNTY PUBLIC SCHOOLS"},null,null,null,null,null,"Division Number:",null,null,{"$f":"$H$17","v":2},null,null,null,null,"School Division:",null,{"$f":"$A$17","v":"ALBEMARLE COUNTY PUBLIC SCHOOLS"},null,null,null,null,null,"Division Number:",null,null,{"$f":"$H$17","v":2},null,null,null,null,"School Division:",null,{"$f":"$A$17","v":"ALBEMARLE COUNTY PUBLIC SCHOOLS"},null,null,null,null,null,"Division Number:",null,null,{"$f":"$H$17","v":2},null,null,null,null,"School Division:",null,{"$f":"$A$17","v":"ALBEMARLE COUNTY PUBLIC SCHOOLS"},null,null,null,null,null,"Division Number:",null,null,{"$f":"$H$17","v":2},null,null,null,null,"School Division:",null,{"$f":"$A$17","v":"ALBEMARLE COUNTY PUBLIC SCHOOLS"},null,null,null,null,null,"Division Number:",null,null,{"$f":"$H$17","v":2},null,null,null,null,"School Division:",null,{"$f":"$A$17","v":"ALBEMARLE COUNTY PUBLIC SCHOOLS"},null,null,null,null,null,"Division Number:",null,null,{"$f":"$H$17","v":2},null,null,null,null,"School Division:",null,{"$f":"$A$17","v":"ALBEMARLE COUNTY PUBLIC SCHOOLS"},null,null,null,null,null,"Division Number:",null,null,{"$f":"$H$17","v":2},null,null,null,null,"School Division:",null,{"$f":"$A$17","v":"ALBEMARLE COUNTY PUBLIC SCHOOLS"},null,null,null,null,null,"Division Number:",null,null,{"$f":"$H$17","v":2},null,null,null,null,"School Division:",null,{"$f":"$A$17","v":"ALBEMARLE COUNTY PUBLIC SCHOOLS"},null,null,null,null,null,"Division Number:",null,null,{"$f":"$H$17","v":2},null,null,null,null,"School Division:",null,{"$f":"$A$17","v":"ALBEMARLE COUNTY PUBLIC SCHOOLS"},null,null,null,null,null,"Division Number:",null,null,{"$f":"$H$17","v":2},null,null,null,null,"School Division:",null,{"$f":"$A$17","v":"ALBEMARLE COUNTY PUBLIC SCHOOLS"},null,null,null,null,null,"Division Number:",null,null,{"$f":"$H$17","v":2},null,null,null,null,"School Division:",null,{"$f":"$A$17","v":"ALBEMARLE COUNTY PUBLIC SCHOOLS"},null,null,null,null,null,"Division Number:",null,null,{"$f":"$H$17","v":2},null,null,null,null,"School Division:",null,{"$f":"$A$17","v":"ALBEMARLE COUNTY PUBLIC SCHOOLS"},null,null,null,null,null,"Division Number:",null,null,{"$f":"$H$17","v":2},null,null,null,null,"School Division:",null,{"$f":"$A$17","v":"ALBEMARLE COUNTY PUBLIC SCHOOLS"},null,null,null,null,null,"Division Number:",null,null,{"$f":"$H$17","v":2},null,null,null,null,"School Division:",null,{"$f":"$A$17","v":"ALBEMARLE COUNTY PUBLIC SCHOOLS"},null,null,null,null,null,"Division Number:",null,null,{"$f":"$H$17","v":2},null,null,null,null,"School Division:",null,{"$f":"$A$17","v":"ALBEMARLE COUNTY PUBLIC SCHOOLS"},null,null,null,null,null,"Division Number:",null,null,{"$f":"$H$17","v":2},null,null,null,null,"School Division:",null,{"$f":"$A$17","v":"ALBEMARLE COUNTY PUBLIC SCHOOLS"},null,null,null,null,null,"Division Number:",null,null,{"$f":"$H$17","v":2},null,null,null,null,"School Division:",null,{"$f":"$A$17","v":"ALBEMARLE COUNTY PUBLIC SCHOOLS"},null,null,null,null,null,"Division Number:",null,null,{"$f":"$H$17","v":2},null,null,null,null,"School Division:",null,{"$f":"$A$17","v":"ALBEMARLE COUNTY PUBLIC SCHOOLS"},null,null,null,null,null,"Division Number:",null,null,{"$f":"$H$17","v":2},null,null,null,null,"School Division:",null,{"$f":"$A$17","v":"ALBEMARLE COUNTY PUBLIC SCHOOLS"},null,null,null,null,null,"Division Number:",null,null,{"$f":"$H$17","v":2},null,null,null,null,"School Division:",null,{"$f":"$A$17","v":"ALBEMARLE COUNTY PUBLIC SCHOOLS"},null,null,null,null,null,"Division Number:",null,null,{"$f":"$H$17","v":2},null,null,null,null,"School Division:",null,{"$f":"$A$17","v":"ALBEMARLE COUNTY PUBLIC SCHOOLS"},null,null,null,null,null,"Division Number:",null,null,{"$f":"$H$17","v":2},null,null,null,null,"School Division:",null,{"$f":"$A$17","v":"ALBEMARLE COUNTY PUBLIC SCHOOLS"},null,null,null,null,null,"Division Number:",null,null,{"$f":"$H$17","v":2},null,null,null,null,"School Division:",null,{"$f":"$A$17","v":"ALBEMARLE COUNTY PUBLIC SCHOOLS"},null,null,null,null,null,"Division Number:",null,null,{"$f":"$H$17","v":2},null,null,null,null,"School Division:",null,{"$f":"$A$17","v":"ALBEMARLE COUNTY PUBLIC SCHOOLS"},null,null,null,null,null,"Division Number:",null,null,{"$f":"$H$17","v":2},null,null,null,null,"School Division:",null,{"$f":"$A$17","v":"ALBEMARLE COUNTY PUBLIC SCHOOLS"},null,null,null,null,null,"Division Number:",null,null,{"$f":"$H$17","v":2},null,null,null,null,"School Division:",null,{"$f":"$A$17","v":"ALBEMARLE COUNTY PUBLIC SCHOOLS"},null,null,null,null,null,"Division Number:",null,null,{"$f":"$H$17","v":2},null,null,null,null,"School Division:",null,{"$f":"$A$17","v":"ALBEMARLE COUNTY PUBLIC SCHOOLS"},null,null,null,null,null,"Division Number:",null,null,{"$f":"$H$17","v":2},null,null,null,null,"School Division:",null,{"$f":"$A$17","v":"ALBEMARLE COUNTY PUBLIC SCHOOLS"},null,null,null,null,null,"Division Number:",null,null,{"$f":"$H$17","v":2},null,null,null,null,"School Division:",null,{"$f":"$A$17","v":"ALBEMARLE COUNTY PUBLIC SCHOOLS"},null,null,null,null,null,"Division Number:",null,null,{"$f":"$H$17","v":2},null,null,null,null,"School Division:",null,{"$f":"$A$17","v":"ALBEMARLE COUNTY PUBLIC SCHOOLS"},null,null,null,null,null,"Division Number:",null,null,{"$f":"$H$17","v":2},null,null,null,null,"School Division:",null,{"$f":"$A$17","v":"ALBEMARLE COUNTY PUBLIC SCHOOLS"},null,null,null,null,null,"Division Number:",null,null,{"$f":"$H$17","v":2},null,null,null,null,"School Division:",null,{"$f":"$A$17","v":"ALBEMARLE COUNTY PUBLIC SCHOOLS"},null,null,null,null,null,"Division Number:",null,null,{"$f":"$H$17","v":2},null,null,null,null,"School Division:",null,{"$f":"$A$17","v":"ALBEMARLE COUNTY PUBLIC SCHOOLS"},null,null,null,null,null,"Division Number:",null,null,{"$f":"$H$17","v":2},null,null,null,null,"School Division:",null,{"$f":"$A$17","v":"ALBEMARLE COUNTY PUBLIC SCHOOLS"},null,null,null,null,null,"Division Number:",null,null,{"$f":"$H$17","v":2},null,null,null,null,"School Division:",null,{"$f":"$A$17","v":"ALBEMARLE COUNTY PUBLIC SCHOOLS"},null,null,null,null,null,"Division Number:",null,null,{"$f":"$H$17","v":2},null,null,null,null,"School Division:",null,{"$f":"$A$17","v":"ALBEMARLE COUNTY PUBLIC SCHOOLS"},null,null,null,null,null,"Division Number:",null,null,{"$f":"$H$17","v":2},null,null,null,null,"School Division:",null,{"$f":"$A$17","v":"ALBEMARLE COUNTY PUBLIC SCHOOLS"},null,null,null,null,null,"Division Number:",null,null,{"$f":"$H$17","v":2},null,null,null,null,"School Division:",null,{"$f":"$A$17","v":"ALBEMARLE COUNTY PUBLIC SCHOOLS"},null,null,null,null,null,"Division Number:",null,null,{"$f":"$H$17","v":2},null,null,null,null,"School Division:",null,{"$f":"$A$17","v":"ALBEMARLE COUNTY PUBLIC SCHOOLS"},null,null,null,null,null,"Division Number:",null,null,{"$f":"$H$17","v":2},null,null,null,null,"School Division:",null,{"$f":"$A$17","v":"ALBEMARLE COUNTY PUBLIC SCHOOLS"},null,null,null,null,null,"Division Number:",null,null,{"$f":"$H$17","v":2},null,null,null,null,"School Division:",null,{"$f":"$A$17","v":"ALBEMARLE COUNTY PUBLIC SCHOOLS"},null,null,null,null,null,"Division Number:",null,null,{"$f":"$H$17","v":2},null,null,null,null,"School Division:",null,{"$f":"$A$17","v":"ALBEMARLE COUNTY PUBLIC SCHOOLS"},null,null,null,null,null,"Division Number:",null,null,{"$f":"$H$17","v":2},null,null,null,null,"School Division:",null,{"$f":"$A$17","v":"ALBEMARLE COUNTY PUBLIC SCHOOLS"},null,null,null,null,null,"Division Number:",null,null,{"$f":"$H$17","v":2},null,null,null,null,"School Division:",null,{"$f":"$A$17","v":"ALBEMARLE COUNTY PUBLIC SCHOOLS"},null,null,null,null,null,"Division Number:",null,null,{"$f":"$H$17","v":2},null,null,null,null,"School Division:",null,{"$f":"$A$17","v":"ALBEMARLE COUNTY PUBLIC SCHOOLS"},null,null,null,null,null,"Division Number:",null,null,{"$f":"$H$17","v":2},null,null,null,null,"School Division:",null,{"$f":"$A$17","v":"ALBEMARLE COUNTY PUBLIC SCHOOLS"},null,null,null,null,null,"Division Number:",null,null,{"$f":"$H$17","v":2},null,null,null,null,"School Division:",null,{"$f":"$A$17","v":"ALBEMARLE COUNTY PUBLIC SCHOOLS"},null,null,null,null,null,"Division Number:",null,null,{"$f":"$H$17","v":2},null,null,null,null,"School Division:",null,{"$f":"$A$17","v":"ALBEMARLE COUNTY PUBLIC SCHOOLS"},null,null,null,null,null,"Division Number:",null,null,{"$f":"$H$17","v":2},null,null,null,null,"School Division:",null,{"$f":"$A$17","v":"ALBEMARLE COUNTY PUBLIC SCHOOLS"},null,null,null,null,null,"Division Number:",null,null,{"$f":"$H$17","v":2},null,null,null,null,"School Division:",null,{"$f":"$A$17","v":"ALBEMARLE COUNTY PUBLIC SCHOOLS"},null,null,null,null,null,"Division Number:",null,null,{"$f":"$H$17","v":2},null,null,null,null,"School Division:",null,{"$f":"$A$17","v":"ALBEMARLE COUNTY PUBLIC SCHOOLS"},null,null,null,null,null,"Division Number:",null,null,{"$f":"$H$17","v":2},null,null,null,null,"School Division:",null,{"$f":"$A$17","v":"ALBEMARLE COUNTY PUBLIC SCHOOLS"},null,null,null,null,null,"Division Number:",null,null,{"$f":"$H$17","v":2},null,null,null,null,"School Division:",null,{"$f":"$A$17","v":"ALBEMARLE COUNTY PUBLIC SCHOOLS"},null,null,null,null,null,"Division Number:",null,null,{"$f":"$H$17","v":2},null,null,null,null,"School Division:",null,{"$f":"$A$17","v":"ALBEMARLE COUNTY PUBLIC SCHOOLS"},null,null,null,null,null,"Division Number:",null,null,{"$f":"$H$17","v":2},null,null,null,null,"School Division:",null,{"$f":"$A$17","v":"ALBEMARLE COUNTY PUBLIC SCHOOLS"},null,null,null,null,null,"Division Number:",null,null,{"$f":"$H$17","v":2},null,null,null,null,"School Division:",null,{"$f":"$A$17","v":"ALBEMARLE COUNTY PUBLIC SCHOOLS"},null,null,null,null,null,"Division Number:",null,null,{"$f":"$H$17","v":2},null,null,null,null,"School Division:",null,{"$f":"$A$17","v":"ALBEMARLE COUNTY PUBLIC SCHOOLS"},null,null,null,null,null,"Division Number:",null,null,{"$f":"$H$17","v":2},null,null,null,null,"School Division:",null,{"$f":"$A$17","v":"ALBEMARLE COUNTY PUBLIC SCHOOLS"},null,null,null,null,null,"Division Number:",null,null,{"$f":"$H$17","v":2},null,null,null,null,"School Division:",null,{"$f":"$A$17","v":"ALBEMARLE COUNTY PUBLIC SCHOOLS"},null,null,null,null,null,"Division Number:",null,null,{"$f":"$H$17","v":2},null,null,null,null,"School Division:",null,{"$f":"$A$17","v":"ALBEMARLE COUNTY PUBLIC SCHOOLS"},null,null,null,null,null,"Division Number:",null,null,{"$f":"$H$17","v":2},null,null,null,null,"School Division:",null,{"$f":"$A$17","v":"ALBEMARLE COUNTY PUBLIC SCHOOLS"},null,null,null,null,null,"Division Number:",null,null,{"$f":"$H$17","v":2},null,null,null,null,"School Division:",null,{"$f":"$A$17","v":"ALBEMARLE COUNTY PUBLIC SCHOOLS"},null,null,null,null,null,"Division Number:",null,null,{"$f":"$H$17","v":2},null,null,null,null,"School Division:",null,{"$f":"$A$17","v":"ALBEMARLE COUNTY PUBLIC SCHOOLS"},null,null,null,null,null,"Division Number:",null,null,{"$f":"$H$17","v":2},null,null,null,null,"School Division:",null,{"$f":"$A$17","v":"ALBEMARLE COUNTY PUBLIC SCHOOLS"},null,null,null,null,null,"Division Number:",null,null,{"$f":"$H$17","v":2},null,null,null,null,"School Division:",null,{"$f":"$A$17","v":"ALBEMARLE COUNTY PUBLIC SCHOOLS"},null,null,null,null,null,"Division Number:",null,null,{"$f":"$H$17","v":2},null,null,null,null,"School Division:",null,{"$f":"$A$17","v":"ALBEMARLE COUNTY PUBLIC SCHOOLS"},null,null,null,null,null,"Division Number:",null,null,{"$f":"$H$17","v":2},null,null,null,null,"School Division:",null,{"$f":"$A$17","v":"ALBEMARLE COUNTY PUBLIC SCHOOLS"},null,null,null,null,null,"Division Number:",null,null,{"$f":"$H$17","v":2},null,null,null,null,"School Division:",null,{"$f":"$A$17","v":"ALBEMARLE COUNTY PUBLIC SCHOOLS"},null,null,null,null,null,"Division Number:",null,null,{"$f":"$H$17","v":2},null,null,null,null,"School Division:",null,{"$f":"$A$17","v":"ALBEMARLE COUNTY PUBLIC SCHOOLS"},null,null,null,null,null,"Division Number:",null,null,{"$f":"$H$17","v":2},null,null,null,null,"School Division:",null,{"$f":"$A$17","v":"ALBEMARLE COUNTY PUBLIC SCHOOLS"},null,null,null,null,null,"Division Number:",null,null,{"$f":"$H$17","v":2},null,null,null,null,"School Division:",null,{"$f":"$A$17","v":"ALBEMARLE COUNTY PUBLIC SCHOOLS"},null,null,null,null,null,"Division Number:",null,null,{"$f":"$H$17","v":2},null,null,null,null,"School Division:",null,{"$f":"$A$17","v":"ALBEMARLE COUNTY PUBLIC SCHOOLS"},null,null,null,null,null,"Division Number:",null,null,{"$f":"$H$17","v":2},null,null,null,null,"School Division:",null,{"$f":"$A$17","v":"ALBEMARLE COUNTY PUBLIC SCHOOLS"},null,null,null,null,null,"Division Number:",null,null,{"$f":"$H$17","v":2},null,null,null,null,"School Division:",null,{"$f":"$A$17","v":"ALBEMARLE COUNTY PUBLIC SCHOOLS"},null,null,null,null,null,"Division Number:",null,null,{"$f":"$H$17","v":2},null,null,null,null,"School Division:",null,{"$f":"$A$17","v":"ALBEMARLE COUNTY PUBLIC SCHOOLS"},null,null,null,null,null,"Division Number:",null,null,{"$f":"$H$17","v":2},null,null,null,null,"School Division:",null,{"$f":"$A$17","v":"ALBEMARLE COUNTY PUBLIC SCHOOLS"},null,null,null,null,null,"Division Number:",null,null,{"$f":"$H$17","v":2},null,null,null,null,"School Division:",null,{"$f":"$A$17","v":"ALBEMARLE COUNTY PUBLIC SCHOOLS"},null,null,null,null,null,"Division Number:",null,null,{"$f":"$H$17","v":2},null,null,null,null,"School Division:",null,{"$f":"$A$17","v":"ALBEMARLE COUNTY PUBLIC SCHOOLS"},null,null,null,null,null,"Division Number:",null,null,{"$f":"$H$17","v":2},null,null,null,null,"School Division:",null,{"$f":"$A$17","v":"ALBEMARLE COUNTY PUBLIC SCHOOLS"},null,null,null,null,null,"Division Number:",null,null,{"$f":"$H$17","v":2},null,null,null,null,"School Division:",null,{"$f":"$A$17","v":"ALBEMARLE COUNTY PUBLIC SCHOOLS"},null,null,null,null,null,"Division Number:",null,null,{"$f":"$H$17","v":2},null,null,null,null,"School Division:",null,{"$f":"$A$17","v":"ALBEMARLE COUNTY PUBLIC SCHOOLS"},null,null,null,null,null,"Division Number:",null,null,{"$f":"$H$17","v":2},null,null,null,null,"School Division:",null,{"$f":"$A$17","v":"ALBEMARLE COUNTY PUBLIC SCHOOLS"},null,null,null,null,null,"Division Number:",null,null,{"$f":"$H$17","v":2},null,null,null,null,"School Division:",null,{"$f":"$A$17","v":"ALBEMARLE COUNTY PUBLIC SCHOOLS"},null,null,null,null,null,"Division Number:",null,null,{"$f":"$H$17","v":2},null,null,null,null,"School Division:",null,{"$f":"$A$17","v":"ALBEMARLE COUNTY PUBLIC SCHOOLS"},null,null,null,null,null,"Division Number:",null,null,{"$f":"$H$17","v":2},null,null,null,null,"School Division:",null,{"$f":"$A$17","v":"ALBEMARLE COUNTY PUBLIC SCHOOLS"},null,null,null,null,null,"Division Number:",null,null,{"$f":"$H$17","v":2},null,null,null,null,"School Division:",null,{"$f":"$A$17","v":"ALBEMARLE COUNTY PUBLIC SCHOOLS"},null,null,null,null,null,"Division Number:",null,null,{"$f":"$H$17","v":2},null,null,null,null,"School Division:",null,{"$f":"$A$17","v":"ALBEMARLE COUNTY PUBLIC SCHOOLS"},null,null,null,null,null,"Division Number:",null,null,{"$f":"$H$17","v":2},null,null,null,null,"School Division:",null,{"$f":"$A$17","v":"ALBEMARLE COUNTY PUBLIC SCHOOLS"},null,null,null,null,null,"Division Number:",null,null,{"$f":"$H$17","v":2},null,null,null,null,"School Division:",null,{"$f":"$A$17","v":"ALBEMARLE COUNTY PUBLIC SCHOOLS"},null,null,null,null,null,"Division Number:",null,null,{"$f":"$H$17","v":2},null,null,null,null,"School Division:",null,{"$f":"$A$17","v":"ALBEMARLE COUNTY PUBLIC SCHOOLS"},null,null,null,null,null,"Division Number:",null,null,{"$f":"$H$17","v":2},null,null,null,null,"School Division:",null,{"$f":"$A$17","v":"ALBEMARLE COUNTY PUBLIC SCHOOLS"},null,null,null,null,null,"Division Number:",null,null,{"$f":"$H$17","v":2},null,null,null,null,"School Division:",null,{"$f":"$A$17","v":"ALBEMARLE COUNTY PUBLIC SCHOOLS"},null,null,null,null,null,"Division Number:",null,null,{"$f":"$H$17","v":2},null,null,null,null,"School Division:",null,{"$f":"$A$17","v":"ALBEMARLE COUNTY PUBLIC SCHOOLS"},null,null,null,null,null,"Division Number:",null,null,{"$f":"$H$17","v":2},null,null,null,null,"School Division:",null,{"$f":"$A$17","v":"ALBEMARLE COUNTY PUBLIC SCHOOLS"},null,null,null,null,null,"Division Number:",null,null,{"$f":"$H$17","v":2},null,null,null,null,"School Division:",null,{"$f":"$A$17","v":"ALBEMARLE COUNTY PUBLIC SCHOOLS"},null,null,null,null,null,"Division Number:",null,null,{"$f":"$H$17","v":2},null,null,null,null,"School Division:",null,{"$f":"$A$17","v":"ALBEMARLE COUNTY PUBLIC SCHOOLS"},null,null,null,null,null,"Division Number:",null,null,{"$f":"$H$17","v":2},null,null,null,null,"School Division:",null,{"$f":"$A$17","v":"ALBEMARLE COUNTY PUBLIC SCHOOLS"},null,null,null,null,null,"Division Number:",null,null,{"$f":"$H$17","v":2},null,null,null,null,"School Division:",null,{"$f":"$A$17","v":"ALBEMARLE COUNTY PUBLIC SCHOOLS"},null,null,null,null,null,"Division Number:",null,null,{"$f":"$H$17","v":2},null,null,null,null,"School Division:",null,{"$f":"$A$17","v":"ALBEMARLE COUNTY PUBLIC SCHOOLS"},null,null,null,null,null,"Division Number:",null,null,{"$f":"$H$17","v":2},null,null,null,null,"School Division:",null,{"$f":"$A$17","v":"ALBEMARLE COUNTY PUBLIC SCHOOLS"},null,null,null,null,null,"Division Number:",null,null,{"$f":"$H$17","v":2},null,null,null,null,"School Division:",null,{"$f":"$A$17","v":"ALBEMARLE COUNTY PUBLIC SCHOOLS"},null,null,null,null,null,"Division Number:",null,null,{"$f":"$H$17","v":2},null,null,null,null,"School Division:",null,{"$f":"$A$17","v":"ALBEMARLE COUNTY PUBLIC SCHOOLS"},null,null,null,null,null,"Division Number:",null,null,{"$f":"$H$17","v":2},null,null,null,null,"School Division:",null,{"$f":"$A$17","v":"ALBEMARLE COUNTY PUBLIC SCHOOLS"},null,null,null,null,null,"Division Number:",null,null,{"$f":"$H$17","v":2},null,null,null,null,"School Division:",null,{"$f":"$A$17","v":"ALBEMARLE COUNTY PUBLIC SCHOOLS"},null,null,null,null,null,"Division Number:",null,null,{"$f":"$H$17","v":2},null,null,null,null,"School Division:",null,{"$f":"$A$17","v":"ALBEMARLE COUNTY PUBLIC SCHOOLS"},null,null,null,null,null,"Division Number:",null,null,{"$f":"$H$17","v":2},null,null,null,null,"School Division:",null,{"$f":"$A$17","v":"ALBEMARLE COUNTY PUBLIC SCHOOLS"},null,null,null,null,null,"Division Number:",null,null,{"$f":"$H$17","v":2},null,null,null,null,"School Division:",null,{"$f":"$A$17","v":"ALBEMARLE COUNTY PUBLIC SCHOOLS"},null,null,null,null,null,"Division Number:",null,null,{"$f":"$H$17","v":2},null,null,null,null,"School Division:",null,{"$f":"$A$17","v":"ALBEMARLE COUNTY PUBLIC SCHOOLS"},null,null,null,null,null,"Division Number:",null,null,{"$f":"$H$17","v":2},null,null,null,null,"School Division:",null,{"$f":"$A$17","v":"ALBEMARLE COUNTY PUBLIC SCHOOLS"},null,null,null,null,null,"Division Number:",null,null,{"$f":"$H$17","v":2},null,null,null,null,"School Division:",null,{"$f":"$A$17","v":"ALBEMARLE COUNTY PUBLIC SCHOOLS"},null,null,null,null,null,"Division Number:",null,null,{"$f":"$H$17","v":2},null,null,null,null,"School Division:",null,{"$f":"$A$17","v":"ALBEMARLE COUNTY PUBLIC SCHOOLS"},null,null,null,null,null,"Division Number:",null,null,{"$f":"$H$17","v":2},null,null,null,null,"School Division:",null,{"$f":"$A$17","v":"ALBEMARLE COUNTY PUBLIC SCHOOLS"},null,null,null,null,null,"Division Number:",null,null,{"$f":"$H$17","v":2},null,null,null,null,"School Division:",null,{"$f":"$A$17","v":"ALBEMARLE COUNTY PUBLIC SCHOOLS"},null,null,null,null,null,"Division Number:",null,null,{"$f":"$H$17","v":2},null,null,null,null,"School Division:",null,{"$f":"$A$17","v":"ALBEMARLE COUNTY PUBLIC SCHOOLS"},null,null,null,null,null,"Division Number:",null,null,{"$f":"$H$17","v":2},null,null,null,null,"School Division:",null,{"$f":"$A$17","v":"ALBEMARLE COUNTY PUBLIC SCHOOLS"},null,null,null,null,null,"Division Number:",null,null,{"$f":"$H$17","v":2},null,null,null,null,"School Division:",null,{"$f":"$A$17","v":"ALBEMARLE COUNTY PUBLIC SCHOOLS"},null,null,null,null,null,"Division Number:",null,null,{"$f":"$H$17","v":2},null,null,null,null,"School Division:",null,{"$f":"$A$17","v":"ALBEMARLE COUNTY PUBLIC SCHOOLS"},null,null,null,null,null,"Division Number:",null,null,{"$f":"$H$17","v":2},null,null,null,null,"School Division:",null,{"$f":"$A$17","v":"ALBEMARLE COUNTY PUBLIC SCHOOLS"},null,null,null,null,null,"Division Number:",null,null,{"$f":"$H$17","v":2},null,null,null,null,"School Division:",null,{"$f":"$A$17","v":"ALBEMARLE COUNTY PUBLIC SCHOOLS"},null,null,null,null,null,"Division Number:",null,null,{"$f":"$H$17","v":2},null,null,null,null,"School Division:",null,{"$f":"$A$17","v":"ALBEMARLE COUNTY PUBLIC SCHOOLS"},null,null,null,null,null,"Division Number:",null,null,{"$f":"$H$17","v":2},null,null,null,null,"School Division:",null,{"$f":"$A$17","v":"ALBEMARLE COUNTY PUBLIC SCHOOLS"},null,null,null,null,null,"Division Number:",null,null,{"$f":"$H$17","v":2},null,null,null,null,"School Division:",null,{"$f":"$A$17","v":"ALBEMARLE COUNTY PUBLIC SCHOOLS"},null,null,null,null,null,"Division Number:",null,null,{"$f":"$H$17","v":2},null,null,null,null,"School Division:",null,{"$f":"$A$17","v":"ALBEMARLE COUNTY PUBLIC SCHOOLS"},null,null,null,null,null,"Division Number:",null,null,{"$f":"$H$17","v":2},null,null,null,null,"School Division:",null,{"$f":"$A$17","v":"ALBEMARLE COUNTY PUBLIC SCHOOLS"},null,null,null,null,null,"Division Number:",null,null,{"$f":"$H$17","v":2},null,null,null,null,"School Division:",null,{"$f":"$A$17","v":"ALBEMARLE COUNTY PUBLIC SCHOOLS"},null,null,null,null,null,"Division Number:",null,null,{"$f":"$H$17","v":2},null,null,null,null,"School Division:",null,{"$f":"$A$17","v":"ALBEMARLE COUNTY PUBLIC SCHOOLS"},null,null,null,null,null,"Division Number:",null,null,{"$f":"$H$17","v":2},null,null,null,null,"School Division:",null,{"$f":"$A$17","v":"ALBEMARLE COUNTY PUBLIC SCHOOLS"},null,null,null,null,null,"Division Number:",null,null,{"$f":"$H$17","v":2},null,null,null,null,"School Division:",null,{"$f":"$A$17","v":"ALBEMARLE COUNTY PUBLIC SCHOOLS"},null,null,null,null,null,"Division Number:",null,null,{"$f":"$H$17","v":2},null,null,null,null,"School Division:",null,{"$f":"$A$17","v":"ALBEMARLE COUNTY PUBLIC SCHOOLS"},null,null,null,null,null,"Division Number:",null,null,{"$f":"$H$17","v":2},null,null,null,null,"School Division:",null,{"$f":"$A$17","v":"ALBEMARLE COUNTY PUBLIC SCHOOLS"},null,null,null,null,null,"Division Number:",null,null,{"$f":"$H$17","v":2},null,null,null,null,"School Division:",null,{"$f":"$A$17","v":"ALBEMARLE COUNTY PUBLIC SCHOOLS"},null,null,null,null,null,"Division Number:",null,null,{"$f":"$H$17","v":2},null,null,null,null,"School Division:",null,{"$f":"$A$17","v":"ALBEMARLE COUNTY PUBLIC SCHOOLS"},null,null,null,null,null,"Division Number:",null,null,{"$f":"$H$17","v":2},null,null,null,null,"School Division:",null,{"$f":"$A$17","v":"ALBEMARLE COUNTY PUBLIC SCHOOLS"},null,null,null,null,null,"Division Number:",null,null,{"$f":"$H$17","v":2},null,null,null,null,"School Division:",null,{"$f":"$A$17","v":"ALBEMARLE COUNTY PUBLIC SCHOOLS"},null,null,null,null,null,"Division Number:",null,null,{"$f":"$H$17","v":2},null,null,null,null,"School Division:",null,{"$f":"$A$17","v":"ALBEMARLE COUNTY PUBLIC SCHOOLS"},null,null,null,null,null,"Division Number:",null,null,{"$f":"$H$17","v":2},null,null,null,null,"School Division:",null,{"$f":"$A$17","v":"ALBEMARLE COUNTY PUBLIC SCHOOLS"},null,null,null,null,null,"Division Number:",null,null,{"$f":"$H$17","v":2},null,null,null,null,"School Division:",null,{"$f":"$A$17","v":"ALBEMARLE COUNTY PUBLIC SCHOOLS"},null,null,null,null,null,"Division Number:",null,null,{"$f":"$H$17","v":2},null,null,null,null,"School Division:",null,{"$f":"$A$17","v":"ALBEMARLE COUNTY PUBLIC SCHOOLS"},null,null,null,null,null,"Division Number:",null,null,{"$f":"$H$17","v":2},null,null,null,null,"School Division:",null,{"$f":"$A$17","v":"ALBEMARLE COUNTY PUBLIC SCHOOLS"},null,null,null,null,null,"Division Number:",null,null,{"$f":"$H$17","v":2},null,null,null,null,"School Division:",null,{"$f":"$A$17","v":"ALBEMARLE COUNTY PUBLIC SCHOOLS"},null,null,null,null,null,"Division Number:",null,null,{"$f":"$H$17","v":2},null,null,null,null,"School Division:",null,{"$f":"$A$17","v":"ALBEMARLE COUNTY PUBLIC SCHOOLS"},null,null,null,null,null,"Division Number:",null,null,{"$f":"$H$17","v":2},null,null,null,null,"School Division:",null,{"$f":"$A$17","v":"ALBEMARLE COUNTY PUBLIC SCHOOLS"},null,null,null,null,null,"Division Number:",null,null,{"$f":"$H$17","v":2},null,null,null,null,"School Division:",null,{"$f":"$A$17","v":"ALBEMARLE COUNTY PUBLIC SCHOOLS"},null,null,null,null,null,"Division Number:",null,null,{"$f":"$H$17","v":2},null,null,null,null,"School Division:",null,{"$f":"$A$17","v":"ALBEMARLE COUNTY PUBLIC SCHOOLS"},null,null,null,null,null,"Division Number:",null,null,{"$f":"$H$17","v":2},null,null,null,null,"School Division:",null,{"$f":"$A$17","v":"ALBEMARLE COUNTY PUBLIC SCHOOLS"},null,null,null,null,null,"Division Number:",null,null,{"$f":"$H$17","v":2},null,null,null,null,"School Division:",null,{"$f":"$A$17","v":"ALBEMARLE COUNTY PUBLIC SCHOOLS"},null,null,null,null,null,"Division Number:",null,null,{"$f":"$H$17","v":2},null,null,null,null,"School Division:",null,{"$f":"$A$17","v":"ALBEMARLE COUNTY PUBLIC SCHOOLS"},null,null,null,null,null,"Division Number:",null,null,{"$f":"$H$17","v":2},null,null,null,null,"School Division:",null,{"$f":"$A$17","v":"ALBEMARLE COUNTY PUBLIC SCHOOLS"},null,null,null,null,null,"Division Number:",null,null,{"$f":"$H$17","v":2},null,null,null,null,"School Division:",null,{"$f":"$A$17","v":"ALBEMARLE COUNTY PUBLIC SCHOOLS"},null,null,null,null,null,"Division Number:",null,null,{"$f":"$H$17","v":2},null,null,null,null,"School Division:",null,{"$f":"$A$17","v":"ALBEMARLE COUNTY PUBLIC SCHOOLS"},null,null,null,null,null,"Division Number:",null,null,{"$f":"$H$17","v":2},null,null,null,null,"School Division:",null,{"$f":"$A$17","v":"ALBEMARLE COUNTY PUBLIC SCHOOLS"},null,null,null,null,null,"Division Number:",null,null,{"$f":"$H$17","v":2},null,null,null,null,"School Division:",null,{"$f":"$A$17","v":"ALBEMARLE COUNTY PUBLIC SCHOOLS"},null,null,null,null,null,"Division Number:",null,null,{"$f":"$H$17","v":2},null,null,null,null,"School Division:",null,{"$f":"$A$17","v":"ALBEMARLE COUNTY PUBLIC SCHOOLS"},null,null,null,null,null,"Division Number:",null,null,{"$f":"$H$17","v":2},null,null,null,null,"School Division:",null,{"$f":"$A$17","v":"ALBEMARLE COUNTY PUBLIC SCHOOLS"},null,null,null,null,null,"Division Number:",null,null,{"$f":"$H$17","v":2},null,null,null,null,"School Division:",null,{"$f":"$A$17","v":"ALBEMARLE COUNTY PUBLIC SCHOOLS"},null,null,null,null,null,"Division Number:",null,null,{"$f":"$H$17","v":2},null,null,null,null,"School Division:",null,{"$f":"$A$17","v":"ALBEMARLE COUNTY PUBLIC SCHOOLS"},null,null,null,null,null,"Division Number:",null,null,{"$f":"$H$17","v":2},null,null,null,null,"School Division:",null,{"$f":"$A$17","v":"ALBEMARLE COUNTY PUBLIC SCHOOLS"},null,null,null,null,null,"Division Number:",null,null,{"$f":"$H$17","v":2},null,null,null,null,"School Division:",null,{"$f":"$A$17","v":"ALBEMARLE COUNTY PUBLIC SCHOOLS"},null,null,null,null,null,"Division Number:",null,null,{"$f":"$H$17","v":2},null,null,null,null,"School Division:",null,{"$f":"$A$17","v":"ALBEMARLE COUNTY PUBLIC SCHOOLS"},null,null,null,null,null,"Division Number:",null,null,{"$f":"$H$17","v":2},null,null,null,null,"School Division:",null,{"$f":"$A$17","v":"ALBEMARLE COUNTY PUBLIC SCHOOLS"},null,null,null,null,null,"Division Number:",null,null,{"$f":"$H$17","v":2},null,null,null,null,"School Division:",null,{"$f":"$A$17","v":"ALBEMARLE COUNTY PUBLIC SCHOOLS"},null,null,null,null,null,"Division Number:",null,null,{"$f":"$H$17","v":2},null,null,null,null,"School Division:",null,{"$f":"$A$17","v":"ALBEMARLE COUNTY PUBLIC SCHOOLS"},null,null,null,null,null,"Division Number:",null,null,{"$f":"$H$17","v":2},null,null,null,null,"School Division:",null,{"$f":"$A$17","v":"ALBEMARLE COUNTY PUBLIC SCHOOLS"},null,null,null,null,null,"Division Number:",null,null,{"$f":"$H$17","v":2},null,null,null,null,"School Division:",null,{"$f":"$A$17","v":"ALBEMARLE COUNTY PUBLIC SCHOOLS"},null,null,null,null,null,"Division Number:",null,null,{"$f":"$H$17","v":2},null,null,null,null,"School Division:",null,{"$f":"$A$17","v":"ALBEMARLE COUNTY PUBLIC SCHOOLS"},null,null,null,null,null,"Division Number:",null,null,{"$f":"$H$17","v":2},null,null,null,null,"School Division:",null,{"$f":"$A$17","v":"ALBEMARLE COUNTY PUBLIC SCHOOLS"},null,null,null,null,null,"Division Number:",null,null,{"$f":"$H$17","v":2},null,null,null,null,"School Division:",null,{"$f":"$A$17","v":"ALBEMARLE COUNTY PUBLIC SCHOOLS"},null,null,null,null,null,"Division Number:",null,null,{"$f":"$H$17","v":2},null,null,null,null,"School Division:",null,{"$f":"$A$17","v":"ALBEMARLE COUNTY PUBLIC SCHOOLS"},null,null,null,null,null,"Division Number:",null,null,{"$f":"$H$17","v":2},null,null,null,null,"School Division:",null,{"$f":"$A$17","v":"ALBEMARLE COUNTY PUBLIC SCHOOLS"},null,null,null,null,null,"Division Number:",null,null,{"$f":"$H$17","v":2},null,null,null,null,"School Division:",null,{"$f":"$A$17","v":"ALBEMARLE COUNTY PUBLIC SCHOOLS"},null,null,null,null,null,"Division Number:",null,null,{"$f":"$H$17","v":2},null,null,null,null,"School Division:",null,{"$f":"$A$17","v":"ALBEMARLE COUNTY PUBLIC SCHOOLS"},null,null,null,null,null,"Division Number:",null,null,{"$f":"$H$17","v":2},null,null,null,null,"School Division:",null,{"$f":"$A$17","v":"ALBEMARLE COUNTY PUBLIC SCHOOLS"},null,null,null,null,null,"Division Number:",null,null,{"$f":"$H$17","v":2},null,null,null,null,"School Division:",null,{"$f":"$A$17","v":"ALBEMARLE COUNTY PUBLIC SCHOOLS"},null,null,null,null,null,"Division Number:",null,null,{"$f":"$H$17","v":2},null,null,null,null,"School Division:",null,{"$f":"$A$17","v":"ALBEMARLE COUNTY PUBLIC SCHOOLS"},null,null,null,null,null,"Division Number:",null,null,{"$f":"$H$17","v":2},null,null,null,null,"School Division:",null,{"$f":"$A$17","v":"ALBEMARLE COUNTY PUBLIC SCHOOLS"},null,null,null,null,null,"Division Number:",null,null,{"$f":"$H$17","v":2},null,null,null,null,"School Division:",null,{"$f":"$A$17","v":"ALBEMARLE COUNTY PUBLIC SCHOOLS"},null,null,null,null,null,"Division Number:",null,null,{"$f":"$H$17","v":2},null,null,null,null,"School Division:",null,{"$f":"$A$17","v":"ALBEMARLE COUNTY PUBLIC SCHOOLS"},null,null,null,null,null,"Division Number:",null,null,{"$f":"$H$17","v":2},null,null,null,null,"School Division:",null,{"$f":"$A$17","v":"ALBEMARLE COUNTY PUBLIC SCHOOLS"},null,null,null,null,null,"Division Number:",null,null,{"$f":"$H$17","v":2},null,null,null,null,"School Division:",null,{"$f":"$A$17","v":"ALBEMARLE COUNTY PUBLIC SCHOOLS"},null,null,null,null,null,"Division Number:",null,null,{"$f":"$H$17","v":2},null,null,null,null,"School Division:",null,{"$f":"$A$17","v":"ALBEMARLE COUNTY PUBLIC SCHOOLS"},null,null,null,null,null,"Division Number:",null,null,{"$f":"$H$17","v":2},null,null,null,null,"School Division:",null,{"$f":"$A$17","v":"ALBEMARLE COUNTY PUBLIC SCHOOLS"},null,null,null,null,null,"Division Number:",null,null,{"$f":"$H$17","v":2},null,null,null,null,"School Division:",null,{"$f":"$A$17","v":"ALBEMARLE COUNTY PUBLIC SCHOOLS"},null,null,null,null,null,"Division Number:",null,null,{"$f":"$H$17","v":2},null,null,null,null,"School Division:",null,{"$f":"$A$17","v":"ALBEMARLE COUNTY PUBLIC SCHOOLS"},null,null,null,null,null,"Division Number:",null,null,{"$f":"$H$17","v":2},null,null,null,null,"School Division:",null,{"$f":"$A$17","v":"ALBEMARLE COUNTY PUBLIC SCHOOLS"},null,null,null,null,null,"Division Number:",null,null,{"$f":"$H$17","v":2},null,null,null,null,"School Division:",null,{"$f":"$A$17","v":"ALBEMARLE COUNTY PUBLIC SCHOOLS"},null,null,null,null,null,"Division Number:",null,null,{"$f":"$H$17","v":2},null,null,null,null,"School Division:",null,{"$f":"$A$17","v":"ALBEMARLE COUNTY PUBLIC SCHOOLS"},null,null,null,null,null,"Division Number:",null,null,{"$f":"$H$17","v":2},null,null,null,null,"School Division:",null,{"$f":"$A$17","v":"ALBEMARLE COUNTY PUBLIC SCHOOLS"},null,null,null,null,null,"Division Number:",null,null,{"$f":"$H$17","v":2},null,null,null,null,"School Division:",null,{"$f":"$A$17","v":"ALBEMARLE COUNTY PUBLIC SCHOOLS"},null,null,null,null,null,"Division Number:",null,null,{"$f":"$H$17","v":2},null,null,null,null,"School Division:",null,{"$f":"$A$17","v":"ALBEMARLE COUNTY PUBLIC SCHOOLS"},null,null,null,null,null,"Division Number:",null,null,{"$f":"$H$17","v":2},null,null,null,null,"School Division:",null,{"$f":"$A$17","v":"ALBEMARLE COUNTY PUBLIC SCHOOLS"},null,null,null,null,null,"Division Number:",null,null,{"$f":"$H$17","v":2},null,null,null,null,"School Division:",null,{"$f":"$A$17","v":"ALBEMARLE COUNTY PUBLIC SCHOOLS"},null,null,null,null,null,"Division Number:",null,null,{"$f":"$H$17","v":2},null,null,null,null,"School Division:",null,{"$f":"$A$17","v":"ALBEMARLE COUNTY PUBLIC SCHOOLS"},null,null,null,null,null,"Division Number:",null,null,{"$f":"$H$17","v":2},null,null,null,null,"School Division:",null,{"$f":"$A$17","v":"ALBEMARLE COUNTY PUBLIC SCHOOLS"},null,null,null,null,null,"Division Number:",null,null,{"$f":"$H$17","v":2},null,null,null,null,"School Division:",null,{"$f":"$A$17","v":"ALBEMARLE COUNTY PUBLIC SCHOOLS"},null,null,null,null,null,"Division Number:",null,null,{"$f":"$H$17","v":2},null,null,null,null,"School Division:",null,{"$f":"$A$17","v":"ALBEMARLE COUNTY PUBLIC SCHOOLS"},null,null,null,null,null,"Division Number:",null,null,{"$f":"$H$17","v":2},null,null,null,null,"School Division:",null,{"$f":"$A$17","v":"ALBEMARLE COUNTY PUBLIC SCHOOLS"},null,null,null,null,null,"Division Number:",null,null,{"$f":"$H$17","v":2},null,null,null,null,"School Division:",null,{"$f":"$A$17","v":"ALBEMARLE COUNTY PUBLIC SCHOOLS"},null,null,null,null,null,"Division Number:",null,null,{"$f":"$H$17","v":2},null,null,null,null,"School Division:",null,{"$f":"$A$17","v":"ALBEMARLE COUNTY PUBLIC SCHOOLS"},null,null,null,null,null,"Division Number:",null,null,{"$f":"$H$17","v":2},null,null,null,null,"School Division:",null,{"$f":"$A$17","v":"ALBEMARLE COUNTY PUBLIC SCHOOLS"},null,null,null,null,null,"Division Number:",null,null,{"$f":"$H$17","v":2},null,null,null,null,"School Division:",null,{"$f":"$A$17","v":"ALBEMARLE COUNTY PUBLIC SCHOOLS"},null,null,null,null,null,"Division Number:",null,null,{"$f":"$H$17","v":2},null,null,null,null,"School Division:",null,{"$f":"$A$17","v":"ALBEMARLE COUNTY PUBLIC SCHOOLS"},null,null,null,null,null,"Division Number:",null,null,{"$f":"$H$17","v":2},null,null,null,null,"School Division:",null,{"$f":"$A$17","v":"ALBEMARLE COUNTY PUBLIC SCHOOLS"},null,null,null,null,null,"Division Number:",null,null,{"$f":"$H$17","v":2},null,null,null,null,"School Division:",null,{"$f":"$A$17","v":"ALBEMARLE COUNTY PUBLIC SCHOOLS"},null,null,null,null,null,"Division Number:",null,null,{"$f":"$H$17","v":2},null,null,null,null,"School Division:",null,{"$f":"$A$17","v":"ALBEMARLE COUNTY PUBLIC SCHOOLS"},null,null,null,null,null,"Division Number:",null,null,{"$f":"$H$17","v":2},null,null,null,null,"School Division:",null,{"$f":"$A$17","v":"ALBEMARLE COUNTY PUBLIC SCHOOLS"},null,null,null,null,null,"Division Number:",null,null,{"$f":"$H$17","v":2},null,null,null,null,"School Division:",null,{"$f":"$A$17","v":"ALBEMARLE COUNTY PUBLIC SCHOOLS"},null,null,null,null,null,"Division Number:",null,null,{"$f":"$H$17","v":2},null,null,null,null,"School Division:",null,{"$f":"$A$17","v":"ALBEMARLE COUNTY PUBLIC SCHOOLS"},null,null,null,null,null,"Division Number:",null,null,{"$f":"$H$17","v":2},null,null,null,null,"School Division:",null,{"$f":"$A$17","v":"ALBEMARLE COUNTY PUBLIC SCHOOLS"},null,null,null,null,null,"Division Number:",null,null,{"$f":"$H$17","v":2},null,null,null,null,"School Division:",null,{"$f":"$A$17","v":"ALBEMARLE COUNTY PUBLIC SCHOOLS"},null,null,null,null,null,"Division Number:",null,null,{"$f":"$H$17","v":2},null,null,null,null,"School Division:",null,{"$f":"$A$17","v":"ALBEMARLE COUNTY PUBLIC SCHOOLS"},null,null,null,null,null,"Division Number:",null,null,{"$f":"$H$17","v":2},null,null,null,null,"School Division:",null,{"$f":"$A$17","v":"ALBEMARLE COUNTY PUBLIC SCHOOLS"},null,null,null,null,null,"Division Number:",null,null,{"$f":"$H$17","v":2},null,null,null,null,"School Division:",null,{"$f":"$A$17","v":"ALBEMARLE COUNTY PUBLIC SCHOOLS"},null,null,null,null,null,"Division Number:",null,null,{"$f":"$H$17","v":2},null,null,null,null,"School Division:",null,{"$f":"$A$17","v":"ALBEMARLE COUNTY PUBLIC SCHOOLS"},null,null,null,null,null,"Division Number:",null,null,{"$f":"$H$17","v":2},null,null,null,null,"School Division:",null,{"$f":"$A$17","v":"ALBEMARLE COUNTY PUBLIC SCHOOLS"},null,null,null,null,null,"Division Number:",null,null,{"$f":"$H$17","v":2},null,null,null,null,"School Division:",null,{"$f":"$A$17","v":"ALBEMARLE COUNTY PUBLIC SCHOOLS"},null,null,null,null,null,"Division Number:",null,null,{"$f":"$H$17","v":2},null,null,null,null,"School Division:",null,{"$f":"$A$17","v":"ALBEMARLE COUNTY PUBLIC SCHOOLS"},null,null,null,null,null,"Division Number:",null,null,{"$f":"$H$17","v":2},null,null,null,null,"School Division:",null,{"$f":"$A$17","v":"ALBEMARLE COUNTY PUBLIC SCHOOLS"},null,null,null,null,null,"Division Number:",null,null,{"$f":"$H$17","v":2},null,null,null,null,"School Division:",null,{"$f":"$A$17","v":"ALBEMARLE COUNTY PUBLIC SCHOOLS"},null,null,null,null,null,"Division Number:",null,null,{"$f":"$H$17","v":2},null,null,null,null,"School Division:",null,{"$f":"$A$17","v":"ALBEMARLE COUNTY PUBLIC SCHOOLS"},null,null,null,null,null,"Division Number:",null,null,{"$f":"$H$17","v":2},null,null,null,null,"School Division:",null,{"$f":"$A$17","v":"ALBEMARLE COUNTY PUBLIC SCHOOLS"},null,null,null,null,null,"Division Number:",null,null,{"$f":"$H$17","v":2},null,null,null,null,"School Division:",null,{"$f":"$A$17","v":"ALBEMARLE COUNTY PUBLIC SCHOOLS"},null,null,null,null,null,"Division Number:",null,null,{"$f":"$H$17","v":2},null,null,null,null,"School Division:",null,{"$f":"$A$17","v":"ALBEMARLE COUNTY PUBLIC SCHOOLS"},null,null,null,null,null,"Division Number:",null,null,{"$f":"$H$17","v":2},null,null,null,null,"School Division:",null,{"$f":"$A$17","v":"ALBEMARLE COUNTY PUBLIC SCHOOLS"},null,null,null,null,null,"Division Number:",null,null,{"$f":"$H$17","v":2},null,null,null,null,"School Division:",null,{"$f":"$A$17","v":"ALBEMARLE COUNTY PUBLIC SCHOOLS"},null,null,null,null,null,"Division Number:",null,null,{"$f":"$H$17","v":2},null,null,null,null,"School Division:",null,{"$f":"$A$17","v":"ALBEMARLE COUNTY PUBLIC SCHOOLS"},null,null,null,null,null,"Division Number:",null,null,{"$f":"$H$17","v":2},null,null,null,null,"School Division:",null,{"$f":"$A$17","v":"ALBEMARLE COUNTY PUBLIC SCHOOLS"},null,null,null,null,null,"Division Number:",null,null,{"$f":"$H$17","v":2},null,null,null,null,"School Division:",null,{"$f":"$A$17","v":"ALBEMARLE COUNTY PUBLIC SCHOOLS"},null,null,null,null,null,"Division Number:",null,null,{"$f":"$H$17","v":2},null,null,null,null,"School Division:",null,{"$f":"$A$17","v":"ALBEMARLE COUNTY PUBLIC SCHOOLS"},null,null,null,null,null,"Division Number:",null,null,{"$f":"$H$17","v":2},null,null,null,null,"School Division:",null,{"$f":"$A$17","v":"ALBEMARLE COUNTY PUBLIC SCHOOLS"},null,null,null,null,null,"Division Number:",null,null,{"$f":"$H$17","v":2},null,null,null,null,"School Division:",null,{"$f":"$A$17","v":"ALBEMARLE COUNTY PUBLIC SCHOOLS"},null,null,null,null,null,"Division Number:",null,null,{"$f":"$H$17","v":2},null,null,null,null,"School Division:",null,{"$f":"$A$17","v":"ALBEMARLE COUNTY PUBLIC SCHOOLS"},null,null,null,null,null,"Division Number:",null,null,{"$f":"$H$17","v":2},null,null,null,null,"School Division:",null,{"$f":"$A$17","v":"ALBEMARLE COUNTY PUBLIC SCHOOLS"},null,null,null,null,null,"Division Number:",null,null,{"$f":"$H$17","v":2},null,null,null,null,"School Division:",null,{"$f":"$A$17","v":"ALBEMARLE COUNTY PUBLIC SCHOOLS"},null,null,null,null,null,"Division Number:",null,null,{"$f":"$H$17","v":2},null,null,null,null,"School Division:",null,{"$f":"$A$17","v":"ALBEMARLE COUNTY PUBLIC SCHOOLS"},null,null,null,null,null,"Division Number:",null,null,{"$f":"$H$17","v":2},null,null,null,null,"School Division:",null,{"$f":"$A$17","v":"ALBEMARLE COUNTY PUBLIC SCHOOLS"},null,null,null,null,null,"Division Number:",null,null,{"$f":"$H$17","v":2},null,null,null,null,"School Division:",null,{"$f":"$A$17","v":"ALBEMARLE COUNTY PUBLIC SCHOOLS"},null,null,null,null,null,"Division Number:",null,null,{"$f":"$H$17","v":2},null,null,null,null,"School Division:",null,{"$f":"$A$17","v":"ALBEMARLE COUNTY PUBLIC SCHOOLS"},null,null,null,null,null,"Division Number:",null,null,{"$f":"$H$17","v":2},null,null,null,null,"School Division:",null,{"$f":"$A$17","v":"ALBEMARLE COUNTY PUBLIC SCHOOLS"},null,null,null,null,null,"Division Number:",null,null,{"$f":"$H$17","v":2},null,null,null,null,"School Division:",null,{"$f":"$A$17","v":"ALBEMARLE COUNTY PUBLIC SCHOOLS"},null,null,null,null,null,"Division Number:",null,null,{"$f":"$H$17","v":2},null,null,null,null,"School Division:",null,{"$f":"$A$17","v":"ALBEMARLE COUNTY PUBLIC SCHOOLS"},null,null,null,null,null,"Division Number:",null,null,{"$f":"$H$17","v":2},null,null,null,null,"School Division:",null,{"$f":"$A$17","v":"ALBEMARLE COUNTY PUBLIC SCHOOLS"},null,null,null,null,null,"Division Number:",null,null,{"$f":"$H$17","v":2},null,null,null,null,"School Division:",null,{"$f":"$A$17","v":"ALBEMARLE COUNTY PUBLIC SCHOOLS"},null,null,null,null,null,"Division Number:",null,null,{"$f":"$H$17","v":2},null,null,null,null,"School Division:",null,{"$f":"$A$17","v":"ALBEMARLE COUNTY PUBLIC SCHOOLS"},null,null,null,null,null,"Division Number:",null,null,{"$f":"$H$17","v":2},null,null,null,null,"School Division:",null,{"$f":"$A$17","v":"ALBEMARLE COUNTY PUBLIC SCHOOLS"},null,null,null,null,null,"Division Number:",null,null,{"$f":"$H$17","v":2},null,null,null,null,"School Division:",null,{"$f":"$A$17","v":"ALBEMARLE COUNTY PUBLIC SCHOOLS"},null,null,null,null,null,"Division Number:",null,null,{"$f":"$H$17","v":2},null,null,null,null,"School Division:",null,{"$f":"$A$17","v":"ALBEMARLE COUNTY PUBLIC SCHOOLS"},null,null,null,null,null,"Division Number:",null,null,{"$f":"$H$17","v":2},null,null,null,null,"School Division:",null,{"$f":"$A$17","v":"ALBEMARLE COUNTY PUBLIC SCHOOLS"},null,null,null,null,null,"Division Number:",null,null,{"$f":"$H$17","v":2},null,null,null,null,"School Division:",null,{"$f":"$A$17","v":"ALBEMARLE COUNTY PUBLIC SCHOOLS"},null,null,null,null,null,"Division Number:",null,null,{"$f":"$H$17","v":2},null,null,null,null,"School Division:",null,{"$f":"$A$17","v":"ALBEMARLE COUNTY PUBLIC SCHOOLS"},null,null,null,null,null,"Division Number:",null,null,{"$f":"$H$17","v":2},null,null,null,null,"School Division:",null,{"$f":"$A$17","v":"ALBEMARLE COUNTY PUBLIC SCHOOLS"},null,null,null,null,null,"Division Number:",null,null,{"$f":"$H$17","v":2},null,null,null,null,"School Division:",null,{"$f":"$A$17","v":"ALBEMARLE COUNTY PUBLIC SCHOOLS"},null,null,null,null,null,"Division Number:",null,null,{"$f":"$H$17","v":2},null,null,null,null,"School Division:",null,{"$f":"$A$17","v":"ALBEMARLE COUNTY PUBLIC SCHOOLS"},null,null,null,null,null,"Division Number:",null,null,{"$f":"$H$17","v":2},null,null,null,null,"School Division:",null,{"$f":"$A$17","v":"ALBEMARLE COUNTY PUBLIC SCHOOLS"},null,null,null,null,null,"Division Number:",null,null,{"$f":"$H$17","v":2},null,null,null,null,"School Division:",null,{"$f":"$A$17","v":"ALBEMARLE COUNTY PUBLIC SCHOOLS"},null,null,null,null,null,"Division Number:",null,null,{"$f":"$H$17","v":2},null,null,null,null,"School Division:",null,{"$f":"$A$17","v":"ALBEMARLE COUNTY PUBLIC SCHOOLS"},null,null,null,null,null,"Division Number:",null,null,{"$f":"$H$17","v":2},null,null,null,null,"School Division:",null,{"$f":"$A$17","v":"ALBEMARLE COUNTY PUBLIC SCHOOLS"},null,null,null,null,null,"Division Number:",null,null,{"$f":"$H$17","v":2},null,null,null,null,"School Division:",null,{"$f":"$A$17","v":"ALBEMARLE COUNTY PUBLIC SCHOOLS"},null,null,null,null,null,"Division Number:",null,null,{"$f":"$H$17","v":2},null,null,null,null,"School Division:",null,{"$f":"$A$17","v":"ALBEMARLE COUNTY PUBLIC SCHOOLS"},null,null,null,null,null,"Division Number:",null,null,{"$f":"$H$17","v":2},null,null,null,null,"School Division:",null,{"$f":"$A$17","v":"ALBEMARLE COUNTY PUBLIC SCHOOLS"},null,null,null,null,null,"Division Number:",null,null,{"$f":"$H$17","v":2},null,null,null,null,"School Division:",null,{"$f":"$A$17","v":"ALBEMARLE COUNTY PUBLIC SCHOOLS"},null,null,null,null,null,"Division Number:",null,null,{"$f":"$H$17","v":2},null,null,null,null,"School Division:",null,{"$f":"$A$17","v":"ALBEMARLE COUNTY PUBLIC SCHOOLS"},null,null,null,null,null,"Division Number:",null,null,{"$f":"$H$17","v":2},null,null,null,null,"School Division:",null,{"$f":"$A$17","v":"ALBEMARLE COUNTY PUBLIC SCHOOLS"},null,null,null,null,null,"Division Number:",null,null,{"$f":"$H$17","v":2},null,null,null,null,"School Division:",null,{"$f":"$A$17","v":"ALBEMARLE COUNTY PUBLIC SCHOOLS"},null,null,null,null,null,"Division Number:",null,null,{"$f":"$H$17","v":2},null,null,null,null,"School Division:",null,{"$f":"$A$17","v":"ALBEMARLE COUNTY PUBLIC SCHOOLS"},null,null,null,null,null,"Division Number:",null,null,{"$f":"$H$17","v":2},null,null,null,null,"School Division:",null,{"$f":"$A$17","v":"ALBEMARLE COUNTY PUBLIC SCHOOLS"},null,null,null,null,null,"Division Number:",null,null,{"$f":"$H$17","v":2},null,null,null,null,"School Division:",null,{"$f":"$A$17","v":"ALBEMARLE COUNTY PUBLIC SCHOOLS"},null,null,null,null,null,"Division Number:",null,null,{"$f":"$H$17","v":2},null,null,null,null,"School Division:",null,{"$f":"$A$17","v":"ALBEMARLE COUNTY PUBLIC SCHOOLS"},null,null,null,null,null,"Division Number:",null,null,{"$f":"$H$17","v":2},null,null,null,null,"School Division:",null,{"$f":"$A$17","v":"ALBEMARLE COUNTY PUBLIC SCHOOLS"},null,null,null,null,null,"Division Number:",null,null,{"$f":"$H$17","v":2},null,null,null,null,"School Division:",null,{"$f":"$A$17","v":"ALBEMARLE COUNTY PUBLIC SCHOOLS"},null,null,null,null,null,"Division Number:",null,null,{"$f":"$H$17","v":2},null,null,null,null,"School Division:",null,{"$f":"$A$17","v":"ALBEMARLE COUNTY PUBLIC SCHOOLS"},null,null,null,null,null,"Division Number:",null,null,{"$f":"$H$17","v":2},null,null,null,null,"School Division:",null,{"$f":"$A$17","v":"ALBEMARLE COUNTY PUBLIC SCHOOLS"},null,null,null,null,null,"Division Number:",null,null,{"$f":"$H$17","v":2},null,null,null,null,"School Division:",null,{"$f":"$A$17","v":"ALBEMARLE COUNTY PUBLIC SCHOOLS"},null,null,null,null,null,"Division Number:",null,null,{"$f":"$H$17","v":2},null,null,null,null,"School Division:",null,{"$f":"$A$17","v":"ALBEMARLE COUNTY PUBLIC SCHOOLS"},null,null,null,null,null,"Division Number:",null,null,{"$f":"$H$17","v":2},null,null,null,null,"School Division:",null,{"$f":"$A$17","v":"ALBEMARLE COUNTY PUBLIC SCHOOLS"},null,null,null,null,null,"Division Number:",null,null,{"$f":"$H$17","v":2},null,null,null,null,"School Division:",null,{"$f":"$A$17","v":"ALBEMARLE COUNTY PUBLIC SCHOOLS"},null,null,null,null,null,"Division Number:",null,null,{"$f":"$H$17","v":2},null,null,null,null,"School Division:",null,{"$f":"$A$17","v":"ALBEMARLE COUNTY PUBLIC SCHOOLS"},null,null,null,null,null,"Division Number:",null,null,{"$f":"$H$17","v":2},null,null,null,null,"School Division:",null,{"$f":"$A$17","v":"ALBEMARLE COUNTY PUBLIC SCHOOLS"},null,null,null,null,null,"Division Number:",null,null,{"$f":"$H$17","v":2},null,null,null,null,"School Division:",null,{"$f":"$A$17","v":"ALBEMARLE COUNTY PUBLIC SCHOOLS"},null,null,null,null,null,"Division Number:",null,null,{"$f":"$H$17","v":2},null,null,null,null,"School Division:",null,{"$f":"$A$17","v":"ALBEMARLE COUNTY PUBLIC SCHOOLS"},null,null,null,null,null,"Division Number:",null,null,{"$f":"$H$17","v":2},null,null,null,null,"School Division:",null,{"$f":"$A$17","v":"ALBEMARLE COUNTY PUBLIC SCHOOLS"},null,null,null,null,null,"Division Number:",null,null,{"$f":"$H$17","v":2},null,null,null,null,"School Division:",null,{"$f":"$A$17","v":"ALBEMARLE COUNTY PUBLIC SCHOOLS"},null,null,null,null,null,"Division Number:",null,null,{"$f":"$H$17","v":2},null,null,null,null,"School Division:",null,{"$f":"$A$17","v":"ALBEMARLE COUNTY PUBLIC SCHOOLS"},null,null,null,null,null,"Division Number:",null,null,{"$f":"$H$17","v":2},null,null,null,null,"School Division:",null,{"$f":"$A$17","v":"ALBEMARLE COUNTY PUBLIC SCHOOLS"},null,null,null,null,null,"Division Number:",null,null,{"$f":"$H$17","v":2},null,null,null,null,"School Division:",null,{"$f":"$A$17","v":"ALBEMARLE COUNTY PUBLIC SCHOOLS"},null,null,null,null,null,"Division Number:",null,null,{"$f":"$H$17","v":2},null,null,null,null,"School Division:",null,{"$f":"$A$17","v":"ALBEMARLE COUNTY PUBLIC SCHOOLS"},null,null,null,null,null,"Division Number:",null,null,{"$f":"$H$17","v":2},null,null,null,null,"School Division:",null,{"$f":"$A$17","v":"ALBEMARLE COUNTY PUBLIC SCHOOLS"},null,null,null,null,null,"Division Number:",null,null,{"$f":"$H$17","v":2},null,null,null,null,"School Division:",null,{"$f":"$A$17","v":"ALBEMARLE COUNTY PUBLIC SCHOOLS"},null,null,null,null,null,"Division Number:",null,null,{"$f":"$H$17","v":2},null,null,null,null,"School Division:",null,{"$f":"$A$17","v":"ALBEMARLE COUNTY PUBLIC SCHOOLS"},null,null,null,null,null,"Division Number:",null,null,{"$f":"$H$17","v":2},null,null,null,null,"School Division:",null,{"$f":"$A$17","v":"ALBEMARLE COUNTY PUBLIC SCHOOLS"},null,null,null,null,null,"Division Number:",null,null,{"$f":"$H$17","v":2},null,null,null,null,"School Division:",null,{"$f":"$A$17","v":"ALBEMARLE COUNTY PUBLIC SCHOOLS"},null,null,null,null,null,"Division Number:",null,null,{"$f":"$H$17","v":2},null,null,null,null,"School Division:",null,{"$f":"$A$17","v":"ALBEMARLE COUNTY PUBLIC SCHOOLS"},null,null,null,null,null,"Division Number:",null,null,{"$f":"$H$17","v":2},null,null,null,null,"School Division:",null,{"$f":"$A$17","v":"ALBEMARLE COUNTY PUBLIC SCHOOLS"},null,null,null,null,null,"Division Number:",null,null,{"$f":"$H$17","v":2},null,null,null,null,"School Division:",null,{"$f":"$A$17","v":"ALBEMARLE COUNTY PUBLIC SCHOOLS"},null,null,null,null,null,"Division Number:",null,null,{"$f":"$H$17","v":2},null,null,null,null,"School Division:",null,{"$f":"$A$17","v":"ALBEMARLE COUNTY PUBLIC SCHOOLS"},null,null,null,null,null,"Division Number:",null,null,{"$f":"$H$17","v":2},null,null,null,null,"School Division:",null,{"$f":"$A$17","v":"ALBEMARLE COUNTY PUBLIC SCHOOLS"},null,null,null,null,null,"Division Number:",null,null,{"$f":"$H$17","v":2},null,null,null,null,"School Division:",null,{"$f":"$A$17","v":"ALBEMARLE COUNTY PUBLIC SCHOOLS"},null,null,null,null,null,"Division Number:",null,null,{"$f":"$H$17","v":2},null,null,null,null,"School Division:",null,{"$f":"$A$17","v":"ALBEMARLE COUNTY PUBLIC SCHOOLS"},null,null,null,null,null,"Division Number:",null,null,{"$f":"$H$17","v":2},null,null,null,null,"School Division:",null,{"$f":"$A$17","v":"ALBEMARLE COUNTY PUBLIC SCHOOLS"},null,null,null,null,null,"Division Number:",null,null,{"$f":"$H$17","v":2},null,null,null,null,"School Division:",null,{"$f":"$A$17","v":"ALBEMARLE COUNTY PUBLIC SCHOOLS"},null,null,null,null,null,"Division Number:",null,null,{"$f":"$H$17","v":2},null,null,null,null,"School Division:",null,{"$f":"$A$17","v":"ALBEMARLE COUNTY PUBLIC SCHOOLS"},null,null,null,null,null,"Division Number:",null,null,{"$f":"$H$17","v":2},null,null,null,null,"School Division:",null,{"$f":"$A$17","v":"ALBEMARLE COUNTY PUBLIC SCHOOLS"},null,null,null,null,null,"Division Number:",null,null,{"$f":"$H$17","v":2},null,null,null,null,"School Division:",null,{"$f":"$A$17","v":"ALBEMARLE COUNTY PUBLIC SCHOOLS"},null,null,null,null,null,"Division Number:",null,null,{"$f":"$H$17","v":2},null,null,null,null,"School Division:",null,{"$f":"$A$17","v":"ALBEMARLE COUNTY PUBLIC SCHOOLS"},null,null,null,null,null,"Division Number:",null,null,{"$f":"$H$17","v":2},null,null,null,null,"School Division:",null,{"$f":"$A$17","v":"ALBEMARLE COUNTY PUBLIC SCHOOLS"},null,null,null,null,null,"Division Number:",null,null,{"$f":"$H$17","v":2},null,null,null,null,"School Division:",null,{"$f":"$A$17","v":"ALBEMARLE COUNTY PUBLIC SCHOOLS"},null,null,null,null,null,"Division Number:",null,null,{"$f":"$H$17","v":2},null,null,null,null,"School Division:",null,{"$f":"$A$17","v":"ALBEMARLE COUNTY PUBLIC SCHOOLS"},null,null,null,null,null,"Division Number:",null,null,{"$f":"$H$17","v":2},null,null,null,null,"School Division:",null,{"$f":"$A$17","v":"ALBEMARLE COUNTY PUBLIC SCHOOLS"},null,null,null,null,null,"Division Number:",null,null,{"$f":"$H$17","v":2},null,null,null,null,"School Division:",null,{"$f":"$A$17","v":"ALBEMARLE COUNTY PUBLIC SCHOOLS"},null,null,null,null,null,"Division Number:",null,null,{"$f":"$H$17","v":2},null,null,null,null,"School Division:",null,{"$f":"$A$17","v":"ALBEMARLE COUNTY PUBLIC SCHOOLS"},null,null,null,null,null,"Division Number:",null,null,{"$f":"$H$17","v":2},null,null,null,null,"School Division:",null,{"$f":"$A$17","v":"ALBEMARLE COUNTY PUBLIC SCHOOLS"},null,null,null,null,null,"Division Number:",null,null,{"$f":"$H$17","v":2},null,null,null,null,"School Division:",null,{"$f":"$A$17","v":"ALBEMARLE COUNTY PUBLIC SCHOOLS"},null,null,null,null,null,"Division Number:",null,null,{"$f":"$H$17","v":2},null,null,null,null,"School Division:",null,{"$f":"$A$17","v":"ALBEMARLE COUNTY PUBLIC SCHOOLS"},null,null,null,null,null,"Division Number:",null,null,{"$f":"$H$17","v":2},null,null,null,null,"School Division:",null,{"$f":"$A$17","v":"ALBEMARLE COUNTY PUBLIC SCHOOLS"},null,null,null,null,null,"Division Number:",null,null,{"$f":"$H$17","v":2},null,null,null,null,"School Division:",null,{"$f":"$A$17","v":"ALBEMARLE COUNTY PUBLIC SCHOOLS"},null,null,null,null,null,"Division Number:",null,null,{"$f":"$H$17","v":2},null,null,null,null,"School Division:",null,{"$f":"$A$17","v":"ALBEMARLE COUNTY PUBLIC SCHOOLS"},null,null,null,null,null,"Division Number:",null,null,{"$f":"$H$17","v":2},null,null,null,null,"School Division:",null,{"$f":"$A$17","v":"ALBEMARLE COUNTY PUBLIC SCHOOLS"},null,null,null,null,null,"Division Number:",null,null,{"$f":"$H$17","v":2},null,null,null,null,"School Division:",null,{"$f":"$A$17","v":"ALBEMARLE COUNTY PUBLIC SCHOOLS"},null,null,null,null,null,"Division Number:",null,null,{"$f":"$H$17","v":2},null,null,null,null,"School Division:",null,{"$f":"$A$17","v":"ALBEMARLE COUNTY PUBLIC SCHOOLS"},null,null,null,null,null,"Division Number:",null,null,{"$f":"$H$17","v":2},null,null,null,null,"School Division:",null,{"$f":"$A$17","v":"ALBEMARLE COUNTY PUBLIC SCHOOLS"},null,null,null,null,null,"Division Number:",null,null,{"$f":"$H$17","v":2},null,null,null,null,"School Division:",null,{"$f":"$A$17","v":"ALBEMARLE COUNTY PUBLIC SCHOOLS"},null,null,null,null,null,"Division Number:",null,null,{"$f":"$H$17","v":2},null,null,null,null,"School Division:",null,{"$f":"$A$17","v":"ALBEMARLE COUNTY PUBLIC SCHOOLS"},null,null,null,null,null,"Division Number:",null,null,{"$f":"$H$17","v":2},null,null,null,null,"School Division:",null,{"$f":"$A$17","v":"ALBEMARLE COUNTY PUBLIC SCHOOLS"},null,null,null,null,null,"Division Number:",null,null,{"$f":"$H$17","v":2},null,null,null,null,"School Division:",null,{"$f":"$A$17","v":"ALBEMARLE COUNTY PUBLIC SCHOOLS"},null,null,null,null,null,"Division Number:",null,null,{"$f":"$H$17","v":2},null,null,null,null,"School Division:",null,{"$f":"$A$17","v":"ALBEMARLE COUNTY PUBLIC SCHOOLS"},null,null,null,null,null,"Division Number:",null,null,{"$f":"$H$17","v":2},null,null,null,null,"School Division:",null,{"$f":"$A$17","v":"ALBEMARLE COUNTY PUBLIC SCHOOLS"},null,null,null,null,null,"Division Number:",null,null,{"$f":"$H$17","v":2},null,null,null,null,"School Division:",null,{"$f":"$A$17","v":"ALBEMARLE COUNTY PUBLIC SCHOOLS"},null,null,null,null,null,"Division Number:",null,null,{"$f":"$H$17","v":2},null,null,null,null,"School Division:",null,{"$f":"$A$17","v":"ALBEMARLE COUNTY PUBLIC SCHOOLS"},null,null,null,null,null,"Division Number:",null,null,{"$f":"$H$17","v":2},null,null,null,null,"School Division:",null,{"$f":"$A$17","v":"ALBEMARLE COUNTY PUBLIC SCHOOLS"},null,null,null,null,null,"Division Number:",null,null,{"$f":"$H$17","v":2},null,null,null,null,"School Division:",null,{"$f":"$A$17","v":"ALBEMARLE COUNTY PUBLIC SCHOOLS"},null,null,null,null,null,"Division Number:",null,null,{"$f":"$H$17","v":2},null,null,null,null,"School Division:",null,{"$f":"$A$17","v":"ALBEMARLE COUNTY PUBLIC SCHOOLS"},null,null,null,null,null,"Division Number:",null,null,{"$f":"$H$17","v":2},null,null,null,null,"School Division:",null,{"$f":"$A$17","v":"ALBEMARLE COUNTY PUBLIC SCHOOLS"},null,null,null,null,null,"Division Number:",null,null,{"$f":"$H$17","v":2},null,null,null,null,"School Division:",null,{"$f":"$A$17","v":"ALBEMARLE COUNTY PUBLIC SCHOOLS"},null,null,null,null,null,"Division Number:",null,null,{"$f":"$H$17","v":2},null,null,null,null,"School Division:",null,{"$f":"$A$17","v":"ALBEMARLE COUNTY PUBLIC SCHOOLS"},null,null,null,null,null,"Division Number:",null,null,{"$f":"$H$17","v":2},null,null,null,null,"School Division:",null,{"$f":"$A$17","v":"ALBEMARLE COUNTY PUBLIC SCHOOLS"},null,null,null,null,null,"Division Number:",null,null,{"$f":"$H$17","v":2},null,null,null,null,"School Division:",null,{"$f":"$A$17","v":"ALBEMARLE COUNTY PUBLIC SCHOOLS"},null,null,null,null,null,"Division Number:",null,null,{"$f":"$H$17","v":2},null,null,null,null,"School Division:",null,{"$f":"$A$17","v":"ALBEMARLE COUNTY PUBLIC SCHOOLS"},null,null,null,null,null,"Division Number:",null,null,{"$f":"$H$17","v":2},null,null,null,null,"School Division:",null,{"$f":"$A$17","v":"ALBEMARLE COUNTY PUBLIC SCHOOLS"},null,null,null,null,null,"Division Number:",null,null,{"$f":"$H$17","v":2},null,null,null,null,"School Division:",null,{"$f":"$A$17","v":"ALBEMARLE COUNTY PUBLIC SCHOOLS"},null,null,null,null,null,"Division Number:",null,null,{"$f":"$H$17","v":2},null,null,null,null,"School Division:",null,{"$f":"$A$17","v":"ALBEMARLE COUNTY PUBLIC SCHOOLS"},null,null,null,null,null,"Division Number:",null,null,{"$f":"$H$17","v":2},null,null,null,null,"School Division:",null,{"$f":"$A$17","v":"ALBEMARLE COUNTY PUBLIC SCHOOLS"},null,null,null,null,null,"Division Number:",null,null,{"$f":"$H$17","v":2},null,null,null,null,"School Division:",null,{"$f":"$A$17","v":"ALBEMARLE COUNTY PUBLIC SCHOOLS"},null,null,null,null,null,"Division Number:",null,null,{"$f":"$H$17","v":2},null,null,null,null,"School Division:",null,{"$f":"$A$17","v":"ALBEMARLE COUNTY PUBLIC SCHOOLS"},null,null,null,null,null,"Division Number:",null,null,{"$f":"$H$17","v":2},null,null,null,null,"School Division:",null,{"$f":"$A$17","v":"ALBEMARLE COUNTY PUBLIC SCHOOLS"},null,null,null,null,null,"Division Number:",null,null,{"$f":"$H$17","v":2},null,null,null,null,"School Division:",null,{"$f":"$A$17","v":"ALBEMARLE COUNTY PUBLIC SCHOOLS"},null,null,null,null,null,"Division Number:",null,null,{"$f":"$H$17","v":2},null,null,null,null,"School Division:",null,{"$f":"$A$17","v":"ALBEMARLE COUNTY PUBLIC SCHOOLS"},null,null,null,null,null,"Division Number:",null,null,{"$f":"$H$17","v":2},null,null,null,null,"School Division:",null,{"$f":"$A$17","v":"ALBEMARLE COUNTY PUBLIC SCHOOLS"},null,null,null,null,null,"Division Number:",null,null,{"$f":"$H$17","v":2},null,null,null,null,"School Division:",null,{"$f":"$A$17","v":"ALBEMARLE COUNTY PUBLIC SCHOOLS"},null,null,null,null,null,"Division Number:",null,null,{"$f":"$H$17","v":2},null,null,null,null,"School Division:",null,{"$f":"$A$17","v":"ALBEMARLE COUNTY PUBLIC SCHOOLS"},null,null,null,null,null,"Division Number:",null,null,{"$f":"$H$17","v":2},null,null,null,null,"School Division:",null,{"$f":"$A$17","v":"ALBEMARLE COUNTY PUBLIC SCHOOLS"},null,null,null,null,null,"Division Number:",null,null,{"$f":"$H$17","v":2},null,null,null,null,"School Division:",null,{"$f":"$A$17","v":"ALBEMARLE COUNTY PUBLIC SCHOOLS"},null,null,null,null,null,"Division Number:",null,null,{"$f":"$H$17","v":2},null,null,null,null,"School Division:",null,{"$f":"$A$17","v":"ALBEMARLE COUNTY PUBLIC SCHOOLS"},null,null,null,null,null,"Division Number:",null,null,{"$f":"$H$17","v":2},null,null,null,null,"School Division:",null,{"$f":"$A$17","v":"ALBEMARLE COUNTY PUBLIC SCHOOLS"},null,null,null,null,null,"Division Number:",null,null,{"$f":"$H$17","v":2},null,null,null,null,"School Division:",null,{"$f":"$A$17","v":"ALBEMARLE COUNTY PUBLIC SCHOOLS"},null,null,null,null,null,"Division Number:",null,null,{"$f":"$H$17","v":2},null,null,null,null,"School Division:",null,{"$f":"$A$17","v":"ALBEMARLE COUNTY PUBLIC SCHOOLS"},null,null,null,null,null,"Division Number:",null,null,{"$f":"$H$17","v":2},null,null,null,null,"School Division:",null,{"$f":"$A$17","v":"ALBEMARLE COUNTY PUBLIC SCHOOLS"},null,null,null,null,null,"Division Number:",null,null,{"$f":"$H$17","v":2},null,null,null,null,"School Division:",null,{"$f":"$A$17","v":"ALBEMARLE COUNTY PUBLIC SCHOOLS"},null,null,null,null,null,"Division Number:",null,null,{"$f":"$H$17","v":2},null,null,null,null,"School Division:",null,{"$f":"$A$17","v":"ALBEMARLE COUNTY PUBLIC SCHOOLS"},null,null,null,null,null,"Division Number:",null,null,{"$f":"$H$17","v":2},null,null,null,null,"School Division:",null,{"$f":"$A$17","v":"ALBEMARLE COUNTY PUBLIC SCHOOLS"},null,null,null,null,null,"Division Number:",null,null,{"$f":"$H$17","v":2},null,null,null,null,"School Division:",null,{"$f":"$A$17","v":"ALBEMARLE COUNTY PUBLIC SCHOOLS"},null,null,null,null,null,"Division Number:",null,null,{"$f":"$H$17","v":2},null,null,null,null,"School Division:",null,{"$f":"$A$17","v":"ALBEMARLE COUNTY PUBLIC SCHOOLS"},null,null,null,null,null,"Division Number:",null,null,{"$f":"$H$17","v":2},null,null,null,null,"School Division:",null,{"$f":"$A$17","v":"ALBEMARLE COUNTY PUBLIC SCHOOLS"},null,null,null,null,null,"Division Number:",null,null,{"$f":"$H$17","v":2},null,null,null,null,"School Division:",null,{"$f":"$A$17","v":"ALBEMARLE COUNTY PUBLIC SCHOOLS"},null,null,null,null,null,"Division Number:",null,null,{"$f":"$H$17","v":2},null,null,null,null,"School Division:",null,{"$f":"$A$17","v":"ALBEMARLE COUNTY PUBLIC SCHOOLS"},null,null,null,null,null,"Division Number:",null,null,{"$f":"$H$17","v":2},null,null,null,null,"School Division:",null,{"$f":"$A$17","v":"ALBEMARLE COUNTY PUBLIC SCHOOLS"},null,null,null,null,null,"Division Number:",null,null,{"$f":"$H$17","v":2},null,null,null,null,"School Division:",null,{"$f":"$A$17","v":"ALBEMARLE COUNTY PUBLIC SCHOOLS"},null,null,null,null,null,"Division Number:",null,null,{"$f":"$H$17","v":2},null,null,null,null,"School Division:",null,{"$f":"$A$17","v":"ALBEMARLE COUNTY PUBLIC SCHOOLS"},null,null,null,null,null,"Division Number:",null,null,{"$f":"$H$17","v":2},null,null,null,null,"School Division:",null,{"$f":"$A$17","v":"ALBEMARLE COUNTY PUBLIC SCHOOLS"},null,null,null,null,null,"Division Number:",null,null,{"$f":"$H$17","v":2},null,null,null,null,"School Division:",null,{"$f":"$A$17","v":"ALBEMARLE COUNTY PUBLIC SCHOOLS"},null,null,null,null,null,"Division Number:",null,null,{"$f":"$H$17","v":2},null,null,null,null,"School Division:",null,{"$f":"$A$17","v":"ALBEMARLE COUNTY PUBLIC SCHOOLS"},null,null,null,null,null,"Division Number:",null,null,{"$f":"$H$17","v":2},null,null,null,null,"School Division:",null,{"$f":"$A$17","v":"ALBEMARLE COUNTY PUBLIC SCHOOLS"},null,null,null,null,null,"Division Number:",null,null,{"$f":"$H$17","v":2},null,null,null,null,"School Division:",null,{"$f":"$A$17","v":"ALBEMARLE COUNTY PUBLIC SCHOOLS"},null,null,null,null,null,"Division Number:",null,null,{"$f":"$H$17","v":2},null,null,null,null,"School Division:",null,{"$f":"$A$17","v":"ALBEMARLE COUNTY PUBLIC SCHOOLS"},null,null,null,null,null,"Division Number:",null,null,{"$f":"$H$17","v":2},null,null,null,null,"School Division:",null,{"$f":"$A$17","v":"ALBEMARLE COUNTY PUBLIC SCHOOLS"},null,null,null,null,null,"Division Number:",null,null,{"$f":"$H$17","v":2},null,null,null,null,"School Division:",null,{"$f":"$A$17","v":"ALBEMARLE COUNTY PUBLIC SCHOOLS"},null,null,null,null,null,"Division Number:",null,null,{"$f":"$H$17","v":2},null,null,null,null,"School Division:",null,{"$f":"$A$17","v":"ALBEMARLE COUNTY PUBLIC SCHOOLS"},null,null,null,null,null,"Division Number:",null,null,{"$f":"$H$17","v":2},null,null,null,null,"School Division:",null,{"$f":"$A$17","v":"ALBEMARLE COUNTY PUBLIC SCHOOLS"},null,null,null,null,null,"Division Number:",null,null,{"$f":"$H$17","v":2},null,null,null,null,"School Division:",null,{"$f":"$A$17","v":"ALBEMARLE COUNTY PUBLIC SCHOOLS"},null,null,null,null,null,"Division Number:",null,null,{"$f":"$H$17","v":2},null,null,null,null,"School Division:",null,{"$f":"$A$17","v":"ALBEMARLE COUNTY PUBLIC SCHOOLS"},null,null,null,null,null,"Division Number:",null,null,{"$f":"$H$17","v":2},null,null,null,null,"School Division:",null,{"$f":"$A$17","v":"ALBEMARLE COUNTY PUBLIC SCHOOLS"},null,null,null,null,null,"Division Number:",null,null,{"$f":"$H$17","v":2},null,null,null,null,"School Division:",null,{"$f":"$A$17","v":"ALBEMARLE COUNTY PUBLIC SCHOOLS"},null,null,null,null,null,"Division Number:",null,null,{"$f":"$H$17","v":2},null,null,null,null,"School Division:",null,{"$f":"$A$17","v":"ALBEMARLE COUNTY PUBLIC SCHOOLS"},null,null,null,null,null,"Division Number:",null,null,{"$f":"$H$17","v":2},null,null,null,null,"School Division:",null,{"$f":"$A$17","v":"ALBEMARLE COUNTY PUBLIC SCHOOLS"},null,null,null,null,null,"Division Number:",null,null,{"$f":"$H$17","v":2},null,null,null,null,"School Division:",null,{"$f":"$A$17","v":"ALBEMARLE COUNTY PUBLIC SCHOOLS"},null,null,null,null,null,"Division Number:",null,null,{"$f":"$H$17","v":2},null,null,null,null,"School Division:",null,{"$f":"$A$17","v":"ALBEMARLE COUNTY PUBLIC SCHOOLS"},null,null,null,null,null,"Division Number:",null,null,{"$f":"$H$17","v":2},null,null,null,null,"School Division:",null,{"$f":"$A$17","v":"ALBEMARLE COUNTY PUBLIC SCHOOLS"},null,null,null,null,null,"Division Number:",null,null,{"$f":"$H$17","v":2},null,null,null,null,"School Division:",null,{"$f":"$A$17","v":"ALBEMARLE COUNTY PUBLIC SCHOOLS"},null,null,null,null,null,"Division Number:",null,null,{"$f":"$H$17","v":2},null,null,null,null,"School Division:",null,{"$f":"$A$17","v":"ALBEMARLE COUNTY PUBLIC SCHOOLS"},null,null,null,null,null,"Division Number:",null,null,{"$f":"$H$17","v":2},null,null,null,null,"School Division:",null,{"$f":"$A$17","v":"ALBEMARLE COUNTY PUBLIC SCHOOLS"},null,null,null,null,null,"Division Number:",null,null,{"$f":"$H$17","v":2},null,null,null,null,"School Division:",null,{"$f":"$A$17","v":"ALBEMARLE COUNTY PUBLIC SCHOOLS"},null,null,null,null,null,"Division Number:",null,null,{"$f":"$H$17","v":2},null,null,null,null,"School Division:",null,{"$f":"$A$17","v":"ALBEMARLE COUNTY PUBLIC SCHOOLS"},null,null,null,null,null,"Division Number:",null,null,{"$f":"$H$17","v":2},null,null,null,null,"School Division:",null,{"$f":"$A$17","v":"ALBEMARLE COUNTY PUBLIC SCHOOLS"},null,null,null,null,null,"Division Number:",null,null,{"$f":"$H$17","v":2},null,null,null,null,"School Division:",null,{"$f":"$A$17","v":"ALBEMARLE COUNTY PUBLIC SCHOOLS"},null,null,null,null,null,"Division Number:",null,null,{"$f":"$H$17","v":2},null,null,null,null,"School Division:",null,{"$f":"$A$17","v":"ALBEMARLE COUNTY PUBLIC SCHOOLS"},null,null,null,null,null,"Division Number:",null,null,{"$f":"$H$17","v":2},null,null,null,null,"School Division:",null,{"$f":"$A$17","v":"ALBEMARLE COUNTY PUBLIC SCHOOLS"},null,null,null,null,null,"Division Number:",null,null,{"$f":"$H$17","v":2},null,null,null,null,"School Division:",null,{"$f":"$A$17","v":"ALBEMARLE COUNTY PUBLIC SCHOOLS"},null,null,null,null,null,"Division Number:",null,null,{"$f":"$H$17","v":2},null,null,null,null,"School Division:",null,{"$f":"$A$17","v":"ALBEMARLE COUNTY PUBLIC SCHOOLS"},null,null,null,null,null,"Division Number:",null,null,{"$f":"$H$17","v":2},null,null,null,null,"School Division:",null,{"$f":"$A$17","v":"ALBEMARLE COUNTY PUBLIC SCHOOLS"},null,null,null,null,null,"Division Number:",null,null,{"$f":"$H$17","v":2},null,null,null,null,"School Division:",null,{"$f":"$A$17","v":"ALBEMARLE COUNTY PUBLIC SCHOOLS"},null,null,null,null,null,"Division Number:",null,null,{"$f":"$H$17","v":2},null,null,null,null,"School Division:",null,{"$f":"$A$17","v":"ALBEMARLE COUNTY PUBLIC SCHOOLS"},null,null,null,null,null,"Division Number:",null,null,{"$f":"$H$17","v":2},null,null,null,null,"School Division:",null,{"$f":"$A$17","v":"ALBEMARLE COUNTY PUBLIC SCHOOLS"},null,null,null,null,null,"Division Number:",null,null,{"$f":"$H$17","v":2},null,null,null,null,"School Division:",null,{"$f":"$A$17","v":"ALBEMARLE COUNTY PUBLIC SCHOOLS"},null,null,null,null,null,"Division Number:",null,null,{"$f":"$H$17","v":2},null,null,null,null,"School Division:",null,{"$f":"$A$17","v":"ALBEMARLE COUNTY PUBLIC SCHOOLS"},null,null,null,null,null,"Division Number:",null,null,{"$f":"$H$17","v":2},null,null,null,null,"School Division:",null,{"$f":"$A$17","v":"ALBEMARLE COUNTY PUBLIC SCHOOLS"},null,null,null,null,null,"Division Number:",null,null,{"$f":"$H$17","v":2},null,null,null,null,"School Division:",null,{"$f":"$A$17","v":"ALBEMARLE COUNTY PUBLIC SCHOOLS"},null,null,null,null,null,"Division Number:",null,null,{"$f":"$H$17","v":2},null,null,null,null,"School Division:",null,{"$f":"$A$17","v":"ALBEMARLE COUNTY PUBLIC SCHOOLS"},null,null,null,null,null,"Division Number:",null,null,{"$f":"$H$17","v":2},null,null,null,null,"School Division:",null,{"$f":"$A$17","v":"ALBEMARLE COUNTY PUBLIC SCHOOLS"},null,null,null,null,null,"Division Number:",null,null,{"$f":"$H$17","v":2},null,null,null,null,"School Division:",null,{"$f":"$A$17","v":"ALBEMARLE COUNTY PUBLIC SCHOOLS"},null,null,null,null,null,"Division Number:",null,null,{"$f":"$H$17","v":2},null,null,null,null,"School Division:",null,{"$f":"$A$17","v":"ALBEMARLE COUNTY PUBLIC SCHOOLS"},null,null,null,null,null,"Division Number:",null,null,{"$f":"$H$17","v":2},null,null,null,null,"School Division:",null,{"$f":"$A$17","v":"ALBEMARLE COUNTY PUBLIC SCHOOLS"},null,null,null,null,null,"Division Number:",null,null,{"$f":"$H$17","v":2},null,null,null,null,"School Division:",null,{"$f":"$A$17","v":"ALBEMARLE COUNTY PUBLIC SCHOOLS"},null,null,null,null,null,"Division Number:",null,null,{"$f":"$H$17","v":2},null,null,null,null,"School Division:",null,{"$f":"$A$17","v":"ALBEMARLE COUNTY PUBLIC SCHOOLS"},null,null,null,null,null,"Division Number:",null,null,{"$f":"$H$17","v":2},null,null,null,null,"School Division:",null,{"$f":"$A$17","v":"ALBEMARLE COUNTY PUBLIC SCHOOLS"},null,null,null,null,null,"Division Number:",null,null,{"$f":"$H$17","v":2},null,null,null,null,"School Division:",null,{"$f":"$A$17","v":"ALBEMARLE COUNTY PUBLIC SCHOOLS"},null,null,null,null,null,"Division Number:",null,null,{"$f":"$H$17","v":2},null,null,null,null,"School Division:",null,{"$f":"$A$17","v":"ALBEMARLE COUNTY PUBLIC SCHOOLS"},null,null,null,null,null,"Division Number:",null,null,{"$f":"$H$17","v":2},null,null,null,null,"School Division:",null,{"$f":"$A$17","v":"ALBEMARLE COUNTY PUBLIC SCHOOLS"},null,null,null,null,null,"Division Number:",null,null,{"$f":"$H$17","v":2},null,null,null,null,"School Division:",null,{"$f":"$A$17","v":"ALBEMARLE COUNTY PUBLIC SCHOOLS"},null,null,null,null,null,"Division Number:",null,null,{"$f":"$H$17","v":2},null,null,null,null,"School Division:",null,{"$f":"$A$17","v":"ALBEMARLE COUNTY PUBLIC SCHOOLS"},null,null,null,null,null,"Division Number:",null,null,{"$f":"$H$17","v":2},null,null,null,null,"School Division:",null,{"$f":"$A$17","v":"ALBEMARLE COUNTY PUBLIC SCHOOLS"},null,null,null,null,null,"Division Number:",null,null,{"$f":"$H$17","v":2},null,null,null,null,"School Division:",null,{"$f":"$A$17","v":"ALBEMARLE COUNTY PUBLIC SCHOOLS"},null,null,null,null,null,"Division Number:",null,null,{"$f":"$H$17","v":2},null,null,null,null,"School Division:",null,{"$f":"$A$17","v":"ALBEMARLE COUNTY PUBLIC SCHOOLS"},null,null,null,null,null,"Division Number:",null,null,{"$f":"$H$17","v":2},null,null,null,null,"School Division:",null,{"$f":"$A$17","v":"ALBEMARLE COUNTY PUBLIC SCHOOLS"},null,null,null,null,null,"Division Number:",null,null,{"$f":"$H$17","v":2},null,null,null,null,"School Division:",null,{"$f":"$A$17","v":"ALBEMARLE COUNTY PUBLIC SCHOOLS"},null,null,null,null,null,"Division Number:",null,null,{"$f":"$H$17","v":2},null,null,null,null,"School Division:",null,{"$f":"$A$17","v":"ALBEMARLE COUNTY PUBLIC SCHOOLS"},null,null,null,null,null,"Division Number:",null,null,{"$f":"$H$17","v":2},null,null,null,null,"School Division:",null,{"$f":"$A$17","v":"ALBEMARLE COUNTY PUBLIC SCHOOLS"},null,null,null,null,null,"Division Number:",null,null,{"$f":"$H$17","v":2},null,null,null,null,"School Division:",null,{"$f":"$A$17","v":"ALBEMARLE COUNTY PUBLIC SCHOOLS"},null,null,null,null,null,"Division Number:",null,null,{"$f":"$H$17","v":2},null,null,null,null,"School Division:",null,{"$f":"$A$17","v":"ALBEMARLE COUNTY PUBLIC SCHOOLS"},null,null,null,null,null,"Division Number:",null,null,{"$f":"$H$17","v":2},null,null,null,null,"School Division:",null,{"$f":"$A$17","v":"ALBEMARLE COUNTY PUBLIC SCHOOLS"},null,null,null,null,null,"Division Number:",null,null,{"$f":"$H$17","v":2},null,null,null,null,"School Division:",null,{"$f":"$A$17","v":"ALBEMARLE COUNTY PUBLIC SCHOOLS"},null,null,null,null,null,"Division Number:",null,null,{"$f":"$H$17","v":2},null,null,null,null,"School Division:",null,{"$f":"$A$17","v":"ALBEMARLE COUNTY PUBLIC SCHOOLS"},null,null,null,null,null,"Division Number:",null,null,{"$f":"$H$17","v":2},null,null,null,null,"School Division:",null,{"$f":"$A$17","v":"ALBEMARLE COUNTY PUBLIC SCHOOLS"},null,null,null,null,null,"Division Number:",null,null,{"$f":"$H$17","v":2},null,null,null,null,"School Division:",null,{"$f":"$A$17","v":"ALBEMARLE COUNTY PUBLIC SCHOOLS"},null,null,null,null,null,"Division Number:",null,null,{"$f":"$H$17","v":2},null,null,null,null,"School Division:",null,{"$f":"$A$17","v":"ALBEMARLE COUNTY PUBLIC SCHOOLS"},null,null,null,null,null,"Division Number:",null,null,{"$f":"$H$17","v":2},null,null,null,null,"School Division:",null,{"$f":"$A$17","v":"ALBEMARLE COUNTY PUBLIC SCHOOLS"},null,null,null,null,null,"Division Number:",null,null,{"$f":"$H$17","v":2},null,null,null,null,"School Division:",null,{"$f":"$A$17","v":"ALBEMARLE COUNTY PUBLIC SCHOOLS"},null,null,null,null,null,"Division Number:",null,null,{"$f":"$H$17","v":2},null,null,null,null,"School Division:",null,{"$f":"$A$17","v":"ALBEMARLE COUNTY PUBLIC SCHOOLS"},null,null,null,null,null,"Division Number:",null,null,{"$f":"$H$17","v":2},null,null,null,null,"School Division:",null,{"$f":"$A$17","v":"ALBEMARLE COUNTY PUBLIC SCHOOLS"},null,null,null,null,null,"Division Number:",null,null,{"$f":"$H$17","v":2},null,null,null,null,"School Division:",null,{"$f":"$A$17","v":"ALBEMARLE COUNTY PUBLIC SCHOOLS"},null,null,null,null,null,"Division Number:",null,null,{"$f":"$H$17","v":2},null,null,null,null,"School Division:",null,{"$f":"$A$17","v":"ALBEMARLE COUNTY PUBLIC SCHOOLS"},null,null,null,null,null,"Division Number:",null,null,{"$f":"$H$17","v":2},null,null,null,null,"School Division:",null,{"$f":"$A$17","v":"ALBEMARLE COUNTY PUBLIC SCHOOLS"},null,null,null,null,null,"Division Number:",null,null,{"$f":"$H$17","v":2},null,null,null,null,"School Division:",null,{"$f":"$A$17","v":"ALBEMARLE COUNTY PUBLIC SCHOOLS"},null,null,null,null,null,"Division Number:",null,null,{"$f":"$H$17","v":2},null,null,null,null,"School Division:",null,{"$f":"$A$17","v":"ALBEMARLE COUNTY PUBLIC SCHOOLS"},null,null,null,null,null,"Division Number:",null,null,{"$f":"$H$17","v":2},null,null,null,null,"School Division:",null,{"$f":"$A$17","v":"ALBEMARLE COUNTY PUBLIC SCHOOLS"},null,null,null,null,null,"Division Number:",null,null,{"$f":"$H$17","v":2},null,null,null,null,"School Division:",null,{"$f":"$A$17","v":"ALBEMARLE COUNTY PUBLIC SCHOOLS"},null,null,null,null,null,"Division Number:",null,null,{"$f":"$H$17","v":2},null,null,null,null,"School Division:",null,{"$f":"$A$17","v":"ALBEMARLE COUNTY PUBLIC SCHOOLS"},null,null,null,null,null,"Division Number:",null,null,{"$f":"$H$17","v":2},null,null,null,null,"School Division:",null,{"$f":"$A$17","v":"ALBEMARLE COUNTY PUBLIC SCHOOLS"},null,null,null,null,null,"Division Number:",null,null,{"$f":"$H$17","v":2},null,null,null,null,"School Division:",null,{"$f":"$A$17","v":"ALBEMARLE COUNTY PUBLIC SCHOOLS"},null,null,null,null,null,"Division Number:",null,null,{"$f":"$H$17","v":2},null,null,null,null,"School Division:",null,{"$f":"$A$17","v":"ALBEMARLE COUNTY PUBLIC SCHOOLS"},null,null,null,null,null,"Division Number:",null,null,{"$f":"$H$17","v":2},null,null,null,null,"School Division:",null,{"$f":"$A$17","v":"ALBEMARLE COUNTY PUBLIC SCHOOLS"},null,null,null,null,null,"Division Number:",null,null,{"$f":"$H$17","v":2},null,null,null,null,"School Division:",null,{"$f":"$A$17","v":"ALBEMARLE COUNTY PUBLIC SCHOOLS"},null,null,null,null,null,"Division Number:",null,null,{"$f":"$H$17","v":2},null,null,null,null,"School Division:",null,{"$f":"$A$17","v":"ALBEMARLE COUNTY PUBLIC SCHOOLS"},null,null,null,null,null,"Division Number:",null,null,{"$f":"$H$17","v":2},null,null,null,null,"School Division:",null,{"$f":"$A$17","v":"ALBEMARLE COUNTY PUBLIC SCHOOLS"},null,null,null,null,null,"Division Number:",null,null,{"$f":"$H$17","v":2},null,null,null,null,"School Division:",null,{"$f":"$A$17","v":"ALBEMARLE COUNTY PUBLIC SCHOOLS"},null,null,null,null,null,"Division Number:",null,null,{"$f":"$H$17","v":2},null,null,null,null,"School Division:",null,{"$f":"$A$17","v":"ALBEMARLE COUNTY PUBLIC SCHOOLS"},null,null,null,null,null,"Division Number:",null,null,{"$f":"$H$17","v":2},null,null,null,null,"School Division:",null,{"$f":"$A$17","v":"ALBEMARLE COUNTY PUBLIC SCHOOLS"},null,null,null,null,null,"Division Number:",null,null,{"$f":"$H$17","v":2},null,null,null,null,"School Division:",null,{"$f":"$A$17","v":"ALBEMARLE COUNTY PUBLIC SCHOOLS"},null,null,null,null,null,"Division Number:",null,null,{"$f":"$H$17","v":2},null,null,null,null,"School Division:",null,{"$f":"$A$17","v":"ALBEMARLE COUNTY PUBLIC SCHOOLS"},null,null,null,null,null,"Division Number:",null,null,{"$f":"$H$17","v":2},null,null,null,null,"School Division:",null,{"$f":"$A$17","v":"ALBEMARLE COUNTY PUBLIC SCHOOLS"},null,null,null,null,null,"Division Number:",null,null,{"$f":"$H$17","v":2},null,null,null,null,"School Division:",null,{"$f":"$A$17","v":"ALBEMARLE COUNTY PUBLIC SCHOOLS"},null,null,null,null,null,"Division Number:",null,null,{"$f":"$H$17","v":2},null,null,null,null,"School Division:",null,{"$f":"$A$17","v":"ALBEMARLE COUNTY PUBLIC SCHOOLS"},null,null,null,null,null,"Division Number:",null,null,{"$f":"$H$17","v":2},null,null,null,null,"School Division:",null,{"$f":"$A$17","v":"ALBEMARLE COUNTY PUBLIC SCHOOLS"},null,null,null,null,null,"Division Number:",null,null,{"$f":"$H$17","v":2},null,null,null,null,"School Division:",null,{"$f":"$A$17","v":"ALBEMARLE COUNTY PUBLIC SCHOOLS"},null,null,null,null,null,"Division Number:",null,null,{"$f":"$H$17","v":2},null,null,null,null,"School Division:",null,{"$f":"$A$17","v":"ALBEMARLE COUNTY PUBLIC SCHOOLS"},null,null,null,null,null,"Division Number:",null,null,{"$f":"$H$17","v":2},null,null,null,null,"School Division:",null,{"$f":"$A$17","v":"ALBEMARLE COUNTY PUBLIC SCHOOLS"},null,null,null,null,null,"Division Number:",null,null,{"$f":"$H$17","v":2},null,null,null,null,"School Division:",null,{"$f":"$A$17","v":"ALBEMARLE COUNTY PUBLIC SCHOOLS"},null,null,null,null,null,"Division Number:",null,null,{"$f":"$H$17","v":2},null,null,null,null,"School Division:",null,{"$f":"$A$17","v":"ALBEMARLE COUNTY PUBLIC SCHOOLS"},null,null,null,null,null,"Division Number:",null,null,{"$f":"$H$17","v":2},null,null,null,null,"School Division:",null,{"$f":"$A$17","v":"ALBEMARLE COUNTY PUBLIC SCHOOLS"},null,null,null,null,null,"Division Number:",null,null,{"$f":"$H$17","v":2},null,null,null,null,"School Division:",null,{"$f":"$A$17","v":"ALBEMARLE COUNTY PUBLIC SCHOOLS"},null,null,null,null,null,"Division Number:",null,null,{"$f":"$H$17","v":2},null,null,null,null,"School Division:",null,{"$f":"$A$17","v":"ALBEMARLE COUNTY PUBLIC SCHOOLS"},null,null,null,null,null,"Division Number:",null,null,{"$f":"$H$17","v":2},null,null,null,null,"School Division:",null,{"$f":"$A$17","v":"ALBEMARLE COUNTY PUBLIC SCHOOLS"},null,null,null,null,null,"Division Number:",null,null,{"$f":"$H$17","v":2},null,null,null,null,"School Division:",null,{"$f":"$A$17","v":"ALBEMARLE COUNTY PUBLIC SCHOOLS"},null,null,null,null,null,"Division Number:",null,null,{"$f":"$H$17","v":2},null,null,null,null,"School Division:",null,{"$f":"$A$17","v":"ALBEMARLE COUNTY PUBLIC SCHOOLS"},null,null,null,null,null,"Division Number:",null,null,{"$f":"$H$17","v":2},null,null,null,null,"School Division:",null,{"$f":"$A$17","v":"ALBEMARLE COUNTY PUBLIC SCHOOLS"},null,null,null,null,null,"Division Number:",null,null,{"$f":"$H$17","v":2},null,null,null,null,"School Division:",null,{"$f":"$A$17","v":"ALBEMARLE COUNTY PUBLIC SCHOOLS"},null,null,null,null,null,"Division Number:",null,null,{"$f":"$H$17","v":2},null,null,null,null,"School Division:",null,{"$f":"$A$17","v":"ALBEMARLE COUNTY PUBLIC SCHOOLS"},null,null,null,null,null,"Division Number:",null,null,{"$f":"$H$17","v":2},null,null,null,null,"School Division:",null,{"$f":"$A$17","v":"ALBEMARLE COUNTY PUBLIC SCHOOLS"},null,null,null,null,null,"Division Number:",null,null,{"$f":"$H$17","v":2},null,null,null,null,"School Division:",null,{"$f":"$A$17","v":"ALBEMARLE COUNTY PUBLIC SCHOOLS"},null,null,null,null,null,"Division Number:",null,null,{"$f":"$H$17","v":2},null,null,null,null,"School Division:",null,{"$f":"$A$17","v":"ALBEMARLE COUNTY PUBLIC SCHOOLS"},null,null,null,null,null,"Division Number:",null,null,{"$f":"$H$17","v":2},null,null,null,null,"School Division:",null,{"$f":"$A$17","v":"ALBEMARLE COUNTY PUBLIC SCHOOLS"},null,null,null,null,null,"Division Number:",null,null,{"$f":"$H$17","v":2},null,null,null,null,"School Division:",null,{"$f":"$A$17","v":"ALBEMARLE COUNTY PUBLIC SCHOOLS"},null,null,null,null,null,"Division Number:",null,null,{"$f":"$H$17","v":2},null,null,null,null,"School Division:",null,{"$f":"$A$17","v":"ALBEMARLE COUNTY PUBLIC SCHOOLS"},null,null,null,null,null,"Division Number:",null,null,{"$f":"$H$17","v":2},null,null,null,null,"School Division:",null,{"$f":"$A$17","v":"ALBEMARLE COUNTY PUBLIC SCHOOLS"},null,null,null,null,null,"Division Number:",null,null,{"$f":"$H$17","v":2},null,null,null,null,"School Division:",null,{"$f":"$A$17","v":"ALBEMARLE COUNTY PUBLIC SCHOOLS"},null,null,null,null,null,"Division Number:",null,null,{"$f":"$H$17","v":2},null,null,null,null,"School Division:",null,{"$f":"$A$17","v":"ALBEMARLE COUNTY PUBLIC SCHOOLS"},null,null,null,null,null,"Division Number:",null,null,{"$f":"$H$17","v":2},null,null,null,null,"School Division:",null,{"$f":"$A$17","v":"ALBEMARLE COUNTY PUBLIC SCHOOLS"},null,null,null,null,null,"Division Number:",null,null,{"$f":"$H$17","v":2},null,null,null,null,"School Division:",null,{"$f":"$A$17","v":"ALBEMARLE COUNTY PUBLIC SCHOOLS"},null,null,null,null,null,"Division Number:",null,null,{"$f":"$H$17","v":2},null,null,null,null,"School Division:",null,{"$f":"$A$17","v":"ALBEMARLE COUNTY PUBLIC SCHOOLS"},null,null,null,null,null,"Division Number:",null,null,{"$f":"$H$17","v":2},null,null,null,null,"School Division:",null,{"$f":"$A$17","v":"ALBEMARLE COUNTY PUBLIC SCHOOLS"},null,null,null,null,null,"Division Number:",null,null,{"$f":"$H$17","v":2},null,null,null,null,"School Division:",null,{"$f":"$A$17","v":"ALBEMARLE COUNTY PUBLIC SCHOOLS"},null,null,null,null,null,"Division Number:",null,null,{"$f":"$H$17","v":2},null,null,null,null,"School Division:",null,{"$f":"$A$17","v":"ALBEMARLE COUNTY PUBLIC SCHOOLS"},null,null,null,null,null,"Division Number:",null,null,{"$f":"$H$17","v":2},null,null,null,null,"School Division:",null,{"$f":"$A$17","v":"ALBEMARLE COUNTY PUBLIC SCHOOLS"},null,null,null,null,null,"Division Number:",null,null,{"$f":"$H$17","v":2},null,null,null,null,"School Division:",null,{"$f":"$A$17","v":"ALBEMARLE COUNTY PUBLIC SCHOOLS"},null,null,null,null,null,"Division Number:",null,null,{"$f":"$H$17","v":2},null,null,null,null,"School Division:",null,{"$f":"$A$17","v":"ALBEMARLE COUNTY PUBLIC SCHOOLS"},null,null,null,null,null,"Division Number:",null,null,{"$f":"$H$17","v":2},null,null,null,null,"School Division:",null,{"$f":"$A$17","v":"ALBEMARLE COUNTY PUBLIC SCHOOLS"},null,null,null,null,null,"Division Number:",null,null,{"$f":"$H$17","v":2},null,null,null,null,"School Division:",null,{"$f":"$A$17","v":"ALBEMARLE COUNTY PUBLIC SCHOOLS"},null,null,null,null,null,"Division Number:",null,null,{"$f":"$H$17","v":2},null,null,null,null,"School Division:",null,{"$f":"$A$17","v":"ALBEMARLE COUNTY PUBLIC SCHOOLS"},null,null,null,null,null,"Division Number:",null,null,{"$f":"$H$17","v":2},null,null,null,null,"School Division:",null,{"$f":"$A$17","v":"ALBEMARLE COUNTY PUBLIC SCHOOLS"},null,null,null,null,null,"Division Number:",null,null,{"$f":"$H$17","v":2},null,null,null,null,"School Division:",null,{"$f":"$A$17","v":"ALBEMARLE COUNTY PUBLIC SCHOOLS"},null,null,null,null,null,"Division Number:",null,null,{"$f":"$H$17","v":2},null,null,null,null,"School Division:",null,{"$f":"$A$17","v":"ALBEMARLE COUNTY PUBLIC SCHOOLS"},null,null,null,null,null,"Division Number:",null,null,{"$f":"$H$17","v":2},null,null,null,null,"School Division:",null,{"$f":"$A$17","v":"ALBEMARLE COUNTY PUBLIC SCHOOLS"},null,null,null,null,null,"Division Number:",null,null,{"$f":"$H$17","v":2},null,null,null,null,"School Division:",null,{"$f":"$A$17","v":"ALBEMARLE COUNTY PUBLIC SCHOOLS"},null,null,null,null,null,"Division Number:",null,null,{"$f":"$H$17","v":2},null,null,null,null,"School Division:",null,{"$f":"$A$17","v":"ALBEMARLE COUNTY PUBLIC SCHOOLS"},null,null,null,null,null,"Division Number:",null,null,{"$f":"$H$17","v":2},null,null,null,null,"School Division:",null,{"$f":"$A$17","v":"ALBEMARLE COUNTY PUBLIC SCHOOLS"},null,null,null,null,null,"Division Number:",null,null,{"$f":"$H$17","v":2},null,null,null,null,"School Division:",null,{"$f":"$A$17","v":"ALBEMARLE COUNTY PUBLIC SCHOOLS"},null,null,null,null,null,"Division Number:",null,null,{"$f":"$H$17","v":2},null,null,null,null,"School Division:",null,{"$f":"$A$17","v":"ALBEMARLE COUNTY PUBLIC SCHOOLS"},null,null,null,null,null,"Division Number:",null,null,{"$f":"$H$17","v":2},null,null,null,null,"School Division:",null,{"$f":"$A$17","v":"ALBEMARLE COUNTY PUBLIC SCHOOLS"},null,null,null,null,null,"Division Number:",null,null,{"$f":"$H$17","v":2},null,null,null,null,"School Division:",null,{"$f":"$A$17","v":"ALBEMARLE COUNTY PUBLIC SCHOOLS"},null,null,null,null,null,"Division Number:",null,null,{"$f":"$H$17","v":2},null,null,null,null,"School Division:",null,{"$f":"$A$17","v":"ALBEMARLE COUNTY PUBLIC SCHOOLS"},null,null,null,null,null,"Division Number:",null,null,{"$f":"$H$17","v":2},null,null,null,null,"School Division:",null,{"$f":"$A$17","v":"ALBEMARLE COUNTY PUBLIC SCHOOLS"},null,null,null,null,null,"Division Number:",null,null,{"$f":"$H$17","v":2},null,null,null,null,"School Division:",null,{"$f":"$A$17","v":"ALBEMARLE COUNTY PUBLIC SCHOOLS"},null,null,null,null,null,"Division Number:",null,null,{"$f":"$H$17","v":2},null,null,null,null,"School Division:",null,{"$f":"$A$17","v":"ALBEMARLE COUNTY PUBLIC SCHOOLS"},null,null,null,null,null,"Division Number:",null,null,{"$f":"$H$17","v":2},null,null,null,null,"School Division:",null,{"$f":"$A$17","v":"ALBEMARLE COUNTY PUBLIC SCHOOLS"},null,null,null,null,null,"Division Number:",null,null,{"$f":"$H$17","v":2},null,null,null,null,"School Division:",null,{"$f":"$A$17","v":"ALBEMARLE COUNTY PUBLIC SCHOOLS"},null,null,null,null,null,"Division Number:",null,null,{"$f":"$H$17","v":2},null,null,null,null,"School Division:",null,{"$f":"$A$17","v":"ALBEMARLE COUNTY PUBLIC SCHOOLS"},null,null,null,null,null,"Division Number:",null,null,{"$f":"$H$17","v":2},null,null,null,null,"School Division:",null,{"$f":"$A$17","v":"ALBEMARLE COUNTY PUBLIC SCHOOLS"},null,null,null,null,null,"Division Number:",null,null,{"$f":"$H$17","v":2},null,null,null,null,"School Division:",null,{"$f":"$A$17","v":"ALBEMARLE COUNTY PUBLIC SCHOOLS"},null,null,null,null,null,"Division Number:",null,null,{"$f":"$H$17","v":2},null,null,null,null,"School Division:",null,{"$f":"$A$17","v":"ALBEMARLE COUNTY PUBLIC SCHOOLS"},null,null,null,null,null,"Division Number:",null,null,{"$f":"$H$17","v":2},null,null,null,null,"School Division:",null,{"$f":"$A$17","v":"ALBEMARLE COUNTY PUBLIC SCHOOLS"},null,null,null,null,null,"Division Number:",null,null,{"$f":"$H$17","v":2},null,null,null,null,"School Division:",null,{"$f":"$A$17","v":"ALBEMARLE COUNTY PUBLIC SCHOOLS"},null,null,null,null,null,"Division Number:",null,null,{"$f":"$H$17","v":2},null,null,null,null,"School Division:",null,{"$f":"$A$17","v":"ALBEMARLE COUNTY PUBLIC SCHOOLS"},null,null,null,null,null,"Division Number:",null,null,{"$f":"$H$17","v":2},null,null,null,null,"School Division:",null,{"$f":"$A$17","v":"ALBEMARLE COUNTY PUBLIC SCHOOLS"},null,null,null,null,null,"Division Number:",null,null,{"$f":"$H$17","v":2},null,null,null,null,"School Division:",null,{"$f":"$A$17","v":"ALBEMARLE COUNTY PUBLIC SCHOOLS"},null,null,null,null,null,"Division Number:",null,null,{"$f":"$H$17","v":2},null,null,null,null,"School Division:",null,{"$f":"$A$17","v":"ALBEMARLE COUNTY PUBLIC SCHOOLS"},null,null,null,null,null,"Division Number:",null,null,{"$f":"$H$17","v":2},null,null,null,null,"School Division:",null,{"$f":"$A$17","v":"ALBEMARLE COUNTY PUBLIC SCHOOLS"},null,null,null,null,null,"Division Number:",null,null,{"$f":"$H$17","v":2},null,null,null,null,"School Division:",null,{"$f":"$A$17","v":"ALBEMARLE COUNTY PUBLIC SCHOOLS"},null,null,null,null,null,"Division Number:",null,null,{"$f":"$H$17","v":2},null,null,null,null,"School Division:",null,{"$f":"$A$17","v":"ALBEMARLE COUNTY PUBLIC SCHOOLS"},null,null,null,null,null,"Division Number:",null,null,{"$f":"$H$17","v":2},null,null,null,null,"School Division:",null,{"$f":"$A$17","v":"ALBEMARLE COUNTY PUBLIC SCHOOLS"},null,null,null,null,null,"Division Number:",null,null,{"$f":"$H$17","v":2},null,null,null,null,"School Division:",null,{"$f":"$A$17","v":"ALBEMARLE COUNTY PUBLIC SCHOOLS"},null,null,null,null,null,"Division Number:",null,null,{"$f":"$H$17","v":2},null,null,null,null,"School Division:",null,{"$f":"$A$17","v":"ALBEMARLE COUNTY PUBLIC SCHOOLS"},null,null,null,null,null,"Division Number:",null,null,{"$f":"$H$17","v":2},null,null,null,null,"School Division:",null,{"$f":"$A$17","v":"ALBEMARLE COUNTY PUBLIC SCHOOLS"},null,null,null,null,null,"Division Number:",null,null,{"$f":"$H$17","v":2},null,null,null,null,"School Division:",null,{"$f":"$A$17","v":"ALBEMARLE COUNTY PUBLIC SCHOOLS"},null,null,null,null,null,"Division Number:",null,null,{"$f":"$H$17","v":2},null,null,null,null,"School Division:",null,{"$f":"$A$17","v":"ALBEMARLE COUNTY PUBLIC SCHOOLS"},null,null,null,null,null,"Division Number:",null,null,{"$f":"$H$17","v":2},null,null,null,null,"School Division:",null,{"$f":"$A$17","v":"ALBEMARLE COUNTY PUBLIC SCHOOLS"},null,null,null,null,null,"Division Number:",null,null,{"$f":"$H$17","v":2},null,null,null,null,"School Division:",null,{"$f":"$A$17","v":"ALBEMARLE COUNTY PUBLIC SCHOOLS"},null,null,null,null,null,"Division Number:",null,null,{"$f":"$H$17","v":2},null,null,null,null,"School Division:",null,{"$f":"$A$17","v":"ALBEMARLE COUNTY PUBLIC SCHOOLS"},null,null,null,null,null,"Division Number:",null,null,{"$f":"$H$17","v":2},null,null,null,null,"School Division:",null,{"$f":"$A$17","v":"ALBEMARLE COUNTY PUBLIC SCHOOLS"},null,null,null,null,null,"Division Number:",null,null,{"$f":"$H$17","v":2},null,null,null,null,"School Division:",null,{"$f":"$A$17","v":"ALBEMARLE COUNTY PUBLIC SCHOOLS"},null,null,null,null,null,"Division Number:",null,null,{"$f":"$H$17","v":2},null,null,null,null,"School Division:",null,{"$f":"$A$17","v":"ALBEMARLE COUNTY PUBLIC SCHOOLS"},null,null,null,null,null,"Division Number:",null,null,{"$f":"$H$17","v":2},null,null,null,null,"School Division:",null,{"$f":"$A$17","v":"ALBEMARLE COUNTY PUBLIC SCHOOLS"},null,null,null,null,null,"Division Number:",null,null,{"$f":"$H$17","v":2},null,null,null,null,"School Division:",null,{"$f":"$A$17","v":"ALBEMARLE COUNTY PUBLIC SCHOOLS"},null,null,null,null,null,"Division Number:",null,null,{"$f":"$H$17","v":2},null,null,null,null,"School Division:",null,{"$f":"$A$17","v":"ALBEMARLE COUNTY PUBLIC SCHOOLS"},null,null,null,null,null,"Division Number:",null,null,{"$f":"$H$17","v":2},null,null,null,null,"School Division:",null,{"$f":"$A$17","v":"ALBEMARLE COUNTY PUBLIC SCHOOLS"},null,null,null,null,null,"Division Number:",null,null,{"$f":"$H$17","v":2},null,null,null,null,"School Division:",null,{"$f":"$A$17","v":"ALBEMARLE COUNTY PUBLIC SCHOOLS"},null,null,null,null,null,"Division Number:",null,null,{"$f":"$H$17","v":2},null,null,null,null,"School Division:",null,{"$f":"$A$17","v":"ALBEMARLE COUNTY PUBLIC SCHOOLS"},null,null,null,null,null,"Division Number:",null,null,{"$f":"$H$17","v":2},null,null,null,null,"School Division:",null,{"$f":"$A$17","v":"ALBEMARLE COUNTY PUBLIC SCHOOLS"},null,null,null,null,null,"Division Number:",null,null,{"$f":"$H$17","v":2},null,null,null,null,"School Division:",null,{"$f":"$A$17","v":"ALBEMARLE COUNTY PUBLIC SCHOOLS"},null,null,null,null,null,"Division Number:",null,null,{"$f":"$H$17","v":2},null,null,null,null,"School Division:",null,{"$f":"$A$17","v":"ALBEMARLE COUNTY PUBLIC SCHOOLS"},null,null,null,null,null,"Division Number:",null,null,{"$f":"$H$17","v":2},null,null,null,null,"School Division:",null,{"$f":"$A$17","v":"ALBEMARLE COUNTY PUBLIC SCHOOLS"},null,null,null,null,null,"Division Number:",null,null,{"$f":"$H$17","v":2},null,null,null,null,"School Division:",null,{"$f":"$A$17","v":"ALBEMARLE COUNTY PUBLIC SCHOOLS"},null,null,null,null,null,"Division Number:",null,null,{"$f":"$H$17","v":2},null,null,null,null,"School Division:",null,{"$f":"$A$17","v":"ALBEMARLE COUNTY PUBLIC SCHOOLS"},null,null,null,null,null,"Division Number:",null,null,{"$f":"$H$17","v":2},null,null,null,null,"School Division:",null,{"$f":"$A$17","v":"ALBEMARLE COUNTY PUBLIC SCHOOLS"},null,null,null,null,null,"Division Number:",null,null,{"$f":"$H$17","v":2},null,null,null,null,"School Division:",null,{"$f":"$A$17","v":"ALBEMARLE COUNTY PUBLIC SCHOOLS"},null,null,null,null,null,"Division Number:",null,null,{"$f":"$H$17","v":2},null,null,null,null,"School Division:",null,{"$f":"$A$17","v":"ALBEMARLE COUNTY PUBLIC SCHOOLS"},null,null,null,null,null,"Division Number:",null,null,{"$f":"$H$17","v":2},null,null,null,null,"School Division:",null,{"$f":"$A$17","v":"ALBEMARLE COUNTY PUBLIC SCHOOLS"},null,null,null,null,null,"Division Number:",null,null,{"$f":"$H$17","v":2},null,null,null,null,"School Division:",null,{"$f":"$A$17","v":"ALBEMARLE COUNTY PUBLIC SCHOOLS"},null,null,null,null,null,"Division Number:",null,null,{"$f":"$H$17","v":2},null,null,null,null,"School Division:",null,{"$f":"$A$17","v":"ALBEMARLE COUNTY PUBLIC SCHOOLS"},null,null,null,null,null,"Division Number:",null,null,{"$f":"$H$17","v":2},null,null,null,null,"School Division:",null,{"$f":"$A$17","v":"ALBEMARLE COUNTY PUBLIC SCHOOLS"},null,null,null,null,null,"Division Number:",null,null,{"$f":"$H$17","v":2},null,null,null,null,"School Division:",null,{"$f":"$A$17","v":"ALBEMARLE COUNTY PUBLIC SCHOOLS"},null,null,null,null,null,"Division Number:",null,null,{"$f":"$H$17","v":2},null,null,null,null,"School Division:",null,{"$f":"$A$17","v":"ALBEMARLE COUNTY PUBLIC SCHOOLS"},null,null,null,null,null,"Division Number:",null,null,{"$f":"$H$17","v":2},null,null,null,null,"School Division:",null,{"$f":"$A$17","v":"ALBEMARLE COUNTY PUBLIC SCHOOLS"},null,null,null,null,null,"Division Number:",null,null,{"$f":"$H$17","v":2},null,null,null,null,"School Division:",null,{"$f":"$A$17","v":"ALBEMARLE COUNTY PUBLIC SCHOOLS"},null,null,null,null,null,"Division Number:",null,null,{"$f":"$H$17","v":2},null,null,null,null,"School Division:",null,{"$f":"$A$17","v":"ALBEMARLE COUNTY PUBLIC SCHOOLS"},null,null,null,null,null,"Division Number:",null,null,{"$f":"$H$17","v":2},null,null,null,null,"School Division:",null,{"$f":"$A$17","v":"ALBEMARLE COUNTY PUBLIC SCHOOLS"},null,null,null,null,null,"Division Number:",null,null,{"$f":"$H$17","v":2},null,null,null,null,"School Division:",null,{"$f":"$A$17","v":"ALBEMARLE COUNTY PUBLIC SCHOOLS"},null,null,null,null,null,"Division Number:",null,null,{"$f":"$H$17","v":2},null,null,null,null,"School Division:",null,{"$f":"$A$17","v":"ALBEMARLE COUNTY PUBLIC SCHOOLS"},null,null,null,null,null,"Division Number:",null,null,{"$f":"$H$17","v":2},null,null,null,null,"School Division:",null,{"$f":"$A$17","v":"ALBEMARLE COUNTY PUBLIC SCHOOLS"},null,null,null,null,null,"Division Number:",null,null,{"$f":"$H$17","v":2},null,null,null,null,"School Division:",null,{"$f":"$A$17","v":"ALBEMARLE COUNTY PUBLIC SCHOOLS"},null,null,null,null,null,"Division Number:",null,null,{"$f":"$H$17","v":2},null,null,null,null,"School Division:",null,{"$f":"$A$17","v":"ALBEMARLE COUNTY PUBLIC SCHOOLS"},null,null,null,null,null,"Division Number:",null,null,{"$f":"$H$17","v":2},null,null,null,null,"School Division:",null,{"$f":"$A$17","v":"ALBEMARLE COUNTY PUBLIC SCHOOLS"},null,null,null,null,null,"Division Number:",null,null,{"$f":"$H$17","v":2},null,null,null,null,"School Division:",null,{"$f":"$A$17","v":"ALBEMARLE COUNTY PUBLIC SCHOOLS"},null,null,null,null,null,"Division Number:",null,null,{"$f":"$H$17","v":2},null,null,null,null,"School Division:",null,{"$f":"$A$17","v":"ALBEMARLE COUNTY PUBLIC SCHOOLS"},null,null,null,null,null,"Division Number:",null,null,{"$f":"$H$17","v":2},null,null,null,null,"School Division:",null,{"$f":"$A$17","v":"ALBEMARLE COUNTY PUBLIC SCHOOLS"},null,null,null,null,null,"Division Number:",null,null,{"$f":"$H$17","v":2},null,null,null,null,"School Division:",null,{"$f":"$A$17","v":"ALBEMARLE COUNTY PUBLIC SCHOOLS"},null,null,null,null,null,"Division Number:",null,null,{"$f":"$H$17","v":2},null,null,null,null,"School Division:",null,{"$f":"$A$17","v":"ALBEMARLE COUNTY PUBLIC SCHOOLS"},null,null,null,null,null,"Division Number:",null,null,{"$f":"$H$17","v":2},null,null,null,null,"School Division:",null,{"$f":"$A$17","v":"ALBEMARLE COUNTY PUBLIC SCHOOLS"},null,null,null,null,null,"Division Number:",null,null,{"$f":"$H$17","v":2},null,null,null,null,"School Division:",null,{"$f":"$A$17","v":"ALBEMARLE COUNTY PUBLIC SCHOOLS"},null,null,null,null,null,"Division Number:",null,null,{"$f":"$H$17","v":2},null,null,null,null,"School Division:",null,{"$f":"$A$17","v":"ALBEMARLE COUNTY PUBLIC SCHOOLS"},null,null,null,null,null,"Division Number:",null,null,{"$f":"$H$17","v":2},null,null,null,null,"School Division:",null,{"$f":"$A$17","v":"ALBEMARLE COUNTY PUBLIC SCHOOLS"},null,null,null,null,null,"Division Number:",null,null,{"$f":"$H$17","v":2},null,null,null,null,"School Division:",null,{"$f":"$A$17","v":"ALBEMARLE COUNTY PUBLIC SCHOOLS"},null,null,null,null,null,"Division Number:",null,null,{"$f":"$H$17","v":2},null,null,null,null,"School Division:",null,{"$f":"$A$17","v":"ALBEMARLE COUNTY PUBLIC SCHOOLS"},null,null,null,null,null,"Division Number:",null,null,{"$f":"$H$17","v":2},null,null,null,null,"School Division:",null,{"$f":"$A$17","v":"ALBEMARLE COUNTY PUBLIC SCHOOLS"},null,null,null,null,null,"Division Number:",null,null,{"$f":"$H$17","v":2},null,null,null,null,"School Division:",null,{"$f":"$A$17","v":"ALBEMARLE COUNTY PUBLIC SCHOOLS"},null,null,null,null,null,"Division Number:",null,null,{"$f":"$H$17","v":2},null,null,null,null,"School Division:",null,{"$f":"$A$17","v":"ALBEMARLE COUNTY PUBLIC SCHOOLS"},null,null,null,null,null,"Division Number:",null,null,{"$f":"$H$17","v":2},null,null,null,null,"School Division:",null,{"$f":"$A$17","v":"ALBEMARLE COUNTY PUBLIC SCHOOLS"},null,null,null,null,null,"Division Number:",null,null,{"$f":"$H$17","v":2},null,null,null,null,"School Division:",null,{"$f":"$A$17","v":"ALBEMARLE COUNTY PUBLIC SCHOOLS"},null,null,null,null,null,"Division Number:",null,null,{"$f":"$H$17","v":2},null,null,null,null,"School Division:",null,{"$f":"$A$17","v":"ALBEMARLE COUNTY PUBLIC SCHOOLS"},null,null,null,null,null,"Division Number:",null,null,{"$f":"$H$17","v":2},null,null,null,null,"School Division:",null,{"$f":"$A$17","v":"ALBEMARLE COUNTY PUBLIC SCHOOLS"},null,null,null,null,null,"Division Number:",null,null,{"$f":"$H$17","v":2},null,null,null,null,"School Division:",null,{"$f":"$A$17","v":"ALBEMARLE COUNTY PUBLIC SCHOOLS"},null,null,null,null,null,"Division Number:",null,null,{"$f":"$H$17","v":2},null,null,null,null,"School Division:",null,{"$f":"$A$17","v":"ALBEMARLE COUNTY PUBLIC SCHOOLS"},null,null,null,null,null,"Division Number:",null,null,{"$f":"$H$17","v":2},null,null,null,null,"School Division:",null,{"$f":"$A$17","v":"ALBEMARLE COUNTY PUBLIC SCHOOLS"},null,null,null,null,null,"Division Number:",null,null,{"$f":"$H$17","v":2},null,null,null,null,"School Division:",null,{"$f":"$A$17","v":"ALBEMARLE COUNTY PUBLIC SCHOOLS"},null,null,null,null,null,"Division Number:",null,null,{"$f":"$H$17","v":2},null,null,null,null,"School Division:",null,{"$f":"$A$17","v":"ALBEMARLE COUNTY PUBLIC SCHOOLS"},null,null,null,null,null,"Division Number:",null,null,{"$f":"$H$17","v":2},null,null,null,null,"School Division:",null,{"$f":"$A$17","v":"ALBEMARLE COUNTY PUBLIC SCHOOLS"},null,null,null,null,null,"Division Number:",null,null,{"$f":"$H$17","v":2},null,null,null,null,"School Division:",null,{"$f":"$A$17","v":"ALBEMARLE COUNTY PUBLIC SCHOOLS"},null,null,null,null,null,"Division Number:",null,null,{"$f":"$H$17","v":2},null,null,null,null,"School Division:",null,{"$f":"$A$17","v":"ALBEMARLE COUNTY PUBLIC SCHOOLS"},null,null,null,null,null,"Division Number:",null,null,{"$f":"$H$17","v":2},null,null,null,null,"School Division:",null,{"$f":"$A$17","v":"ALBEMARLE COUNTY PUBLIC SCHOOLS"},null,null,null,null,null,"Division Number:",null,null,{"$f":"$H$17","v":2},null,null,null,null,"School Division:",null,{"$f":"$A$17","v":"ALBEMARLE COUNTY PUBLIC SCHOOLS"},null,null,null,null,null,"Division Number:",null,null,{"$f":"$H$17","v":2},null,null,null,null,"School Division:",null,{"$f":"$A$17","v":"ALBEMARLE COUNTY PUBLIC SCHOOLS"},null,null,null,null,null,"Division Number:",null,null,{"$f":"$H$17","v":2},null,null,null,null,"School Division:",null,{"$f":"$A$17","v":"ALBEMARLE COUNTY PUBLIC SCHOOLS"},null,null,null,null,null,"Division Number:",null,null,{"$f":"$H$17","v":2},null,null,null,null,"School Division:",null,{"$f":"$A$17","v":"ALBEMARLE COUNTY PUBLIC SCHOOLS"},null,null,null,null,null,"Division Number:",null,null,{"$f":"$H$17","v":2},null,null,null,null,"School Division:",null,{"$f":"$A$17","v":"ALBEMARLE COUNTY PUBLIC SCHOOLS"},null,null,null,null,null,"Division Number:",null,null,{"$f":"$H$17","v":2},null,null,null,null,"School Division:",null,{"$f":"$A$17","v":"ALBEMARLE COUNTY PUBLIC SCHOOLS"},null,null,null,null,null,"Division Number:",null,null,{"$f":"$H$17","v":2},null,null,null,null,"School Division:",null,{"$f":"$A$17","v":"ALBEMARLE COUNTY PUBLIC SCHOOLS"},null,null,null,null,null,"Division Number:",null,null,{"$f":"$H$17","v":2},null,null,null,null,"School Division:",null,{"$f":"$A$17","v":"ALBEMARLE COUNTY PUBLIC SCHOOLS"},null,null,null,null,null,"Division Number:",null,null,{"$f":"$H$17","v":2},null,null,null,null,"School Division:",null,{"$f":"$A$17","v":"ALBEMARLE COUNTY PUBLIC SCHOOLS"},null,null,null,null,null,"Division Number:",null,null,{"$f":"$H$17","v":2},null,null,null,null,"School Division:",null,{"$f":"$A$17","v":"ALBEMARLE COUNTY PUBLIC SCHOOLS"},null,null,null,null,null,"Division Number:",null,null,{"$f":"$H$17","v":2},null,null,null,null,"School Division:",null,{"$f":"$A$17","v":"ALBEMARLE COUNTY PUBLIC SCHOOLS"},null,null,null,null,null,"Division Number:",null,null,{"$f":"$H$17","v":2},null,null,null,null,"School Division:",null,{"$f":"$A$17","v":"ALBEMARLE COUNTY PUBLIC SCHOOLS"},null,null,null,null,null,"Division Number:",null,null,{"$f":"$H$17","v":2},null,null,null,null,"School Division:",null,{"$f":"$A$17","v":"ALBEMARLE COUNTY PUBLIC SCHOOLS"},null,null,null,null,null,"Division Number:",null,null,{"$f":"$H$17","v":2},null,null,null,null,"School Division:",null,{"$f":"$A$17","v":"ALBEMARLE COUNTY PUBLIC SCHOOLS"},null,null,null,null,null,"Division Number:",null,null,{"$f":"$H$17","v":2},null,null,null,null,"School Division:",null,{"$f":"$A$17","v":"ALBEMARLE COUNTY PUBLIC SCHOOLS"},null,null,null,null,null,"Division Number:",null,null,{"$f":"$H$17","v":2},null,null,null,null,"School Division:",null,{"$f":"$A$17","v":"ALBEMARLE COUNTY PUBLIC SCHOOLS"},null,null,null,null,null,"Division Number:",null,null,{"$f":"$H$17","v":2},null,null,null,null,"School Division:",null,{"$f":"$A$17","v":"ALBEMARLE COUNTY PUBLIC SCHOOLS"},null,null,null,null,null,"Division Number:",null,null,{"$f":"$H$17","v":2},null,null,null,null,"School Division:",null,{"$f":"$A$17","v":"ALBEMARLE COUNTY PUBLIC SCHOOLS"},null,null,null,null,null,"Division Number:",null,null,{"$f":"$H$17","v":2},null,null,null,null,"School Division:",null,{"$f":"$A$17","v":"ALBEMARLE COUNTY PUBLIC SCHOOLS"},null,null,null,null,null,"Division Number:",null,null,{"$f":"$H$17","v":2},null,null,null,null,"School Division:",null,{"$f":"$A$17","v":"ALBEMARLE COUNTY PUBLIC SCHOOLS"},null,null,null,null,null,"Division Number:",null,null,{"$f":"$H$17","v":2},null,null,null,null,"School Division:",null,{"$f":"$A$17","v":"ALBEMARLE COUNTY PUBLIC SCHOOLS"},null,null,null,null,null,"Division Number:",null,null,{"$f":"$H$17","v":2},null,null,null,null,"School Division:",null,{"$f":"$A$17","v":"ALBEMARLE COUNTY PUBLIC SCHOOLS"},null,null,null,null,null,"Division Number:",null,null,{"$f":"$H$17","v":2},null,null,null,null,"School Division:",null,{"$f":"$A$17","v":"ALBEMARLE COUNTY PUBLIC SCHOOLS"},null,null,null,null,null,"Division Number:",null,null,{"$f":"$H$17","v":2},null,null,null,null,"School Division:",null,{"$f":"$A$17","v":"ALBEMARLE COUNTY PUBLIC SCHOOLS"},null,null,null,null,null,"Division Number:",null,null,{"$f":"$H$17","v":2},null,null,null,null,"School Division:",null,{"$f":"$A$17","v":"ALBEMARLE COUNTY PUBLIC SCHOOLS"},null,null,null,null,null,"Division Number:",null,null,{"$f":"$H$17","v":2},null,null,null,null,"School Division:",null,{"$f":"$A$17","v":"ALBEMARLE COUNTY PUBLIC SCHOOLS"},null,null,null,null,null,"Division Number:",null,null,{"$f":"$H$17","v":2},null,null,null,null,"School Division:",null,{"$f":"$A$17","v":"ALBEMARLE COUNTY PUBLIC SCHOOLS"},null,null,null,null,null,"Division Number:",null,null,{"$f":"$H$17","v":2},null,null,null,null,"School Division:",null,{"$f":"$A$17","v":"ALBEMARLE COUNTY PUBLIC SCHOOLS"},null,null,null,null,null,"Division Number:",null,null,{"$f":"$H$17","v":2},null,null,null,null,"School Division:",null,{"$f":"$A$17","v":"ALBEMARLE COUNTY PUBLIC SCHOOLS"},null,null,null,null,null,"Division Number:",null,null,{"$f":"$H$17","v":2},null,null,null,null,"School Division:",null,{"$f":"$A$17","v":"ALBEMARLE COUNTY PUBLIC SCHOOLS"},null,null,null,null,null,"Division Number:",null,null,{"$f":"$H$17","v":2},null,null,null,null,"School Division:",null,{"$f":"$A$17","v":"ALBEMARLE COUNTY PUBLIC SCHOOLS"},null,null,null,null,null,"Division Number:",null,null,{"$f":"$H$17","v":2},null,null,null,null,"School Division:",null,{"$f":"$A$17","v":"ALBEMARLE COUNTY PUBLIC SCHOOLS"},null,null,null,null,null,"Division Number:",null,null,{"$f":"$H$17","v":2},null,null,null,null,"School Division:",null,{"$f":"$A$17","v":"ALBEMARLE COUNTY PUBLIC SCHOOLS"},null,null,null,null,null,"Division Number:",null,null,{"$f":"$H$17","v":2},null,null,null,null,"School Division:",null,{"$f":"$A$17","v":"ALBEMARLE COUNTY PUBLIC SCHOOLS"},null,null,null,null,null,"Division Number:",null,null,{"$f":"$H$17","v":2},null,null,null,null,"School Division:",null,{"$f":"$A$17","v":"ALBEMARLE COUNTY PUBLIC SCHOOLS"},null,null,null,null,null,"Division Number:",null,null,{"$f":"$H$17","v":2},null,null,null,null,"School Division:",null,{"$f":"$A$17","v":"ALBEMARLE COUNTY PUBLIC SCHOOLS"},null,null,null,null,null,"Division Number:",null,null,{"$f":"$H$17","v":2},null,null,null,null,"School Division:",null,{"$f":"$A$17","v":"ALBEMARLE COUNTY PUBLIC SCHOOLS"},null,null,null,null,null,"Division Number:",null,null,{"$f":"$H$17","v":2},null,null,null,null,"School Division:",null,{"$f":"$A$17","v":"ALBEMARLE COUNTY PUBLIC SCHOOLS"},null,null,null,null,null,"Division Number:",null,null,{"$f":"$H$17","v":2},null,null,null,null,"School Division:",null,{"$f":"$A$17","v":"ALBEMARLE COUNTY PUBLIC SCHOOLS"},null,null,null,null,null,"Division Number:",null,null,{"$f":"$H$17","v":2},null,null,null,null,"School Division:",null,{"$f":"$A$17","v":"ALBEMARLE COUNTY PUBLIC SCHOOLS"},null,null,null,null,null,"Division Number:",null,null,{"$f":"$H$17","v":2},null,null,null,null,"School Division:",null,{"$f":"$A$17","v":"ALBEMARLE COUNTY PUBLIC SCHOOLS"},null,null,null,null,null,"Division Number:",null,null,{"$f":"$H$17","v":2},null,null,null,null,"School Division:",null,{"$f":"$A$17","v":"ALBEMARLE COUNTY PUBLIC SCHOOLS"},null,null,null,null,null,"Division Number:",null,null,{"$f":"$H$17","v":2},null,null,null,null,"School Division:",null,{"$f":"$A$17","v":"ALBEMARLE COUNTY PUBLIC SCHOOLS"},null,null,null,null,null,"Division Number:",null,null,{"$f":"$H$17","v":2},null,null,null,null,"School Division:",null,{"$f":"$A$17","v":"ALBEMARLE COUNTY PUBLIC SCHOOLS"},null,null,null,null,null,"Division Number:",null,null,{"$f":"$H$17","v":2},null,null,null,null,"School Division:",null,{"$f":"$A$17","v":"ALBEMARLE COUNTY PUBLIC SCHOOLS"},null,null,null,null,null,"Division Number:",null,null,{"$f":"$H$17","v":2},null,null,null,null,"School Division:",null,{"$f":"$A$17","v":"ALBEMARLE COUNTY PUBLIC SCHOOLS"},null,null,null,null,null,"Division Number:",null,null,{"$f":"$H$17","v":2},null,null,null,null,"School Division:",null,{"$f":"$A$17","v":"ALBEMARLE COUNTY PUBLIC SCHOOLS"},null,null,null,null,null,"Division Number:",null,null,{"$f":"$H$17","v":2},null,null,null,null,"School Division:",null,{"$f":"$A$17","v":"ALBEMARLE COUNTY PUBLIC SCHOOLS"},null,null,null,null,null,"Division Number:",null,null,{"$f":"$H$17","v":2},null,null,null,null,"School Division:",null,{"$f":"$A$17","v":"ALBEMARLE COUNTY PUBLIC SCHOOLS"},null,null,null,null,null,"Division Number:",null,null,{"$f":"$H$17","v":2},null,null,null,null,"School Division:",null,{"$f":"$A$17","v":"ALBEMARLE COUNTY PUBLIC SCHOOLS"},null,null,null,null,null,"Division Number:",null,null,{"$f":"$H$17","v":2},null,null,null,null,"School Division:",null,{"$f":"$A$17","v":"ALBEMARLE COUNTY PUBLIC SCHOOLS"},null,null,null,null,null,"Division Number:",null,null,{"$f":"$H$17","v":2},null,null,null,null,"School Division:",null,{"$f":"$A$17","v":"ALBEMARLE COUNTY PUBLIC SCHOOLS"},null,null,null,null,null,"Division Number:",null,null,{"$f":"$H$17","v":2},null,null,null,null,"School Division:",null,{"$f":"$A$17","v":"ALBEMARLE COUNTY PUBLIC SCHOOLS"},null,null,null,null,null,"Division Number:",null,null,{"$f":"$H$17","v":2},null,null,null,null,"School Division:",null,{"$f":"$A$17","v":"ALBEMARLE COUNTY PUBLIC SCHOOLS"},null,null,null,null,null,"Division Number:",null,null,{"$f":"$H$17","v":2},null,null,null,null,"School Division:",null,{"$f":"$A$17","v":"ALBEMARLE COUNTY PUBLIC SCHOOLS"},null,null,null,null,null,"Division Number:",null,null,{"$f":"$H$17","v":2},null,null,null,null,"School Division:",null,{"$f":"$A$17","v":"ALBEMARLE COUNTY PUBLIC SCHOOLS"},null,null,null,null,null,"Division Number:",null,null,{"$f":"$H$17","v":2},null,null,null,null,"School Division:",null,{"$f":"$A$17","v":"ALBEMARLE COUNTY PUBLIC SCHOOLS"},null,null,null,null,null,"Division Number:",null,null,{"$f":"$H$17","v":2},null,null,null,null,"School Division:",null,{"$f":"$A$17","v":"ALBEMARLE COUNTY PUBLIC SCHOOLS"},null,null,null,null,null,"Division Number:",null,null,{"$f":"$H$17","v":2},null,null,null,null,"School Division:",null,{"$f":"$A$17","v":"ALBEMARLE COUNTY PUBLIC SCHOOLS"},null,null,null,null,null,"Division Number:",null,null,{"$f":"$H$17","v":2},null,null,null,null,"School Division:",null,{"$f":"$A$17","v":"ALBEMARLE COUNTY PUBLIC SCHOOLS"},null,null,null,null,null,"Division Number:",null,null,{"$f":"$H$17","v":2},null,null,null,null,"School Division:",null,{"$f":"$A$17","v":"ALBEMARLE COUNTY PUBLIC SCHOOLS"},null,null,null,null,null,"Division Number:",null,null,{"$f":"$H$17","v":2},null,null,null,null,"School Division:",null,{"$f":"$A$17","v":"ALBEMARLE COUNTY PUBLIC SCHOOLS"},null,null,null,null,null,"Division Number:",null,null,{"$f":"$H$17","v":2},null,null,null,null,"School Division:",null,{"$f":"$A$17","v":"ALBEMARLE COUNTY PUBLIC SCHOOLS"},null,null,null,null,null,"Division Number:",null,null,{"$f":"$H$17","v":2},null,null,null,null,"School Division:",null,{"$f":"$A$17","v":"ALBEMARLE COUNTY PUBLIC SCHOOLS"},null,null,null,null,null,"Division Number:",null,null,{"$f":"$H$17","v":2},null,null,null,null,"School Division:",null,{"$f":"$A$17","v":"ALBEMARLE COUNTY PUBLIC SCHOOLS"},null,null,null,null,null,"Division Number:",null,null,{"$f":"$H$17","v":2},null,null,null,null,"School Division:",null,{"$f":"$A$17","v":"ALBEMARLE COUNTY PUBLIC SCHOOLS"},null,null,null,null,null,"Division Number:",null,null,{"$f":"$H$17","v":2},null,null,null,null,"School Division:",null,{"$f":"$A$17","v":"ALBEMARLE COUNTY PUBLIC SCHOOLS"},null,null,null,null,null,"Division Number:",null,null,{"$f":"$H$17","v":2},null,null,null,null,"School Division:",null,{"$f":"$A$17","v":"ALBEMARLE COUNTY PUBLIC SCHOOLS"},null,null,null,null,null,"Division Number:",null,null,{"$f":"$H$17","v":2},null,null,null,null,"School Division:",null,{"$f":"$A$17","v":"ALBEMARLE COUNTY PUBLIC SCHOOLS"},null,null,null,null,null,"Division Number:",null,null,{"$f":"$H$17","v":2},null,null,null,null,"School Division:",null,{"$f":"$A$17","v":"ALBEMARLE COUNTY PUBLIC SCHOOLS"},null,null,null,null,null,"Division Number:",null,null,{"$f":"$H$17","v":2},null,null,null,null,"School Division:",null,{"$f":"$A$17","v":"ALBEMARLE COUNTY PUBLIC SCHOOLS"},null,null,null,null,null,"Division Number:",null,null,{"$f":"$H$17","v":2},null,null,null,null,"School Division:",null,{"$f":"$A$17","v":"ALBEMARLE COUNTY PUBLIC SCHOOLS"},null,null,null,null,null,"Division Number:",null,null,{"$f":"$H$17","v":2},null,null,null,null,"School Division:",null,{"$f":"$A$17","v":"ALBEMARLE COUNTY PUBLIC SCHOOLS"},null,null,null,null,null,"Division Number:",null,null,{"$f":"$H$17","v":2},null,null,null,null,"School Division:",null,{"$f":"$A$17","v":"ALBEMARLE COUNTY PUBLIC SCHOOLS"},null,null,null,null,null,"Division Number:",null,null,{"$f":"$H$17","v":2},null,null,null,null,"School Division:",null,{"$f":"$A$17","v":"ALBEMARLE COUNTY PUBLIC SCHOOLS"},null,null,null,null,null,"Division Number:",null,null,{"$f":"$H$17","v":2},null,null,null,null,"School Division:",null,{"$f":"$A$17","v":"ALBEMARLE COUNTY PUBLIC SCHOOLS"},null,null,null,null,null,"Division Number:",null,null,{"$f":"$H$17","v":2},null,null,null,null,"School Division:",null,{"$f":"$A$17","v":"ALBEMARLE COUNTY PUBLIC SCHOOLS"},null,null,null,null,null,"Division Number:",null,null,{"$f":"$H$17","v":2},null,null,null,null,"School Division:",null,{"$f":"$A$17","v":"ALBEMARLE COUNTY PUBLIC SCHOOLS"},null,null,null,null,null,"Division Number:",null,null,{"$f":"$H$17","v":2},null,null,null,null,"School Division:",null,{"$f":"$A$17","v":"ALBEMARLE COUNTY PUBLIC SCHOOLS"},null,null,null,null,null,"Division Number:",null,null,{"$f":"$H$17","v":2},null,null,null,null,"School Division:",null,{"$f":"$A$17","v":"ALBEMARLE COUNTY PUBLIC SCHOOLS"},null,null,null,null,null,"Division Number:",null,null,{"$f":"$H$17","v":2},null,null,null,null,"School Division:",null,{"$f":"$A$17","v":"ALBEMARLE COUNTY PUBLIC SCHOOLS"},null,null,null,null,null,"Division Number:",null,null,{"$f":"$H$17","v":2},null,null,null,null,"School Division:",null,{"$f":"$A$17","v":"ALBEMARLE COUNTY PUBLIC SCHOOLS"},null,null,null,null,null,"Division Number:",null,null,{"$f":"$H$17","v":2},null,null,null,null,"School Division:",null,{"$f":"$A$17","v":"ALBEMARLE COUNTY PUBLIC SCHOOLS"},null,null,null,null,null,"Division Number:",null,null,{"$f":"$H$17","v":2},null,null,null,null,"School Division:",null,{"$f":"$A$17","v":"ALBEMARLE COUNTY PUBLIC SCHOOLS"},null,null,null,null,null,"Division Number:",null,null,{"$f":"$H$17","v":2},null,null,null,null,"School Division:",null,{"$f":"$A$17","v":"ALBEMARLE COUNTY PUBLIC SCHOOLS"},null,null,null,null,null,"Division Number:",null,null,{"$f":"$H$17","v":2},null,null,null,null,"School Division:",null,{"$f":"$A$17","v":"ALBEMARLE COUNTY PUBLIC SCHOOLS"},null,null,null,null,null,"Division Number:",null,null,{"$f":"$H$17","v":2},null,null,null,null,"School Division:",null,{"$f":"$A$17","v":"ALBEMARLE COUNTY PUBLIC SCHOOLS"},null,null,null,null,null,"Division Number:",null,null,{"$f":"$H$17","v":2},null,null,null,null,"School Division:",null,{"$f":"$A$17","v":"ALBEMARLE COUNTY PUBLIC SCHOOLS"},null,null,null,null,null,"Division Number:",null,null,{"$f":"$H$17","v":2},null,null,null,null,"School Division:",null,{"$f":"$A$17","v":"ALBEMARLE COUNTY PUBLIC SCHOOLS"},null,null,null,null,null,"Division Number:",null,null,{"$f":"$H$17","v":2},null,null,null,null,"School Division:",null,{"$f":"$A$17","v":"ALBEMARLE COUNTY PUBLIC SCHOOLS"},null,null,null,null,null,"Division Number:",null,null,{"$f":"$H$17","v":2},null,null,null,null,"School Division:",null,{"$f":"$A$17","v":"ALBEMARLE COUNTY PUBLIC SCHOOLS"},null,null,null,null,null,"Division Number:",null,null,{"$f":"$H$17","v":2},null,null,null,null,"School Division:",null,{"$f":"$A$17","v":"ALBEMARLE COUNTY PUBLIC SCHOOLS"},null,null,null,null,null,"Division Number:",null,null,{"$f":"$H$17","v":2},null,null,null,null,"School Division:",null,{"$f":"$A$17","v":"ALBEMARLE COUNTY PUBLIC SCHOOLS"},null,null,null,null,null,"Division Number:",null,null,{"$f":"$H$17","v":2},null,null,null,null,"School Division:",null,{"$f":"$A$17","v":"ALBEMARLE COUNTY PUBLIC SCHOOLS"},null,null,null,null,null,"Division Number:",null,null,{"$f":"$H$17","v":2},null,null,null,null,"School Division:",null,{"$f":"$A$17","v":"ALBEMARLE COUNTY PUBLIC SCHOOLS"},null,null,null,null,null,"Division Number:",null,null,{"$f":"$H$17","v":2},null,null,null,null,"School Division:",null,{"$f":"$A$17","v":"ALBEMARLE COUNTY PUBLIC SCHOOLS"},null,null,null,null,null,"Division Number:",null,null,{"$f":"$H$17","v":2},null,null,null,null,"School Division:",null,{"$f":"$A$17","v":"ALBEMARLE COUNTY PUBLIC SCHOOLS"},null,null,null,null,null,"Division Number:",null,null,{"$f":"$H$17","v":2},null,null,null,null,"School Division:",null,{"$f":"$A$17","v":"ALBEMARLE COUNTY PUBLIC SCHOOLS"},null,null,null,null,null,"Division Number:",null,null,{"$f":"$H$17","v":2},null,null,null,null,"School Division:",null,{"$f":"$A$17","v":"ALBEMARLE COUNTY PUBLIC SCHOOLS"},null,null,null,null,null,"Division Number:",null,null,{"$f":"$H$17","v":2},null,null,null,null,"School Division:",null,{"$f":"$A$17","v":"ALBEMARLE COUNTY PUBLIC SCHOOLS"},null,null,null,null,null,"Division Number:",null,null,{"$f":"$H$17","v":2},null,null,null,null,"School Division:",null,{"$f":"$A$17","v":"ALBEMARLE COUNTY PUBLIC SCHOOLS"},null,null,null,null,null,"Division Number:",null,null,{"$f":"$H$17","v":2},null,null,null,null,"School Division:",null,{"$f":"$A$17","v":"ALBEMARLE COUNTY PUBLIC SCHOOLS"},null,null,null,null,null,"Division Number:",null,null,{"$f":"$H$17","v":2},null,null,null,null,"School Division:",null,{"$f":"$A$17","v":"ALBEMARLE COUNTY PUBLIC SCHOOLS"},null,null,null,null,null,"Division Number:",null,null,{"$f":"$H$17","v":2},null,null,null,null,"School Division:",null,{"$f":"$A$17","v":"ALBEMARLE COUNTY PUBLIC SCHOOLS"},null,null,null,null,null,"Division Number:",null,null,{"$f":"$H$17","v":2},null,null,null,null,"School Division:",null,{"$f":"$A$17","v":"ALBEMARLE COUNTY PUBLIC SCHOOLS"},null,null,null,null,null,"Division Number:",null,null,{"$f":"$H$17","v":2},null,null,null,null,"School Division:",null,{"$f":"$A$17","v":"ALBEMARLE COUNTY PUBLIC SCHOOLS"},null,null,null,null,null,"Division Number:",null,null,{"$f":"$H$17","v":2},null,null,null,null,"School Division:",null,{"$f":"$A$17","v":"ALBEMARLE COUNTY PUBLIC SCHOOLS"},null,null,null,null,null,"Division Number:",null,null,{"$f":"$H$17","v":2},null,null,null,null,"School Division:",null,{"$f":"$A$17","v":"ALBEMARLE COUNTY PUBLIC SCHOOLS"},null,null,null,null,null,"Division Number:",null,null,{"$f":"$H$17","v":2},null,null,null,null,"School Division:",null,{"$f":"$A$17","v":"ALBEMARLE COUNTY PUBLIC SCHOOLS"},null,null,null,null,null,"Division Number:",null,null,{"$f":"$H$17","v":2},null,null,null,null,"School Division:",null,{"$f":"$A$17","v":"ALBEMARLE COUNTY PUBLIC SCHOOLS"},null,null,null,null,null,"Division Number:",null,null,{"$f":"$H$17","v":2},null,null,null,null,"School Division:",null,{"$f":"$A$17","v":"ALBEMARLE COUNTY PUBLIC SCHOOLS"},null,null,null,null,null,"Division Number:",null,null,{"$f":"$H$17","v":2},null,null,null,null,"School Division:",null,{"$f":"$A$17","v":"ALBEMARLE COUNTY PUBLIC SCHOOLS"},null,null,null,null,null,"Division Number:",null,null,{"$f":"$H$17","v":2},null,null,null,null,"School Division:",null,{"$f":"$A$17","v":"ALBEMARLE COUNTY PUBLIC SCHOOLS"},null,null,null,null,null,"Division Number:",null,null,{"$f":"$H$17","v":2},null,null,null,null,"School Division:",null,{"$f":"$A$17","v":"ALBEMARLE COUNTY PUBLIC SCHOOLS"},null,null,null,null,null,"Division Number:",null,null,{"$f":"$H$17","v":2},null,null,null,null,"School Division:",null,{"$f":"$A$17","v":"ALBEMARLE COUNTY PUBLIC SCHOOLS"},null,null,null,null,null,"Division Number:",null,null,{"$f":"$H$17","v":2},null,null,null,null,"School Division:",null,{"$f":"$A$17","v":"ALBEMARLE COUNTY PUBLIC SCHOOLS"},null,null,null,null,null,"Division Number:",null,null,{"$f":"$H$17","v":2},null,null,null,null,"School Division:",null,{"$f":"$A$17","v":"ALBEMARLE COUNTY PUBLIC SCHOOLS"},null,null,null,null,null,"Division Number:",null,null,{"$f":"$H$17","v":2},null,null,null,null,"School Division:",null,{"$f":"$A$17","v":"ALBEMARLE COUNTY PUBLIC SCHOOLS"},null,null,null,null,null,"Division Number:",null,null,{"$f":"$H$17","v":2},null,null,null,null,"School Division:",null,{"$f":"$A$17","v":"ALBEMARLE COUNTY PUBLIC SCHOOLS"},null,null,null,null,null,"Division Number:",null,null,{"$f":"$H$17","v":2},null,null,null,null,"School Division:",null,{"$f":"$A$17","v":"ALBEMARLE COUNTY PUBLIC SCHOOLS"},null,null,null,null,null,"Division Number:",null,null,{"$f":"$H$17","v":2},null,null,null,null,"School Division:",null,{"$f":"$A$17","v":"ALBEMARLE COUNTY PUBLIC SCHOOLS"},null,null,null,null,null,"Division Number:",null,null,{"$f":"$H$17","v":2},null,null,null,null,"School Division:",null,{"$f":"$A$17","v":"ALBEMARLE COUNTY PUBLIC SCHOOLS"},null,null,null,null,null,"Division Number:",null,null,{"$f":"$H$17","v":2},null,null,null,null,"School Division:",null,{"$f":"$A$17","v":"ALBEMARLE COUNTY PUBLIC SCHOOLS"},null,null,null,null,null,"Division Number:",null,null,{"$f":"$H$17","v":2},null,null,null,null,"School Division:",null,{"$f":"$A$17","v":"ALBEMARLE COUNTY PUBLIC SCHOOLS"},null,null,null,null,null,"Division Number:",null,null,{"$f":"$H$17","v":2},null,null,null,null,"School Division:",null,{"$f":"$A$17","v":"ALBEMARLE COUNTY PUBLIC SCHOOLS"},null,null,null,null,null,"Division Number:",null,null,{"$f":"$H$17","v":2},null,null,null,null,"School Division:",null,{"$f":"$A$17","v":"ALBEMARLE COUNTY PUBLIC SCHOOLS"},null,null,null,null,null,"Division Number:",null,null,{"$f":"$H$17","v":2},null,null,null,null,"School Division:",null,{"$f":"$A$17","v":"ALBEMARLE COUNTY PUBLIC SCHOOLS"},null,null,null,null,null,"Division Number:",null,null,{"$f":"$H$17","v":2},null,null,null,null,"School Division:",null,{"$f":"$A$17","v":"ALBEMARLE COUNTY PUBLIC SCHOOLS"},null,null,null,null,null,"Division Number:",null,null,{"$f":"$H$17","v":2},null,null,null,null,"School Division:",null,{"$f":"$A$17","v":"ALBEMARLE COUNTY PUBLIC SCHOOLS"},null,null,null,null,null,"Division Number:",null,null,{"$f":"$H$17","v":2},null,null,null,null,"School Division:",null,{"$f":"$A$17","v":"ALBEMARLE COUNTY PUBLIC SCHOOLS"},null,null,null,null,null,"Division Number:",null,null,{"$f":"$H$17","v":2},null,null,null,null,"School Division:",null,{"$f":"$A$17","v":"ALBEMARLE COUNTY PUBLIC SCHOOLS"},null,null,null,null,null,"Division Number:",null,null,{"$f":"$H$17","v":2},null,null,null,null,"School Division:",null,{"$f":"$A$17","v":"ALBEMARLE COUNTY PUBLIC SCHOOLS"},null,null,null,null,null,"Division Number:",null,null,{"$f":"$H$17","v":2},null,null,null,null,"School Division:",null,{"$f":"$A$17","v":"ALBEMARLE COUNTY PUBLIC SCHOOLS"},null,null,null,null,null,"Division Number:",null,null,{"$f":"$H$17","v":2},null,null,null,null,"School Division:",null,{"$f":"$A$17","v":"ALBEMARLE COUNTY PUBLIC SCHOOLS"},null,null,null,null,null,"Division Number:",null,null,{"$f":"$H$17","v":2},null,null,null,null,"School Division:",null,{"$f":"$A$17","v":"ALBEMARLE COUNTY PUBLIC SCHOOLS"},null,null,null,null,null,"Division Number:",null,null,{"$f":"$H$17","v":2},null,null,null,null,"School Division:",null,{"$f":"$A$17","v":"ALBEMARLE COUNTY PUBLIC SCHOOLS"},null,null,null,null,null,"Division Number:",null,null,{"$f":"$H$17","v":2},null,null,null,null,"School Division:",null,{"$f":"$A$17","v":"ALBEMARLE COUNTY PUBLIC SCHOOLS"},null,null,null,null,null,"Division Number:",null,null,{"$f":"$H$17","v":2},null,null,null,null,"School Division:",null,{"$f":"$A$17","v":"ALBEMARLE COUNTY PUBLIC SCHOOLS"},null,null,null,null,null,"Division Number:",null,null,{"$f":"$H$17","v":2},null,null,null,null,"School Division:",null,{"$f":"$A$17","v":"ALBEMARLE COUNTY PUBLIC SCHOOLS"},null,null,null,null,null,"Division Number:",null,null,{"$f":"$H$17","v":2},null,null,null,null,"School Division:",null,{"$f":"$A$17","v":"ALBEMARLE COUNTY PUBLIC SCHOOLS"},null,null,null,null,null,"Division Number:",null,null,{"$f":"$H$17","v":2},null,null,null,null,"School Division:",null,{"$f":"$A$17","v":"ALBEMARLE COUNTY PUBLIC SCHOOLS"},null,null,null,null,null,"Division Number:",null,null,{"$f":"$H$17","v":2},null,null,null,null,"School Division:",null,{"$f":"$A$17","v":"ALBEMARLE COUNTY PUBLIC SCHOOLS"},null,null,null,null,null,"Division Number:",null,null,{"$f":"$H$17","v":2},null,null,null,null,"School Division:",null,{"$f":"$A$17","v":"ALBEMARLE COUNTY PUBLIC SCHOOLS"},null,null,null,null,null,"Division Number:",null,null,{"$f":"$H$17","v":2},null,null,null,null,"School Division:",null,{"$f":"$A$17","v":"ALBEMARLE COUNTY PUBLIC SCHOOLS"},null,null,null,null,null,"Division Number:",null,null,{"$f":"$H$17","v":2},null,null,null,null,"School Division:",null,{"$f":"$A$17","v":"ALBEMARLE COUNTY PUBLIC SCHOOLS"},null,null,null,null,null,"Division Number:",null,null,{"$f":"$H$17","v":2},null,null,null,null,"School Division:",null,{"$f":"$A$17","v":"ALBEMARLE COUNTY PUBLIC SCHOOLS"},null,null,null,null,null,"Division Number:",null,null,{"$f":"$H$17","v":2},null,null,null,null,"School Division:",null,{"$f":"$A$17","v":"ALBEMARLE COUNTY PUBLIC SCHOOLS"},null,null,null,null,null,"Division Number:",null,null,{"$f":"$H$17","v":2},null,null,null,null,"School Division:",null,{"$f":"$A$17","v":"ALBEMARLE COUNTY PUBLIC SCHOOLS"},null,null,null,null,null,"Division Number:",null,null,{"$f":"$H$17","v":2},null,null,null,null,"School Division:",null,{"$f":"$A$17","v":"ALBEMARLE COUNTY PUBLIC SCHOOLS"},null,null,null,null,null,"Division Number:",null,null,{"$f":"$H$17","v":2},null,null,null,null,"School Division:",null,{"$f":"$A$17","v":"ALBEMARLE COUNTY PUBLIC SCHOOLS"},null,null,null,null,null,"Division Number:",null,null,{"$f":"$H$17","v":2},null,null,null,null,"School Division:",null,{"$f":"$A$17","v":"ALBEMARLE COUNTY PUBLIC SCHOOLS"},null,null,null,null,null,"Division Number:",null,null,{"$f":"$H$17","v":2},null,null,null,null,"School Division:",null,{"$f":"$A$17","v":"ALBEMARLE COUNTY PUBLIC SCHOOLS"},null,null,null,null,null,"Division Number:",null,null,{"$f":"$H$17","v":2},null,null,null,null,"School Division:",null,{"$f":"$A$17","v":"ALBEMARLE COUNTY PUBLIC SCHOOLS"},null,null,null,null,null,"Division Number:",null,null,{"$f":"$H$17","v":2},null,null,null,null,"School Division:",null,{"$f":"$A$17","v":"ALBEMARLE COUNTY PUBLIC SCHOOLS"},null,null,null,null,null,"Division Number:",null,null,{"$f":"$H$17","v":2},null,null,null,null,"School Division:",null,{"$f":"$A$17","v":"ALBEMARLE COUNTY PUBLIC SCHOOLS"},null,null,null,null,null,"Division Number:",null,null,{"$f":"$H$17","v":2},null,null,null,null,"School Division:",null,{"$f":"$A$17","v":"ALBEMARLE COUNTY PUBLIC SCHOOLS"},null,null,null,null,null,"Division Number:",null,null,{"$f":"$H$17","v":2},null,null,null,null,"School Division:",null,{"$f":"$A$17","v":"ALBEMARLE COUNTY PUBLIC SCHOOLS"},null,null,null,null,null,"Division Number:",null,null,{"$f":"$H$17","v":2},null,null,null,null,"School Division:",null,{"$f":"$A$17","v":"ALBEMARLE COUNTY PUBLIC SCHOOLS"},null,null,null,null,null,"Division Number:",null,null,{"$f":"$H$17","v":2},null,null,null,null,"School Division:",null,{"$f":"$A$17","v":"ALBEMARLE COUNTY PUBLIC SCHOOLS"},null,null,null,null,null,"Division Number:",null,null,{"$f":"$H$17","v":2},null,null,null,null,"School Division:",null,{"$f":"$A$17","v":"ALBEMARLE COUNTY PUBLIC SCHOOLS"},null,null,null,null,null,"Division Number:",null,null,{"$f":"$H$17","v":2},null,null,null,null,"School Division:",null,{"$f":"$A$17","v":"ALBEMARLE COUNTY PUBLIC SCHOOLS"},null,null,null,null,null,"Division Number:",null,null,{"$f":"$H$17","v":2},null,null,null,null,"School Division:",null,{"$f":"$A$17","v":"ALBEMARLE COUNTY PUBLIC SCHOOLS"},null,null,null,null,null,"Division Number:",null,null,{"$f":"$H$17","v":2},null,null,null,null,"School Division:",null,{"$f":"$A$17","v":"ALBEMARLE COUNTY PUBLIC SCHOOLS"},null,null,null,null,null,"Division Number:",null,null,{"$f":"$H$17","v":2},null,null,null,null,"School Division:",null,{"$f":"$A$17","v":"ALBEMARLE COUNTY PUBLIC SCHOOLS"},null,null,null,null,null,"Division Number:",null,null,{"$f":"$H$17","v":2},null,null,null,null,"School Division:",null,{"$f":"$A$17","v":"ALBEMARLE COUNTY PUBLIC SCHOOLS"},null,null,null,null,null,"Division Number:",null,null,{"$f":"$H$17","v":2},null,null,null,null,"School Division:",null,{"$f":"$A$17","v":"ALBEMARLE COUNTY PUBLIC SCHOOLS"},null,null,null,null,null,"Division Number:",null,null,{"$f":"$H$17","v":2},null,null,null,null,"School Division:",null,{"$f":"$A$17","v":"ALBEMARLE COUNTY PUBLIC SCHOOLS"},null,null,null,null,null,"Division Number:",null,null,{"$f":"$H$17","v":2},null,null,null,null,"School Division:",null,{"$f":"$A$17","v":"ALBEMARLE COUNTY PUBLIC SCHOOLS"},null,null,null,null,null,"Division Number:",null,null,{"$f":"$H$17","v":2},null,null,null,null,"School Division:",null,{"$f":"$A$17","v":"ALBEMARLE COUNTY PUBLIC SCHOOLS"},null,null,null,null,null,"Division Number:",null,null,{"$f":"$H$17","v":2},null,null,null,null,"School Division:",null,{"$f":"$A$17","v":"ALBEMARLE COUNTY PUBLIC SCHOOLS"},null,null,null,null,null,"Division Number:",null,null,{"$f":"$H$17","v":2},null,null,null,null,"School Division:",null,{"$f":"$A$17","v":"ALBEMARLE COUNTY PUBLIC SCHOOLS"},null,null,null,null,null,"Division Number:",null,null,{"$f":"$H$17","v":2},null,null,null,null,"School Division:",null,{"$f":"$A$17","v":"ALBEMARLE COUNTY PUBLIC SCHOOLS"},null,null,null,null,null,"Division Number:",null,null,{"$f":"$H$17","v":2},null,null,null,null,"School Division:",null,{"$f":"$A$17","v":"ALBEMARLE COUNTY PUBLIC SCHOOLS"},null,null,null,null,null,"Division Number:",null,null,{"$f":"$H$17","v":2},null,null,null,null,"School Division:",null,{"$f":"$A$17","v":"ALBEMARLE COUNTY PUBLIC SCHOOLS"},null,null,null,null,null,"Division Number:",null,null,{"$f":"$H$17","v":2},null,null,null,null,"School Division:",null,{"$f":"$A$17","v":"ALBEMARLE COUNTY PUBLIC SCHOOLS"},null,null,null,null,null,"Division Number:",null,null,{"$f":"$H$17","v":2},null,null,null,null,"School Division:",null,{"$f":"$A$17","v":"ALBEMARLE COUNTY PUBLIC SCHOOLS"},null,null,null,null,null,"Division Number:",null,null,{"$f":"$H$17","v":2},null,null,null,null,"School Division:",null,{"$f":"$A$17","v":"ALBEMARLE COUNTY PUBLIC SCHOOLS"},null,null,null,null,null,"Division Number:",null,null,{"$f":"$H$17","v":2},null,null,null,null,"School Division:",null,{"$f":"$A$17","v":"ALBEMARLE COUNTY PUBLIC SCHOOLS"},null,null,null,null,null,"Division Number:",null,null,{"$f":"$H$17","v":2},null,null,null,null,"School Division:",null,{"$f":"$A$17","v":"ALBEMARLE COUNTY PUBLIC SCHOOLS"},null,null,null,null,null,"Division Number:",null,null,{"$f":"$H$17","v":2},null,null,null,null,"School Division:",null,{"$f":"$A$17","v":"ALBEMARLE COUNTY PUBLIC SCHOOLS"},null,null,null,null,null,"Division Number:",null,null,{"$f":"$H$17","v":2},null,null,null,null,"School Division:",null,{"$f":"$A$17","v":"ALBEMARLE COUNTY PUBLIC SCHOOLS"},null,null,null,null,null,"Division Number:",null,null,{"$f":"$H$17","v":2},null,null,null,null,"School Division:",null,{"$f":"$A$17","v":"ALBEMARLE COUNTY PUBLIC SCHOOLS"},null,null,null,null,null,"Division Number:",null,null,{"$f":"$H$17","v":2},null,null,null,null,"School Division:",null,{"$f":"$A$17","v":"ALBEMARLE COUNTY PUBLIC SCHOOLS"},null,null,null,null,null,"Division Number:",null,null,{"$f":"$H$17","v":2},null,null,null,null,"School Division:",null,{"$f":"$A$17","v":"ALBEMARLE COUNTY PUBLIC SCHOOLS"},null,null,null,null,null,"Division Number:",null,null,{"$f":"$H$17","v":2},null,null,null,null,"School Division:",null,{"$f":"$A$17","v":"ALBEMARLE COUNTY PUBLIC SCHOOLS"},null,null,null,null,null,"Division Number:",null,null,{"$f":"$H$17","v":2},null,null,null,null,"School Division:",null,{"$f":"$A$17","v":"ALBEMARLE COUNTY PUBLIC SCHOOLS"},null,null,null,null,null,"Division Number:",null,null,{"$f":"$H$17","v":2},null,null,null,null,"School Division:",null,{"$f":"$A$17","v":"ALBEMARLE COUNTY PUBLIC SCHOOLS"},null,null,null,null,null,"Division Number:",null,null,{"$f":"$H$17","v":2},null,null,null,null,"School Division:",null,{"$f":"$A$17","v":"ALBEMARLE COUNTY PUBLIC SCHOOLS"},null,null,null,null,null,"Division Number:",null,null,{"$f":"$H$17","v":2},null,null,null,null,"School Division:",null,{"$f":"$A$17","v":"ALBEMARLE COUNTY PUBLIC SCHOOLS"},null,null,null,null,null,"Division Number:",null,null,{"$f":"$H$17","v":2},null,null,null,null,"School Division:",null,{"$f":"$A$17","v":"ALBEMARLE COUNTY PUBLIC SCHOOLS"},null,null,null,null,null,"Division Number:",null,null,{"$f":"$H$17","v":2},null,null,null,null,"School Division:",null,{"$f":"$A$17","v":"ALBEMARLE COUNTY PUBLIC SCHOOLS"},null,null,null,null,null,"Division Number:",null,null,{"$f":"$H$17","v":2},null,null,null,null,"School Division:",null,{"$f":"$A$17","v":"ALBEMARLE COUNTY PUBLIC SCHOOLS"},null,null,null,null,null,"Division Number:",null,null,{"$f":"$H$17","v":2},null,null,null,null,"School Division:",null,{"$f":"$A$17","v":"ALBEMARLE COUNTY PUBLIC SCHOOLS"},null,null,null,null,null,"Division Number:",null,null,{"$f":"$H$17","v":2},null,null,null,null,"School Division:",null,{"$f":"$A$17","v":"ALBEMARLE COUNTY PUBLIC SCHOOLS"},null,null,null,null,null,"Division Number:",null,null,{"$f":"$H$17","v":2},null,null,null,null,"School Division:",null,{"$f":"$A$17","v":"ALBEMARLE COUNTY PUBLIC SCHOOLS"},null,null,null,null,null,"Division Number:",null,null,{"$f":"$H$17","v":2},null,null,null,null,"School Division:",null,{"$f":"$A$17","v":"ALBEMARLE COUNTY PUBLIC SCHOOLS"},null,null,null,null,null,"Division Number:",null,null,{"$f":"$H$17","v":2},null,null,null,null,"School Division:",null,{"$f":"$A$17","v":"ALBEMARLE COUNTY PUBLIC SCHOOLS"},null,null,null,null,null,"Division Number:",null,null,{"$f":"$H$17","v":2},null,null,null,null,"School Division:",null,{"$f":"$A$17","v":"ALBEMARLE COUNTY PUBLIC SCHOOLS"},null,null,null,null,null,"Division Number:",null,null,{"$f":"$H$17","v":2},null,null,null,null,"School Division:",null,{"$f":"$A$17","v":"ALBEMARLE COUNTY PUBLIC SCHOOLS"},null,null,null,null,null,"Division Number:",null,null,{"$f":"$H$17","v":2},null,null,null,null,"School Division:",null,{"$f":"$A$17","v":"ALBEMARLE COUNTY PUBLIC SCHOOLS"},null,null,null,null,null,"Division Number:",null,null,{"$f":"$H$17","v":2},null,null,null,null,"School Division:",null,{"$f":"$A$17","v":"ALBEMARLE COUNTY PUBLIC SCHOOLS"},null,null,null,null,null,"Division Number:",null,null,{"$f":"$H$17","v":2},null,null,null,null,"School Division:",null,{"$f":"$A$17","v":"ALBEMARLE COUNTY PUBLIC SCHOOLS"},null,null,null,null,null,"Division Number:",null,null,{"$f":"$H$17","v":2},null,null,null,null,"School Division:",null,{"$f":"$A$17","v":"ALBEMARLE COUNTY PUBLIC SCHOOLS"},null,null,null,null,null,"Division Number:",null,null,{"$f":"$H$17","v":2},null,null,null,null,"School Division:",null,{"$f":"$A$17","v":"ALBEMARLE COUNTY PUBLIC SCHOOLS"},null,null,null,null,null,"Division Number:",null,null,{"$f":"$H$17","v":2},null,null,null,null,"School Division:",null,{"$f":"$A$17","v":"ALBEMARLE COUNTY PUBLIC SCHOOLS"},null,null,null,null,null,"Division Number:",null,null,{"$f":"$H$17","v":2},null,null,null,null,"School Division:",null,{"$f":"$A$17","v":"ALBEMARLE COUNTY PUBLIC SCHOOLS"},null,null,null,null,null,"Division Number:",null,null,{"$f":"$H$17","v":2},null,null,null,null,"School Division:",null,{"$f":"$A$17","v":"ALBEMARLE COUNTY PUBLIC SCHOOLS"},null,null,null,null,null,"Division Number:",null,null,{"$f":"$H$17","v":2},null,null,null,null,"School Division:",null,{"$f":"$A$17","v":"ALBEMARLE COUNTY PUBLIC SCHOOLS"},null,null,null,null,null,"Division Number:",null,null,{"$f":"$H$17","v":2},null,null,null,null,"School Division:",null,{"$f":"$A$17","v":"ALBEMARLE COUNTY PUBLIC SCHOOLS"},null,null,null,null,null,"Division Number:",null,null,{"$f":"$H$17","v":2},null,null,null,null,"School Division:",null,{"$f":"$A$17","v":"ALBEMARLE COUNTY PUBLIC SCHOOLS"},null,null,null,null,null,"Division Number:",null,null,{"$f":"$H$17","v":2},null,null,null,null,"School Division:",null,{"$f":"$A$17","v":"ALBEMARLE COUNTY PUBLIC SCHOOLS"},null,null,null,null,null,"Division Number:",null,null,{"$f":"$H$17","v":2},null,null,null,null,"School Division:",null,{"$f":"$A$17","v":"ALBEMARLE COUNTY PUBLIC SCHOOLS"},null,null,null,null,null,"Division Number:",null,null,{"$f":"$H$17","v":2},null,null,null,null,"School Division:",null,{"$f":"$A$17","v":"ALBEMARLE COUNTY PUBLIC SCHOOLS"},null,null,null,null,null,"Division Number:",null,null,{"$f":"$H$17","v":2},null,null,null,null,"School Division:",null,{"$f":"$A$17","v":"ALBEMARLE COUNTY PUBLIC SCHOOLS"},null,null,null,null,null,"Division Number:",null,null,{"$f":"$H$17","v":2},null,null,null,null,"School Division:",null,{"$f":"$A$17","v":"ALBEMARLE COUNTY PUBLIC SCHOOLS"},null,null,null,null,null,"Division Number:",null,null,{"$f":"$H$17","v":2},null,null,null,null,"School Division:",null,{"$f":"$A$17","v":"ALBEMARLE COUNTY PUBLIC SCHOOLS"},null,null,null,null,null,"Division Number:",null,null,{"$f":"$H$17","v":2},null,null,null,null,"School Division:",null,{"$f":"$A$17","v":"ALBEMARLE COUNTY PUBLIC SCHOOLS"},null,null,null,null,null,"Division Number:",null,null,{"$f":"$H$17","v":2},null,null,null,null,"School Division:",null,{"$f":"$A$17","v":"ALBEMARLE COUNTY PUBLIC SCHOOLS"},null,null,null,null,null,"Division Number:",null,null,{"$f":"$H$17","v":2},null,null,null,null,"School Division:",null,{"$f":"$A$17","v":"ALBEMARLE COUNTY PUBLIC SCHOOLS"},null,null,null,null,null,"Division Number:",null,null,{"$f":"$H$17","v":2},null,null,null,null,"School Division:",null,{"$f":"$A$17","v":"ALBEMARLE COUNTY PUBLIC SCHOOLS"},null,null,null,null,null,"Division Number:",null,null,{"$f":"$H$17","v":2},null,null,null,null,"School Division:",null,{"$f":"$A$17","v":"ALBEMARLE COUNTY PUBLIC SCHOOLS"},null,null,null,null,null,"Division Number:",null,null,{"$f":"$H$17","v":2},null,null,null,null,"School Division:",null,{"$f":"$A$17","v":"ALBEMARLE COUNTY PUBLIC SCHOOLS"},null,null,null,null,null,"Division Number:",null,null,{"$f":"$H$17","v":2},null,null,null,null,"School Division:",null,{"$f":"$A$17","v":"ALBEMARLE COUNTY PUBLIC SCHOOLS"},null,null,null,null,null,"Division Number:",null,null,{"$f":"$H$17","v":2},null,null,null,null,"School Division:",null,{"$f":"$A$17","v":"ALBEMARLE COUNTY PUBLIC SCHOOLS"},null,null,null,null,null,"Division Number:",null,null,{"$f":"$H$17","v":2},null,null,null,null,"School Division:",null,{"$f":"$A$17","v":"ALBEMARLE COUNTY PUBLIC SCHOOLS"},null,null,null,null,null,"Division Number:",null,null,{"$f":"$H$17","v":2},null,null,null,null,"School Division:",null,{"$f":"$A$17","v":"ALBEMARLE COUNTY PUBLIC SCHOOLS"},null,null,null,null,null,"Division Number:",null,null,{"$f":"$H$17","v":2},null,null,null,null,"School Division:",null,{"$f":"$A$17","v":"ALBEMARLE COUNTY PUBLIC SCHOOLS"},null,null,null,null,null,"Division Number:",null,null,{"$f":"$H$17","v":2},null,null,null,null,"School Division:",null,{"$f":"$A$17","v":"ALBEMARLE COUNTY PUBLIC SCHOOLS"},null,null,null,null,null,"Division Number:",null,null,{"$f":"$H$17","v":2},null,null,null,null,"School Division:",null,{"$f":"$A$17","v":"ALBEMARLE COUNTY PUBLIC SCHOOLS"},null,null,null,null,null,"Division Number:",null,null,{"$f":"$H$17","v":2},null,null,null,null,"School Division:",null,{"$f":"$A$17","v":"ALBEMARLE COUNTY PUBLIC SCHOOLS"},null,null,null,null,null,"Division Number:",null,null,{"$f":"$H$17","v":2},null,null,null,null,"School Division:",null,{"$f":"$A$17","v":"ALBEMARLE COUNTY PUBLIC SCHOOLS"},null,null,null,null,null,"Division Number:",null,null,{"$f":"$H$17","v":2},null,null,null,null,"School Division:",null,{"$f":"$A$17","v":"ALBEMARLE COUNTY PUBLIC SCHOOLS"},null,null,null,null,null,"Division Number:",null,null,{"$f":"$H$17","v":2},null,null,null,null,"School Division:",null,{"$f":"$A$17","v":"ALBEMARLE COUNTY PUBLIC SCHOOLS"},null,null,null,null,null,"Division Number:",null,null,{"$f":"$H$17","v":2},null,null,null,null,"School Division:",null,{"$f":"$A$17","v":"ALBEMARLE COUNTY PUBLIC SCHOOLS"},null,null,null,null,null,"Division Number:",null,null,{"$f":"$H$17","v":2},null,null,null,null,"School Division:",null,{"$f":"$A$17","v":"ALBEMARLE COUNTY PUBLIC SCHOOLS"},null,null,null,null,null,"Division Number:",null,null,{"$f":"$H$17","v":2},null,null,null,null,"School Division:",null,{"$f":"$A$17","v":"ALBEMARLE COUNTY PUBLIC SCHOOLS"},null,null,null,null,null,"Division Number:",null,null,{"$f":"$H$17","v":2},null,null,null,null,"School Division:",null,{"$f":"$A$17","v":"ALBEMARLE COUNTY PUBLIC SCHOOLS"},null,null,null,null,null,"Division Number:",null,null,{"$f":"$H$17","v":2},null,null,null,null,"School Division:",null,{"$f":"$A$17","v":"ALBEMARLE COUNTY PUBLIC SCHOOLS"},null,null,null,null,null,"Division Number:",null,null,{"$f":"$H$17","v":2},null,null,null,null,"School Division:",null,{"$f":"$A$17","v":"ALBEMARLE COUNTY PUBLIC SCHOOLS"},null,null,null,null,null,"Division Number:",null,null,{"$f":"$H$17","v":2},null,null,null,null,"School Division:",null,{"$f":"$A$17","v":"ALBEMARLE COUNTY PUBLIC SCHOOLS"},null,null,null,null,null,"Division Number:",null,null,{"$f":"$H$17","v":2},null,null,null,null,"School Division:",null,{"$f":"$A$17","v":"ALBEMARLE COUNTY PUBLIC SCHOOLS"},null,null,null,null,null,"Division Number:",null,null,{"$f":"$H$17","v":2},null,null,null,null,"School Division:",null,{"$f":"$A$17","v":"ALBEMARLE COUNTY PUBLIC SCHOOLS"},null,null,null,null,null,"Division Number:",null,null,{"$f":"$H$17","v":2},null,null,null,null,"School Division:",null,{"$f":"$A$17","v":"ALBEMARLE COUNTY PUBLIC SCHOOLS"},null,null,null,null,null,"Division Number:",null,null,{"$f":"$H$17","v":2},null,null,null,null,"School Division:",null,{"$f":"$A$17","v":"ALBEMARLE COUNTY PUBLIC SCHOOLS"},null,null,null,null,null,"Division Number:",null,null,{"$f":"$H$17","v":2},null,null,null,null,"School Division:",null,{"$f":"$A$17","v":"ALBEMARLE COUNTY PUBLIC SCHOOLS"},null,null,null,null,null,"Division Number:",null,null,{"$f":"$H$17","v":2},null,null,null,null,"School Division:",null,{"$f":"$A$17","v":"ALBEMARLE COUNTY PUBLIC SCHOOLS"},null,null,null,null,null,"Division Number:",null,null,{"$f":"$H$17","v":2},null,null,null,null,"School Division:",null,{"$f":"$A$17","v":"ALBEMARLE COUNTY PUBLIC SCHOOLS"},null,null,null,null,null,"Division Number:",null,null,{"$f":"$H$17","v":2},null,null,null,null,"School Division:",null,{"$f":"$A$17","v":"ALBEMARLE COUNTY PUBLIC SCHOOLS"},null,null,null,null,null,"Division Number:",null,null,{"$f":"$H$17","v":2},null,null,null,null,"School Division:",null,{"$f":"$A$17","v":"ALBEMARLE COUNTY PUBLIC SCHOOLS"},null,null,null,null,null,"Division Number:",null,null,{"$f":"$H$17","v":2},null,null,null,null,"School Division:",null,{"$f":"$A$17","v":"ALBEMARLE COUNTY PUBLIC SCHOOLS"},null,null,null,null,null,"Division Number:",null,null,{"$f":"$H$17","v":2},null,null,null,null,"School Division:",null,{"$f":"$A$17","v":"ALBEMARLE COUNTY PUBLIC SCHOOLS"},null,null,null,null,null,"Division Number:",null,null,{"$f":"$H$17","v":2},null,null,null,null,"School Division:",null,{"$f":"$A$17","v":"ALBEMARLE COUNTY PUBLIC SCHOOLS"},null,null,null,null,null,"Division Number:",null,null,{"$f":"$H$17","v":2},null,null,null,null,"School Division:",null,{"$f":"$A$17","v":"ALBEMARLE COUNTY PUBLIC SCHOOLS"},null,null,null,null,null,"Division Number:",null,null,{"$f":"$H$17","v":2},null,null,null,null,"School Division:",null,{"$f":"$A$17","v":"ALBEMARLE COUNTY PUBLIC SCHOOLS"},null,null,null,null,null,"Division Number:",null,null,{"$f":"$H$17","v":2},null,null,null,null,"School Division:",null,{"$f":"$A$17","v":"ALBEMARLE COUNTY PUBLIC SCHOOLS"},null,null,null,null,null,"Division Number:",null,null,{"$f":"$H$17","v":2},null,null,null,null,"School Division:",null,{"$f":"$A$17","v":"ALBEMARLE COUNTY PUBLIC SCHOOLS"},null,null,null,null,null,"Division Number:",null,null,{"$f":"$H$17","v":2},null,null,null,null,"School Division:",null,{"$f":"$A$17","v":"ALBEMARLE COUNTY PUBLIC SCHOOLS"},null,null,null,null,null,"Division Number:",null,null,{"$f":"$H$17","v":2},null,null,null,null,"School Division:",null,{"$f":"$A$17","v":"ALBEMARLE COUNTY PUBLIC SCHOOLS"},null,null,null,null,null,"Division Number:",null,null,{"$f":"$H$17","v":2},null,null,null,null,"School Division:",null,{"$f":"$A$17","v":"ALBEMARLE COUNTY PUBLIC SCHOOLS"},null,null,null,null,null,"Division Number:",null,null,{"$f":"$H$17","v":2},null,null,null,null,"School Division:",null,{"$f":"$A$17","v":"ALBEMARLE COUNTY PUBLIC SCHOOLS"},null,null,null,null,null,"Division Number:",null,null,{"$f":"$H$17","v":2},null,null,null,null,"School Division:",null,{"$f":"$A$17","v":"ALBEMARLE COUNTY PUBLIC SCHOOLS"},null,null,null,null,null,"Division Number:",null,null,{"$f":"$H$17","v":2},null,null,null,null,"School Division:",null,{"$f":"$A$17","v":"ALBEMARLE COUNTY PUBLIC SCHOOLS"},null,null,null,null,null,"Division Number:",null,null,{"$f":"$H$17","v":2},null,null,null,null,"School Division:",null,{"$f":"$A$17","v":"ALBEMARLE COUNTY PUBLIC SCHOOLS"},null,null,null,null,null,"Division Number:",null,null,{"$f":"$H$17","v":2},null,null,null,null,"School Division:",null,{"$f":"$A$17","v":"ALBEMARLE COUNTY PUBLIC SCHOOLS"},null,null,null,null,null,"Division Number:",null,null,{"$f":"$H$17","v":2},null,null,null,null,"School Division:",null,{"$f":"$A$17","v":"ALBEMARLE COUNTY PUBLIC SCHOOLS"},null,null,null,null,null,"Division Number:",null,null,{"$f":"$H$17","v":2},null,null,null,null,"School Division:",null,{"$f":"$A$17","v":"ALBEMARLE COUNTY PUBLIC SCHOOLS"},null,null,null,null,null,"Division Number:",null,null,{"$f":"$H$17","v":2},null,null,null,null,"School Division:",null,{"$f":"$A$17","v":"ALBEMARLE COUNTY PUBLIC SCHOOLS"},null,null,null,null,null,"Division Number:",null,null,{"$f":"$H$17","v":2},null,null,null,null,"School Division:",null,{"$f":"$A$17","v":"ALBEMARLE COUNTY PUBLIC SCHOOLS"},null,null,null,null,null,"Division Number:",null,null,{"$f":"$H$17","v":2},null,null,null,null,"School Division:",null,{"$f":"$A$17","v":"ALBEMARLE COUNTY PUBLIC SCHOOLS"},null,null,null,null,null,"Division Number:",null,null,{"$f":"$H$17","v":2},null,null,null,null,"School Division:",null,{"$f":"$A$17","v":"ALBEMARLE COUNTY PUBLIC SCHOOLS"},null,null,null,null,null,"Division Number:",null,null,{"$f":"$H$17","v":2},null,null,null,null,"School Division:",null,{"$f":"$A$17","v":"ALBEMARLE COUNTY PUBLIC SCHOOLS"},null,null,null,null,null,"Division Number:",null,null,{"$f":"$H$17","v":2},null,null,null,null,"School Division:",null,{"$f":"$A$17","v":"ALBEMARLE COUNTY PUBLIC SCHOOLS"},null,null,null,null,null,"Division Number:",null,null,{"$f":"$H$17","v":2},null,null,null,null,"School Division:",null,{"$f":"$A$17","v":"ALBEMARLE COUNTY PUBLIC SCHOOLS"},null,null,null,null,null,"Division Number:",null,null,{"$f":"$H$17","v":2},null,null,null,null,"School Division:",null,{"$f":"$A$17","v":"ALBEMARLE COUNTY PUBLIC SCHOOLS"},null,null,null,null,null,"Division Number:",null,null,{"$f":"$H$17","v":2},null,null,null,null,"School Division:",null,{"$f":"$A$17","v":"ALBEMARLE COUNTY PUBLIC SCHOOLS"},null,null,null,null,null,"Division Number:",null,null,{"$f":"$H$17","v":2},null,null,null,null,"School Division:",null,{"$f":"$A$17","v":"ALBEMARLE COUNTY PUBLIC SCHOOLS"},null,null,null,null,null,"Division Number:",null,null,{"$f":"$H$17","v":2},null,null,null,null,"School Division:",null,{"$f":"$A$17","v":"ALBEMARLE COUNTY PUBLIC SCHOOLS"},null,null,null,null,null,"Division Number:",null,null,{"$f":"$H$17","v":2},null,null,null,null,"School Division:",null,{"$f":"$A$17","v":"ALBEMARLE COUNTY PUBLIC SCHOOLS"},null,null,null,null,null,"Division Number:",null,null,{"$f":"$H$17","v":2},null,null,null,null,"School Division:",null,{"$f":"$A$17","v":"ALBEMARLE COUNTY PUBLIC SCHOOLS"},null,null,null,null,null,"Division Number:",null,null,{"$f":"$H$17","v":2},null,null,null,null,"School Division:",null,{"$f":"$A$17","v":"ALBEMARLE COUNTY PUBLIC SCHOOLS"},null,null,null,null,null,"Division Number:",null,null,{"$f":"$H$17","v":2},null,null,null,null,"School Division:",null,{"$f":"$A$17","v":"ALBEMARLE COUNTY PUBLIC SCHOOLS"},null,null,null,null,null,"Division Number:",null,null,{"$f":"$H$17","v":2},null,null,null,null,"School Division:",null,{"$f":"$A$17","v":"ALBEMARLE COUNTY PUBLIC SCHOOLS"},null,null,null,null,null,"Division Number:",null,null,{"$f":"$H$17","v":2},null,null,null,null,"School Division:",null,{"$f":"$A$17","v":"ALBEMARLE COUNTY PUBLIC SCHOOLS"},null,null,null,null,null,"Division Number:",null,null,{"$f":"$H$17","v":2},null,null,null,null,"School Division:",null,{"$f":"$A$17","v":"ALBEMARLE COUNTY PUBLIC SCHOOLS"},null,null,null,null,null,"Division Number:",null,null,{"$f":"$H$17","v":2},null,null,null,null,"School Division:",null,{"$f":"$A$17","v":"ALBEMARLE COUNTY PUBLIC SCHOOLS"},null,null,null,null,null,"Division Number:",null,null,{"$f":"$H$17","v":2},null,null,null,null,"School Division:",null,{"$f":"$A$17","v":"ALBEMARLE COUNTY PUBLIC SCHOOLS"},null,null,null,null,null,"Division Number:",null,null,{"$f":"$H$17","v":2},null,null,null,null,"School Division:",null,{"$f":"$A$17","v":"ALBEMARLE COUNTY PUBLIC SCHOOLS"},null,null,null,null,null,"Division Number:",null,null,{"$f":"$H$17","v":2},null,null,null,null,"School Division:",null,{"$f":"$A$17","v":"ALBEMARLE COUNTY PUBLIC SCHOOLS"},null,null,null,null,null,"Division Number:",null,null,{"$f":"$H$17","v":2},null,null,null,null,"School Division:",null,{"$f":"$A$17","v":"ALBEMARLE COUNTY PUBLIC SCHOOLS"},null,null,null,null,null,"Division Number:",null,null,{"$f":"$H$17","v":2},null,null,null,null,"School Division:",null,{"$f":"$A$17","v":"ALBEMARLE COUNTY PUBLIC SCHOOLS"},null,null,null,null,null,"Division Number:",null,null,{"$f":"$H$17","v":2},null,null,null,null,"School Division:",null,{"$f":"$A$17","v":"ALBEMARLE COUNTY PUBLIC SCHOOLS"},null,null,null,null,null,"Division Number:",null,null,{"$f":"$H$17","v":2},null,null,null,null,"School Division:",null,{"$f":"$A$17","v":"ALBEMARLE COUNTY PUBLIC SCHOOLS"},null,null,null,null,null,"Division Number:",null,null,{"$f":"$H$17","v":2},null,null,null,null,"School Division:",null,{"$f":"$A$17","v":"ALBEMARLE COUNTY PUBLIC SCHOOLS"},null,null,null,null,null,"Division Number:",null,null,{"$f":"$H$17","v":2},null,null,null,null,"School Division:",null,{"$f":"$A$17","v":"ALBEMARLE COUNTY PUBLIC SCHOOLS"},null,null,null,null,null,"Division Number:",null,null,{"$f":"$H$17","v":2},null,null,null,null,"School Division:",null,{"$f":"$A$17","v":"ALBEMARLE COUNTY PUBLIC SCHOOLS"},null,null,null,null,null,"Division Number:",null,null,{"$f":"$H$17","v":2},null,null,null,null,"School Division:",null,{"$f":"$A$17","v":"ALBEMARLE COUNTY PUBLIC SCHOOLS"},null,null,null,null,null,"Division Number:",null,null,{"$f":"$H$17","v":2},null,null,null,null,"School Division:",null,{"$f":"$A$17","v":"ALBEMARLE COUNTY PUBLIC SCHOOLS"},null,null,null,null,null,"Division Number:",null,null,{"$f":"$H$17","v":2},null,null,null,null,"School Division:",null,{"$f":"$A$17","v":"ALBEMARLE COUNTY PUBLIC SCHOOLS"},null,null,null,null,null,"Division Number:",null,null,{"$f":"$H$17","v":2},null,null,null,null,"School Division:",null,{"$f":"$A$17","v":"ALBEMARLE COUNTY PUBLIC SCHOOLS"},null,null,null,null,null,"Division Number:",null,null,{"$f":"$H$17","v":2},null,null,null,null,"School Division:",null,{"$f":"$A$17","v":"ALBEMARLE COUNTY PUBLIC SCHOOLS"},null,null,null,null,null,"Division Number:",null,null,{"$f":"$H$17","v":2},null,null,null,null,"School Division:",null,{"$f":"$A$17","v":"ALBEMARLE COUNTY PUBLIC SCHOOLS"},null,null,null,null,null,"Division Number:",null,null,{"$f":"$H$17","v":2},null,null,null,null,"School Division:",null,{"$f":"$A$17","v":"ALBEMARLE COUNTY PUBLIC SCHOOLS"},null,null,null,null,null,"Division Number:",null,null,{"$f":"$H$17","v":2},null,null,null,null,"School Division:",null,{"$f":"$A$17","v":"ALBEMARLE COUNTY PUBLIC SCHOOLS"},null,null,null,null,null,"Division Number:",null,null,{"$f":"$H$17","v":2},null,null,null,null,"School Division:",null,{"$f":"$A$17","v":"ALBEMARLE COUNTY PUBLIC SCHOOLS"},null,null,null,null,null,"Division Number:",null,null,{"$f":"$H$17","v":2},null,null,null,null,"School Division:",null,{"$f":"$A$17","v":"ALBEMARLE COUNTY PUBLIC SCHOOLS"},null,null,null,null,null,"Division Number:",null,null,{"$f":"$H$17","v":2},null,null,null,null,"School Division:",null,{"$f":"$A$17","v":"ALBEMARLE COUNTY PUBLIC SCHOOLS"},null,null,null,null,null,"Division Number:",null,null,{"$f":"$H$17","v":2},null,null,null,null,"School Division:",null,{"$f":"$A$17","v":"ALBEMARLE COUNTY PUBLIC SCHOOLS"},null,null,null,null,null,"Division Number:",null,null,{"$f":"$H$17","v":2},null,null,null,null,"School Division:",null,{"$f":"$A$17","v":"ALBEMARLE COUNTY PUBLIC SCHOOLS"},null,null,null,null,null,"Division Number:",null,null,{"$f":"$H$17","v":2},null,null,null,null,"School Division:",null,{"$f":"$A$17","v":"ALBEMARLE COUNTY PUBLIC SCHOOLS"},null,null,null,null,null,"Division Number:",null,null,{"$f":"$H$17","v":2},null,null,null,null,"School Division:",null,{"$f":"$A$17","v":"ALBEMARLE COUNTY PUBLIC SCHOOLS"},null,null,null,null,null,"Division Number:",null,null,{"$f":"$H$17","v":2},null,null,null,null,"School Division:",null,{"$f":"$A$17","v":"ALBEMARLE COUNTY PUBLIC SCHOOLS"},null,null,null,null,null,"Division Number:",null,null,{"$f":"$H$17","v":2},null,null,null,null,"School Division:",null,{"$f":"$A$17","v":"ALBEMARLE COUNTY PUBLIC SCHOOLS"},null,null,null,null,null,"Division Number:",null,null,{"$f":"$H$17","v":2},null,null,null,null,"School Division:",null,{"$f":"$A$17","v":"ALBEMARLE COUNTY PUBLIC SCHOOLS"},null,null,null,null,null,"Division Number:",null,null,{"$f":"$H$17","v":2},null,null,null,null,"School Division:",null,{"$f":"$A$17","v":"ALBEMARLE COUNTY PUBLIC SCHOOLS"},null,null,null,null,null,"Division Number:",null,null,{"$f":"$H$17","v":2},null,null,null,null,"School Division:",null,{"$f":"$A$17","v":"ALBEMARLE COUNTY PUBLIC SCHOOLS"},null,null,null,null,null,"Division Number:",null,null,{"$f":"$H$17","v":2},null,null,null,null,"School Division:",null,{"$f":"$A$17","v":"ALBEMARLE COUNTY PUBLIC SCHOOLS"},null,null,null,null,null,"Division Number:",null,null,{"$f":"$H$17","v":2},null,null,null,null,"School Division:",null,{"$f":"$A$17","v":"ALBEMARLE COUNTY PUBLIC SCHOOLS"},null,null,null,null,null,"Division Number:",null,null,{"$f":"$H$17","v":2},null,null,null,null,"School Division:",null,{"$f":"$A$17","v":"ALBEMARLE COUNTY PUBLIC SCHOOLS"},null,null,null,null,null,"Division Number:",null,null,{"$f":"$H$17","v":2},null,null,null,null,"School Division:",null,{"$f":"$A$17","v":"ALBEMARLE COUNTY PUBLIC SCHOOLS"},null,null,null,null,null,"Division Number:",null,null,{"$f":"$H$17","v":2},null,null,null,null,"School Division:",null,{"$f":"$A$17","v":"ALBEMARLE COUNTY PUBLIC SCHOOLS"},null,null,null,null,null,"Division Number:",null,null,{"$f":"$H$17","v":2},null,null,null,null,"School Division:",null,{"$f":"$A$17","v":"ALBEMARLE COUNTY PUBLIC SCHOOLS"},null,null,null,null,null,"Division Number:",null,null,{"$f":"$H$17","v":2},null,null,null,null,"School Division:",null,{"$f":"$A$17","v":"ALBEMARLE COUNTY PUBLIC SCHOOLS"},null,null,null,null,null,"Division Number:",null,null,{"$f":"$H$17","v":2},null,null,null,null,"School Division:",null,{"$f":"$A$17","v":"ALBEMARLE COUNTY PUBLIC SCHOOLS"},null,null,null,null,null,"Division Number:",null,null,{"$f":"$H$17","v":2},null,null,null,null,"School Division:",null,{"$f":"$A$17","v":"ALBEMARLE COUNTY PUBLIC SCHOOLS"},null,null,null,null,null,"Division Number:",null,null,{"$f":"$H$17","v":2},null,null,null,null,"School Division:",null,{"$f":"$A$17","v":"ALBEMARLE COUNTY PUBLIC SCHOOLS"},null,null,null,null,null,"Division Number:",null,null,{"$f":"$H$17","v":2},null,null,null,null,"School Division:",null,{"$f":"$A$17","v":"ALBEMARLE COUNTY PUBLIC SCHOOLS"},null,null,null,null,null,"Division Number:",null,null,{"$f":"$H$17","v":2},null,null,null,null,"School Division:",null,{"$f":"$A$17","v":"ALBEMARLE COUNTY PUBLIC SCHOOLS"},null,null,null,null,null,"Division Number:",null,null,{"$f":"$H$17","v":2},null,null,null,null,"School Division:",null,{"$f":"$A$17","v":"ALBEMARLE COUNTY PUBLIC SCHOOLS"},null,null,null,null,null,"Division Number:",null,null,{"$f":"$H$17","v":2},null,null,null,null,"School Division:",null,{"$f":"$A$17","v":"ALBEMARLE COUNTY PUBLIC SCHOOLS"},null,null,null,null,null,"Division Number:",null,null,{"$f":"$H$17","v":2},null,null,null,null,"School Division:",null,{"$f":"$A$17","v":"ALBEMARLE COUNTY PUBLIC SCHOOLS"},null,null,null,null,null,"Division Number:",null,null,{"$f":"$H$17","v":2},null,null,null,null,"School Division:",null,{"$f":"$A$17","v":"ALBEMARLE COUNTY PUBLIC SCHOOLS"},null,null,null,null,null,"Division Number:",null,null,{"$f":"$H$17","v":2},null,null,null,null,"School Division:",null,{"$f":"$A$17","v":"ALBEMARLE COUNTY PUBLIC SCHOOLS"},null,null,null,null,null,"Division Number:",null,null,{"$f":"$H$17","v":2},null,null,null,null,"School Division:",null,{"$f":"$A$17","v":"ALBEMARLE COUNTY PUBLIC SCHOOLS"},null,null,null,null,null,"Division Number:",null,null,{"$f":"$H$17","v":2},null,null,null,null,"School Division:",null,{"$f":"$A$17","v":"ALBEMARLE COUNTY PUBLIC SCHOOLS"},null,null,null,null,null,"Division Number:",null,null,{"$f":"$H$17","v":2},null,null,null,null,"School Division:",null,{"$f":"$A$17","v":"ALBEMARLE COUNTY PUBLIC SCHOOLS"},null,null,null,null,null,"Division Number:",null,null,{"$f":"$H$17","v":2},null,null,null,null,"School Division:",null,{"$f":"$A$17","v":"ALBEMARLE COUNTY PUBLIC SCHOOLS"},null,null,null,null,null,"Division Number:",null,null,{"$f":"$H$17","v":2},null,null,null,null,"School Division:",null,{"$f":"$A$17","v":"ALBEMARLE COUNTY PUBLIC SCHOOLS"},null,null,null,null,null,"Division Number:",null,null,{"$f":"$H$17","v":2},null,null,null,null,"School Division:",null,{"$f":"$A$17","v":"ALBEMARLE COUNTY PUBLIC SCHOOLS"},null,null,null,null,null,"Division Number:",null,null,{"$f":"$H$17","v":2},null,null,null,null,"School Division:",null,{"$f":"$A$17","v":"ALBEMARLE COUNTY PUBLIC SCHOOLS"},null,null,null,null,null,"Division Number:",null,null,{"$f":"$H$17","v":2},null,null,null,null,"School Division:",null,{"$f":"$A$17","v":"ALBEMARLE COUNTY PUBLIC SCHOOLS"},null,null,null,null,null,"Division Number:",null,null,{"$f":"$H$17","v":2},null,null,null,null,"School Division:",null,{"$f":"$A$17","v":"ALBEMARLE COUNTY PUBLIC SCHOOLS"},null,null,null,null,null,"Division Number:",null,null,{"$f":"$H$17","v":2},null,null,null,null,"School Division:",null,{"$f":"$A$17","v":"ALBEMARLE COUNTY PUBLIC SCHOOLS"},null,null,null,null,null,"Division Number:",null,null,{"$f":"$H$17","v":2},null,null,null,null,"School Division:",null,{"$f":"$A$17","v":"ALBEMARLE COUNTY PUBLIC SCHOOLS"},null,null,null,null,null,"Division Number:",null,null,{"$f":"$H$17","v":2},null,null,null,null,"School Division:",null,{"$f":"$A$17","v":"ALBEMARLE COUNTY PUBLIC SCHOOLS"},null,null,null,null,null,"Division Number:",null,null,{"$f":"$H$17","v":2},null,null,null,null,"School Division:",null,{"$f":"$A$17","v":"ALBEMARLE COUNTY PUBLIC SCHOOLS"},null,null,null,null,null,"Division Number:",null,null,{"$f":"$H$17","v":2},null,null,null,null,"School Division:",null,{"$f":"$A$17","v":"ALBEMARLE COUNTY PUBLIC SCHOOLS"},null,null,null,null,null,"Division Number:",null,null,{"$f":"$H$17","v":2},null,null,null,null,"School Division:",null,{"$f":"$A$17","v":"ALBEMARLE COUNTY PUBLIC SCHOOLS"},null,null,null,null,null,"Division Number:",null,null,{"$f":"$H$17","v":2},null,null,null,null,"School Division:",null,{"$f":"$A$17","v":"ALBEMARLE COUNTY PUBLIC SCHOOLS"},null,null,null,null,null,"Division Number:",null,null,{"$f":"$H$17","v":2},null,null,null,null,"School Division:",null,{"$f":"$A$17","v":"ALBEMARLE COUNTY PUBLIC SCHOOLS"},null,null,null,null,null,"Division Number:",null,null,{"$f":"$H$17","v":2},null,null,null,null,"School Division:",null,{"$f":"$A$17","v":"ALBEMARLE COUNTY PUBLIC SCHOOLS"},null,null,null,null,null,"Division Number:",null,null,{"$f":"$H$17","v":2},null,null,null,null,"School Division:",null,{"$f":"$A$17","v":"ALBEMARLE COUNTY PUBLIC SCHOOLS"},null,null,null,null,null,"Division Number:",null,null,{"$f":"$H$17","v":2},null,null,null,null,"School Division:",null,{"$f":"$A$17","v":"ALBEMARLE COUNTY PUBLIC SCHOOLS"},null,null,null,null,null,"Division Number:",null,null,{"$f":"$H$17","v":2},null,null,null,null,"School Division:",null,{"$f":"$A$17","v":"ALBEMARLE COUNTY PUBLIC SCHOOLS"},null,null,null,null,null,"Division Number:",null,null,{"$f":"$H$17","v":2},null,null,null,null,"School Division:",null,{"$f":"$A$17","v":"ALBEMARLE COUNTY PUBLIC SCHOOLS"},null,null,null,null,null,"Division Number:",null,null,{"$f":"$H$17","v":2},null,null,null,null,"School Division:",null,{"$f":"$A$17","v":"ALBEMARLE COUNTY PUBLIC SCHOOLS"},null,null,null,null,null,"Division Number:",null,null,{"$f":"$H$17","v":2},null,null,null,null,"School Division:",null,{"$f":"$A$17","v":"ALBEMARLE COUNTY PUBLIC SCHOOLS"},null,null,null,null,null,"Division Number:",null,null,{"$f":"$H$17","v":2},null,null,null,null,"School Division:",null,{"$f":"$A$17","v":"ALBEMARLE COUNTY PUBLIC SCHOOLS"},null,null,null,null,null,"Division Number:",null,null,{"$f":"$H$17","v":2},null,null,null,null,"School Division:",null,{"$f":"$A$17","v":"ALBEMARLE COUNTY PUBLIC SCHOOLS"},null,null,null,null,null,"Division Number:",null,null,{"$f":"$H$17","v":2},null,null,null,null,"School Division:",null,{"$f":"$A$17","v":"ALBEMARLE COUNTY PUBLIC SCHOOLS"},null,null,null,null,null,"Division Number:",null,null,{"$f":"$H$17","v":2},null,null,null,null,"School Division:",null,{"$f":"$A$17","v":"ALBEMARLE COUNTY PUBLIC SCHOOLS"},null,null,null,null,null,"Division Number:",null,null,{"$f":"$H$17","v":2},null,null,null,null,"School Division:",null,{"$f":"$A$17","v":"ALBEMARLE COUNTY PUBLIC SCHOOLS"},null,null,null,null,null,"Division Number:",null,null,{"$f":"$H$17","v":2},null,null,null,null,"School Division:",null,{"$f":"$A$17","v":"ALBEMARLE COUNTY PUBLIC SCHOOLS"},null,null,null,null,null,"Division Number:",null,null,{"$f":"$H$17","v":2}]
["DETAILED BUDGET DESCRIPTION FOR OBJECT CODE 6000"]
["Provide a description for expenses related to object code 6000 Materials and Supplies.  Include items that are consumed or materially altered when used and minor equipment that is not capitalized. Equipment under $5,000, including computer equipment, should be reported under this object code unless the LEA has set a lower capitalization threshold.  Indicate the quantity for each item.  "]
["Books and instructional supplies as needed throughout the year will be purchased for Migrant students. MP3 players will be purchased to to provide ESOL instruction for out of school youth."]
[]
["Item Description",null,null,null,null,null,null,null,null,null,null,"Quantities",null,"Total Cost"]
["Instructional Supplies: workbooks, dictionaries, MP3 players",null,null,null,null,null,null,null,null,null,null,null,null,776]
[]
[]
[]
[]
[]
[]
[]
[]
[]
[]
[]
[]
[]
[]
[]
[]
[]
[]
[]
[]
[]
[]
[]
[]
[]
[]
[]
[]
[]
[null,null,null,null,"      ",null,null,null,null,null,"Total for Object Code:",null,null,{"$f":"SUM(N384:P413)","v":776}]
[]
["Page 17"]
[null,null,null,null,"School Division:",null,{"$f":"$A$17","v":"ALBEMARLE COUNTY PUBLIC SCHOOLS"},null,null,null,null,null,"Division Number:",null,null,{"$f":"$H$17","v":2}]
["DETAILED BUDGET DESCRIPTION FOR OBJECT CODE 8000"]
["All capital outlay expenditures over $5,000 per unit must be approved in advance by the Virginia Department of Education. If the school division has established a threshold of a lesser amount, items equal to that amount or greater must also receive prior approval by the Virginia Department of Education.  Nonconsumable items must be listed in the application.  Equipment quantities must be specified. "]
[]
[]
["Item Description",null,null,null,null,null,null,null,null,null,null,"Quantities",null,"Total Cost"]
[]
[]
[]
[]
[]
[]
[]
[]
[]
[]
[]
[]
[]
[]
[]
[]
[]
[]
[]
[]
[null,null,null,null,"      ",null,null,null,null,null,"Total for Object Code:",null,null,{"$f":"SUM(N423:P442)","v":0}]
[]
[null,null,null,null,null,null,null,null,null,null,null,"Total Budget",null,{"$f":"SUM(N278,N295,N319,N336,N375,N414,N443)","v":123987}]
[]
["Page 18"]
[null,null,null,null,"School Division:",null,{"$f":"$A$17","v":"ALBEMARLE COUNTY PUBLIC SCHOOLS"},null,null,null,null,null,"Division Number:",null,null,{"$f":"$H$17","v":2}]
["EXPENDITURE ACCOUNTS DESCRIPTIONS"]
[]
["These accounts are for budgeting and recording expenditures of the educational agency for activities under its control.  Below are definitions of the major expenditure categories.  The descriptions provided are examples only.  For further clarification on the proper expenditures of funds, contact your school division budget or finance office, the grant specialist in the Virginia Department of Education, or refer to the appropriate federal act."]
["OBJECT CODE DEFINITIONS:"]
["(revised 5/16/17)"]
[]
[1000,"PERSONAL SERVICES - Includes all compensation for the direct labor of persons in the employment of the local government.  Salaries and wages paid to employees for full‐ and part‐time work, including overtime, shift differential, and similar compensation. Includes payments for time not worked, including sick leave, vacation, holidays, jury duty, military leave, and other paid absences that are earned during the reporting period.  \n\nFor the purposes of this report, the term “salaries” means all compensation including base wage.  This also includes amounts paid through salary reduction plans, such as tax‐sheltered annuities and flexible benefit plans.  Do not confuse this definition with the Virginia Retirement System (VRS) definition, which excludes supplements for retirement calculation purposes in some circumstances.\n"]
[]
[2000,"EMPLOYEE BENEFITS - Job related benefits provided to employees as part of their total compensation.  Fringe benefits include the employer’s portion of FICA, pensions, insurance (life, health, disability income, etc.) and employee allowances.  \n\nNOTE:  Fringe Benefits are a significant component of employee compensation and, like salaries and wages, are charged to the appropriate object of expenditure within each program.  If possible, fringe benefit costs should be charged to the applicable educational program or activity on an ongoing basis.  An alternative is to charge all fringe benefits to various benefit accounts.  As part of the year‐end closing process, these accounts are closed, and all costs are allocated to the appropriate educational program or activity.  The following methods are suggested for allocating such cost at year‐end.  If these methods do not provide reasonable allocations based on circumstances within the school division, then the school division should use another reasonable allocation method.  Consistency in application should be maintained at all times.\n\n• Allocation by percentage of payroll dollars\n• Allocation by Head Count\n• Direct to Program or Activity\n"]
[]
["Page 19"]
[3000,"PURCHASED/CONTRACTUAL SERVICES - Services acquired from outside sources (i.e., private vendors, public authorities, or other governmental entities).  Purchase of the service is on a fee basis or fixed time contract basis.  Payments for rentals and utilities are not included in this account description.  Allowable payments would be to individual or firms that are independent contractors and not employees of the grantee or sub‐grantee organization.  The word honorarium is sometimes used to characterize such payments; the term “fee” is preferred.\n\n• Food Purchases – Prepared meals, working meals, and/or catered services purchased through a vendor are included in this object code.  Reimbursement is capped at the per diem rate for the meal listed according to the state travel regulations.  Examples for this object code include meals provided during day‐long professional development sessions, or meals provided to support attendance at family engagement activities.  Food purchased from catering services and restaurants such as Pizza Hut, Panera Bread, and Subway is included in this object code.\n\n• Transportation Services Public Carriers – Payments to public carriers for transportation of pupils on vehicles that are used by the public. Include payments for pupils transported in intra‐city transit buses, taxicabs, airplanes, and intercity/interstate passenger buses.\n\n• Transportation Services Private Carriers – Payments (either cash or tokens) to parents for transportation of pupils in lieu of providing transportation on school buses. Include allowable payments to parents for pupils attending public, private, and non‐sectarian schools. Include costs associated with transporting special education students in school board‐owned vehicles to and from school.\n\n• Transportation Services by Contract – Payments to private owners of school buses who contract with the school board to transport pupils to and from public schools. Include payments to owners of private vehicles that contract with the school board to transport pupils to and from designated public and private schools.\n\n"]
[null,"• Purchase of Service from Other Governmental Entities – Payments for services purchased from other governmental entities (i.e., other local governments, public authorities, state agencies, and other LEAs) on a contract/fee basis. Tuition payments to other local governments for a jointly operated center are not included here but are reported under “Payments to Joint Operations” (object code 7000).\n\n• Tuition Paid – Other Divisions In‐State, Tuition Paid – Other Divisions Out‐of‐State, and Tuition Paid – Private Schools are included in this object code.\n"]
[]
[4000,"INTERNAL SERVICES - Charges from an Internal Service Fund to other functions/activities/elements of the local government for the use of intergovernmental services, such as data processing, automotive/motor pool, central purchasing/central stores, print shop, and risk management. These services are provided by internal services within the School District and possibly the county but not a vendor.  \n\n• Food Purchases – Food purchased from the food services department of a school division or subgrantee equivalent to support professional development or family engagement events is included in this object code.  For example, internal expenses for school cafeterias to provide meals to support attendance at family engagement activities are included in this object code.\n"]
["Page 20"]
[5000,"OTHER CHARGES - Include expenditures that support the use of programs. Includes expenditures that support the program, including utilities (maintenance and operation of plant), staff/administrative/consultant travel, office phone charges, training, leases/rental, indirect cost, and other.\n\n• Food Purchases – Food Purchases under this object code are restricted to food purchases related to travel reimbursement for meals only (see Travel below). If the sub‐recipient’s internal travel policies conform to state travel regulations, reimbursement is allowable at per diem meals rates according to state travel regulations. If the sub‐recipient’s internal travel policies require reimbursement for the cost of each meal, reimbursement is capped at the per diem rate for the meal listed according to the state travel regulations. Sub‐recipients must elect either meals per diem or per meals costs as their internal travel policy.\n\n• Telecommunications – Include expenditures for recurring telecommunications services for the use of on‐line computer technology (e.g., telephone/telecommunications line charges).  Telephone charges for line service for Internet connectivity and the Electronic Classroom program.\n\n• Utilities – Payments for heat, electricity, water, and sewer services regardless of whether the service is provided by a private enterprise authority or an enterprise fund operated by a local government.\n\n• Communications – Payments for postal, messenger, and telecommunications services, typically office voice telephone charges.  (Telecommunication costs directly related to technology uses should be coded under 6000.) In addition, office telephone charges would be coded under this code.\n\n• Insurance – Payments for insurance except those that relate to personal services (i.e., hospitalization, group life, worker’s compensation, unemployment)\n\n• Leases and Rentals – Includes payments for leases that are not capitalized and rental of land, structures, and equipment. Do not include payments made under a lease‐purchase agreement.\n\n"]
[null,"• Travel – includes payments for travel reimbursement for staff/administrative/consultant travel. These are travel costs that are being reimbursed directly to travelers.  These costs may include lodging, mileage, meals, and incidentals as allowable according to state travel regulations or documented subrecipient internal travel policies. If the sub‐recipient does not have documented internal travel policies, state travel regulations will prevail.\n\n• Contributions to Other Entities – Includes payments to other governmental entities or community organizations that are not related to the direct purchase of a service on a fee basis (which is reported under object code 3000) or payments to joint operations (which are reflected under object code 7000).\n\n• Public Assistance Payments – Payments to individuals for public assistance programs (general government use only).\n\n• Miscellaneous Other Charges – Includes expenditures that support the program, including indirect costs and other costs.\n"]
[]
["Page 21"]
[6000,"MATERIALS AND SUPPLIES - Includes articles and commodities that are consumed or materially altered when used and minor equipment that is not capitalized.  This includes any equipment purchased under $5,000, unless the LEA has set a lower capitalization threshold.  Therefore, computer equipment under $5,000 would be reported in “materials and supplies.”\n\n• Food Purchases – Food items purchased from a grocery store or its equivalent for snacks or breaks is included in this object code.  Examples include bottled water, granola bars, cookies, and fruit purchased from a store such as Wal‐Mart, Food Lion, Costco, etc.  Prepared meals is not included in this object code; see object code 3000 for prepared/working/catered meals as purchased/contracted services.\n\n• Vehicle and Powered Equipment Fuels – Gasoline, lubricating oils, or such other fuel used in the operation of vehicles and powered equipment (e.g., lawnmowers) purchased from private sources or governmental agencies.\n\n• Vehicle and Powered Equipment Supplies – Tires, spark plugs, batteries, and chains used in the operation of vehicles and powered equipment purchased from private sources or governmental agencies.\n\n• Textbooks – All textbooks and workbooks purchased to be used in the classroom.\n\n• Instructional Materials – Books (not textbooks) and other materials.\n\n"]
[null,"• Technology Software/On‐line Content – Include expenditures for videodiscs and computer programs used in the classroom for instructional purposes, operating system software (i.e., standalone software, not software that is pre‐installed and included in hardware costs), application software, and on‐line or downloadable software and content. Include expenditures for both additions and replacement.\n\n• Non‐Capitalized Technology Hardware – Include expenditures for hardware or classroom technology equipment that is not capitalized.\n\n• Non‐Capitalized Technology Infrastructure – Include expenditures for technology infrastructure that is not capitalized.\n"]
["Page 22"]
[8000,"CAPITAL OUTLAY - Note: Indirect cost cannot be claimed against capital outlay and equipment.\nOutlays that result in the acquisition of or additions to fixed assets.  Capital Outlay includes the purchase\nof fixed assets both replacement and/or additional.\n\nCapital Outlay Replacement\n\n• Technology – Hardware Replacements – Include capital outlay for replacement of hardware or classroom technology equipment. (For further clarification on which expenditures should be included in this object code, see the “Special Note” below.)\n\n• Technology – Infrastructure Replacements – Include capital outlay for replacement of technology infrastructure. (For further clarification on which expenditures should be included in this object code, see the “Special Note” below.)\n\n• Capital Outlay Additions – Include machinery, equipment, furniture, fixtures, communications equipment, motor vehicles, etc. that are capitalized.\n\n• Technology – Hardware Additions – Include capital outlay for additional hardware or classroom technology equipment. (For further clarification on which expenditures should be included in this object code, see the “Special Note” below.)  \n\n• Technology – Infrastructure Additions – Include capital outlay for additional technology infrastructure. (For further clarification on which expenditures should be included in this object code, see the “Special Note” below.)\n\n"]
[null,"• Special Note ‐ Classification of Hardware and Infrastructure Expenditures: \n\nReport expenditures under technology “hardware” for computers, associated peripheral equipment, and other specialized technology equipment. Computers include desktop and laptop machines, handheld computers (i.e., Personal Digital Assistants or PDAs), and mainframe machines. Peripheral equipment includes devices attached to computers, such as monitors, keyboards, disk drives, modems, printers, scanners, cameras and speakers, etc.\n\nReport other specialized computer devices under technology “hardware” such as fax‐back and voicemail resources; videoconferencing and other distance education tools, including satellite transmitters and receivers; cable‐based receivers; and modem or codec‐based video equipment; projection devices, from transparent and opaque projectors to video monitors; and graphing calculators and other specialized computational aids.\n\nReport expenditures under technology “infrastructure” for equipment and devices that enable the linking of computers or video hardware to networks (such as routers, hubs, switches, access servers, modems, or codecs). Infrastructure also refers to cabling installations, whether wire, fiber optic, or coaxial, as well as electrical capacity expansion or HVAC upgrades to support networks. In wireless networking systems, include receivers and transmitters under infrastructure.\n"]
[]
["Page 23"]
[null,null,null,null,"School Division:",null,{"$f":"$A$17","v":"ALBEMARLE COUNTY PUBLIC SCHOOLS"},null,null,null,null,null,"Division Number:",null,null,{"$f":"$H$17","v":2}]
["F.  TITLE I, PART C, REGIONAL PROGRAM AGREEMENT 2020-2021"]
[]
["The lead school division will be responsible for completing the application and serving as the fiscal agent.  One (1) application should be submitted per regional program, and one (1) certification should be submitted by each participating school division to the regional lead school division.  Originals should be kept on file in the lead school division."]
["Lead Regional Program School Division"]
["Name of Lead:",null,null,null,null,null,null,null,null,null,null,"School Division  Number:       ",null,{"$f":"P476","v":2}]
["School Division:       ",null,"Albemarle County Public Schools"]
[]
["Typed Name of Superintendent:      ",null,null,null,"Matthew S. Haas"]
["Signature of Superintendent:",null,null,null,"     ",null,null,null,null,null,null,null,"Date: ","2020-06-11"]
[]
["Type name of contact for Title I, Part C, regional program if different than superintendent:"]
["Title I, Part C, Contact:",null,null,"Sharon Root"]
[]
["Title:",null,"Title I, Part C Coordinator"]
[]
["Mailing Address:",null,"401 McIntire Road"]
[]
["City, State, Zip:",null,"Charlottesville, VA  22902"]
[]
["Telephone:","434-296-3872",null,null,null,"E-mail: ","sroot@k12albemarle.org",null,null,null,null,null,"Fax:","434-972-4077"]
[]
[]
[]
["LIST OF PARTICIPATING SCHOOL DIVISIONS"]
["The following school divisions have applied to participate in this regional program.  A Title I, Part C, participating regional program member certification form is attached for each of the school division members included on this list.  The Title I, Part C, subgrant award corresponds to the 2020-2021 allocation."]
[null,"Please check to assure that signed copies of participating regional program member certification pages for all member divisions are on file with the lead school division."]
[null,null,null,null,"     ","     "]
[null,null,null,null,"Name of School Division",null,null,null,null,"Division Number"]
[null,null,null,"1.      ","Augusta",null,null,null,null,"008"]
[null,null,null,"2.        ","Chesterfield",null,null,null,null,"021"]
[null,null,null,"3.      ","Culpeper",null,null,null,null,"024"]
[null,null,null,"4.      ","Cumberland",null,null,null,null,"025"]
[null,null,null,"5.      ","Fairfax; Fluvanna",null,null,null,null,"029; 032 "]
[null,null,null,"6.      ","Goochland; Greene",null,null,null,null,"037; 039"]
[null,null,null,"7.      ","Hanover; Louisa",null,null,null,null,"042; 054"]
[null,null,null,"8.      ","Lunenburg; Madison",null,null,null,null,"055; 056"]
[null,null,null,"9.      ","Nelson; Nottoway",null,null,null,null,"062; 067"]
[null,null,null,"10.      ","Orange; Southampton",null,null,null,null,"068; 087"]
[null,null,null,"11.      ","Stafford; Charlottesville City",null,null,null,null,"089; 104"]
[null,null,null,"12.      ","Staunton City; Waynesboro City",null,null,null,null,"126; 130"]
[]
["Page 24"]

{"sheet":"Transferability","index":1,"n_rows":217,"n_cols":15,"rows_kept":217,"cut":false,"hidden":false,"merged":[[216,0,216,12],[123,0,123,8],[123,9,123,11],[124,0,124,8],[124,9,124,11],[125,0,125,8],[125,9,125,11],[126,0,126,8],[126,9,126,11],[131,0,131,8],[131,9,131,11],[137,0,137,12],[138,0,138,12],[129,0,129,8],[129,9,129,11],[130,0,130,8],[130,9,130,11],[127,0,127,8],[127,9,127,11],[128,0,128,8],[128,9,128,11],[136,0,136,12],[134,0,134,12],[144,0,144,8],[57,0,57,12],[67,0,67,6],[67,7,67,9],[69,0,69,6],[69,7,69,9],[69,10,69,11],[70,0,70,6],[70,7,70,9],[70,10,70,11],[68,10,68,11],[65,10,65,11],[68,0,68,6],[68,7,68,9],[66,0,66,6],[66,7,66,9],[66,10,66,11],[49,0,49,2],[17,0,17,2],[19,0,19,2],[21,0,21,2],[18,0,18,2],[22,0,22,2],[24,0,24,2],[26,0,26,2],[27,0,27,2],[29,0,29,2],[31,0,31,2],[23,0,23,2],[34,0,34,2],[36,0,36,2],[32,0,32,2],[33,0,33,2],[41,0,41,2],[37,0,37,2],[39,0,39,2],[38,0,38,2],[28,0,28,2],[47,0,47,2],[42,0,42,2],[43,0,43,2],[1,0,1,14],[8,3,8,14],[9,10,9,11],[3,0,3,14],[11,0,11,2],[14,0,14,2],[16,0,16,2],[13,0,13,2],[9,3,9,4],[9,5,9,6],[9,7,9,8],[9,13,9,14],[5,0,5,13],[6,0,6,16383],[12,0,12,2],[15,0,15,2],[44,0,44,2],[46,0,46,2],[59,0,59,12],[60,0,60,12],[67,10,67,11],[51,0,51,14],[58,0,58,12],[55,0,55,12],[54,0,54,12],[61,0,61,6],[61,7,61,9],[61,10,61,11],[48,0,48,2],[62,0,62,6],[62,7,62,9],[62,10,62,11],[63,0,63,6],[63,7,63,9],[63,10,63,11],[64,0,64,6],[64,7,64,9],[64,10,64,11],[65,0,65,6],[65,7,65,9],[81,0,81,8],[81,9,81,11],[84,0,84,8],[84,9,84,11],[79,0,79,8],[79,9,79,11],[80,0,80,8],[80,9,80,11],[71,0,71,6],[71,7,71,9],[71,10,71,11],[72,8,72,9],[72,10,72,11],[75,0,75,12],[76,0,76,12],[77,0,77,12],[78,0,78,12],[82,0,82,8],[82,9,82,11],[83,0,83,8],[83,9,83,11],[87,0,87,8],[87,9,87,11],[88,0,88,8],[88,9,88,11],[94,0,94,12],[85,0,85,8],[85,9,85,11],[86,0,86,8],[86,9,86,11],[92,0,92,12],[99,0,99,8],[99,9,99,11],[100,0,100,8],[100,9,100,11],[89,0,89,8],[89,9,89,11],[95,0,95,12],[98,0,98,8],[98,9,98,11],[96,0,96,12],[97,0,97,12],[105,0,105,8],[105,9,105,11],[106,0,106,8],[106,9,106,11],[103,0,103,8],[103,9,103,11],[104,0,104,8],[104,9,104,11],[101,0,101,8],[101,9,101,11],[102,0,102,8],[102,9,102,11],[111,0,111,8],[111,9,111,11],[112,0,112,8],[112,9,112,11],[109,0,109,8],[109,9,109,11],[110,0,110,8],[110,9,110,11],[107,0,107,8],[107,9,107,11],[108,0,108,8],[108,9,108,11],[121,0,121,8],[121,9,121,11],[122,0,122,8],[122,9,122,11],[119,0,119,12],[120,0,120,12],[113,0,113,8],[113,9,113,11],[117,0,117,12],[118,0,118,12],[144,9,144,11],[145,0,145,8],[145,9,145,11],[142,0,142,8],[142,9,142,11],[143,0,143,8],[143,9,143,11],[139,0,139,12],[140,0,140,8],[140,9,140,11],[141,0,141,8],[141,9,141,11],[150,0,150,8],[150,9,150,11],[151,0,151,8],[151,9,151,11],[148,0,148,8],[148,9,148,11],[149,0,149,8],[149,9,149,11],[146,0,146,8],[146,9,146,11],[147,0,147,8],[147,9,147,11],[156,0,156,8],[156,9,156,11],[157,0,157,8],[157,9,157,11],[154,0,154,8],[154,9,154,11],[155,0,155,8],[155,9,155,11],[152,0,152,8],[152,9,152,11],[153,0,153,8],[153,9,153,11],[164,0,164,12],[167,0,167,6],[167,7,167,9],[167,10,167,11],[165,0,165,12],[166,0,166,12],[158,0,158,8],[158,9,158,11],[159,0,159,8],[159,9,159,11],[163,0,163,12],[160,10,160,11],[170,0,170,6],[170,7,170,9],[170,10,170,11],[171,0,171,6],[171,7,171,9],[171,10,171,11],[168,0,168,6],[168,7,168,9],[168,10,168,11],[169,0,169,6],[169,7,169,9],[169,10,169,11],[174,0,174,6],[174,7,174,9],[174,10,174,11],[175,0,175,6],[175,7,175,9],[175,10,175,11],[172,0,172,6],[172,7,172,9],[172,10,172,11],[173,0,173,6],[173,7,173,9],[173,10,173,11],[178,0,178,6],[178,7,178,9],[178,10,178,11],[179,0,179,6],[179,7,179,9],[179,10,179,11],[176,0,176,6],[176,7,176,9],[176,10,176,11],[177,0,177,6],[177,7,177,9],[177,10,177,11],[182,0,182,6],[182,7,182,9],[182,10,182,11],[183,0,183,6],[183,7,183,9],[183,10,183,11],[180,0,180,6],[180,7,180,9],[180,10,180,11],[181,0,181,6],[181,7,181,9],[181,10,181,11],[184,10,184,11],[189,0,189,12],[192,0,192,6],[192,7,192,9],[192,10,192,11],[190,0,190,12],[191,0,191,12],[188,0,188,12],[186,0,186,12],[195,0,195,6],[195,7,195,9],[195,10,195,11],[196,0,196,6],[196,7,196,9],[196,10,196,11],[193,0,193,6],[193,7,193,9],[193,10,193,11],[194,0,194,6],[194,7,194,9],[194,10,194,11],[199,0,199,6],[199,7,199,9],[199,10,199,11],[200,0,200,6],[200,7,200,9],[200,10,200,11],[197,0,197,6],[197,7,197,9],[197,10,197,11],[198,0,198,6],[198,7,198,9],[198,10,198,11],[203,0,203,6],[203,7,203,9],[203,10,203,11],[204,0,204,6],[204,7,204,9],[204,10,204,11],[201,0,201,6],[201,7,201,9],[201,10,201,11],[202,0,202,6],[202,7,202,9],[202,10,202,11],[205,10,205,11],[206,0,206,6],[206,7,206,9],[206,10,206,11],[209,0,209,6],[209,7,209,9],[209,10,209,11],[210,0,210,6],[210,7,210,9],[210,10,210,11],[213,10,213,11],[211,0,211,6],[211,7,211,9],[211,10,211,11],[212,0,212,6],[20,0,20,2],[25,0,25,2],[30,0,30,2],[35,0,35,2],[40,0,40,2],[45,0,45,2],[90,10,90,11],[114,10,114,11],[132,10,132,11],[212,7,212,9],[212,10,212,11],[207,0,207,6],[207,7,207,9],[207,10,207,11],[208,0,208,6],[208,7,208,9],[208,10,208,11],[205,0,205,6],[205,7,205,9]]}
[null,null,null,null,"School Division:",null,{"$f":"'Title I, Part C'!$A$17","v":"ALBEMARLE COUNTY PUBLIC SCHOOLS"},null,null,null,null,"Division Number:",null,{"$f":"'Title I, Part C'!$H$17","v":2}]
["H. TRANSFERABILITY"]
[]
["Section 5103(b)(2) of ESSA allows divisions to transfer all or a portion of the funds received from Title II, Part A, or Title IV, Part A, into: Title I, Part A; Title I, Part C; Title I, Part D; Title II, Part A; Title III, Part A; Title IV, Part A; or Title V, Part B.  "]
[]
["Complete the tab below if funds will be transferred under Section 5103(b)(2). Please note that prior approval is required to transfer funds. The transfer request form is provided at "]
["Transfer Request Form"]
[]
[null,null,null,"Amount Budgeted"]
[null,null,null,"Title I, Part A",null,"Title I, Part C",null,"Title I, Part D",null,"Title II, Part A","Title III, Part A",null,"Title IV, Part A","Title V, Part B"]
[null,null,null,"Title II, Part A, Transferability","Title IV, Part A, Transferability","Title II, Part A, Transferability\nAward S367A200044\nProject Code APE60014","Title IV, Part A, Transferability\nAward S424A200048\nProject Code APE60020","Title II, Part A, Transferability","Title IV, Part A, Transferability","Title IV, Part A, Transferability","Title II, Part A, Transferability","Title IV, Part A, Transferability","Title II, Part A, Transferability","Title II, Part A, Transferability","Title IV, Part A, Transferability"]
["Amount Transferred to Program",null,null,null,null,{"$f":"'Title I, Part C'!N59","v":0},{"$f":"'Title I, Part C'!N62","v":0}]
["OBJECT CODE - EXPENDITURE TYPE"]
["1000 -  Personal Services"]
["Non Set-Aside",null,null,null,null,0,0]
["Set-Aside "]
["Private School Set-Aside ",null,null,null,null,0,0]
["Total Personal Services",null,null,null,null,{"$f":"SUM(F15:F17)","v":0},{"$f":"SUM(G15:G17)","v":0}]
["2000 - Employee Benefits"]
["Non Set-Aside",null,null,null,null,0,0]
["Set-Aside "]
["Private School Set-Aside ",null,null,null,null,0,0]
["Total Employee Benefits",null,null,null,null,{"$f":"SUM(F20:F22)","v":0},{"$f":"SUM(G20:G22)","v":0}]
["3000 - Purchased/Contracted Services"]
["Non Set-Aside",null,null,null,null,0,0]
["Set-Aside "]
["Private School Set-Aside ",null,null,null,null,0,0]
["Total Purchased/Contracted Services",null,null,null,null,{"$f":"SUM(F25:F27)","v":0},{"$f":"SUM(G25:G27)","v":0}]
["4000 - Internal Services"]
["Non Set-Aside",null,null,null,null,0,0]
["Set-Aside "]
["Private School Set-Aside ",null,null,null,null,0,0]
["Total Internal Services",null,null,null,null,{"$f":"SUM(F30:F32)","v":0},{"$f":"SUM(G30:G32)","v":0}]
["5000 - Other Charges"]
["Non Set-Aside",null,null,null,null,0,0]
["Set-Aside "]
["Private School Set-Aside ",null,null,null,null,0,0]
["Total Other Charges",null,null,null,null,{"$f":"SUM(F35:F37)","v":0},{"$f":"SUM(G35:G37)","v":0}]
["6000 - Materials and Supplies"]
["Non Set-Aside",null,null,null,null,0,0]
["Set-Aside "]
["Private School Set-Aside ",null,null,null,null,0,0]
["Total Materials and Supplies",null,null,null,null,{"$f":"SUM(F40:F42)","v":0},{"$f":"SUM(G40:G42)","v":0}]
["8000 - Capital Outlay"]
["Non Set-Aside",null,null,null,null,0,0]
["Set-Aside "]
["Private School Set-Aside ",null,null,null,null,0,0]
["Total Capital Outlay",null,null,null,null,{"$f":"SUM(F45:F47)","v":0},{"$f":"SUM(G45:G47)","v":0}]
["Total Budget",null,null,null,null,{"$f":"SUM(F18,F23,F28,F33,F38,F43,F48)","v":0},{"$f":"SUM(G18,G23,G28,G33,G38,G43,G48)","v":0}]
["Does Budget Match Amount Transferred to Program?",null,null,null,null,{"$f":"IF(F49=F12,\"Yes\",\"No\")","v":"Yes"},{"$f":"IF(G49=G12,\"Yes\",\"No\")","v":"Yes"}]
[]
["Page 26"]
[null,null,null,null,"School Division:",null,{"$f":"'Title I, Part C'!$A$17","v":"ALBEMARLE COUNTY PUBLIC SCHOOLS"},null,null,null,null,"Division Number:",null,{"$f":"'Title I, Part C'!$H$17","v":2}]
[]
["DETAILED BUDGET BREAKDOWN"]
["Include a detailed breakdown of the budget categories for Object Codes 1000-6000 and 8000, as shown on page 26."]
[]
["DETAILED BUDGET DESCRIPTION OF OBJECT CODE 1000"]
["Provide a description of the positions supported with funds from this program. Indicate if any positions are newly funded under this program.  Explain the supplementary nature of any new positions. Required if staff positions are to be funded by federal funds."]
[]
[]
["Item Description",null,null,null,null,null,null,"Funding Source",null,null,"FTEs",null,"Total Cost"]
[]
[]
[]
[]
[]
[]
[]
[]
[]
[]
[null,null,null,null,"      ",null,null,null,"Total for Object Code:",null,{"$f":"SUM(K63:L72)","v":0},null,{"$f":"SUM(M63:M72)","v":0}]
[]
[]
["DETAILED BUDGET DESCRIPTION OF OBJECT CODE 2000"]
["Indicate the fixed charge categories (such as FICA, health insurance, etc.) and specify the amount of each."]
[]
[]
["Item Description",null,null,null,null,null,null,null,null,"Funding Source",null,null,"Total Cost"]
[]
[]
[]
[]
[]
[]
[]
[]
[]
[]
[null,null,null,null,"      ",null,null,null,null,null,"Total for Object Code:",null,{"$f":"SUM(M81:M90)","v":0}]
[]
["Page 27"]
[null,null,null,null,"School Division:",null,{"$f":"'Title I, Part C'!$A$17","v":"ALBEMARLE COUNTY PUBLIC SCHOOLS"},null,null,null,null,"Division Number:",null,{"$f":"'Title I, Part C'!$H$17","v":2}]
["DETAILED BUDGET DESCRIPTION OF OBJECT CODE 3000 "]
["Please indicate how these funds will support any services and activities that are described in the application.  Services acquired from outside sources (i.e., private vendors, public authorities, or other governmental entities).  "]
[]
[]
["Item Description",null,null,null,null,null,null,null,null,"Funding Source",null,null,"Total Cost"]
[]
[]
[]
[]
[]
[]
[]
[]
[]
[]
[]
[]
[]
[]
[]
[null,null,null,null,"      ",null,null,null,null,null,"Total for Object Code:",null,{"$f":"SUM(M100:M114)","v":0}]
[]
[]
["DETAILED BUDGET DESCRIPTION OF OBJECT CODE 4000"]
["Provide a description of charges from an Internal Service Fund to other functions/activities/elements of the local government for the use of intergovernmental services.  "]
[]
[]
["Item Description",null,null,null,null,null,null,null,null,"Funding Source",null,null,"Total Cost"]
[]
[]
[]
[]
[]
[]
[]
[]
[]
[]
[null,null,null,null,"      ",null,null,null,null,null,"Total for Object Code:",null,{"$f":"SUM(M123:M132)","v":0}]
[]
["Page 28"]
[null,null,null,null,"School Division:",null,{"$f":"'Title I, Part C'!$A$17","v":"ALBEMARLE COUNTY PUBLIC SCHOOLS"},null,null,null,null,"Division Number:",null,{"$f":"'Title I, Part C'!$H$17","v":2}]
["DETAILED BUDGET DESCRIPTION FOR OBJECT CODE 5000"]
["Includes expenditures that support the program, including utilities (maintenance and operation of plant), staff/administrative/consultant travel, office phone charges, training, leases/rental, indirect cost, and other."]
[]
[]
["Item Description",null,null,null,null,null,null,null,null,"Funding Source",null,null,"Total Cost"]
[]
[]
[]
[]
[]
[]
[]
[]
[]
[]
[]
[]
[]
[]
[]
[]
[]
[]
[]
[null,null,null,null,"      ",null,null,null,null,null,"Total for Object Code:",null,{"$f":"SUM(M142:M160)","v":0}]
[]
[]
["DETAILED BUDGET DESCRIPTION FOR OBJECT CODE 6000"]
["Provide a description for expenses related to object code 6000 Materials and Supplies.  Include items that are consumed or materially altered when used and minor equipment that is not capitalized. Equipment under $5,000, including computer equipment, should be reported under this object code unless the LEA has set a lower capitalization threshold.  Indicate the quantity for each item.  "]
[]
[]
["Item Description",null,null,null,null,null,null,"Funding Source",null,null,"Quantities",null,"Total Cost"]
[]
[]
[]
[]
[]
[]
[]
[]
[]
[]
[]
[]
[]
[]
[]
[]
[null,null,null,null,"      ",null,null,null,null,null,"Total for Object Code:",null,{"$f":"SUM(M169:M184)","v":0}]
[]
["Page 29"]
[null,null,null,null,"School Division:",null,{"$f":"'Title I, Part C'!$A$17","v":"ALBEMARLE COUNTY PUBLIC SCHOOLS"},null,null,null,null,"Division Number:",null,{"$f":"'Title I, Part C'!$H$17","v":2}]
["DETAILED BUDGET DESCRIPTION FOR OBJECT CODE 8000"]
["All capital outlay expenditures over $5,000 per unit must be approved in advance by the Virginia Department of Education. If the school division has established a threshold of a lesser amount, items equal to that amount or greater must also receive prior approval by the Virginia Department of Education.  Nonconsumable items must be listed in the application.  Equipment quantities must be specified. "]
[]
[]
["Item Description",null,null,null,null,null,null,"Funding Source",null,null,"Quantities",null,"Total Cost"]
[]
[]
[]
[]
[]
[]
[]
[]
[]
[]
[]
[]
[]
[]
[]
[]
[]
[]
[]
[]
[null,null,null,null,"      ",null,null,null,null,null,"Total for Object Code:",null,{"$f":"SUM(M194:M213)","v":0}]
[]
[null,null,null,null,null,null,null,null,null,null,"Total Budget"]
["Page 30"]

{"sheet":"GEPA","index":2,"n_rows":9,"n_cols":16,"rows_kept":9,"cut":false,"hidden":false,"merged":[[13,5,13,6],[13,7,13,8],[13,9,13,10],[11,5,11,6],[11,7,11,8],[11,9,11,10],[12,5,12,6],[12,7,12,8],[12,9,12,10],[7,0,7,15],[8,0,8,15],[10,5,10,6],[10,7,10,8],[10,9,10,10],[0,3,0,5],[1,0,1,15],[3,0,3,15],[5,0,5,15],[6,0,6,15]]}
[null,null,null,"School Division:",null,null,{"$f":"'Title I, Part C'!$A$17","v":"ALBEMARLE COUNTY PUBLIC SCHOOLS"},null,null,null,null,null,"Division Number:",null,null,{"$f":"'Title I, Part C'!$H$17","v":2}]
["I.  GENERAL EDUCATION PROVISIONS ACT (GEPA) SECTION 427"]
[]
["Section 427 of the General Education Provisions Act (GEPA) requires applicants for federal funds to include in their applications a description of the steps the applicant will take to ensure equitable access to, and participation in, federally-assisted programs for students, teachers, and other program beneficiaries with special needs. The provision allows applicants discretion in developing the required description. The statute highlights six types of barriers that can impede equitable access or participation: gender, race, national origin, color, disability, or age. Based on local circumstances, the applicant should determine whether these or other barriers may prevent students, teachers, etc., from such access or participation in the federally-funded project or activity. The description in the application of steps to be taken to overcome these barriers need not be lengthy; the application may provide a clear and succinct description of how the applicant plans to address those barriers that are applicable to their circumstances."]
[]
["Describe the steps the division will take to ensure equitable access to, and participation in, grant-funded programs for students, teachers, and other program beneficiaries with special needs as required by the General Education Provisions Act (GEPA) 427, OMB Control No. 1894-00045, Section 427."]
["Albemarle County is committed to providing equitable access for students, teachers and families in all grant-funded programs and opportunities as required by GEPA 427: \n1.Ensuring all events are held in handicapped accessible facilities in geographically convenient locations. Events are held during the day, evening, and on weekends to accommodate family school/work schedules in order to maximize participation.\n2. Materials provided are accessible for literate and non-readers as well as in electronic and paper copy formats to inform families that may not have access to social media and email. This includes translation of documents into Spanish and other languages as needed. The ESOL Office annually vets, hires and trains additional interpreters and translators to ensure a high-level of quality with a personalized experience for families.  Simultaneous interpretation equipment is used in large-group settings, and InterpreTalk Language Line services are used when necessary. \n3. Albemarle County conducts a variety of outreach programs to address gender and/or race inequalities. Some of these include: Teacher summer reading project, Girls in STEM initiatives, Summer Immersion Excursion programs for newcomers, Camp Invention modules, CoderDojo, World Peace Game, and Saturday family engagement experiences to STEM fairs and other local attractions. "]
["4. Efforts to involve diverse stakeholders in program planning and implementation are robust and include seventeen diverse teams. Advisory groups include Parent Council, Student Advisory, Special Education, Gifted, Title I, and Diversity and Equity.  Last but certainly not least, the Title I, Title III, Migrant and Homeless Coordinators all meet monthly with the Director of Federal Programs to collaborate and ensure our students have equitable access to all division opportunities. \n5. Lastly, as set forth on our Human Resources website \"hiring for Albemarle County shall be accomplished without regard to race, color, religion, national origin, gender, pregnancy, childbirth or related medical conditions, age, marital status or disability unless otherwise permitted by County policy or applicable law\"."]
["Page 31"]

{"sheet":"Consortium Incentive Grants","index":3,"n_rows":344,"n_cols":16,"rows_kept":344,"cut":false,"hidden":false,"merged":[[189,13,189,15],[12,2,12,11],[9,2,9,11],[40,0,40,6],[40,7,40,8],[70,0,70,15],[71,0,71,15],[59,7,60,15],[44,7,45,15],[47,7,48,15],[50,7,51,15],[56,7,57,15],[67,0,67,15],[62,7,63,15],[40,9,40,11],[42,0,42,15],[43,0,43,15],[69,1,69,15],[33,0,33,15],[28,0,28,5],[28,7,28,14],[72,0,72,15],[73,0,73,15],[82,6,82,10],[263,13,263,15],[264,13,264,15],[298,1,298,15],[258,13,258,15],[261,11,261,12],[251,11,251,12],[296,1,296,15],[289,1,289,15],[292,1,292,15],[267,13,267,15],[273,0,273,15],[279,1,279,15],[282,1,282,15],[277,1,277,15],[285,1,285,15],[288,1,288,15],[283,1,283,15],[253,11,253,12],[257,13,257,15],[255,13,255,15],[293,1,293,15],[254,11,254,12],[297,1,297,15],[256,13,256,15],[74,0,74,15],[214,0,214,12],[215,0,215,12],[216,0,216,12],[262,13,262,15],[259,13,259,15],[260,13,260,15],[250,13,250,15],[261,13,261,15],[103,1,103,5],[110,1,110,5],[109,1,109,5],[108,1,108,5],[107,1,107,5],[105,1,105,5],[127,0,127,10],[127,11,127,12],[127,13,127,15],[143,0,143,12],[143,13,143,15],[144,0,144,12],[99,1,99,5],[89,6,89,10],[123,0,123,15],[105,0,108,0],[101,0,104,0],[97,0,100,0],[93,0,96,0],[89,0,92,0],[117,0,117,15],[120,0,120,15],[115,0,115,15],[104,1,104,5],[98,6,98,10],[102,6,102,10],[106,6,106,10],[90,6,90,10],[91,1,91,5],[91,6,91,10],[158,0,158,15],[159,0,159,15],[132,11,132,12],[135,13,135,15],[131,0,131,10],[132,0,132,10],[145,13,145,15],[152,13,152,15],[146,13,146,15],[141,13,141,15],[142,13,142,15],[144,13,144,15],[139,0,139,15],[140,0,140,15],[234,11,234,12],[219,0,219,12],[250,0,250,10],[250,11,250,12],[240,13,240,15],[254,13,254,15],[252,13,252,15],[253,13,253,15],[239,0,239,10],[241,11,241,12],[244,13,244,15],[242,13,242,15],[233,13,233,15],[242,11,242,12],[238,11,238,12],[251,0,251,10],[243,11,243,12],[243,0,243,10],[239,13,239,15],[237,13,237,15],[234,0,234,10],[232,13,232,15],[235,13,235,15],[238,0,238,10],[338,4,338,8],[338,9,338,11],[334,4,334,8],[334,9,334,11],[335,4,335,8],[203,0,203,12],[204,0,204,12],[205,0,205,12],[249,0,249,15],[213,0,213,12],[233,11,233,12],[233,0,233,10],[265,13,265,15],[257,0,257,10],[258,0,258,10],[264,0,264,10],[259,0,259,10],[262,0,262,10],[216,13,216,15],[239,11,239,12],[227,0,227,15],[222,9,222,12],[308,0,308,3],[310,0,310,15],[311,3,312,15],[315,2,316,15],[301,0,301,15],[303,0,303,15],[305,2,305,10],[329,4,329,8],[264,11,264,12],[337,4,337,8],[337,9,337,11],[305,11,306,12],[305,13,306,15],[313,2,314,15],[313,0,314,1],[304,0,304,15],[305,0,305,1],[306,0,306,1],[336,4,336,8],[336,9,336,11],[332,4,332,8],[332,9,332,11],[333,4,333,8],[333,9,333,11],[331,4,331,8],[331,9,331,11],[330,4,330,8],[335,9,335,11],[330,9,330,11],[329,9,329,11],[266,11,266,12],[206,0,206,12],[232,0,232,10],[200,0,200,15],[201,0,201,15],[202,0,202,12],[266,13,266,15],[255,11,255,12],[256,11,256,12],[257,11,257,12],[258,11,258,12],[328,4,328,8],[328,9,328,11],[228,0,228,15],[229,0,229,15],[248,0,248,15],[319,1,320,4],[211,13,211,15],[265,11,265,12],[275,0,275,15],[308,4,308,11],[308,13,308,15],[319,6,320,11],[324,0,324,15],[235,11,235,12],[265,0,265,10],[252,11,252,12],[325,1,325,15],[307,4,307,15],[237,11,237,12],[236,11,236,12],[246,0,246,15],[247,0,247,15],[299,0,299,15],[281,0,281,15],[287,0,287,15],[291,0,291,15],[295,0,295,15],[271,0,271,15],[274,0,274,15],[306,2,306,10],[262,11,262,12],[259,11,259,12],[263,11,263,12],[307,0,307,3],[327,4,327,8],[327,9,327,11],[129,11,129,12],[130,11,130,12],[129,0,129,10],[130,0,130,10],[133,11,133,12],[134,11,134,12],[133,0,133,10],[317,2,318,15],[211,0,211,12],[219,13,219,15],[319,13,320,15],[167,0,167,12],[168,0,168,12],[190,13,190,15],[190,0,190,12],[191,0,191,12],[192,0,192,12],[195,9,195,12],[131,11,131,12],[266,0,266,10],[326,9,326,11],[0,12,0,15],[1,13,1,14],[3,13,3,14],[5,14,5,15],[7,13,7,14],[21,0,21,15],[22,0,22,15],[24,0,24,15],[9,14,9,15],[11,2,11,11],[16,0,16,6],[16,9,16,15],[15,9,15,15],[16,7,16,8],[20,0,20,15],[15,0,15,6],[15,7,15,8],[1,2,1,11],[2,2,2,11],[3,2,3,11],[4,2,4,11],[6,2,6,11],[7,2,7,11],[10,2,10,11],[35,0,35,15],[39,9,39,11],[38,9,38,11],[38,13,38,15],[38,0,38,8],[39,0,39,6],[39,7,39,8],[37,0,37,8],[37,9,37,11],[30,7,30,14],[26,0,26,5],[19,0,19,15],[14,0,14,15],[30,0,30,5],[182,0,182,15],[213,13,213,15],[217,0,217,12],[218,0,218,12],[176,13,176,15],[171,13,171,15],[172,13,172,15],[174,13,174,15],[175,13,175,15],[168,13,168,15],[166,0,166,12],[173,13,173,15],[176,9,176,12],[170,0,170,12],[171,0,171,12],[202,13,202,15],[198,0,198,15],[194,0,194,12],[207,13,207,15],[231,11,231,12],[231,13,231,15],[220,13,220,15],[221,13,221,15],[215,13,215,15],[222,13,222,15],[214,13,214,15],[217,13,217,15],[218,13,218,15],[230,13,230,15],[230,0,230,10],[231,0,231,10],[230,11,230,12],[186,0,186,12],[186,13,186,15],[187,0,187,12],[187,13,187,15],[188,0,188,12],[188,13,188,15],[189,0,189,12],[212,13,212,15],[209,0,209,12],[212,0,212,12],[210,0,210,12],[205,13,205,15],[194,13,194,15],[206,13,206,15],[208,13,208,15],[209,13,209,15],[210,13,210,15],[199,0,199,15],[207,0,207,12],[208,0,208,12],[195,13,195,15],[203,13,203,15],[204,13,204,15],[122,0,122,15],[193,0,193,12],[175,0,175,12],[184,0,184,12],[185,0,185,12],[156,0,156,15],[172,0,172,12],[173,0,173,12],[191,13,191,15],[148,13,148,15],[193,13,193,15],[192,13,192,15],[162,0,162,12],[149,0,149,12],[150,0,150,12],[151,0,151,12],[160,13,160,15],[160,0,160,12],[164,0,164,12],[152,9,152,12],[174,0,174,12],[169,0,169,12],[166,13,166,15],[167,13,167,15],[79,0,79,10],[165,0,165,12],[147,13,147,15],[126,11,126,12],[107,6,107,10],[145,0,145,12],[124,0,124,10],[126,13,126,15],[125,11,125,12],[125,0,125,10],[125,13,125,15],[124,13,124,15],[135,11,135,12],[135,7,135,10],[128,13,128,15],[128,11,128,12],[128,0,128,10],[134,0,134,10],[131,13,131,15],[133,13,133,15],[134,13,134,15],[132,13,132,15],[76,0,76,15],[53,7,54,15],[142,0,142,12],[104,6,104,10],[129,13,129,15],[130,13,130,15],[124,11,124,12],[126,0,126,10],[141,0,141,12],[110,6,110,10],[80,6,80,10],[99,6,99,10],[108,6,108,10],[80,11,80,15],[80,1,80,5],[78,0,78,15],[113,1,113,15],[112,1,112,15],[109,6,109,10],[118,0,118,15],[81,11,83,15],[84,11,84,15],[111,6,111,10],[65,0,65,15],[252,0,252,10],[253,0,253,10],[254,0,254,10],[255,0,255,10],[256,0,256,10],[242,0,242,10],[146,0,146,12],[147,0,147,12],[148,0,148,12],[183,0,183,15],[163,13,163,15],[164,13,164,15],[169,13,169,15],[149,13,149,15],[161,13,161,15],[150,13,150,15],[151,13,151,15],[157,0,157,15],[165,13,165,15],[161,0,161,12],[232,11,232,12],[240,0,240,10],[181,0,181,15],[185,13,185,15],[162,13,162,15],[110,11,110,15],[319,12,320,12],[220,0,220,12],[221,0,221,12],[226,0,226,15],[263,0,263,10],[260,0,260,10],[260,11,260,12],[251,13,251,15],[243,13,243,15],[241,0,241,10],[235,0,235,10],[236,0,236,10],[237,0,237,10],[238,13,238,15],[241,13,241,15],[234,13,234,15],[236,13,236,15],[240,11,240,12],[163,0,163,12],[170,13,170,15],[154,0,154,15],[184,13,184,15],[178,0,178,15],[245,0,245,15],[269,0,269,15],[343,0,343,15],[97,11,99,15],[100,11,100,15],[101,11,103,15],[104,11,104,15],[105,11,107,15],[108,11,108,15],[109,11,109,15],[326,4,326,8],[311,0,312,2],[315,0,316,1],[317,0,318,1],[319,0,320,0],[319,5,320,5],[261,0,261,10],[100,6,100,10],[101,6,101,10],[103,6,103,10],[105,6,105,10],[101,1,101,5],[180,0,180,15],[81,1,81,5],[81,6,81,10],[83,1,83,5],[85,11,87,15],[88,11,88,15],[89,11,91,15],[92,11,92,15],[93,11,95,15],[96,11,96,15],[95,1,95,5],[95,6,95,10],[96,1,96,5],[96,6,96,10],[94,6,94,10],[83,6,83,10],[86,6,86,10],[244,9,244,12],[267,9,267,12],[224,0,224,15],[85,0,88,0],[81,0,84,0],[137,0,137,15],[138,0,138,15],[121,0,121,15],[97,1,97,5],[97,6,97,10],[92,1,92,5],[92,6,92,10],[93,1,93,5],[93,6,93,10],[100,1,100,5],[89,1,89,5],[84,1,84,5],[84,6,84,10],[85,1,85,5],[85,6,85,10],[87,1,87,5],[87,6,87,10],[88,1,88,5],[88,6,88,10]]}
[null,null,null,null,null,null,null,null,null,null,null,null,"Place an \"X\" by the applicable response."]
[null,null,"Virginia Department of Education",null,null,null,null,null,null,null,null,null,null," Original "]
[null,null,"Office of ESEA Programs"]
[null,null,"P. O. Box 2120",null,null,null,null,null,null,null,null,null,null,"Revision:   "]
[null,null,"Richmond, Virginia 23218-2120",null,null,null,null,null,null,null,null,null,null,"Revision #"]
[null,null,null,null,null,null,null,null,null,null,null,null,null,"Date:"]
[null,null,"A.  COVER PAGE",null,null,null,null,null,null,null,null,null,null,"Explain"]
[null,null,"   Title I, Part C, Education of Migratory Children",null,null,null,null,null,null,null,null,null,null,"Amendment:"]
[null,null,null,null,null,null,null,null,null,null,null,null,null,"Amendment # "]
[null,null,"   2020-2021 Consortium Incentive Grant Application ",null,null,null,null,null,null,null,null,null,null,"Date:       "]
[null,null,"Due by July 1, 2020",null,null,null,null,null,null,null,null,null,null,"Explain"]
[null,null,"Elementary and Secondary Education Act of 1965 (ESEA), as amended by"]
[null,null,"the Every Student Succeeds Act of 2015 (ESSA), Public Law 114-95 "]
[]
["To be Completed by School Division"]
["Applicant  (Legal Name of Agency):",null,null,null,null,null,null,"Division Number: ",null,"Title I, Part C, Coordinator:"]
[{"$f":"'Title I, Part C'!A17","v":"ALBEMARLE COUNTY PUBLIC SCHOOLS"},null,null,null,null,null,null,{"$f":"'Title I, Part C'!H17","v":2},null,{"$f":"'Title I, Part C'!J17:P17","v":"Sharon Root"}]
[]
[]
["LOCAL EDUCATIONAL AGENCY CERTIFICATION"]
["Use of Funds:  The applicant designated above applies for an allocation of federal assistance as appropriated under ESEA.  Funds are available to support local education reform efforts that are consistent with statewide education reform efforts to: 1) provide funding to implement promising education reform programs and school improvement programs based on evidence-based research;  2) provide a continuing source of innovative and educational improvement;  3) meet the educational needs of all students; and 4) develop and implement education programs to improve student achievement and teacher performance. \n\nSpecific uses of funds for this application are found in the \"Guidelines, Instructions, and Assurances\" document."]
[]
["Assurances:  The local educational agency assures that the Title I, Part C, program will be administered and implemented in compliance with all applicable statutes, regulations, policies, program plans, and applications.  Additionally, the local educational agency agrees by signing below to implement the general and program specific assurances located in the application.  The assurances and signed cover page are to be retained at the division level.  "]
[]
["Certification:  We hereby certify that, to the best of our knowledge, the information contained in this application is correct.  The agency named above has authorized us as its representatives to file this application."]
[]
[]
["Superintendent/Agency Designee's Signature"]
["     "]
["Superintendent/Agency Designee's  Name"]
["     "]
["Date"]
[]
["Page 32"]
[null,null,null,null,"School Division:",null,{"$f":"'Title I, Part C'!$A$17","v":"ALBEMARLE COUNTY PUBLIC SCHOOLS"},null,null,null,null,null,"Division Number:",null,null,{"$f":"'Title I, Part C'!$H$17","v":2}]
["APPLICATION INFORMATION"]
[]
["PROGRAM",null,null,null,null,null,null,null,null,"2020-2021\nAllocation"]
["Title I, Part C, Education of Migratory Children, \nConsortium Incentive Grant",null,null,null,null,null,null,null,null,{"$f":"SUM(J40:L41)","v":0}]
["a. Division Allocation",null,null,null,null,null,null,"Subtotal "]
["b.  Regional Program - Total of allocations  for all divisions in the regional program",null,null,null,null,null,null,"Subtotal "]
[]
["REVISIONS AND AMENDMENTS"]
["Place an \"X\" in the box indicating whether it is a revision or amendment. Enter the date of the revision or amendment.  Indicate the tab(s) that have been changed. Provide a concise description of changes (for example, \"Programmatic Changes--purchase of additional reading materials, object code 6000; Budget Changes--decreased travel budget in object code 5000 and increased materials to purchase additional reading materials in object code 6000\"). When completing an amendment, changes to the program overview may be reflected as additions at the end of the narrative.\n\nNOTE: Any changes to the program budget should first be reflected in an amended application, followed by a budget transfer within 7 business days of approval of the amended application. Budget transfers will not be accepted without an approved amended application reflecting budget changes."]
["1.","Revision",null,null,null,"Date:"]
[null,"Amendment",null,null,null,"Date:"]
[]
["2.","Revision",null,null,null,"Date:"]
[null,"Amendment",null,null,null,"Date:"]
[]
["3.","Revision",null,null,null,"Date:"]
[null,"Amendment",null,null,null,"Date:"]
[]
["4.","Revision",null,null,null,"Date:"]
[null,"Amendment",null,null,null,"Date:"]
[]
["5.","Revision",null,null,null,"Date:"]
[null,"Amendment",null,null,null,"Date:"]
[]
["6.","Revision",null,null,null,"Date:"]
[null,"Amendment",null,null,null,"Date:"]
[]
["7.","Revision",null,null,null,"Date:"]
[null,"Amendment",null,null,null,"Date:"]
[]
["Page 33"]
[null,null,null,null,"School Division:",null,{"$f":"'Title I, Part C'!$A$17","v":"ALBEMARLE COUNTY PUBLIC SCHOOLS"},null,null,null,null,null,"Division Number:",null,null,{"$f":"'Title I, Part C'!$H$17","v":2}]
["B.  PROGRAM OVERVIEW"]
["In narrative format:"]
[null,"Describe the instructional programs or program services to be developed with the requested federal funds based on the results of the division/regional comprehensive needs assessment.  Include the targeted population(s). (Examples are: ESEA subgroups of students, homeless and migrant students, instructional and administrative staff, paraprofessionals, parents, etc.)"]
[]
[]
[]
[]
[]
[]
["Page 34"]
[null,null,null,null,"School Division:",null,{"$f":"'Title I, Part C'!$A$17","v":"ALBEMARLE COUNTY PUBLIC SCHOOLS"},null,null,null,null,null,"Division Number:",null,null,{"$f":"'Title I, Part C'!$H$17","v":2}]
["E.  BUDGET SUMMARY"]
[]
["OBJECT CODE ","EXPENDITURE",null,null,null,null,"AMOUNT BUDGETED",null,null,null,null,"Does the Budget Summary Match the Detailed Budget? "]
["1000 -\n Personal Services","Non Set-Aside"]
[null,"Set-Aside"]
[null,"Private School Set-Aside"]
[null,"Total Personal Services",null,null,null,null,{"$f":"SUM(G82:K84)","v":0},null,null,null,null,{"$f":"IF(SUM(G85)=SUM(N136),\"Yes\",\"No - please review your entries.\")","v":"Yes"}]
["2000 -\nEmployee Benefits","Non Set-Aside"]
[null,"Set-Aside"]
[null,"Private School Set-Aside"]
[null,"Total Employee Benefits",null,null,null,null,{"$f":"SUM(G86:K88)","v":0},null,null,null,null,{"$f":"IF(SUM(G89)=SUM(N153),\"Yes\",\"No - please review your entries.\")","v":"Yes"}]
["3000 - \nPurchased/\nContracted Services","Non Set-Aside"]
[null,"Set-Aside"]
[null,"Private School Set-Aside"]
[null,"Total Purchased/Contracted Services",null,null,null,null,{"$f":"SUM(G90:K92)","v":0},null,null,null,null,{"$f":"IF(SUM(G93)=SUM(N177),\"Yes\",\"No - please review your entries.\")","v":"Yes"}]
["4000 - \nInternal Services","Non Set-Aside"]
[null,"Set-Aside"]
[null,"Private School Set-Aside"]
[null,"Total Internal Services",null,null,null,null,{"$f":"SUM(G94:K96)","v":0},null,null,null,null,{"$f":"IF(SUM(G97)=SUM(N196),\"Yes\",\"No - please review your entries.\")","v":"Yes"}]
["5000 - \nOther  \nCharges","Non Set-Aside"]
[null,"Set-Aside"]
[null,"Private School Set-Aside"]
[null,"Total Other Charges",null,null,null,null,{"$f":"SUM(G98:K100)","v":0},null,null,null,null,{"$f":"IF(SUM(G101)=SUM(N223),\"Yes\",\"No - please review your entries.\")","v":"Yes"}]
["6000 - \nMaterials\nand Supplies","Non Set-Aside"]
[null,"Set-Aside"]
[null,"Private School Set-Aside"]
[null,"Total Materials and Supplies",null,null,null,null,{"$f":"SUM(G102:K104)","v":0},null,null,null,null,{"$f":"IF(SUM(G105)=SUM(N245),\"Yes\",\"No - please review your entries.\")","v":"Yes"}]
["8000 - \nCapital\nOutlay","Non Set-Aside"]
[null,"Set-Aside"]
[null,"Private School Set-Aside"]
[null,"Total Capital Outlay",null,null,null,null,{"$f":"SUM(G106:K108)","v":0},null,null,null,null,{"$f":"IF(SUM(G109)=SUM(N268),\"Yes\",\"No - please review your entries.\")","v":"Yes"}]
[null,"TOTAL BUDGET",null,null,null,null,{"$f":"SUM(G109,G105,G101,G97,G93,G89,G85)","v":0}]
[null,"Does the Total Budget Match the \n2020-2021 Total Allocation? ",null,null,null,null,{"$f":"IF(SUM(G110)=SUM(J39),\"Yes\",\"No - please review your entries.\")","v":"Yes"}]
[]
["Note:","Object codes 7000 and 9000 are not used in application budgets or in requests for reimbursements for this federal grant."]
["Note:","Expenses for parental involvement programs are to be incorporated into the appropriate object code(s) based on the category of the related charges."]
[]
["Page 35"]
[null,null,null,null,"School Division:",null,{"$f":"'Title I, Part C'!$A$17","v":"ALBEMARLE COUNTY PUBLIC SCHOOLS"},null,null,null,null,null,"Division Number:",null,null,{"$f":"'Title I, Part C'!$H$17","v":2}]
["DETAILED BUDGET BREAKDOWN"]
["Include a detailed breakdown of the budget categories for Object Codes 1000-6000 and 8000, as shown on page 35."]
[]
["DETAILED BUDGET DESCRIPTION OF OBJECT CODE 1000"]
["Provide a description of the positions supported with funds from this program. Indicate if any positions are newly funded under this program.  Explain the supplementary nature of any new positions. Required if staff positions are to be funded by federal funds."]
[]
[]
["Item Description",null,null,null,null,null,null,null,null,null,null,"FTEs",null,"Total Cost"]
[]
[]
[]
[]
[]
[]
[]
[]
[]
[]
[null,null,null,null,"      ",null,null,"Total for Object Code:",null,null,null,{"$f":"SUM(L126:M135)","v":0},null,{"$f":"SUM(N126:P135)","v":0}]
[]
["DETAILED BUDGET DESCRIPTION OF OBJECT CODE 2000"]
["Indicate the fixed charge categories (such as FICA, health insurance, etc.) and specify the amount of each."]
[]
[]
["Item Description",null,null,null,null,null,null,null,null,null,null,null,null,"Total Cost"]
[]
[]
[]
[]
[]
[]
[]
[]
[]
[]
[null,null,null,null,"      ",null,null,null,null,"Total for Object Code:",null,null,null,{"$f":"SUM(N143:P152)","v":0}]
[]
["Page 36"]
[null,null,null,null,"School Division:",null,{"$f":"'Title I, Part C'!$A$17","v":"ALBEMARLE COUNTY PUBLIC SCHOOLS"},null,null,null,null,null,"Division Number:",null,null,{"$f":"'Title I, Part C'!$H$17","v":2}]
["DETAILED BUDGET DESCRIPTION OF OBJECT CODE 3000 "]
["Please indicate how these funds will support any services and activities that are described in the application.  Services acquired from outside sources (i.e., private vendors, public authorities, or other governmental entities).  "]
[]
[]
["Item Description",null,null,null,null,null,null,null,null,null,null,null,null,"Total Cost"]
[]
[]
[]
[]
[]
[]
[]
[]
[]
[]
[]
[]
[]
[]
[]
[null,null,null,null,"      ",null,null,null,null,"Total for Object Code:",null,null,null,{"$f":"SUM(N162:P176)","v":0}]
[]
["Page 37"]
[null,null,null,null,"School Division:",null,{"$f":"'Title I, Part C'!$A$17","v":"ALBEMARLE COUNTY PUBLIC SCHOOLS"},null,null,null,null,null,"Division Number:",null,null,{"$f":"'Title I, Part C'!$H$17","v":2}]
["DETAILED BUDGET DESCRIPTION OF OBJECT CODE 4000"]
["Provide a description of charges from an Internal Service Fund to other functions/activities/elements of the local government for the use of intergovernmental services.  "]
[]
[]
["Item Description",null,null,null,null,null,null,null,null,null,null,null,null,"Total Cost"]
[]
[]
[]
[]
[]
[]
[]
[]
[]
[]
[null,null,null,null,"      ",null,null,null,null,"Total for Object Code:",null,null,null,{"$f":"SUM(N186:P195)","v":0}]
[]
[]
["DETAILED BUDGET DESCRIPTION FOR OBJECT CODE 5000"]
["Includes expenditures that support the program, including utilities (maintenance and operation of plant), staff/administrative/consultant travel, office phone charges, training, leases/rental, indirect cost, and other."]
[]
[]
["Item Description",null,null,null,null,null,null,null,null,null,null,null,null,"Total Cost"]
[]
[]
[]
[]
[]
[]
[]
[]
[]
[]
[]
[]
[]
[]
[]
[]
[]
[]
[]
[null,null,null,null,"      ",null,null,null,null,"Total for Object Code:",null,null,null,{"$f":"SUM(N204:P222)","v":0}]
[]
["Page 38"]
[null,null,null,null,"School Division:",null,{"$f":"'Title I, Part C'!$A$17","v":"ALBEMARLE COUNTY PUBLIC SCHOOLS"},null,null,null,null,null,"Division Number:",null,null,{"$f":"'Title I, Part C'!$H$17","v":2}]
["DETAILED BUDGET DESCRIPTION FOR OBJECT CODE 6000"]
["Provide a description for expenses related to object code 6000 Materials and Supplies.  Include items that are consumed or materially altered when used and minor equipment that is not capitalized. Equipment under $5,000, including computer equipment, should be reported under this object code unless the LEA has set a lower capitalization threshold.  Indicate the quantity for each item.  "]
[]
[]
["Item Description",null,null,null,null,null,null,null,null,null,null,"Quantities",null,"Total Cost"]
[]
[]
[]
[]
[]
[]
[]
[]
[]
[]
[]
[]
[]
[null,null,null,null,"      ",null,null,null,null,"Total for Object Code:",null,null,null,{"$f":"SUM(N232:P244)","v":0}]
[]
["DETAILED BUDGET DESCRIPTION FOR OBJECT CODE 8000"]
["All capital outlay expenditures over $5,000 per unit must be approved in advance by the Virginia Department of Education. If the school division has established a threshold of a lesser amount, items equal to that amount or greater must also receive prior approval by the Virginia Department of Education.  Nonconsumable items must be listed in the application.  Equipment quantities must be specified. "]
[]
[]
["Item Description",null,null,null,null,null,null,null,null,null,null,"Quantities",null,"Total Cost"]
[]
[]
[]
[]
[]
[]
[]
[]
[]
[]
[]
[]
[]
[]
[]
[]
[null,null,null,null,"      ",null,null,null,null,"Total for Object Code:",null,null,null,{"$f":"SUM(N252:P267)","v":0}]
[]
["Page 39"]
[null,null,null,null,"School Division:",null,{"$f":"'Title I, Part C'!$A$17","v":"ALBEMARLE COUNTY PUBLIC SCHOOLS"},null,null,null,null,null,"Division Number:",null,null,{"$f":"'Title I, Part C'!$H$17","v":2}]
["EXPENDITURE ACCOUNTS DESCRIPTIONS"]
[]
["These accounts are for budgeting and recording expenditures of the educational agency for activities under its control.  Below are definitions of the major expenditure categories.  The descriptions provided are examples only.  For further clarification on the proper expenditures of funds, contact your school division budget or finance office, the grant specialist in the Virginia Department of Education, or refer to the appropriate federal act."]
["OBJECT CODE DEFINITIONS:"]
["(revised 5/16/17)"]
[]
[1000,"PERSONAL SERVICES - Includes all compensation for the direct labor of persons in the employment of the local government.  Salaries and wages paid to employees for full‐ and part‐time work, including overtime, shift differential, and similar compensation. Includes payments for time not worked, including sick leave, vacation, holidays, jury duty, military leave, and other paid absences that are earned during the reporting period.  \n\nFor the purposes of this report, the term “salaries” means all compensation including base wage.  This also includes amounts paid through salary reduction plans, such as tax‐sheltered annuities and flexible benefit plans.  Do not confuse this definition with the Virginia Retirement System (VRS) definition, which excludes supplements for retirement calculation purposes in some circumstances.\n"]
[]
[2000,"EMPLOYEE BENEFITS - Job related benefits provided to employees as part of their total compensation.  Fringe benefits include the employer’s portion of FICA, pensions, insurance (life, health, disability income, etc.) and employee allowances.  \n\nNOTE:  Fringe Benefits are a significant component of employee compensation and, like salaries and wages, are charged to the appropriate object of expenditure within each program.  If possible, fringe benefit costs should be charged to the applicable educational program or activity on an ongoing basis.  An alternative is to charge all fringe benefits to various benefit accounts.  As part of the year‐end closing process, these accounts are closed, and all costs are allocated to the appropriate educational program or activity.  The following methods are suggested for allocating such cost at year‐end.  If these methods do not provide reasonable allocations based on circumstances within the school division, then the school division should use another reasonable allocation method.  Consistency in application should be maintained at all times.\n\n• Allocation by percentage of payroll dollars\n• Allocation by Head Count\n• Direct to Program or Activity\n"]
[]
["Page 40"]
[3000,"PURCHASED/CONTRACTUAL SERVICES - Services acquired from outside sources (i.e., private vendors, public authorities, or other governmental entities).  Purchase of the service is on a fee basis or fixed time contract basis.  Payments for rentals and utilities are not included in this account description.  Allowable payments would be to individual or firms that are independent contractors and not employees of the grantee or sub‐grantee organization.  The word honorarium is sometimes used to characterize such payments; the term “fee” is preferred.\n\n• Food Purchases – Prepared meals, working meals, and/or catered services purchased through a vendor are included in this object code.  Reimbursement is capped at the per diem rate for the meal listed according to the state travel regulations.  Examples for this object code include meals provided during day‐long professional development sessions, or meals provided to support attendance at family engagement activities.  Food purchased from catering services and restaurants such as Pizza Hut, Panera Bread, and Subway is included in this object code.\n\n• Transportation Services Public Carriers – Payments to public carriers for transportation of pupils on vehicles that are used by the public. Include payments for pupils transported in intra‐city transit buses, taxicabs, airplanes, and intercity/interstate passenger buses.\n\n• Transportation Services Private Carriers – Payments (either cash or tokens) to parents for transportation of pupils in lieu of providing transportation on school buses. Include allowable payments to parents for pupils attending public, private, and non‐sectarian schools. Include costs associated with transporting special education students in school board‐owned vehicles to and from school.\n\n\n\n"]
[null,"• Transportation Services by Contract – Payments to private owners of school buses who contract with the school board to transport pupils to and from public schools. Include payments to owners of private vehicles that contract with the school board to transport pupils to and from designated public and private schools.\n\n• Purchase of Service from Other Governmental Entities – Payments for services purchased from other governmental entities (i.e., other local governments, public authorities, state agencies, and other LEAs) on a contract/fee basis. Tuition payments to other local governments for a jointly operated center are not included here but are reported under “Payments to Joint Operations” (object code 7000).\n\n• Tuition Paid – Other Divisions In‐State, Tuition Paid – Other Divisions Out‐of‐State, and Tuition Paid – Private Schools are included in this object code.\n"]
[]
[4000,"INTERNAL SERVICES - Charges from an Internal Service Fund to other functions/activities/elements of the local government for the use of intergovernmental services, such as data processing, automotive/motor pool, central purchasing/central stores, print shop, and risk management. These services are provided by internal services within the School District and possibly the county but not a vendor.  \n\n• Food Purchases – Food purchased from the food services department of a school division or subgrantee equivalent to support professional development or family engagement events is included in this object code.  For example, internal expenses for school cafeterias to provide meals to support attendance at family engagement activities are included in this object code.\n"]
[]
["Page 41"]
[5000,"OTHER CHARGES - Include expenditures that support the use of programs. Includes expenditures that support the program, including utilities (maintenance and operation of plant), staff/administrative/consultant travel, office phone charges, training, leases/rental, indirect cost, and other.\n\n• Food Purchases – Food Purchases under this object code are restricted to food purchases related to travel reimbursement for meals only (see Travel below). If the sub‐recipient’s internal travel policies conform to state travel regulations, reimbursement is allowable at per diem meals rates according to state travel regulations. If the sub‐recipient’s internal travel policies require reimbursement for the cost of each meal, reimbursement is capped at the per diem rate for the meal listed according to the state travel regulations. Sub‐recipients must elect either meals per diem or per meals costs as their internal travel policy.\n\n• Telecommunications – Include expenditures for recurring telecommunications services for the use of on‐line computer technology (e.g., telephone/telecommunications line charges).  Telephone charges for line service for Internet connectivity and the Electronic Classroom program.\n\n• Utilities – Payments for heat, electricity, water, and sewer services regardless of whether the service is provided by a private enterprise authority or an enterprise fund operated by a local government.\n\n• Communications – Payments for postal, messenger, and telecommunications services, typically office voice telephone charges.  (Telecommunication costs directly related to technology uses should be coded under 6000.) In addition, office telephone charges would be coded under this code."]
[null,"• Insurance – Payments for insurance except those that relate to personal services (i.e., hospitalization, group life, worker’s compensation, unemployment)\n\n• Leases and Rentals – Includes payments for leases that are not capitalized and rental of land, structures, and equipment. Do not include payments made under a lease‐purchase agreement.\n\n• Travel – includes payments for travel reimbursement for staff/administrative/consultant travel. These are travel costs that are being reimbursed directly to travelers.  These costs may include lodging, mileage, meals, and incidentals as allowable according to state travel regulations or documented subrecipient internal travel policies. If the sub‐recipient does not have documented internal travel policies, state travel regulations will prevail.\n\n• Contributions to Other Entities – Includes payments to other governmental entities or community organizations that are not related to the direct purchase of a service on a fee basis (which is reported under object code 3000) or payments to joint operations (which are reflected under object code 7000).\n\n• Public Assistance Payments – Payments to individuals for public assistance programs (general government use only).\n\n• Miscellaneous Other Charges – Includes expenditures that support the program, including indirect costs and other costs.\n"]
[]
["Page 42"]
[6000,"MATERIALS AND SUPPLIES - Includes articles and commodities that are consumed or materially altered when used and minor equipment that is not capitalized.  This includes any equipment purchased under $5,000, unless the LEA has set a lower capitalization threshold.  Therefore, computer equipment under $5,000 would be reported in “materials and supplies.”\n\n• Food Purchases – Food items purchased from a grocery store or its equivalent for snacks or breaks is included in this object code.  Examples include bottled water, granola bars, cookies, and fruit purchased from a store such as Wal‐Mart, Food Lion, Costco, etc.  Prepared meals is not included in this object code; see object code 3000 for prepared/working/catered meals as purchased/contracted services.\n\n• Vehicle and Powered Equipment Fuels – Gasoline, lubricating oils, or such other fuel used in the operation of vehicles and powered equipment (e.g., lawnmowers) purchased from private sources or governmental agencies.\n\n• Vehicle and Powered Equipment Supplies – Tires, spark plugs, batteries, and chains used in the operation of vehicles and powered equipment purchased from private sources or governmental agencies.\n\n• Textbooks – All textbooks and workbooks purchased to be used in the classroom.\n\n• Instructional Materials – Books (not textbooks) and other materials.\n\n"]
[null,"• Technology Software/On‐line Content – Include expenditures for videodiscs and computer programs used in the classroom for instructional purposes, operating system software (i.e., standalone software, not software that is pre‐installed and included in hardware costs), application software, and on‐line or downloadable software and content. Include expenditures for both additions and replacement.\n\n• Non‐Capitalized Technology Hardware – Include expenditures for hardware or classroom technology equipment that is not capitalized.\n\n• Non‐Capitalized Technology Infrastructure – Include expenditures for technology infrastructure that is not capitalized.\n"]
[]
["Page 43"]
[8000,"CAPITAL OUTLAY - Note: Indirect cost cannot be claimed against capital outlay and equipment.\nOutlays that result in the acquisition of or additions to fixed assets.  Capital Outlay includes the purchase\nof fixed assets both replacement and/or additional.\n\nCapital Outlay Replacement\n\n• Technology – Hardware Replacements – Include capital outlay for replacement of hardware or classroom technology equipment. (For further clarification on which expenditures should be included in this object code, see the “Special Note” below.)\n\n• Technology – Infrastructure Replacements – Include capital outlay for replacement of technology infrastructure. (For further clarification on which expenditures should be included in this object code, see the “Special Note” below.)\n\n• Capital Outlay Additions – Include machinery, equipment, furniture, fixtures, communications equipment, motor vehicles, etc. that are capitalized.\n\n• Technology – Hardware Additions – Include capital outlay for additional hardware or classroom technology equipment. (For further clarification on which expenditures should be included in this object code, see the “Special Note” below.)  \n\n• Technology – Infrastructure Additions – Include capital outlay for additional technology infrastructure. (For further clarification on which expenditures should be included in this object code, see the “Special Note” below.)\n\n"]
[null,"• Special Note ‐ Classification of Hardware and Infrastructure Expenditures: \n\nReport expenditures under technology “hardware” for computers, associated peripheral equipment, and other specialized technology equipment. Computers include desktop and laptop machines, handheld computers (i.e., Personal Digital Assistants or PDAs), and mainframe machines. Peripheral equipment includes devices attached to computers, such as monitors, keyboards, disk drives, modems, printers, scanners, cameras and speakers, etc.\n\nReport other specialized computer devices under technology “hardware” such as fax‐back and voicemail resources; videoconferencing and other distance education tools, including satellite transmitters and receivers; cable‐based receivers; and modem or codec‐based video equipment; projection devices, from transparent and opaque projectors to video monitors; and graphing calculators and other specialized computational aids.\n\nReport expenditures under technology “infrastructure” for equipment and devices that enable the linking of computers or video hardware to networks (such as routers, hubs, switches, access servers, modems, or codecs). Infrastructure also refers to cabling installations, whether wire, fiber optic, or coaxial, as well as electrical capacity expansion or HVAC upgrades to support networks. In wireless networking systems, include receivers and transmitters under infrastructure.\n"]
[]
["Page 44"]
[null,null,null,null,"School Division:",null,{"$f":"'Title I, Part C'!$A$17","v":"ALBEMARLE COUNTY PUBLIC SCHOOLS"},null,null,null,null,null,"Division Number:",null,null,{"$f":"'Title I, Part C'!$H$17","v":2}]
["F.  TITLE I, PART C, REGIONAL PROGRAM AGREEMENT 2020-2021"]
[]
["The lead school division will be responsible for completing the application and serving as the fiscal agent.  One (1) application should be submitted per regional program, and one (1) certification should be submitted by each participating school division to the regional lead school division.  Originals should be kept on file in the lead school division."]
["Lead Regional Program School Division"]
["Name of Lead:",null,null,null,null,null,null,null,null,null,null,"School Division  Number:    ",null,{"$f":"P301","v":2}]
["School Division:       "]
["Typed Name of Superintendent:      "]
["Signature of Superintendent:",null,null,null,"     ",null,null,null,null,null,null,null,"Date: "]
[]
["Type name of contact for Title I, Part C, regional program if different than superintendent:"]
["Title I, Part C, Contact:"]
[]
["Title:"]
[]
["Mailing Address:"]
[]
["City, State, Zip:"]
[]
["Telephone:","      ",null,null,null,"E-mail: ",null,null,null,null,null,null,"Fax:"]
[]
[]
[]
["LIST OF PARTICIPATING SCHOOL DIVISIONS"]
["The following school divisions have applied to participate in this regional program.  A Title I, Part C, participating regional program member certification form is on file for each of the school divisions listed.  The Title I, Part C, subgrant award corresponds to the 2020-2021 allocation."]
[]
[null,null,null,null,"Name of School Division",null,null,null,null,"Division Number"]
[null,null,null,"1.      ","     "]
[null,null,null,"2.        ","     "]
[null,null,null,"3.      ","     "]
[null,null,null,"4.      "]
[null,null,null,"5.      ","     "]
[null,null,null,"6.      ","     "]
[null,null,null,"7.      ","     "]
[null,null,null,"8.      ","     "]
[null,null,null,"9.      ","     "]
[null,null,null,"10.      ","     "]
[null,null,null,"11.      ","     "]
[null,null,null,"12.      ","     "]
[]
[]
[]
[]
["Page 45"]

{"sheet":"General Assurances","index":4,"n_rows":47,"n_cols":16,"rows_kept":47,"cut":false,"hidden":false,"merged":[[51,5,51,6],[51,7,51,8],[51,9,51,10],[49,5,49,6],[49,7,49,8],[49,9,49,10],[50,5,50,6],[50,7,50,8],[50,9,50,10],[48,5,48,6],[48,7,48,8],[48,9,48,10],[35,3,35,15],[36,3,36,15],[37,4,37,15],[38,4,38,15],[39,4,39,15],[40,3,40,15],[41,2,41,15],[42,2,42,15],[43,1,43,15],[44,1,44,15],[46,0,46,15],[34,3,34,15],[23,3,23,15],[24,3,24,15],[25,3,25,15],[26,3,26,15],[27,3,27,15],[28,0,28,15],[29,3,29,5],[30,0,30,15],[31,3,31,15],[32,3,32,15],[33,3,33,15],[22,3,22,15],[11,0,11,15],[12,1,12,15],[13,1,13,15],[14,1,14,15],[15,1,15,15],[16,2,16,15],[17,2,17,15],[18,3,18,15],[19,3,19,15],[20,3,20,15],[21,3,21,15],[8,0,8,3],[8,4,8,15],[9,0,9,3],[9,4,9,15],[10,0,10,3],[10,4,10,15],[5,0,5,3],[5,4,5,15],[6,0,6,3],[6,4,6,15],[7,0,7,3],[7,4,7,15],[0,3,0,5],[1,0,1,15],[3,0,3,3],[3,4,3,15],[4,0,4,3],[4,4,4,15]]}
[null,null,null,"School Division:",null,null,{"$f":"'Title I, Part C'!$A$17","v":"ALBEMARLE COUNTY PUBLIC SCHOOLS"},null,null,null,null,null,"Division Number:",null,null,{"$f":"'Title I, Part C'!$H$17","v":2}]
["GENERAL ASSURANCES"]
[]
["Title I, Part A",null,null,null,"Improving Basic Programs Operated by Local Educational Agencies"]
["Title I, Part C",null,null,null,"Education of Migratory  Children"]
["Title I, Part D, Subpart 2",null,null,null,"Prevention and Intervention Programs for Children and Youth Who Are Neglected, Delinquent, or At-Risk"]
["Title II, Part A",null,null,null,"Supporting Effective Instruction"]
["Title III, Part A ",null,null,null,"Language Instruction for English Learners and Immigrant Students"]
["Title IV, Part A",null,null,null,"Student Support and Academic Enrichments Grants"]
["Title V, Part B, Subpart 2",null,null,null,"Rural and Low-Income School Program"]
[]
["The school division/grantee assures:"]
["I.","Each program will be administered in accordance with all applicable statutes, regulations, program plans, and applications;"]
["II.","The control of funds provided under each program and title to property acquired with program funds will be in a public agency, a nonprofit private agency, institution, organization, or an Indian tribe, if the law authorizing the program provides for assistance to those entities;"]
["III.","The public agency, nonprofit private agency, institution, organization, or Indian tribe, will administer the funds and property to the extent required by the authorizing statutes;"]
["IV.","It will adopt and use proper methods of administering each program, including - "]
[null,"A.","The enforcement of any obligations imposed by law on agencies, institutions, organizations, and other recipients responsible for carrying out each program;"]
[null,"B.","The correction of deficiencies in program operations that are identified through audits, monitoring, or evaluation and that:"]
[null,null,"1.","It will maintain fiscal effort in support of free public education;"]
[null,null,"2.","It will provide services with state and local funds that are at least comparable to services provided in schools and areas not receiving special federal funds; "]
[null,null,"3.","The majority of the resources in the school division are derived from nonfederal funds;"]
[null,null,"4.","It is in compliance with the requirements in Title VIII, Section 8524 and has no policy that prevents, or otherwise denies participation in, constitutionally protected prayer in public elementary and secondary schools;"]
[null,null,"5.","It will comply with the audit requirements for each program; "]
[null,null,"6.","The federal funds are used to supplement, not supplant regular nonfederal funds;"]
[null,null,"7.","It will cooperate in carrying out any evaluation of each program conducted by or for the state educational agency, the Secretary, or other federal officials;\n\n"]
[null,null,"8.","It will use such fiscal control and fund accounting procedures as will ensure proper disbursement of, and accounting for, federal funds paid to the applicant under each program;"]
[null,null,"9.","It will submit such reports to the state educational agency (which shall make the reports available to the Governor) and the Secretary of Education as the state educational agency and Secretary may require to enable the state educational agency and the Secretary to perform their duties under each program;\n"]
[null,null,"10.","It will maintain such records for five years, provide such information, and afford such access to the records as the state educational agency (after consultation with the Governor) or the Secretary may reasonably require to carry out the state educational agency’s or the Secretary’s duties; "]
["Page 46"]
[null,null,null,"School Division:",null,null,{"$f":"'Title I, Part C'!$A$17","v":"ALBEMARLE COUNTY PUBLIC SCHOOLS"},null,null,null,null,null,"Division Number:",null,null,{"$f":"'Title I, Part C'!$H$17","v":2}]
["GENERAL ASSURANCES (CONTINUED)"]
[null,null,"11.","It consulted with teachers, school administrators, parents, members of the community, nonprofit organizations and other interested parties in the development of this plan;"]
[null,null,"12.","It afforded a reasonable opportunity for public comment on the plan or application and considered such comment before the application was submitted;"]
[null,null,"13.","It will provide information in an understandable and uniform format and, to the extent practicable, be provided in a language that the parents can understand;"]
[null,null,"14.","It is in compliance with the requirement regarding equal access to public school facilities as specified in Title VIII, Section 8525;"]
[null,null,"15.","It is in compliance with the requirement regarding the prohibition on aiding and abetting sexual abuse as specified in Title VIII, Section 8546;"]
[null,null,"16.","It will comply with the other application requirements outlined in"]
[null,null,null,null,"Section 8501. Private School Children;"]
[null,null,null,null,"Section 8502. Bypass; and"]
[null,null,null,null,"Section 8521. Maintenance of Effort under Title VIII –Other Provisions;"]
[null,null,"17.","It will ensure that funds are expended in accordance with the school division’s approved application or amended application.  In the event the local division needs to expend funds in any manner other than stipulated in the approved application, the plan must be amended using the amendment process provided by the Department of Education.  The application must be amended before funds can be expended for activities not approved in the original application;"]
[null,"C.","It will collect and disseminate information collected under Section 1111 in a manner that protects the privacy of individuals;\n"]
[null,"D.","It will adhere to the provisions of the Federal Funding Transparency and Accountability Act (FFATA), and will obtain a valid DUNS number prior to applying for funds."]
["V.","It will comply with Section 22.1-277.07, of the Code of Virginia that requires the expulsion for one year of any student determined to have brought a firearm to school.  A description of each incident, the name of the school concerned, the number of students expelled from each school, and the type of firearm used in each instance of expulsion will be reported to the Virginia Department of Education in compliance with provisions under Section 8561 (Gun-Free Schools Act).  This agency has a policy that requires referral to the criminal justice or the juvenile delinquency system of any student who brings a firearm or weapon to school; and"]
["VI.","It will participate, if selected, in the state National Assessment of Educational Progress in 4th and 8th grade reading and mathematics carried out under Section 303 of the National Assessment of Educational Progress Act."]
[]
["Page 47"]

{"sheet":"Program Specific Assurances","index":5,"n_rows":11,"n_cols":16,"rows_kept":11,"cut":false,"hidden":false,"merged":[[15,5,15,6],[15,7,15,8],[15,9,15,10],[7,1,7,15],[8,1,8,15],[13,5,13,6],[13,7,13,8],[13,9,13,10],[14,5,14,6],[14,7,14,8],[14,9,14,10],[5,1,5,15],[6,1,6,15],[10,0,10,15],[12,5,12,6],[12,7,12,8],[12,9,12,10],[4,1,4,15],[0,3,0,5],[1,0,1,15],[2,0,2,15],[3,1,3,15]]}
[null,null,null,"School Division:",null,null,{"$f":"'Title I, Part C'!$A$17","v":"ALBEMARLE COUNTY PUBLIC SCHOOLS"},null,null,null,null,null,"Division Number:",null,null,{"$f":"'Title I, Part C'!$H$17","v":2}]
["PROGRAM SPECIFIC ASSURANCES"]
["The school division/grantee assures:"]
["I.","It will use funds received only for programs and projects, including the education of Priority for Services migrant students and the acquisition of equipment, in accordance with Section 1306;"]
["II.","It will consult with parent advisory councils for migrant education programs of one school year in duration and that all such programs and projects are carried out in a manner that provides for the same parental involvement as is required for programs and projects under Section 1116 and that the programs and projects are provided in a format and language understandable to the parents;"]
["III.","It will make adequate provision for addressing the unmet educational needs of preschool migratory children and migratory children who have dropped out of school;"]
["IV.","The effectiveness of programs and projects will be determined, where feasible, using the same approaches and standards that will be used to assess the performance of students, schools, and local educational agencies under Title I, Part A;"]
["V.","The programs and projects will provide for: (A) advocacy and outreach activities for migratory children and their families, including informing children and parents of, or helping such children and families gain access to, other education, health, nutrition, and social services; (B) professional development programs, including mentoring, for teacher and other program personnel; (C) family literacy programs; (D) the integration of informational technology into educational and related programs; and (E) programs to facilitate the transition of secondary school students to postsecondary education or employment; and"]
["VI.","It will assist the state in determining the number of migrant children under Section 1303(a)(1)."]
[]
["Page 48"]

{"sheet":"Prefills","index":6,"n_rows":288,"n_cols":61,"rows_kept":288,"cut":false,"hidden":true,"merged":[]}
["Name","Code",null,null,null,null,null,null,"INNOVATIVE ASSISTANCE PROGRAM AREAS",null,null,null,null,null,null,null,null,null,null,null,"Yes",null,"Yes",null,null,"Title I A",null,null,null,"Title I C",null,null,null,"Title ID",null,null,null,"Title IIA",null,null,null,"Title IID",null,null,null,"Title III",null,null,null,"Title IV",null,null,null,"Title V",null,null,null,"Title VI"]
["ACCOMACK COUNTY PUBLIC SCHOOLS",1,null,null,null,null,null,null,null,null,null,null,null,null,null,null,null,null,null,null,"No",null,"No",null,null,"Payee","ProjectGroupID","CONoSOLIDATED_APP_FLAG","Allocation","Payee","ProjectGroupID","CONoSOLIDATED_APP_FLAG","Allocation","Payee","ProjectGroupID","CONoSOLIDATED_APP_FLAG","Allocation","Payee","ProjectGroupID","CONoSOLIDATED_APP_FLAG","Allocation","Payee","ProjectGroupID","CONoSOLIDATED_APP_FLAG","Allocation","Payee","ProjectGroupID","CONoSOLIDATED_APP_FLAG","Allocation","Payee","ProjectGroupID","CONoSOLIDATED_APP_FLAG","Allocation","Payee","ProjectGroupID","CONoSOLIDATED_APP_FLAG","Allocation","Payee","ProjectGroupID","CONoSOLIDATED_APP_FLAG","Allocation"]
["ALBEMARLE COUNTY PUBLIC SCHOOLS",2,null,null,null,null,null," "," ",null,null,null,null,null,null,null,null,null,null,null,null,null,"Shared Services Only",null,null,1,1,"Yes",null,1,2,"Yes",191172.09,1,3,"Yes",null,1,4,"Yes",null,null,null,null,null,1,6,"Yes",null,1,97,null,null,null,null,null,null,1,9,"Yes"]
["ALEXANDRIA CITY PUBLIC SCHOOLS",101,null,null,null,null,null,"1. ","1. Recruiting, training, and hiring highly qualified teachers to reduce class size",null,null,null,null,null,null,null,null,null,null,null,null,null,null,null,null,2,1,"No",null,2,2,"No",123987.39,2,3,"No",null,2,4,"No",null,null,null,null,null,2,6,"No",null,2,97,null,null,null,null,null,null,2,9,"No"]
["ALLEGHANY COUNTY PUBLIC SCHOOLS",3,null,null,null,null,null,"2. ","2. Technology activities, including professional development",null,null,null,null,null,null,null,null,null,null,null,null,null,null,null,null,3,1,"Yes",null,3,2,"Yes",null,3,3,"Yes",null,3,4,"Yes",null,null,null,null,null,3,6,"Yes",null,3,97,null,null,null,null,null,null,3,9,"Yes"]
["AMELIA COUNTY PUBLIC SCHOOLS",4,null,null,null,null,null,"3a.","3a. Development or acquisition and use of: computer software and hardware",null,null,null,null,null,null,null,null,null,null,null,null,null,"Yes",null,null,4,1,"Yes",null,4,2,"Yes",null,4,3,"Yes",null,4,4,"Yes",null,null,null,null,null,4,6,"Yes",null,4,97,null,null,null,null,null,null,4,9,"Yes"]
["AMHERST COUNTY PUBLIC SCHOOLS",5,null,null,null,null,null,"3b.","3b. Development or acquisition and use of: instructional/reference materials and academic assessments",null,null,null,null,null,null,null,null,null,null,null,null,null,"No",null,null,5,1,"No",null,5,2,"No",null,5,3,"No",null,5,4,"No",null,null,null,null,null,5,6,"No",null,5,97,null,null,null,null,null,null,5,9,"No"]
["APPOMATTOX COUNTY PUBLIC SCHOOLS",6,null,null,null,null,null,"3c.","3c. Development or acquisition and use of: library/media services and materials",null,null,null,null,null,null,null,null,null,null,null,null,null,null,null,null,6,1,"No",null,6,2,"No",null,6,3,"No",null,6,4,"No",null,null,null,null,null,6,6,"No",null,6,97,null,null,null,null,null,null,6,9,"No"]
["ARLINGTON COUNTY PUBLIC SCHOOLS",7,null,null,null,null,null,"4. ","4. Educational reform projects, including magnet schools",null,null,null,null,null,null,null,null,null,null,null,null,null,null,null,null,7,1,"Yes",null,7,2,"Yes",null,7,3,"Yes",null,7,4,"Yes",null,null,null,null,null,7,6,"Yes",null,7,97,null,null,null,null,null,null,7,9,"Yes"]
["AUGUSTA COUNTY PUBLIC SCHOOLS",8,null,null,null,null,null,"5. ","5. Programs to improve the academic achievement of educationally disadvantaged elementary and secondary students, including dropout prevention",null,null,null,null,null,null,null,null,null,null,null,null,null,null,null,null,8,1,"No",null,8,2,"No",null,8,3,"No",null,8,4,"No",null,null,null,null,null,8,6,"No",null,8,97,null,null,null,null,null,null,8,9,"No"]
["BATH COUNTY PUBLIC SCHOOLS",9,null,null,null,null,null,"6. ","6. Programs to improve the literacy skills of adults, including adult education and family literacy programs",null,null,null,null,null,null,null,null,null,null,null,null,null,null,null,null,9,1,"No",null,9,2,"No",null,9,3,"No",null,9,4,"No",null,null,null,null,null,9,6,"No",null,9,97,null,null,null,null,null,null,9,9,"No"]
["BEDFORD CITY PUBLIC SCHOOLS",140,null,null,null,null,null,"7. ","7. Programs for gifted and talented children",null,null,null,null,null,null,null,null,null,null,null,null,null,null,null,null,10,1,"No",null,10,2,"No",null,10,3,"No",null,10,4,"No",null,null,null,null,null,10,6,"No",null,10,97,null,null,null,null,null,null,10,9,"No"]
["BEDFORD COUNTY PUBLIC SCHOOLS",10,null,null,null,null,null,"8. ","8. Planning, design, and initial implementation of charter schools under Title V, Part B",null,null,null,null,null,null,null,null,null,null,null,null,null,null,null,null,11,1,"Yes",null,11,2,"Yes",null,11,3,"Yes",null,11,4,"Yes",null,null,null,null,null,11,6,"Yes",null,11,97,null,null,null,null,null,null,11,9,"Yes"]
["BLAND COUNTY PUBLIC SCHOOLS",11,null,null,null,null,null,"9. ","9. School improvement programs or activities under Sections 1116 and 1117 of Title I, Part A",null,null,null,null,null,null,null,null,null,null,null,null,null,null,null,null,12,1,"No",null,12,2,"No",null,12,3,"No",null,12,4,"No",null,null,null,null,null,12,6,"No",null,12,97,null,null,null,null,null,null,12,9,"No"]
["BOTETOURT COUNTY PUBLIC SCHOOLS",12,null,null,null,null,null,"10.","10. Community service programs",null,null,null,null,null,null,null,null,null,null,null,null,null,null,null,null,13,1,"Yes",null,13,2,"Yes",null,13,3,"Yes",null,13,4,"Yes",null,null,null,null,null,13,6,"Yes",null,13,97,null,null,null,null,null,null,13,9,"Yes"]
["BRISTOL CITY PUBLIC SCHOOLS",102,null,null,null,null,null,"11.","11. Consumer, economic, and personal finance education",null,null,null,null,null,null,null,null,null,null,null,null,null,null,null,null,14,1,"Yes",null,14,2,"Yes",null,14,3,"Yes",null,14,4,"Yes",null,null,null,null,null,14,6,"Yes",null,14,97,null,null,null,null,null,null,14,9,"Yes"]
["BRUNSWICK COUNTY PUBLIC SCHOOLS",13,null,null,null,null,null,"12.","12. Public school choice",null,null,null,null,null,null,null,null,null,null,null,null,null,1000,null,null,15,1,"Yes",null,15,2,"Yes",null,15,3,"Yes",null,15,4,"Yes",null,null,null,null,null,15,6,"Yes",null,15,97,null,null,null,null,null,null,15,9,"Yes"]
["BUCHANAN COUNTY PUBLIC SCHOOLS",14,null,null,null,null,null,"13.","13. Programs to hire and support school nurses",null,null,null,null,null,null,null,null,null,null,null,null,null,2000,null,null,16,1,"No",null,16,2,"No",null,16,3,"No",null,16,4,"No",null,null,null,null,null,16,6,"No",null,16,97,null,null,null,null,null,null,16,9,"No"]
["BUCKINGHAM COUNTY PUBLIC SCHOOLS",15,null,null,null,null,null,"14.","14. School-based mental health services",null,null,null,null,null,null,null,null,null,null,null,null,null,3000,null,null,17,1,"Yes",null,17,2,"Yes",null,17,3,"Yes",null,17,4,"Yes",null,null,null,null,null,17,6,"Yes",null,17,97,null,null,null,null,null,null,17,9,"Yes"]
["BUENA VISTA CITY PUBLIC SCHOOLS",103,null,null,null,null,null,"15.","15. Alternative educational programs",null,null,null,null,null,null,null,null,null,null,null,null,null,4000,null,null,18,1,"No",null,18,2,"No",46094.31,18,3,"No",null,18,4,"No",null,null,null,null,null,18,6,"No",null,18,97,null,null,null,null,null,null,18,9,"No"]
["CAMPBELL COUNTY PUBLIC SCHOOLS",16,null,null,null,null,null,"16.","16. Prekindergarten programs",null,null,null,null,null,null,null,null,null,null,null,null,null,5000,null,null,19,1,"Yes",null,19,2,"Yes",null,19,3,"Yes",null,19,4,"Yes",null,null,null,null,null,19,6,"Yes",null,19,97,null,null,null,null,null,null,19,9,"Yes"]
["CAROLINE COUNTY PUBLIC SCHOOLS",17,null,null,null,null,null,"17.","17. Academic intervention programs jointly operated with community-based organizations ",null,null,null,null,null,null,null,null,null,null,null,null,null,6000,null,null,20,1,"Yes",null,20,2,"Yes",null,20,3,"Yes",null,20,4,"Yes",null,null,null,null,null,20,6,"Yes",null,20,97,null,null,null,null,null,null,20,9,"Yes"]
["CARROLL COUNTY PUBLIC SCHOOLS",18,null,null,null,null,null,"18.","18. CPR training",null,null,null,null,null,null,null,null,null,null,null,null,null,8000,null,null,21,1,"No",null,21,2,"No",null,21,3,"No",null,21,4,"No",null,null,null,null,null,21,6,"No",null,21,97,null,null,null,null,null,null,21,9,"No"]
["CHARLES CITY COUNTY PUBLIC SCHOOLS",19,null,null,null,null,null,"19.","19. Smaller learning communities",null,null,null,null,null,null,null,null,null,null,null,null,null,null,null,null,22,1,"No",null,22,2,"No",null,22,3,"No",null,22,4,"No",null,null,null,null,null,22,6,"No",null,22,97,null,null,null,null,null,null,22,9,"No"]
["CHARLOTTE COUNTY PUBLIC SCHOOLS",20,null,null,null,null,null,"20.","20. Activities that encourage and expand improvements throughout the LEA area that  are designed to advance student academic achievement",null,null,null,null,null,null,null,null,null,null,null,null,null,null,null,null,23,1,"Yes",null,23,2,"Yes",null,23,3,"Yes",null,23,4,"Yes",null,null,null,null,null,23,6,"Yes",null,23,97,null,null,null,null,null,null,23,9,"Yes"]
["CHARLOTTESVILLE CITY PUBLIC SCHOOLS",104,null,null,null,null,null,"21.","21. Parental and community involvement",null,null,null,null,null,null,null,null,null,null,null,null,null,null,null,null,24,1,"No",null,24,2,"No",null,24,3,"No",null,24,4,"No",null,null,null,null,null,24,6,"No",null,24,97,null,null,null,null,null,null,24,9,"No"]
["CHESAPEAKE CITY PUBLIC SCHOOLS",136,null,null,null,null,null,"22.","22. Activities that expand learning through best-practice models",null,null,null,null,null,null,null,null,null,null,null,null,null,null,null,null,25,1,"Yes",null,25,2,"Yes",null,25,3,"Yes",null,25,4,"Yes",null,null,null,null,null,25,6,"Yes",null,25,97,null,null,null,null,null,null,25,9,"Yes"]
["CHESTERFIELD COUNTY PUBLIC SCHOOLS",21,null,null,null,null,null,"23.","23. Same-gender schools and classrooms (consistent with applicable law)**",null,null,null,null,null,null,null,null,null,null,null,null,null,null,null,null,26,1,"No",null,26,2,"No",null,26,3,"No",null,26,4,"No",null,null,null,null,null,26,6,"No",null,26,97,null,null,null,null,null,null,26,9,"No"]
["CLARKE COUNTY PUBLIC SCHOOLS",22,null,null,null,null,null,"24.","24. Service learning activities",null,null,null,null,null,null,null,null,null,null,null,null,null,null,null,null,27,1,"Yes",null,27,2,"Yes",null,27,3,"Yes",null,27,4,"Yes",null,null,null,null,null,27,6,"Yes",null,27,97,null,null,null,null,null,null,27,9,"Yes"]
["CLIFTON FORGE CITY",105,null,null,null,null,null,"25.","25. School safety programs",null,null,null,null,null,null,null,null,null,null,null,null,null,null,null,null,28,1,"No",null,28,2,"No",null,28,3,"No",null,28,4,"No",null,null,null,null,null,28,6,"No",null,28,97,null,null,null,null,null,null,28,9,"No"]
["COLONIAL BEACH TOWN PUBLIC SCHOOLS",202,null,null,null,null,null,"26.","26. Programs that use research-based cognitive and perceptual development approaches",null,null,null,null,null,null,null,null,null,null,null,null,null,null,null,null,29,1,"No",null,29,2,"No",null,29,3,"No",null,29,4,"No",null,null,null,null,null,29,6,"No",null,29,97,null,null,null,null,null,null,29,9,"No"]
["COLONIAL HEIGHTS CITY PUBLIC SCHOOLS",106,null,null,null,null,null,"27.","27. Supplemental educational services as defined in Section 1116(e) of Title I, Part A",null,null,null,null,null,null,null,null,null,null,null,null,null,null,null,null,30,1,"Yes",null,30,2,"Yes",null,30,3,"Yes",null,30,4,"Yes",null,null,null,null,null,30,6,"Yes",null,30,97,null,null,null,null,null,null,30,9,"Yes"]
["COVINGTON CITY PUBLIC SCHOOLS",107,null,null,null,null,null,null,"Program Administration",null,null,null,null,null,null,null,null,null,null,null,null,null,null,null,null,31,1,"Yes",null,31,2,"Yes",null,31,3,"Yes",null,31,4,"Yes",null,null,null,null,null,31,6,"Yes",null,31,97,null,null,null,null,null,null,31,9,"Yes"]
["CRAIG COUNTY PUBLIC SCHOOLS",23,null,null,null,null,null,null,"Indirect Costs (not to exceed approved rate)",null,null,null,null,null,null,null,null,null,null,null,null,null,null,null,null,32,1,"Yes",null,32,2,"Yes",null,32,3,"Yes",null,32,4,"Yes",null,null,null,null,null,32,6,"Yes",null,32,97,null,null,null,null,null,null,32,9,"Yes"]
["CULPEPER COUNTY PUBLIC SCHOOLS",24,null,null,null,null,null,null,null,null,null,null,null,null,null,null,null,null,null,null,null,null,null,null,null,33,1,"Yes",null,33,2,"Yes",null,33,3,"Yes",null,33,4,"Yes",null,null,null,null,null,33,6,"Yes",null,33,97,null,null,null,null,null,null,33,9,"Yes"]
["CUMBERLAND COUNTY PUBLIC SCHOOLS",25,null,null,null,null,null,null,null,null,null,null,null,null,null,null,null,null,null,null,null,null,null,null,null,34,1,"No",null,34,2,"No",null,34,3,"No",null,34,4,"No",null,null,null,null,null,34,6,"No",null,34,97,null,null,null,null,null,null,34,9,"No"]
["DANVILLE CITY PUBLIC SCHOOLS",108,null,null,null,null,null,null,null,null,null,null,null,null,null,null,null,null,null,null,null,null,null,null,null,35,1,"No",null,35,2,"No",null,35,3,"No",null,35,4,"No",null,null,null,null,null,35,6,"No",null,35,97,null,null,null,null,null,null,35,9,"No"]
["DEPARTMENT OF JUVENILE JUSTICE",917,null,null,null,null,null,null,null,null,null,null,null,null,null,null,null,null,null,null,null,null,null,null,null,36,1,"Yes",null,36,2,"Yes",null,36,3,"Yes",null,36,4,"Yes",null,null,null,null,null,36,6,"Yes",null,36,97,null,null,null,null,null,null,36,9,"Yes"]
["DICKENSON COUNTY PUBLIC SCHOOLS",26,null,null,null,null,null,null,null,null,null,null,null,null,null,null,null,null,null,null,null,null,null,null,null,37,1,"No",null,37,2,"No",null,37,3,"No",null,37,4,"No",null,null,null,null,null,37,6,"No",null,37,97,null,null,null,null,null,null,37,9,"No"]
["DINWIDDIE COUNTY PUBLIC SCHOOLS",27,null,null,null,null,null,null,null,null,null,null,null,null,null,null,null,null,null,null,null,null,null,null,null,38,1,"No",null,38,2,"No",null,38,3,"No",null,38,4,"No",null,null,null,null,null,38,6,"No",null,38,97,null,null,null,null,null,null,38,9,"No"]
["EMPORIA CITY PUBLIC SCHOOLS",138,null,null,null,null,null,null,null,null,null,null,null,null,null,null,null,null,null,null,null,null,null,null,null,39,1,"Yes",null,39,2,"Yes",null,39,3,"Yes",null,39,4,"Yes",null,null,null,null,null,39,6,"Yes",null,39,97,null,null,null,null,null,null,39,9,"Yes"]
["ESSEX COUNTY PUBLIC SCHOOLS",28,null,null,null,null,null,null,null,null,null,null,null,null,null,null,null,null,null,null,null,null,null,null,null,40,1,"Yes",null,40,2,"Yes",null,40,3,"Yes",null,40,4,"Yes",null,null,null,null,null,40,6,"Yes",null,40,97,null,null,null,null,null,null,40,9,"Yes"]
["FAIRFAX CITY PUBLIC SCHOOLS",134,null,null,null,null,null,null,null,null,null,null,null,null,null,null,null,null,null,null,null,null,null,null,null,41,1,"Yes",null,41,2,"Yes",null,41,3,"Yes",null,41,4,"Yes",null,null,null,null,null,41,6,"Yes",null,41,97,null,null,null,null,null,null,41,9,"Yes"]
["FAIRFAX COUNTY PUBLIC SCHOOLS",29,null,null,null,null,null,null,null,null,null,null,null,null,null,null,null,null,null,null,null,null,null,null,null,42,1,"No",null,42,2,"No",null,42,3,"No",null,42,4,"No",null,null,null,null,null,42,6,"No",null,42,97,null,null,null,null,null,null,42,9,"No"]
["FALLS CHURCH CITY PUBLIC SCHOOLS",109,null,null,null,null,null,null,null,null,null,null,null,null,null,null,null,null,null,null,null,null,null,null,null,43,1,"No",null,43,2,"No",null,43,3,"No",null,43,4,"No",null,null,null,null,null,43,6,"No",null,43,97,null,null,null,null,null,null,43,9,"No"]
["FAUQUIER COUNTY PUBLIC SCHOOLS",30,null,null,null,null,null,null,null,null,null,null,null,null,null,null,null,null,null,null,null,null,null,null,null,44,1,"No",null,44,2,"No",null,44,3,"No",null,44,4,"No",null,null,null,null,null,44,6,"No",null,44,97,null,null,null,null,null,null,44,9,"No"]
["FLOYD COUNTY PUBLIC SCHOOLS",31,null,null,null,null,null,null,null,null,null,null,null,null,null,null,null,null,null,null,null,null,null,null,null,45,1,"No",null,45,2,"No",null,45,3,"No",null,45,4,"No",null,null,null,null,null,45,6,"No",null,45,97,null,null,null,null,null,null,45,9,"No"]
["FLUVANNA COUNTY PUBLIC SCHOOLS",32,null,null,null,null,null,null,null,null,null,null,null,null,null,null,null,null,null,null,null,null,null,null,null,46,1,"No",null,46,2,"No",null,46,3,"No",null,46,4,"No",null,null,null,null,null,46,6,"No",null,46,97,null,null,null,null,null,null,46,9,"No"]
["FRANKLIN CITY PUBLIC SCHOOLS",135,null,null,null,null,null,null,null,null,null,null,null,null,null,null,null,null,null,null,null,null,null,null,null,47,1,null,null,47,2,null,null,47,3,null,null,47,4,null,null,null,null,null,null,47,6,null,null,47,97,null,null,null,null,null,null,47,9]
["FRANKLIN COUNTY PUBLIC SCHOOLS",33,null,null,null,null,null,null,null,null,null,null,null,null,null,null,null,null,null,null,null,null,null,null,null,48,1,"No",null,48,2,"No",null,48,3,"No",null,48,4,"No",null,null,null,null,null,48,6,"No",null,48,97,null,null,null,null,null,null,48,9,"No"]
["FREDERICK COUNTY PUBLIC SCHOOLS",34,null,null,null,null,null,null,null,null,null,null,null,null,null,null,null,null,null,null,null,null,null,null,null,49,1,"Yes",null,49,2,"Yes",null,49,3,"Yes",null,49,4,"Yes",null,null,null,null,null,49,6,"Yes",null,49,97,null,null,null,null,null,null,49,9,"Yes"]
["FREDERICKSBURG CITY PUBLIC SCHOOLS",110,null,null,null,null,null,null,null,null,null,null,null,null,null,null,null,null,null,null,null,null,null,null,null,50,1,"Yes",null,50,2,"Yes",null,50,3,"Yes",null,50,4,"Yes",null,null,null,null,null,50,6,"Yes",null,50,97,null,null,null,null,null,null,50,9,"Yes"]
["GALAX CITY PUBLIC SCHOOLS",111,null,null,null,null,null,null,null,null,null,null,null,null,null,null,null,null,null,null,null,null,null,null,null,51,1,"Yes",null,51,2,"Yes",null,51,3,"Yes",null,51,4,"Yes",null,null,null,null,null,51,6,"Yes",null,51,97,null,null,null,null,null,null,51,9,"Yes"]
["GILES COUNTY PUBLIC SCHOOLS",35,null,null,null,null,null,null,null,null,null,null,null,null,null,null,null,null,null,null,null,null,null,null,null,52,1,"Yes",null,52,2,"Yes",null,52,3,"Yes",null,52,4,"Yes",null,null,null,null,null,52,6,"Yes",null,52,97,null,null,null,null,null,null,52,9,"Yes"]
["GLOUCESTER COUNTY PUBLIC SCHOOLS",36,null,null,null,null,null,null,null,null,null,null,null,null,null,null,null,null,null,null,null,null,null,null,null,53,1,"Yes",null,53,2,"Yes",null,53,3,"Yes",null,53,4,"Yes",null,null,null,null,null,53,6,"Yes",null,53,97,null,null,null,null,null,null,53,9,"Yes"]
["GOOCHLAND COUNTY PUBLIC SCHOOLS",37,null,null,null,null,null,null,null,null,null,null,null,null,null,null,null,null,null,null,null,null,null,null,null,54,1,"No",null,54,2,"No",null,54,3,"No",null,54,4,"No",null,null,null,null,null,54,6,"No",null,54,97,null,null,null,null,null,null,54,9,"No"]
["GRAYSON COUNTY PUBLIC SCHOOLS",38,null,null,null,null,null,null,null,null,null,null,null,null,null,null,null,null,null,null,null,null,null,null,null,55,1,"Yes",null,55,2,"Yes",null,55,3,"Yes",null,55,4,"Yes",null,null,null,null,null,55,6,"Yes",null,55,97,null,null,null,null,null,null,55,9,"Yes"]
["GREENE COUNTY PUBLIC SCHOOLS",39,null,null,null,null,null,null,null,null,null,null,null,null,null,null,null,null,null,null,null,null,null,null,null,56,1,"No",null,56,2,"No",null,56,3,"No",null,56,4,"No",null,null,null,null,null,56,6,"No",null,56,97,null,null,null,null,null,null,56,9,"No"]
["GREENSVILLE COUNTY PUBLIC SCHOOLS",40,null,null,null,null,null,null,null,null,null,null,null,null,null,null,null,null,null,null,null,null,null,null,null,57,1,"Yes",null,57,2,"Yes",null,57,3,"Yes",null,57,4,"Yes",null,null,null,null,null,57,6,"Yes",null,57,97,null,null,null,null,null,null,57,9,"Yes"]
["HALIFAX COUNTY PUBLIC SCHOOLS",41,null,null,null,null,null,null,null,null,null,null,null,null,null,null,null,null,null,null,null,null,null,null,null,58,1,"Yes",null,58,2,"Yes",null,58,3,"Yes",null,58,4,"Yes",null,null,null,null,null,58,6,"Yes",null,58,97,null,null,null,null,null,null,58,9,"Yes"]
["HAMPTON CITY PUBLIC SCHOOLS",112,null,null,null,null,null,null,null,null,null,null,null,null,null,null,null,null,null,null,null,null,null,null,null,59,1,"Yes",null,59,2,"Yes",null,59,3,"Yes",null,59,4,"Yes",null,null,null,null,null,59,6,"Yes",null,59,97,null,null,null,null,null,null,59,9,"Yes"]
["HANOVER COUNTY PUBLIC SCHOOLS",42,null,null,null,null,null,null,null,null,null,null,null,null,null,null,null,null,null,null,null,null,null,null,null,60,1,"No",null,60,2,"No",null,60,3,"No",null,60,4,"No",null,null,null,null,null,60,6,"No",null,60,97,null,null,null,null,null,null,60,9,"No"]
["HARRISONBURG CITY PUBLIC SCHOOLS",113,null,null,null,null,null,null,null,null,null,null,null,null,null,null,null,null,null,null,null,null,null,null,null,62,1,"No",null,62,2,"No",null,62,3,"No",null,62,4,"No",null,null,null,null,null,62,6,"No",null,62,97,null,null,null,null,null,null,62,9,"No"]
["HENRICO COUNTY PUBLIC SCHOOLS",43,null,null,null,null,null,null,null,null,null,null,null,null,null,null,null,null,null,null,null,null,null,null,null,63,1,"Yes",null,63,2,"Yes",null,63,3,"Yes",null,63,4,"Yes",null,null,null,null,null,63,6,"Yes",null,63,97,null,null,null,null,null,null,63,9,"Yes"]
["HENRY COUNTY PUBLIC SCHOOLS",44,null,null,null,null,null,null,null,null,null,null,null,null,null,null,null,null,null,null,null,null,null,null,null,65,1,"Yes",null,65,2,"Yes",147947.32999999999,65,3,"Yes",null,65,4,"Yes",null,null,null,null,null,65,6,"Yes",null,65,97,null,null,null,null,null,null,65,9,"Yes"]
["HIGHLAND COUNTY PUBLIC SCHOOLS",45,null,null,null,null,null,null,null,null,null,null,null,null,null,null,null,null,null,null,null,null,null,null,null,66,1,"Yes",null,66,2,"Yes",null,66,3,"Yes",null,66,4,"Yes",null,null,null,null,null,66,6,"Yes",null,66,97,null,null,null,null,null,null,66,9,"Yes"]
["HOPEWELL CITY PUBLIC SCHOOLS",114,null,null,null,null,null,null,null,null,null,null,null,null,null,null,null,null,null,null,null,null,null,null,null,67,1,"Yes",null,67,2,"Yes",null,67,3,"Yes",null,67,4,"Yes",null,null,null,null,null,67,6,"Yes",null,67,97,null,null,null,null,null,null,67,9,"Yes"]
["ISLE OF WIGHT COUNTY PUBLIC SCHOOLS",46,null,null,null,null,null,null,null,null,null,null,null,null,null,null,null,null,null,null,null,null,null,null,null,68,1,"Yes",null,68,2,"Yes",null,68,3,"Yes",null,68,4,"Yes",null,null,null,null,null,68,6,"Yes",null,68,97,null,null,null,null,null,null,68,9,"Yes"]
["JAMES CITY COUNTY PUBLIC SCHOOLS",47,null,null,null,null,null,null,null,null,null,null,null,null,null,null,null,null,null,null,null,null,null,null,null,69,1,"Yes",null,69,2,"Yes",null,69,3,"Yes",null,69,4,"Yes",null,null,null,null,null,69,6,"Yes",null,69,97,null,null,null,null,null,null,69,9,"Yes"]
["JAMES MADISON UNIVERSITY",871,null,null,null,null,null,null,null,null,null,null,null,null,null,null,null,null,null,null,null,null,null,null,null,70,1,"No",null,70,2,"No",null,70,3,"No",null,70,4,"No",null,null,null,null,null,70,6,"No",null,70,97,null,null,null,null,null,null,70,9,"No"]
["KING AND QUEEN COUNTY PUBLIC SCHOOLS",49,null,null,null,null,null,null,null,null,null,null,null,null,null,null,null,null,null,null,null,null,null,null,null,71,1,"No",null,71,2,"No",null,71,3,"No",null,71,4,"No",null,null,null,null,null,71,6,"No",null,71,97,null,null,null,null,null,null,71,9,"No"]
["KING GEORGE COUNTY PUBLIC SCHOOLS",48,null,null,null,null,null,null,null,null,null,null,null,null,null,null,null,null,null,null,null,null,null,null,null,72,1,"No",null,72,2,"No",null,72,3,"No",null,72,4,"No",null,null,null,null,null,72,6,"No",null,72,97,null,null,null,null,null,null,72,9,"No"]
["KING WILLIAM COUNTY PUBLIC SCHOOLS",50,null,null,null,null,null,null,null,null,null,null,null,null,null,null,null,null,null,null,null,null,null,null,null,73,1,"Yes",null,73,2,"Yes",null,73,3,"Yes",null,73,4,"Yes",null,null,null,null,null,73,6,"Yes",null,73,97,null,null,null,null,null,null,73,9,"Yes"]
["LANCASTER COUNTY PUBLIC SCHOOLS",51,null,null,null,null,null,null,null,null,null,null,null,null,null,null,null,null,null,null,null,null,null,null,null,74,1,"Yes",null,74,2,"Yes",null,74,3,"Yes",null,74,4,"Yes",null,null,null,null,null,74,6,"Yes",null,74,97,null,null,null,null,null,null,74,9,"Yes"]
["LEE COUNTY PUBLIC SCHOOLS",52,null,null,null,null,null,null,null,null,null,null,null,null,null,null,null,null,null,null,null,null,null,null,null,75,1,"No",null,75,2,"No",null,75,3,"No",null,75,4,"No",null,null,null,null,null,75,6,"No",null,75,97,null,null,null,null,null,null,75,9,"No"]
["LEXINGTON CITY PUBLIC SCHOOLS",137,null,null,null,null,null,null,null,null,null,null,null,null,null,null,null,null,null,null,null,null,null,null,null,77,1,"No",null,77,2,"No",null,77,3,"No",null,77,4,"No",null,null,null,null,null,77,6,"No",null,77,97,null,null,null,null,null,null,77,9,"No"]
["LOUDOUN COUNTY PUBLIC SCHOOLS",53,null,null,null,null,null,null,null,null,null,null,null,null,null,null,null,null,null,null,null,null,null,null,null,78,1,"Yes",null,78,2,"Yes",null,78,3,"Yes",null,78,4,"Yes",null,null,null,null,null,78,6,"Yes",null,78,97,null,null,null,null,null,null,78,9,"Yes"]
["LOUISA COUNTY PUBLIC SCHOOLS",54,null,null,null,null,null,null,null,null,null,null,null,null,null,null,null,null,null,null,null,null,null,null,null,79,1,"Yes",null,79,2,"Yes",null,79,3,"Yes",null,79,4,"Yes",null,null,null,null,null,79,6,"Yes",null,79,97,null,null,null,null,null,null,79,9,"Yes"]
["LUNENBURG COUNTY PUBLIC SCHOOLS",55,null,null,null,null,null,null,null,null,null,null,null,null,null,null,null,null,null,null,null,null,null,null,null,80,1,"No",null,80,2,"No",null,80,3,"No",null,80,4,"No",null,null,null,null,null,80,6,"No",null,80,97,null,null,null,null,null,null,80,9,"No"]
["LYNCHBURG CITY PUBLIC SCHOOLS",115,null,null,null,null,null,null,null,null,null,null,null,null,null,null,null,null,null,null,null,null,null,null,null,81,1,"Yes",null,81,2,"Yes",null,81,3,"Yes",null,81,4,"Yes",null,null,null,null,null,81,6,"Yes",null,81,97,null,null,null,null,null,null,81,9,"Yes"]
["MADISON COUNTY PUBLIC SCHOOLS",56,null,null,null,null,null,null,null,null,null,null,null,null,null,null,null,null,null,null,null,null,null,null,null,82,1,"No",null,82,2,"No",null,82,3,"No",null,82,4,"No",null,null,null,null,null,82,6,"No",null,82,97,null,null,null,null,null,null,82,9,"No"]
["MANASSAS CITY PUBLIC SCHOOLS",143,null,null,null,null,null,null,null,null,null,null,null,null,null,null,null,null,null,null,null,null,null,null,null,83,1,"No",null,83,2,"No",null,83,3,"No",null,83,4,"No",null,null,null,null,null,83,6,"No",null,83,97,null,null,null,null,null,null,83,9,"No"]
["MANASSAS PARK CITY PUBLIC SCHOOLS",144,null,null,null,null,null,null,null,null,null,null,null,null,null,null,null,null,null,null,null,null,null,null,null,84,1,"No",null,84,2,"No",null,84,3,"No",null,84,4,"No",null,null,null,null,null,84,6,"No",null,84,97,null,null,null,null,null,null,84,9,"No"]
["MARTINSVILLE CITY PUBLIC SCHOOLS",116,null,null,null,null,null,null,null,null,null,null,null,null,null,null,null,null,null,null,null,null,null,null,null,85,1,"Yes",null,85,2,"Yes",null,85,3,"Yes",null,85,4,"Yes",null,null,null,null,null,85,6,"Yes",null,85,97,null,null,null,null,null,null,85,9,"Yes"]
["MATHEWS COUNTY PUBLIC SCHOOLS",57,null,null,null,null,null,null,null,null,null,null,null,null,null,null,null,null,null,null,null,null,null,null,null,86,1,"No",null,86,2,"No",null,86,3,"No",null,86,4,"No",null,null,null,null,null,86,6,"No",null,86,97,null,null,null,null,null,null,86,9,"No"]
["MCVH AUTHORITY",948,null,null,null,null,null,null,null,null,null,null,null,null,null,null,null,null,null,null,null,null,null,null,null,87,1,"No",null,87,2,"No",null,87,3,"No",null,87,4,"No",null,null,null,null,null,87,6,"No",null,87,97,null,null,null,null,null,null,87,9,"No"]
["MECKLENBURG COUNTY PUBLIC SCHOOLS",58,null,null,null,null,null,null,null,null,null,null,null,null,null,null,null,null,null,null,null,null,null,null,null,88,1,"No",null,88,2,"No",null,88,3,"No",null,88,4,"No",null,null,null,null,null,88,6,"No",null,88,97,null,null,null,null,null,null,88,9,"No"]
["MIDDLESEX COUNTY PUBLIC SCHOOLS",59,null,null,null,null,null,null,null,null,null,null,null,null,null,null,null,null,null,null,null,null,null,null,null,89,1,"Yes",null,89,2,"Yes",null,89,3,"Yes",null,89,4,"Yes",null,null,null,null,null,89,6,"Yes",null,89,97,null,null,null,null,null,null,89,9,"Yes"]
["MONTGOMERY COUNTY PUBLIC SCHOOLS",60,null,null,null,null,null,null,null,null,null,null,null,null,null,null,null,null,null,null,null,null,null,null,null,90,1,"Yes",null,90,2,"Yes",null,90,3,"Yes",null,90,4,"Yes",null,null,null,null,null,90,6,"Yes",null,90,97,null,null,null,null,null,null,90,9,"Yes"]
["NELSON COUNTY PUBLIC SCHOOLS",62,null,null,null,null,null,null,null,null,null,null,null,null,null,null,null,null,null,null,null,null,null,null,null,91,1,"Yes",null,91,2,"Yes",null,91,3,"Yes",null,91,4,"Yes",null,null,null,null,null,91,6,"Yes",null,91,97,null,null,null,null,null,null,91,9,"Yes"]
["NEW KENT COUNTY PUBLIC SCHOOLS",63,null,null,null,null,null,null,null,null,null,null,null,null,null,null,null,null,null,null,null,null,null,null,null,92,1,"No",null,92,2,"No",null,92,3,"No",null,92,4,"No",null,null,null,null,null,92,6,"No",null,92,97,null,null,null,null,null,null,92,9,"No"]
["NEWPORT NEWS CITY PUBLIC SCHOOLS",117,null,null,null,null,null,null,null,null,null,null,null,null,null,null,null,null,null,null,null,null,null,null,null,93,1,"Yes",null,93,2,"Yes",null,93,3,"Yes",null,93,4,"Yes",null,null,null,null,null,93,6,"Yes",null,93,97,null,null,null,null,null,null,93,9,"Yes"]
["NORFOLK CITY PUBLIC SCHOOLS",118,null,null,null,null,null,null,null,null,null,null,null,null,null,null,null,null,null,null,null,null,null,null,null,94,1,"Yes",null,94,2,"Yes",null,94,3,"Yes",null,94,4,"Yes",null,null,null,null,null,94,6,"Yes",null,94,97,null,null,null,null,null,null,94,9,"Yes"]
["NORTHAMPTON COUNTY PUBLIC SCHOOLS",65,null,null,null,null,null,null,null,null,null,null,null,null,null,null,null,null,null,null,null,null,null,null,null,95,1,"Yes",null,95,2,"Yes",122691.29,95,3,"Yes",null,95,4,"Yes",null,null,null,null,null,95,6,"Yes",null,95,97,null,null,null,null,null,null,95,9,"Yes"]
["NORTHUMBERLAND COUNTY PUBLIC SCHOOLS",66,null,null,null,null,null,null,null,null,null,null,null,null,null,null,null,null,null,null,null,null,null,null,null,96,1,"No",null,96,2,"No",null,96,3,"No",null,96,4,"No",null,null,null,null,null,96,6,"No",null,96,97,null,null,null,null,null,null,96,9,"No"]
["NORTON CITY PUBLIC SCHOOLS",119,null,null,null,null,null,null,null,null,null,null,null,null,null,null,null,null,null,null,null,null,null,null,null,97,1,"Yes",null,97,2,"Yes",null,97,3,"Yes",null,97,4,"Yes",null,null,null,null,null,97,6,"Yes",null,97,97,null,null,null,null,null,null,97,9,"Yes"]
["NOTTOWAY COUNTY PUBLIC SCHOOLS",67,null,null,null,null,null,null,null,null,null,null,null,null,null,null,null,null,null,null,null,null,null,null,null,98,1,"Yes",null,98,2,"Yes",null,98,3,"Yes",null,98,4,"Yes",null,null,null,null,null,98,6,"Yes",null,98,97,null,null,null,null,null,null,98,9,"Yes"]
["OLD DOMINION UNIVERSITY",798,null,null,null,null,null,null,null,null,null,null,null,null,null,null,null,null,null,null,null,null,null,null,null,101,1,"No",null,101,2,"No",null,101,3,"No",null,101,4,"No",null,null,null,null,null,101,6,"No",null,101,97,null,null,null,null,null,null,101,9,"No"]
["ORANGE COUNTY PUBLIC SCHOOLS",68,null,null,null,null,null,null,null,null,null,null,null,null,null,null,null,null,null,null,null,null,null,null,null,102,1,"Yes",null,102,2,"Yes",null,102,3,"Yes",null,102,4,"Yes",null,null,null,null,null,102,6,"Yes",null,102,97,null,null,null,null,null,null,102,9,"Yes"]
["PAGE COUNTY PUBLIC SCHOOLS",69,null,null,null,null,null,null,null,null,null,null,null,null,null,null,null,null,null,null,null,null,null,null,null,103,1,"No",null,103,2,"No",null,103,3,"No",null,103,4,"No",null,null,null,null,null,103,6,"No",null,103,97,null,null,null,null,null,null,103,9,"No"]
["PATRICK COUNTY PUBLIC SCHOOLS",70,null,null,null,null,null,null,null,null,null,null,null,null,null,null,null,null,null,null,null,null,null,null,null,104,1,"Yes",null,104,2,"Yes",null,104,3,"Yes",null,104,4,"Yes",null,null,null,null,null,104,6,"Yes",null,104,97,null,null,null,null,null,null,104,9,"Yes"]
["PETERSBURG CITY PUBLIC SCHOOLS",120,null,null,null,null,null,null,null,null,null,null,null,null,null,null,null,null,null,null,null,null,null,null,null,106,1,"Yes",null,106,2,"Yes",null,106,3,"Yes",null,106,4,"Yes",null,null,null,null,null,106,6,"Yes",null,106,97,null,null,null,null,null,null,106,9,"Yes"]
["PITTSYLVANIA COUNTY PUBLIC SCHOOLS",71,null,null,null,null,null,null,null,null,null,null,null,null,null,null,null,null,null,null,null,null,null,null,null,107,1,"No",null,107,2,"No",null,107,3,"No",null,107,4,"No",null,null,null,null,null,107,6,"No",null,107,97,null,null,null,null,null,null,107,9,"No"]
["POQUOSON CITY PUBLIC SCHOOLS",142,null,null,null,null,null,null,null,null,null,null,null,null,null,null,null,null,null,null,null,null,null,null,null,108,1,"No",null,108,2,"No",null,108,3,"No",null,108,4,"No",null,null,null,null,null,108,6,"No",null,108,97,null,null,null,null,null,null,108,9,"No"]
["PORTSMOUTH CITY PUBLIC SCHOOLS",121,null,null,null,null,null,null,null,null,null,null,null,null,null,null,null,null,null,null,null,null,null,null,null,109,1,"No",null,109,2,"No",null,109,3,"No",null,109,4,"No",null,null,null,null,null,109,6,"No",null,109,97,null,null,null,null,null,null,109,9,"No"]
["POWHATAN COUNTY PUBLIC SCHOOLS",72,null,null,null,null,null,null,null,null,null,null,null,null,null,null,null,null,null,null,null,null,null,null,null,110,1,"No",null,110,2,"No",null,110,3,"No",null,110,4,"No",null,null,null,null,null,110,6,"No",null,110,97,null,null,null,null,null,null,110,9,"No"]
["PRINCE EDWARD COUNTY PUBLIC SCHOOLS",73,null,null,null,null,null,null,null,null,null,null,null,null,null,null,null,null,null,null,null,null,null,null,null,111,1,"No",null,111,2,"No",null,111,3,"No",null,111,4,"No",null,null,null,null,null,111,6,"No",null,111,97,null,null,null,null,null,null,111,9,"No"]
["PRINCE GEORGE COUNTY PUBLIC SCHOOLS",74,null,null,null,null,null,null,null,null,null,null,null,null,null,null,null,null,null,null,null,null,null,null,null,112,1,"No",null,112,2,"No",null,112,3,"No",null,112,4,"No",null,null,null,null,null,112,6,"No",null,112,97,null,null,null,null,null,null,112,9,"No"]
["PRINCE WILLIAM COUNTY PUBLIC SCHOOLS",75,null,null,null,null,null,null,null,null,null,null,null,null,null,null,null,null,null,null,null,null,null,null,null,113,1,"No",null,113,2,"No",null,113,3,"No",null,113,4,"No",null,null,null,null,null,113,6,"No",null,113,97,null,null,null,null,null,null,113,9,"No"]
["PULASKI COUNTY PUBLIC SCHOOLS",77,null,null,null,null,null,null,null,null,null,null,null,null,null,null,null,null,null,null,null,null,null,null,null,114,1,"Yes",null,114,2,"Yes",null,114,3,"Yes",null,114,4,"Yes",null,null,null,null,null,114,6,"Yes",null,114,97,null,null,null,null,null,null,114,9,"Yes"]
["RADFORD CITY PUBLIC SCHOOLS",122,null,null,null,null,null,null,null,null,null,null,null,null,null,null,null,null,null,null,null,null,null,null,null,115,1,"Yes",null,115,2,"Yes",null,115,3,"Yes",null,115,4,"Yes",null,null,null,null,null,115,6,"Yes",null,115,97,null,null,null,null,null,null,115,9,"Yes"]
["RAPPAHANNOCK COUNTY PUBLIC SCHOOLS",78,null,null,null,null,null,null,null,null,null,null,null,null,null,null,null,null,null,null,null,null,null,null,null,116,1,"Yes",null,116,2,"Yes",null,116,3,"Yes",null,116,4,"Yes",null,null,null,null,null,116,6,"Yes",null,116,97,null,null,null,null,null,null,116,9,"Yes"]
["RICHMOND CITY PUBLIC SCHOOLS",123,null,null,null,null,null,null,null,null,null,null,null,null,null,null,null,null,null,null,null,null,null,null,null,117,1,"No",null,117,2,"No",null,117,3,"No",null,117,4,"No",null,null,null,null,null,117,6,"No",null,117,97,null,null,null,null,null,null,117,9,"No"]
["RICHMOND COUNTY PUBLIC SCHOOLS",79,null,null,null,null,null,null,null,null,null,null,null,null,null,null,null,null,null,null,null,null,null,null,null,118,1,"Yes",null,118,2,"Yes",null,118,3,"Yes",null,118,4,"Yes",null,null,null,null,null,118,6,"Yes",null,118,97,null,null,null,null,null,null,118,9,"Yes"]
["ROANOKE CITY PUBLIC SCHOOLS",124,null,null,null,null,null,null,null,null,null,null,null,null,null,null,null,null,null,null,null,null,null,null,null,119,1,"Yes",null,119,2,"Yes",null,119,3,"Yes",null,119,4,"Yes",null,null,null,null,null,119,6,"Yes",null,119,97,null,null,null,null,null,null,119,9,"Yes"]
["ROANOKE COUNTY PUBLIC SCHOOLS",80,null,null,null,null,null,null,null,null,null,null,null,null,null,null,null,null,null,null,null,null,null,null,null,120,1,"Yes",null,120,2,"Yes",null,120,3,"Yes",null,120,4,"Yes",null,null,null,null,null,120,6,"Yes",null,120,97,null,null,null,null,null,null,120,9,"Yes"]
["ROCKBRIDGE COUNTY PUBLIC SCHOOLS",81,null,null,null,null,null,null,null,null,null,null,null,null,null,null,null,null,null,null,null,null,null,null,null,121,1,"Yes",null,121,2,"Yes",null,121,3,"Yes",null,121,4,"Yes",null,null,null,null,null,121,6,"Yes",null,121,97,null,null,null,null,null,null,121,9,"Yes"]
["ROCKINGHAM COUNTY PUBLIC SCHOOLS",82,null,null,null,null,null,null,null,null,null,null,null,null,null,null,null,null,null,null,null,null,null,null,null,122,1,"No",null,122,2,"No",null,122,3,"No",null,122,4,"No",null,null,null,null,null,122,6,"No",null,122,97,null,null,null,null,null,null,122,9,"No"]
["RUSSELL COUNTY PUBLIC SCHOOLS",83,null,null,null,null,null,null,null,null,null,null,null,null,null,null,null,null,null,null,null,null,null,null,null,123,1,"No",null,123,2,"No",null,123,3,"No",null,123,4,"No",null,null,null,null,null,123,6,"No",null,123,97,null,null,null,null,null,null,123,9,"No"]
["SALEM CITY PUBLIC SCHOOLS",139,null,null,null,null,null,null,null,null,null,null,null,null,null,null,null,null,null,null,null,null,null,null,null,124,1,"Yes",null,124,2,"Yes",null,124,3,"Yes",null,124,4,"Yes",null,null,null,null,null,124,6,"Yes",null,124,97,null,null,null,null,null,null,124,9,"Yes"]
["SCOTT COUNTY PUBLIC SCHOOLS",84,null,null,null,null,null,null,null,null,null,null,null,null,null,null,null,null,null,null,null,null,null,null,null,126,1,"No",null,126,2,"No",null,126,3,"No",null,126,4,"No",null,null,null,null,null,126,6,"No",null,126,97,null,null,null,null,null,null,126,9,"No"]
["SHENANDOAH COUNTY PUBLIC SCHOOLS",85,null,null,null,null,null,null,null,null,null,null,null,null,null,null,null,null,null,null,null,null,null,null,null,127,1,"Yes",null,127,2,"Yes",null,127,3,"Yes",null,127,4,"Yes",null,null,null,null,null,127,6,"Yes",null,127,97,null,null,null,null,null,null,127,9,"Yes"]
["SMYTH COUNTY PUBLIC SCHOOLS",86,null,null,null,null,null,null,null,null,null,null,null,null,null,null,null,null,null,null,null,null,null,null,null,128,1,"No",null,128,2,"No",null,128,3,"No",null,128,4,"No",null,null,null,null,null,128,6,"No",null,128,97,null,null,null,null,null,null,128,9,"No"]
["SOUTHAMPTON COUNTY PUBLIC SCHOOLS",87,null,null,null,null,null,null,null,null,null,null,null,null,null,null,null,null,null,null,null,null,null,null,null,130,1,"Yes",null,130,2,"Yes",null,130,3,"Yes",null,130,4,"Yes",null,null,null,null,null,130,6,"Yes",null,130,97,null,null,null,null,null,null,130,9,"Yes"]
["SOUTHWESTERN VA TRAINING CENTER",951,null,null,null,null,null,null,null,null,null,null,null,null,null,null,null,null,null,null,null,null,null,null,null,131,1,"Yes",null,131,2,"Yes",null,131,3,"Yes",null,131,4,"Yes",null,null,null,null,null,131,6,"Yes",null,131,97,null,null,null,null,null,null,131,9,"Yes"]
["SPOTSYLVANIA COUNTY PUBLIC SCHOOLS",88,null,null,null,null,null,null,null,null,null,null,null,null,null,null,null,null,null,null,null,null,null,null,null,132,1,"Yes",null,132,2,"Yes",null,132,3,"Yes",null,132,4,"Yes",null,null,null,null,null,132,6,"Yes",null,132,97,null,null,null,null,null,null,132,9,"Yes"]
["STAFFORD COUNTY PUBLIC SCHOOLS",89,null,null,null,null,null,null,null,null,null,null,null,null,null,null,null,null,null,null,null,null,null,null,null,134,null,null,null,134,2,null,null,134,3,null,null,134,4,null,null,null,null,null,null,134,6,null,null,134,97,null,null,null,null,null,null,134,9]
["STAUNTON CITY PUBLIC SCHOOLS",126,null,null,null,null,null,null,null,null,null,null,null,null,null,null,null,null,null,null,null,null,null,null,null,135,1,"Yes",null,135,2,"Yes",null,135,3,"Yes",null,135,4,"Yes",null,null,null,null,null,135,6,"Yes",null,135,97,null,null,null,null,null,null,135,9,"Yes"]
["SUFFOLK CITY PUBLIC SCHOOLS",127,null,null,null,null,null,null,null,null,null,null,null,null,null,null,null,null,null,null,null,null,null,null,null,136,1,"No",null,136,2,"No",null,136,3,"No",null,136,4,"No",null,null,null,null,null,136,6,"No",null,136,97,null,null,null,null,null,null,136,9,"No"]
["SURRY COUNTY PUBLIC SCHOOLS",90,null,null,null,null,null,null,null,null,null,null,null,null,null,null,null,null,null,null,null,null,null,null,null,137,1,"No",null,137,2,"No",null,137,3,"No",null,137,4,"No",null,null,null,null,null,137,6,"No",null,137,97,null,null,null,null,null,null,137,9,"No"]
["SUSSEX COUNTY PUBLIC SCHOOLS",91,null,null,null,null,null,null,null,null,null,null,null,null,null,null,null,null,null,null,null,null,null,null,null,138,null,null,null,138,2,null,null,138,3,null,null,138,4,null,null,null,null,null,null,138,6,null,null,138,97,null,null,null,null,null,null,138,9]
["TAZEWELL COUNTY PUBLIC SCHOOLS",92,null,null,null,null,null,null,null,null,null,null,null,null,null,null,null,null,null,null,null,null,null,null,null,139,1,"Yes",null,139,2,"Yes",null,139,3,"Yes",null,139,4,"Yes",null,null,null,null,null,139,6,"Yes",null,139,97,null,null,null,null,null,null,139,9,"Yes"]
["VA BEACH CITY PUBLIC SCHOOLS",128,null,null,null,null,null,null,null,null,null,null,null,null,null,null,null,null,null,null,null,null,null,null,null,140,1,null,null,140,2,null,null,140,3,null,null,140,4,null,null,null,null,null,null,140,6,null,null,140,97,null,null,null,null,null,null,140,9]
["VA DEPT OF CORRECTIONAL EDUCATION",900,null,null,null,null,null,null,null,null,null,null,null,null,null,null,null,null,null,null,null,null,null,null,null,142,null,"Yes",null,142,2,"Yes",null,142,3,"Yes",null,142,4,"Yes",null,null,null,null,null,142,6,"Yes",null,142,97,null,null,null,null,null,null,142,9,"Yes"]
["VIRGINIA COMMONWEALTH UNIVERSITY",881,null,null,null,null,null,null,null,null,null,null,null,null,null,null,null,null,null,null,null,null,null,null,null,143,1,"Yes",null,143,2,"Yes",null,143,3,"Yes",null,143,4,"Yes",null,null,null,null,null,143,6,"Yes",null,143,97,null,null,null,null,null,null,143,9,"Yes"]
["VSDB STAUNTON",218,null,null,null,null,null,null,null,null,null,null,null,null,null,null,null,null,null,null,null,null,null,null,null,144,1,"Yes",null,144,2,"Yes",null,144,3,"Yes",null,144,4,"Yes",null,null,null,null,null,144,6,"Yes",null,144,97,null,null,null,null,null,null,144,9,"Yes"]
["WARREN COUNTY PUBLIC SCHOOLS",93,null,null,null,null,null,null,null,null,null,null,null,null,null,null,null,null,null,null,null,null,null,null,null,202,1,"Yes",null,202,2,"Yes",null,202,3,"Yes",null,202,4,"Yes",null,null,null,null,null,202,6,"Yes",null,202,97,null,null,null,null,null,null,202,9,"Yes"]
["WASHINGTON COUNTY PUBLIC SCHOOLS",94,null,null,null,null,null,null,null,null,null,null,null,null,null,null,null,null,null,null,null,null,null,null,null,207,1,"Yes",null,207,2,"Yes",null,207,3,"Yes",null,207,4,"Yes",null,null,null,null,null,207,6,"Yes",null,207,97,null,null,null,null,null,null,207,9,"Yes"]
["WAYNESBORO CITY PUBLIC SCHOOLS",130,null,null,null,null,null,null,null,null,null,null,null,null,null,null,null,null,null,null,null,null,null,null,null,218,1,"No",null,218,2,"No",null,218,3,"No",null,218,4,"No",null,null,null,null,null,218,6,"No",null,218,97,null,null,null,null,null,null,218,9,"No"]
["WEST POINT TOWN PUBLIC SCHOOLS",207,null,null,null,null,null,null,null,null,null,null,null,null,null,null,null,null,null,null,null,null,null,null,null,219,null,null,null,219,2,null,null,219,3,null,null,219,4,null,null,null,null,null,null,219,6,null,null,219,97,null,null,null,null,null,null,219,9]
["WESTMORELAND COUNTY PUBLIC SCHOOLS",95,null,null,null,null,null,null,null,null,null,null,null,null,null,null,null,null,null,null,null,null,null,null,null,871,null,null,null,871,2,null,247206.39999999999,871,3,null,null,871,4,null,null,null,null,null,null,871,6,null,null,871,97,null,null,null,null,null,null,871,9]
["WILLIAMSBURG CITY PUBLIC SCHOOLS",131,null,null,null,null,null,null,null,null,null,null,null,null,null,null,null,null,null,null,null,null,null,null,null,917,null,null,null,917,2,null,null,917,3,null,null,917,4,null,null,null,null,null,null,917,6,null,null,917,97,null,null,null,null,null,null,900,9]
["WINCHESTER CITY PUBLIC SCHOOLS",132]
["WISE COUNTY PUBLIC SCHOOLS",96,null,null,null,null,null,null,null,null,null,null,null,null,null,null,null,null,null,null,null,null,null,null,null,null,null,null,null,null,null,null,{"$f":"SUM(AG3:AG142)","v":879098.81},null,null,null,null,null,null,null,null,null,null,null,{"$f":"SUM(AS3:AS142)","v":0},null,null,null,null,null,null,null,{"$f":"SUM(BA3:BA142)","v":0}]
["WOODROW WILSON REHABILITATION CTR",947]
["WYTHE COUNTY PUBLIC SCHOOLS",97,null,null,null,null,null,null,null,null,null,null,null,null,null,null,null,null,null,null,null,null,null,null,null,null,null,null,null,null,null,null,{"$f":"AG144-879098.81","v":0}]
["YORK COUNTY PUBLIC SCHOOLS",98]
[]
[null,null,null,null,null,null,null,null,null,null,null,null,null,null,null,null,null,null,null,null,null,null,null,null,1]
[null,null,null,null,null,null,null,null,null,null,null,null,null,null,null,null,null,null,null,null,null,null,null,null,2]
[null,null,null,null,null,null,null,null,null,null,null,null,null,null,null,null,null,null,null,null,null,null,null,null,3]
[null,null,null,null,null,null,null,null,null,null,null,null,null,null,null,null,null,null,null,null,null,null,null,null,4]
[null,null,null,null,null,null,null,null,null,null,null,null,null,null,null,null,null,null,null,null,null,null,null,null,5]
[null,null,null,null,null,null,null,null,null,null,null,null,null,null,null,null,null,null,null,null,null,null,null,null,6]
[null,null,null,null,null,null,null,null,null,null,null,null,null,null,null,null,null,null,null,null,null,null,null,null,7]
[null,null,null,null,null,null,null,null,null,null,null,null,null,null,null,null,null,null,null,null,null,null,null,null,8]
[null,null,null,null,null,null,null,null,null,null,null,null,null,null,null,null,null,null,null,null,null,null,null,null,9]
[null,null,null,null,null,null,null,null,null,null,null,null,null,null,null,null,null,null,null,null,null,null,null,null,10]
[null,null,null,null,null,null,null,null,null,null,null,null,null,null,null,null,null,null,null,null,null,null,null,null,11]
[null,null,null,null,null,null,null,null,null,null,null,null,null,null,null,null,null,null,null,null,null,null,null,null,12]
[null,null,null,null,null,null,null,null,null,null,null,null,null,null,null,null,null,null,null,null,null,null,null,null,13]
[null,null,null,null,null,null,null,null,null,null,null,null,null,null,null,null,null,null,null,null,null,null,null,null,14]
[null,null,null,null,null,null,null,null,null,null,null,null,null,null,null,null,null,null,null,null,null,null,null,null,15]
[null,null,null,null,null,null,null,null,null,null,null,null,null,null,null,null,null,null,null,null,null,null,null,null,16]
[null,null,null,null,null,null,null,null,null,null,null,null,null,null,null,null,null,null,null,null,null,null,null,null,17]
[null,null,null,null,null,null,null,null,null,null,null,null,null,null,null,null,null,null,null,null,null,null,null,null,18]
[null,null,null,null,null,null,null,null,null,null,null,null,null,null,null,null,null,null,null,null,null,null,null,null,19]
[null,null,null,null,null,null,null,null,null,null,null,null,null,null,null,null,null,null,null,null,null,null,null,null,20]
[null,null,null,null,null,null,null,null,null,null,null,null,null,null,null,null,null,null,null,null,null,null,null,null,21]
[null,null,null,null,null,null,null,null,null,null,null,null,null,null,null,null,null,null,null,null,null,null,null,null,22]
[null,null,null,null,null,null,null,null,null,null,null,null,null,null,null,null,null,null,null,null,null,null,null,null,23]
[null,null,null,null,null,null,null,null,null,null,null,null,null,null,null,null,null,null,null,null,null,null,null,null,24]
[null,null,null,null,null,null,null,null,null,null,null,null,null,null,null,null,null,null,null,null,null,null,null,null,25]
[null,null,null,null,null,null,null,null,null,null,null,null,null,null,null,null,null,null,null,null,null,null,null,null,26]
[null,null,null,null,null,null,null,null,null,null,null,null,null,null,null,null,null,null,null,null,null,null,null,null,27]
[null,null,null,null,null,null,null,null,null,null,null,null,null,null,null,null,null,null,null,null,null,null,null,null,28]
[null,null,null,null,null,null,null,null,null,null,null,null,null,null,null,null,null,null,null,null,null,null,null,null,29]
[null,null,null,null,null,null,null,null,null,null,null,null,null,null,null,null,null,null,null,null,null,null,null,null,30]
[null,null,null,null,null,null,null,null,null,null,null,null,null,null,null,null,null,null,null,null,null,null,null,null,31]
[null,null,null,null,null,null,null,null,null,null,null,null,null,null,null,null,null,null,null,null,null,null,null,null,32]
[null,null,null,null,null,null,null,null,null,null,null,null,null,null,null,null,null,null,null,null,null,null,null,null,33]
[null,null,null,null,null,null,null,null,null,null,null,null,null,null,null,null,null,null,null,null,null,null,null,null,34]
[null,null,null,null,null,null,null,null,null,null,null,null,null,null,null,null,null,null,null,null,null,null,null,null,35]
[null,null,null,null,null,null,null,null,null,null,null,null,null,null,null,null,null,null,null,null,null,null,null,null,36]
[null,null,null,null,null,null,null,null,null,null,null,null,null,null,null,null,null,null,null,null,null,null,null,null,37]
[null,null,null,null,null,null,null,null,null,null,null,null,null,null,null,null,null,null,null,null,null,null,null,null,38]
[null,null,null,null,null,null,null,null,null,null,null,null,null,null,null,null,null,null,null,null,null,null,null,null,39]
[null,null,null,null,null,null,null,null,null,null,null,null,null,null,null,null,null,null,null,null,null,null,null,null,40]
[null,null,null,null,null,null,null,null,null,null,null,null,null,null,null,null,null,null,null,null,null,null,null,null,41]
[null,null,null,null,null,null,null,null,null,null,null,null,null,null,null,null,null,null,null,null,null,null,null,null,42]
[null,null,null,null,null,null,null,null,null,null,null,null,null,null,null,null,null,null,null,null,null,null,null,null,43]
[null,null,null,null,null,null,null,null,null,null,null,null,null,null,null,null,null,null,null,null,null,null,null,null,44]
[null,null,null,null,null,null,null,null,null,null,null,null,null,null,null,null,null,null,null,null,null,null,null,null,45]
[null,null,null,null,null,null,null,null,null,null,null,null,null,null,null,null,null,null,null,null,null,null,null,null,46]
[null,null,null,null,null,null,null,null,null,null,null,null,null,null,null,null,null,null,null,null,null,null,null,null,47]
[null,null,null,null,null,null,null,null,null,null,null,null,null,null,null,null,null,null,null,null,null,null,null,null,48]
[null,null,null,null,null,null,null,null,null,null,null,null,null,null,null,null,null,null,null,null,null,null,null,null,49]
[null,null,null,null,null,null,null,null,null,null,null,null,null,null,null,null,null,null,null,null,null,null,null,null,50]
[null,null,null,null,null,null,null,null,null,null,null,null,null,null,null,null,null,null,null,null,null,null,null,null,51]
[null,null,null,null,null,null,null,null,null,null,null,null,null,null,null,null,null,null,null,null,null,null,null,null,52]
[null,null,null,null,null,null,null,null,null,null,null,null,null,null,null,null,null,null,null,null,null,null,null,null,53]
[null,null,null,null,null,null,null,null,null,null,null,null,null,null,null,null,null,null,null,null,null,null,null,null,54]
[null,null,null,null,null,null,null,null,null,null,null,null,null,null,null,null,null,null,null,null,null,null,null,null,55]
[null,null,null,null,null,null,null,null,null,null,null,null,null,null,null,null,null,null,null,null,null,null,null,null,56]
[null,null,null,null,null,null,null,null,null,null,null,null,null,null,null,null,null,null,null,null,null,null,null,null,57]
[null,null,null,null,null,null,null,null,null,null,null,null,null,null,null,null,null,null,null,null,null,null,null,null,58]
[null,null,null,null,null,null,null,null,null,null,null,null,null,null,null,null,null,null,null,null,null,null,null,null,59]
[null,null,null,null,null,null,null,null,null,null,null,null,null,null,null,null,null,null,null,null,null,null,null,null,60]
[null,null,null,null,null,null,null,null,null,null,null,null,null,null,null,null,null,null,null,null,null,null,null,null,62]
[null,null,null,null,null,null,null,null,null,null,null,null,null,null,null,null,null,null,null,null,null,null,null,null,63]
[null,null,null,null,null,null,null,null,null,null,null,null,null,null,null,null,null,null,null,null,null,null,null,null,65]
[null,null,null,null,null,null,null,null,null,null,null,null,null,null,null,null,null,null,null,null,null,null,null,null,66]
[null,null,null,null,null,null,null,null,null,null,null,null,null,null,null,null,null,null,null,null,null,null,null,null,67]
[null,null,null,null,null,null,null,null,null,null,null,null,null,null,null,null,null,null,null,null,null,null,null,null,68]
[null,null,null,null,null,null,null,null,null,null,null,null,null,null,null,null,null,null,null,null,null,null,null,null,69]
[null,null,null,null,null,null,null,null,null,null,null,null,null,null,null,null,null,null,null,null,null,null,null,null,70]
[null,null,null,null,null,null,null,null,null,null,null,null,null,null,null,null,null,null,null,null,null,null,null,null,71]
[null,null,null,null,null,null,null,null,null,null,null,null,null,null,null,null,null,null,null,null,null,null,null,null,72]
[null,null,null,null,null,null,null,null,null,null,null,null,null,null,null,null,null,null,null,null,null,null,null,null,73]
[null,null,null,null,null,null,null,null,null,null,null,null,null,null,null,null,null,null,null,null,null,null,null,null,74]
[null,null,null,null,null,null,null,null,null,null,null,null,null,null,null,null,null,null,null,null,null,null,null,null,75]
[null,null,null,null,null,null,null,null,null,null,null,null,null,null,null,null,null,null,null,null,null,null,null,null,77]
[null,null,null,null,null,null,null,null,null,null,null,null,null,null,null,null,null,null,null,null,null,null,null,null,78]
[null,null,null,null,null,null,null,null,null,null,null,null,null,null,null,null,null,null,null,null,null,null,null,null,79]
[null,null,null,null,null,null,null,null,null,null,null,null,null,null,null,null,null,null,null,null,null,null,null,null,80]
[null,null,null,null,null,null,null,null,null,null,null,null,null,null,null,null,null,null,null,null,null,null,null,null,81]
[null,null,null,null,null,null,null,null,null,null,null,null,null,null,null,null,null,null,null,null,null,null,null,null,82]
[null,null,null,null,null,null,null,null,null,null,null,null,null,null,null,null,null,null,null,null,null,null,null,null,83]
[null,null,null,null,null,null,null,null,null,null,null,null,null,null,null,null,null,null,null,null,null,null,null,null,84]
[null,null,null,null,null,null,null,null,null,null,null,null,null,null,null,null,null,null,null,null,null,null,null,null,85]
[null,null,null,null,null,null,null,null,null,null,null,null,null,null,null,null,null,null,null,null,null,null,null,null,86]
[null,null,null,null,null,null,null,null,null,null,null,null,null,null,null,null,null,null,null,null,null,null,null,null,87]
[null,null,null,null,null,null,null,null,null,null,null,null,null,null,null,null,null,null,null,null,null,null,null,null,88]
[null,null,null,null,null,null,null,null,null,null,null,null,null,null,null,null,null,null,null,null,null,null,null,null,89]
[null,null,null,null,null,null,null,null,null,null,null,null,null,null,null,null,null,null,null,null,null,null,null,null,90]
[null,null,null,null,null,null,null,null,null,null,null,null,null,null,null,null,null,null,null,null,null,null,null,null,91]
[null,null,null,null,null,null,null,null,null,null,null,null,null,null,null,null,null,null,null,null,null,null,null,null,92]
[null,null,null,null,null,null,null,null,null,null,null,null,null,null,null,null,null,null,null,null,null,null,null,null,93]
[null,null,null,null,null,null,null,null,null,null,null,null,null,null,null,null,null,null,null,null,null,null,null,null,94]
[null,null,null,null,null,null,null,null,null,null,null,null,null,null,null,null,null,null,null,null,null,null,null,null,95]
[null,null,null,null,null,null,null,null,null,null,null,null,null,null,null,null,null,null,null,null,null,null,null,null,96]
[null,null,null,null,null,null,null,null,null,null,null,null,null,null,null,null,null,null,null,null,null,null,null,null,97]
[null,null,null,null,null,null,null,null,null,null,null,null,null,null,null,null,null,null,null,null,null,null,null,null,98]
[null,null,null,null,null,null,null,null,null,null,null,null,null,null,null,null,null,null,null,null,null,null,null,null,101]
[null,null,null,null,null,null,null,null,null,null,null,null,null,null,null,null,null,null,null,null,null,null,null,null,102]
[null,null,null,null,null,null,null,null,null,null,null,null,null,null,null,null,null,null,null,null,null,null,null,null,103]
[null,null,null,null,null,null,null,null,null,null,null,null,null,null,null,null,null,null,null,null,null,null,null,null,104]
[null,null,null,null,null,null,null,null,null,null,null,null,null,null,null,null,null,null,null,null,null,null,null,null,106]
[null,null,null,null,null,null,null,null,null,null,null,null,null,null,null,null,null,null,null,null,null,null,null,null,107]
[null,null,null,null,null,null,null,null,null,null,null,null,null,null,null,null,null,null,null,null,null,null,null,null,108]
[null,null,null,null,null,null,null,null,null,null,null,null,null,null,null,null,null,null,null,null,null,null,null,null,109]
[null,null,null,null,null,null,null,null,null,null,null,null,null,null,null,null,null,null,null,null,null,null,null,null,110]
[null,null,null,null,null,null,null,null,null,null,null,null,null,null,null,null,null,null,null,null,null,null,null,null,111]
[null,null,null,null,null,null,null,null,null,null,null,null,null,null,null,null,null,null,null,null,null,null,null,null,112]
[null,null,null,null,null,null,null,null,null,null,null,null,null,null,null,null,null,null,null,null,null,null,null,null,113]
[null,null,null,null,null,null,null,null,null,null,null,null,null,null,null,null,null,null,null,null,null,null,null,null,114]
[null,null,null,null,null,null,null,null,null,null,null,null,null,null,null,null,null,null,null,null,null,null,null,null,115]
[null,null,null,null,null,null,null,null,null,null,null,null,null,null,null,null,null,null,null,null,null,null,null,null,116]
[null,null,null,null,null,null,null,null,null,null,null,null,null,null,null,null,null,null,null,null,null,null,null,null,117]
[null,null,null,null,null,null,null,null,null,null,null,null,null,null,null,null,null,null,null,null,null,null,null,null,118]
[null,null,null,null,null,null,null,null,null,null,null,null,null,null,null,null,null,null,null,null,null,null,null,null,119]
[null,null,null,null,null,null,null,null,null,null,null,null,null,null,null,null,null,null,null,null,null,null,null,null,120]
[null,null,null,null,null,null,null,null,null,null,null,null,null,null,null,null,null,null,null,null,null,null,null,null,121]
[null,null,null,null,null,null,null,null,null,null,null,null,null,null,null,null,null,null,null,null,null,null,null,null,122]
[null,null,null,null,null,null,null,null,null,null,null,null,null,null,null,null,null,null,null,null,null,null,null,null,123]
[null,null,null,null,null,null,null,null,null,null,null,null,null,null,null,null,null,null,null,null,null,null,null,null,124]
[null,null,null,null,null,null,null,null,null,null,null,null,null,null,null,null,null,null,null,null,null,null,null,null,126]
[null,null,null,null,null,null,null,null,null,null,null,null,null,null,null,null,null,null,null,null,null,null,null,null,127]
[null,null,null,null,null,null,null,null,null,null,null,null,null,null,null,null,null,null,null,null,null,null,null,null,128]
[null,null,null,null,null,null,null,null,null,null,null,null,null,null,null,null,null,null,null,null,null,null,null,null,130]
[null,null,null,null,null,null,null,null,null,null,null,null,null,null,null,null,null,null,null,null,null,null,null,null,131]
[null,null,null,null,null,null,null,null,null,null,null,null,null,null,null,null,null,null,null,null,null,null,null,null,132]
[null,null,null,null,null,null,null,null,null,null,null,null,null,null,null,null,null,null,null,null,null,null,null,null,134]
[null,null,null,null,null,null,null,null,null,null,null,null,null,null,null,null,null,null,null,null,null,null,null,null,135]
[null,null,null,null,null,null,null,null,null,null,null,null,null,null,null,null,null,null,null,null,null,null,null,null,136]
[null,null,null,null,null,null,null,null,null,null,null,null,null,null,null,null,null,null,null,null,null,null,null,null,137]
[null,null,null,null,null,null,null,null,null,null,null,null,null,null,null,null,null,null,null,null,null,null,null,null,138]
[null,null,null,null,null,null,null,null,null,null,null,null,null,null,null,null,null,null,null,null,null,null,null,null,139]
[null,null,null,null,null,null,null,null,null,null,null,null,null,null,null,null,null,null,null,null,null,null,null,null,140]
[null,null,null,null,null,null,null,null,null,null,null,null,null,null,null,null,null,null,null,null,null,null,null,null,142]
[null,null,null,null,null,null,null,null,null,null,null,null,null,null,null,null,null,null,null,null,null,null,null,null,143]
[null,null,null,null,null,null,null,null,null,null,null,null,null,null,null,null,null,null,null,null,null,null,null,null,144]
[null,null,null,null,null,null,null,null,null,null,null,null,null,null,null,null,null,null,null,null,null,null,null,null,202]
[null,null,null,null,null,null,null,null,null,null,null,null,null,null,null,null,null,null,null,null,null,null,null,null,207]
[null,null,null,null,null,null,null,null,null,null,null,null,null,null,null,null,null,null,null,null,null,null,null,null,218]
[null,null,null,null,null,null,null,null,null,null,null,null,null,null,null,null,null,null,null,null,null,null,null,null,219]
[null,null,null,null,null,null,null,null,null,null,null,null,null,null,null,null,null,null,null,null,null,null,null,null,871]
[null,null,null,null,null,null,null,null,null,null,null,null,null,null,null,null,null,null,null,null,null,null,null,null,917]

{"sheet":"Sheet1","index":7,"n_rows":3,"n_cols":1,"rows_kept":3,"cut":false,"hidden":true,"merged":[]}
[]
["Title II, Part A, Transferability"]
["Title IV, Part A, Transferability"]